Workbook

Sheet DropDowns (hidden)
A1: 250 | B1: Rounds and Readings | C1: 250
A2: 104 | B2: Rounds and Readings | C2: 104
A3: 52 | B3: Rounds and Readings | C3: 52
A4: 26 | B4: Rounds and Readings | C4: 26
A5: 12 | B5: Rounds and Readings | C5: 12
A7: 250 | B7: Water Treatment | C7: 250
A8: 104 | B8: Water Treatment | C8: 104
A9: 52 | B9: Water Treatment | C9: 52
A10: 26 | B10: Water Treatment | C10: 26
A11: 12 | B11: Water Treatment | C11: 12

Sheet Summary Pricing Sheet
A1: JCC- Facility Operation and Maintenance Service Provider - Summary Pricing Sheet and Systems Matrix
A2: RFP # | B2: RFP-FS-SP-2019-03-JP
A3: Proposer | B3: Firm Name TBD
H4: System | I4: Access | J4: HVAC | V4: Electrical | AE4: Life Safety | AG4: Plumbing | AN4: Building Systems | AW4: Corporate | AZ4: Fixed Price - Facility Total Annual Cost Year 1 | BB4: Unit Pricing
H5: Subsystem | I5: Access Doors, Gates, Sally Port | J5: Air Cooled DX (Split System) | K5: Air Handling Unit (Air Cooled DX / Package) | L5: Air-Cooled Chiller | M5: Centrifugal Chiller | N5: Cooling Tower (Induced Draft) | O5: Ice Chiller Tank | P5: Geothermal System | Q5: Water Source Heat Pump | R5: Fan Coil System | S5: Supply / Return Fan and Exhaust | T5: Evaporative and Spot Coolers (swamp coolers; spot cooler) | U5: Unique HVAC System | V5: Electrical Panels | W5: Emergency Generator | X5: Motor Control Center | Y5: Automatic Transfer Switch | Z5: Building Automated Systems (BAS) | AA5: Transformer (Dry-Type) | AB5: Uninterruptible Power Supply (UPS) | AC5: Lighting and Controls (Interior and Exterior) | AD5: Unique Electrical System | AE5: Life Safety Systems | AF5: Reduced Pressure Backflow Preventer(s) | AG5: Boiler (Condensing) | AH5: Domestic Water Heater (Gas-Fired, Condensing) | AI5: Domestic Water Heater (Electric, Non- Condensing) | AJ5: Boiler (Steam, low pressure) | AK5: Steam System | AL5: Pneumatic Compressor System | AM5: Unique Plumbing System | AN5: Rounds and Readings | AO5: Vertical Transportation | AP5: Water Treatment | AQ5: Building Exterior / Hardscape (Monthly) | AR5: Fountain Maintenance (Monthly) | AS5: Above-Ground/Underground Fuel Storage Tanks (Quarterly) If applicable | AT5: Landscape Maintenance * | AU5: Pest Control (Monthly) | AV5: Photovoltaic (PV) System | AW5: Account Management and Supervision (Monthly) | AX5: Fee (Monthly) | BB5: Snow Removal - (crew hourly rate) | BC5: Unclogging Blocked Toilet - In-custody holding cell (labor) | BD5: Unclogging Blocked Toilet - Public/Court Staff (labor) | BE5: Clean up & Disposal of Biological Waste Event | BF5: Clean up & Disposal of Biological Waste Labor Rate | BG5: Hourly Rate | BH5: Markup on Materials | BI5: Markup on Subcontractors/Third-Parties
A6: JCC ID | B6: Facility Name | C6: Address | D6: City / Town | E6: Zip Code | F6: County | G6: Region | H6: System ID | I6: A1 | J6: H1 | K6: H2 | L6: H3 | M6: H4 | N6: H5 | O6: H6 | P6: H7 | Q6: H8 | R6: H9 | S6: H10 | T6: H11 | U6: H12 | V6: E1 | W6: E2 | X6: E3 | Y6: E4 | Z6: E5 | AA6: E6 | AB6: E7 | AC6: E8 | AD6: E9 | AE6: L1 | AF6: L2 | AG6: P1 | AH6: P2 | AI6: P3 | AJ6: P4 | AK6: P5 | AL6: P6 | AM6: P7 | AN6: R1 | AO6: V1 | AP6: W1 | AQ6: B1 | AR6: F1 | AS6: F2 | AT6: G1 | AU6: PC1 | AV6: PV1 | AW6: C1 | AX6: C2 | BB6: S1 | BC6: I1 | BD6: I2 | BE6: I3 | BF6: I4 | BG6: Hr 1 | BH6: M1 | BI6: Sub1
A7: =+'03-C1'!Z$6 -> 03-C1 | B7: =+'03-C1'!AA$6 -> Amador Superior Court | C7: =+'03-C1'!AB$6 -> 500 Argonaut Lane | D7: =+'03-C1'!AC$6 -> Jackson | E7: =+'03-C1'!AD$6 -> 95642 | F7: =+'03-C1'!AE$6 -> Amador | G7: =+'03-C1'!AF$6 -> NCRO | I7: =+'03-C1'!AH$6 -> 0 | J7: =+'03-C1'!AI$6 -> 0 | K7: =+'03-C1'!AJ$6 -> 0 | L7: =+'03-C1'!AK$6 -> 0 | M7: =+'03-C1'!AL$6 -> 0 | N7: =+'03-C1'!AM$6 -> 0 | O7: =+'03-C1'!AN$6 -> 0 | P7: =+'03-C1'!AO$6 -> 0 | Q7: =+'03-C1'!AP$6 -> 0 | R7: =+'03-C1'!AQ$6 -> 0 | S7: =+'03-C1'!AR$6 -> 0 | T7: =+'03-C1'!AS$6 -> 0 | U7: =+'03-C1'!AT$6 -> 0 | V7: =+'03-C1'!AU$6 -> 0 | W7: =+'03-C1'!AV$6 -> 0 | X7: =+'03-C1'!AW$6 -> 0 | Y7: =+'03-C1'!AX$6 -> 0 | Z7: =+'03-C1'!AY$6 -> 0 | AA7: =+'03-C1'!AZ$6 -> 0 | AB7: =+'03-C1'!BA$6 -> 0 | AC7: =+'03-C1'!BB$6 -> 0 | AD7: =+'03-C1'!BC$6 -> 0 | AE7: =+'03-C1'!BD$6 -> 0 | AF7: =+'03-C1'!BE$6 -> 0 | AG7: =+'03-C1'!BF$6 -> 0 | AH7: =+'03-C1'!BG$6 -> 0 | AI7: =+'03-C1'!BH$6 -> 0 | AJ7: =+'03-C1'!BI$6 -> 0 | AK7: =+'03-C1'!BJ$6 -> 0 | AL7: =+'03-C1'!BK$6 -> 0 | AM7: =+'03-C1'!BL$6 -> 0 | AN7: =+'03-C1'!BM$6 -> 0 | AO7: =+'03-C1'!BN$6 -> 0 | AP7: =+'03-C1'!BO$6 -> 0 | AQ7: =+'03-C1'!BP$6 -> 0 | AR7: =+'03-C1'!BQ$6 -> 0 | AS7: =+'03-C1'!BR$6 -> 0 | AT7: =+'03-C1'!BS$6 -> 0 | AU7: =+'03-C1'!BT$6 -> 0 | AV7: =+'03-C1'!BU$6 -> 0 | AW7: =+'03-C1'!BV$6 -> 0 | AX7: =+'03-C1'!BW$6 -> 0 | AZ7: =+'03-C1'!BY$6 -> 0 | BB7: =+'03-C1'!CA$6 -> 0 | BC7: =+'03-C1'!CB$6 -> 0 | BD7: =+'03-C1'!CC$6 -> 0 | BE7: =+'03-C1'!CD$6 -> 0 | BF7: =+'03-C1'!CE$6 -> 0 | BG7: =+'03-C1'!CF$6 -> 0 | BH7: =+'03-C1'!CG$6 -> 0 | BI7: =+'03-C1'!CH$6 -> 0
A8: =+'04-A1'!Z$6 -> 04-A1 | B8: =+'04-A1'!AA$6 -> Butte County Courthouse | C8: =+'04-A1'!AB$6 -> 1 Court St. | D8: =+'04-A1'!AC$6 -> Oroville | E8: =+'04-A1'!AD$6 -> 95965 | F8: =+'04-A1'!AE$6 -> Butte | G8: =+'04-A1'!AF$6 -> NCRO | I8: =+'04-A1'!AH$6 -> 0 | J8: =+'04-A1'!AI$6 -> 0 | K8: =+'04-A1'!AJ$6 -> 0 | L8: =+'04-A1'!AK$6 -> 0 | M8: =+'04-A1'!AL$6 -> 0 | N8: =+'04-A1'!AM$6 -> 0 | O8: =+'04-A1'!AN$6 -> 0 | P8: =+'04-A1'!AO$6 -> 0 | Q8: =+'04-A1'!AP$6 -> 0 | R8: =+'04-A1'!AQ$6 -> 0 | S8: =+'04-A1'!AR$6 -> 0 | T8: =+'04-A1'!AS$6 -> 0 | U8: =+'04-A1'!AT$6 -> 0 | V8: =+'04-A1'!AU$6 -> 0 | W8: =+'04-A1'!AV$6 -> 0 | X8: =+'04-A1'!AW$6 -> 0 | Y8: =+'04-A1'!AX$6 -> 0 | Z8: =+'04-A1'!AY$6 -> 0 | AA8: =+'04-A1'!AZ$6 -> 0 | AB8: =+'04-A1'!BA$6 -> 0 | AC8: =+'04-A1'!BB$6 -> 0 | AD8: =+'04-A1'!BC$6 -> 0 | AE8: =+'04-A1'!BD$6 -> 0 | AF8: =+'04-A1'!BE$6 -> 0 | AG8: =+'04-A1'!BF$6 -> 0 | AH8: =+'04-A1'!BG$6 -> 0 | AI8: =+'04-A1'!BH$6 -> 0 | AJ8: =+'04-A1'!BI$6 -> 0 | AK8: =+'04-A1'!BJ$6 -> 0 | AL8: =+'04-A1'!BK$6 -> 0 | AM8: =+'04-A1'!BL$6 -> 0 | AN8: =+'04-A1'!BM$6 -> 0 | AO8: =+'04-A1'!BN$6 -> 0 | AP8: =+'04-A1'!BO$6 -> 0 | AQ8: =+'04-A1'!BP$6 -> 0 | AR8: =+'04-A1'!BQ$6 -> 0 | AS8: =+'04-A1'!BR$6 -> 0 | AT8: =+'04-A1'!BS$6 -> 0 | AU8: =+'04-A1'!BT$6 -> 0 | AV8: =+'04-A1'!BU$6 -> 0 | AW8: =+'04-A1'!BV$6 -> 0 | AX8: =+'04-A1'!BW$6 -> 0 | AZ8: =+'04-A1'!BY$6 -> 0 | BB8: =+'04-A1'!CA$6 -> 0 | BC8: =+'04-A1'!CB$6 -> 0 | BD8: =+'04-A1'!CC$6 -> 0 | BE8: =+'04-A1'!CD$6 -> 0 | BF8: =+'04-A1'!CE$6 -> 0 | BG8: =+'04-A1'!CF$6 -> 0 | BH8: =+'04-A1'!CG$6 -> 0 | BI8: =+'04-A1'!CH$6 -> 0
A9: =+'04-F1'!Z$6 -> 04-F1 | B9: =+'04-F1'!AA$6 -> North Butte County Courthouse | C9: =+'04-F1'!AB$6 -> 1775 Concord Avenue | D9: =+'04-F1'!AC$6 -> Chico | E9: =+'04-F1'!AD$6 -> 95928 | F9: =+'04-F1'!AE$6 -> Butte | G9: =+'04-F1'!AF$6 -> NCRO | I9: =+'04-F1'!AH$6 -> 0 | J9: =+'04-F1'!AI$6 -> 0 | K9: =+'04-F1'!AJ$6 -> 0 | L9: =+'04-F1'!AK$6 -> 0 | M9: =+'04-F1'!AL$6 -> 0 | N9: =+'04-F1'!AM$6 -> 0 | O9: =+'04-F1'!AN$6 -> 0 | P9: =+'04-F1'!AO$6 -> 0 | Q9: =+'04-F1'!AP$6 -> 0 | R9: =+'04-F1'!AQ$6 -> 0 | S9: =+'04-F1'!AR$6 -> 0 | T9: =+'04-F1'!AS$6 -> 0 | U9: =+'04-F1'!AT$6 -> 0 | V9: =+'04-F1'!AU$6 -> 0 | W9: =+'04-F1'!AV$6 -> 0 | X9: =+'04-F1'!AW$6 -> 0 | Y9: =+'04-F1'!AX$6 -> 0 | Z9: =+'04-F1'!AY$6 -> 0 | AA9: =+'04-F1'!AZ$6 -> 0 | AB9: =+'04-F1'!BA$6 -> 0 | AC9: =+'04-F1'!BB$6 -> 0 | AD9: =+'04-F1'!BC$6 -> 0 | AE9: =+'04-F1'!BD$6 -> 0 | AF9: =+'04-F1'!BE$6 -> 0 | AG9: =+'04-F1'!BF$6 -> 0 | AH9: =+'04-F1'!BG$6 -> 0 | AI9: =+'04-F1'!BH$6 -> 0 | AJ9: =+'04-F1'!BI$6 -> 0 | AK9: =+'04-F1'!BJ$6 -> 0 | AL9: =+'04-F1'!BK$6 -> 0 | AM9: =+'04-F1'!BL$6 -> 0 | AN9: =+'04-F1'!BM$6 -> 0 | AO9: =+'04-F1'!BN$6 -> 0 | AP9: =+'04-F1'!BO$6 -> 0 | AQ9: =+'04-F1'!BP$6 -> 0 | AR9: =+'04-F1'!BQ$6 -> 0 | AS9: =+'04-F1'!BR$6 -> 0 | AT9: =+'04-F1'!BS$6 -> 0 | AU9: =+'04-F1'!BT$6 -> 0 | AV9: =+'04-F1'!BU$6 -> 0 | AW9: =+'04-F1'!BV$6 -> 0 | AX9: =+'04-F1'!BW$6 -> 0 | AZ9: =+'04-F1'!BY$6 -> 0 | BB9: =+'04-F1'!CA$6 -> 0 | BC9: =+'04-F1'!CB$6 -> 0 | BD9: =+'04-F1'!CC$6 -> 0 | BE9: =+'04-F1'!CD$6 -> 0 | BF9: =+'04-F1'!CE$6 -> 0 | BG9: =+'04-F1'!CF$6 -> 0 | BH9: =+'04-F1'!CG$6 -> 0 | BI9: =+'04-F1'!CH$6 -> 0
A10: =+'05-C1'!Z$6 -> 05-C1 | B10: =+'05-C1'!AA$6 -> Calaveras Superior Court | C10: =+'05-C1'!AB$6 -> 400 Government Center Drive | D10: =+'05-C1'!AC$6 -> San Andreas | E10: =+'05-C1'!AD$6 -> 95249 | F10: =+'05-C1'!AE$6 -> Calaveras | G10: =+'05-C1'!AF$6 -> NCRO | I10: =+'05-C1'!AH$6 -> 0 | J10: =+'05-C1'!AI$6 -> 0 | K10: =+'05-C1'!AJ$6 -> 0 | L10: =+'05-C1'!AK$6 -> 0 | M10: =+'05-C1'!AL$6 -> 0 | N10: =+'05-C1'!AM$6 -> 0 | O10: =+'05-C1'!AN$6 -> 0 | P10: =+'05-C1'!AO$6 -> 0 | Q10: =+'05-C1'!AP$6 -> 0 | R10: =+'05-C1'!AQ$6 -> 0 | S10: =+'05-C1'!AR$6 -> 0 | T10: =+'05-C1'!AS$6 -> 0 | U10: =+'05-C1'!AT$6 -> 0 | V10: =+'05-C1'!AU$6 -> 0 | W10: =+'05-C1'!AV$6 -> 0 | X10: =+'05-C1'!AW$6 -> 0 | Y10: =+'05-C1'!AX$6 -> 0 | Z10: =+'05-C1'!AY$6 -> 0 | AA10: =+'05-C1'!AZ$6 -> 0 | AB10: =+'05-C1'!BA$6 -> 0 | AC10: =+'05-C1'!BB$6 -> 0 | AD10: =+'05-C1'!BC$6 -> 0 | AE10: =+'05-C1'!BD$6 -> 0 | AF10: =+'05-C1'!BE$6 -> 0 | AG10: =+'05-C1'!BF$6 -> 0 | AH10: =+'05-C1'!BG$6 -> 0 | AI10: =+'05-C1'!BH$6 -> 0 | AJ10: =+'05-C1'!BI$6 -> 0 | AK10: =+'05-C1'!BJ$6 -> 0 | AL10: =+'05-C1'!BK$6 -> 0 | AM10: =+'05-C1'!BL$6 -> 0 | AN10: =+'05-C1'!BM$6 -> 0 | AO10: =+'05-C1'!BN$6 -> 0 | AP10: =+'05-C1'!BO$6 -> 0 | AQ10: =+'05-C1'!BP$6 -> 0 | AR10: =+'05-C1'!BQ$6 -> 0 | AS10: =+'05-C1'!BR$6 -> 0 | AT10: =+'05-C1'!BS$6 -> 0 | AU10: =+'05-C1'!BT$6 -> 0 | AV10: =+'05-C1'!BU$6 -> 0 | AW10: =+'05-C1'!BV$6 -> 0 | AX10: =+'05-C1'!BW$6 -> 0 | AZ10: =+'05-C1'!BY$6 -> 0 | BB10: =+'05-C1'!CA$6 -> 0 | BC10: =+'05-C1'!CB$6 -> 0 | BD10: =+'05-C1'!CC$6 -> 0 | BE10: =+'05-C1'!CD$6 -> 0 | BF10: =+'05-C1'!CE$6 -> 0 | BG10: =+'05-C1'!CF$6 -> 0 | BH10: =+'05-C1'!CG$6 -> 0 | BI10: =+'05-C1'!CH$6 -> 0
A11: =+'09-A1'!Z$6 -> 09-A1 | B11: =+'09-A1'!AA$6 -> Main St. Courthouse | C11: =+'09-A1'!AB$6 -> 495 Main St. | D11: =+'09-A1'!AC$6 -> Placerville | E11: =+'09-A1'!AD$6 -> 95667 | F11: =+'09-A1'!AE$6 -> El Dorado | G11: =+'09-A1'!AF$6 -> NCRO | I11: =+'09-A1'!AH$6 -> 0 | J11: =+'09-A1'!AI$6 -> 0 | K11: =+'09-A1'!AJ$6 -> 0 | L11: =+'09-A1'!AK$6 -> 0 | M11: =+'09-A1'!AL$6 -> 0 | N11: =+'09-A1'!AM$6 -> 0 | O11: =+'09-A1'!AN$6 -> 0 | P11: =+'09-A1'!AO$6 -> 0 | Q11: =+'09-A1'!AP$6 -> 0 | R11: =+'09-A1'!AQ$6 -> 0 | S11: =+'09-A1'!AR$6 -> 0 | T11: =+'09-A1'!AS$6 -> 0 | U11: =+'09-A1'!AT$6 -> 0 | V11: =+'09-A1'!AU$6 -> 0 | W11: =+'09-A1'!AV$6 -> 0 | X11: =+'09-A1'!AW$6 -> 0 | Y11: =+'09-A1'!AX$6 -> 0 | Z11: =+'09-A1'!AY$6 -> 0 | AA11: =+'09-A1'!AZ$6 -> 0 | AB11: =+'09-A1'!BA$6 -> 0 | AC11: =+'09-A1'!BB$6 -> 0 | AD11: =+'09-A1'!BC$6 -> 0 | AE11: =+'09-A1'!BD$6 -> 0 | AF11: =+'09-A1'!BE$6 -> 0 | AG11: =+'09-A1'!BF$6 -> 0 | AH11: =+'09-A1'!BG$6 -> 0 | AI11: =+'09-A1'!BH$6 -> 0 | AJ11: =+'09-A1'!BI$6 -> 0 | AK11: =+'09-A1'!BJ$6 -> 0 | AL11: =+'09-A1'!BK$6 -> 0 | AM11: =+'09-A1'!BL$6 -> 0 | AN11: =+'09-A1'!BM$6 -> 0 | AO11: =+'09-A1'!BN$6 -> 0 | AP11: =+'09-A1'!BO$6 -> 0 | AQ11: =+'09-A1'!BP$6 -> 0 | AR11: =+'09-A1'!BQ$6 -> 0 | AS11: =+'09-A1'!BR$6 -> 0 | AT11: =+'09-A1'!BS$6 -> 0 | AU11: =+'09-A1'!BT$6 -> 0 | AV11: =+'09-A1'!BU$6 -> 0 | AW11: =+'09-A1'!BV$6 -> 0 | AX11: =+'09-A1'!BW$6 -> 0 | AZ11: =+'09-A1'!BY$6 -> 0 | BB11: =+'09-A1'!CA$6 -> 0 | BC11: =+'09-A1'!CB$6 -> 0 | BD11: =+'09-A1'!CC$6 -> 0 | BE11: =+'09-A1'!CD$6 -> 0 | BF11: =+'09-A1'!CE$6 -> 0 | BG11: =+'09-A1'!CF$6 -> 0 | BH11: =+'09-A1'!CG$6 -> 0 | BI11: =+'09-A1'!CH$6 -> 0
A12: =+'09-C1'!Z$6 -> 09-C1 | B12: =+'09-C1'!AA$6 -> Cameron Park | C12: =+'09-C1'!AB$6 -> 3321 Cameron Park Dr. | D12: =+'09-C1'!AC$6 -> Cameron Park | E12: =+'09-C1'!AD$6 -> 95682 | F12: =+'09-C1'!AE$6 -> El Dorado | G12: =+'09-C1'!AF$6 -> NCRO | I12: =+'09-C1'!AH$6 -> 0 | J12: =+'09-C1'!AI$6 -> 0 | K12: =+'09-C1'!AJ$6 -> 0 | L12: =+'09-C1'!AK$6 -> 0 | M12: =+'09-C1'!AL$6 -> 0 | N12: =+'09-C1'!AM$6 -> 0 | O12: =+'09-C1'!AN$6 -> 0 | P12: =+'09-C1'!AO$6 -> 0 | Q12: =+'09-C1'!AP$6 -> 0 | R12: =+'09-C1'!AQ$6 -> 0 | S12: =+'09-C1'!AR$6 -> 0 | T12: =+'09-C1'!AS$6 -> 0 | U12: =+'09-C1'!AT$6 -> 0 | V12: =+'09-C1'!AU$6 -> 0 | W12: =+'09-C1'!AV$6 -> 0 | X12: =+'09-C1'!AW$6 -> 0 | Y12: =+'09-C1'!AX$6 -> 0 | Z12: =+'09-C1'!AY$6 -> 0 | AA12: =+'09-C1'!AZ$6 -> 0 | AB12: =+'09-C1'!BA$6 -> 0 | AC12: =+'09-C1'!BB$6 -> 0 | AD12: =+'09-C1'!BC$6 -> 0 | AE12: =+'09-C1'!BD$6 -> 0 | AF12: =+'09-C1'!BE$6 -> 0 | AG12: =+'09-C1'!BF$6 -> 0 | AH12: =+'09-C1'!BG$6 -> 0 | AI12: =+'09-C1'!BH$6 -> 0 | AJ12: =+'09-C1'!BI$6 -> 0 | AK12: =+'09-C1'!BJ$6 -> 0 | AL12: =+'09-C1'!BK$6 -> 0 | AM12: =+'09-C1'!BL$6 -> 0 | AN12: =+'09-C1'!BM$6 -> 0 | AO12: =+'09-C1'!BN$6 -> 0 | AP12: =+'09-C1'!BO$6 -> 0 | AQ12: =+'09-C1'!BP$6 -> 0 | AR12: =+'09-C1'!BQ$6 -> 0 | AS12: =+'09-C1'!BR$6 -> 0 | AT12: =+'09-C1'!BS$6 -> 0 | AU12: =+'09-C1'!BT$6 -> 0 | AV12: =+'09-C1'!BU$6 -> 0 | AW12: =+'09-C1'!BV$6 -> 0 | AX12: =+'09-C1'!BW$6 -> 0 | AZ12: =+'09-C1'!BY$6 -> 0 | BB12: =+'09-C1'!CA$6 -> 0 | BC12: =+'09-C1'!CB$6 -> 0 | BD12: =+'09-C1'!CC$6 -> 0 | BE12: =+'09-C1'!CD$6 -> 0 | BF12: =+'09-C1'!CE$6 -> 0 | BG12: =+'09-C1'!CF$6 -> 0 | BH12: =+'09-C1'!CG$6 -> 0 | BI12: =+'09-C1'!CH$6 -> 0
A13: =+'09-E1'!Z$6 -> 09-E1 | B13: =+'09-E1'!AA$6 -> Johnson Bldg. | C13: =+'09-E1'!AB$6 -> 1354 Johnson Blvd. | D13: =+'09-E1'!AC$6 -> South Lake Tahoe | E13: =+'09-E1'!AD$6 -> 96150 | F13: =+'09-E1'!AE$6 -> El Dorado | G13: =+'09-E1'!AF$6 -> NCRO | I13: =+'09-E1'!AH$6 -> 0 | J13: =+'09-E1'!AI$6 -> 0 | K13: =+'09-E1'!AJ$6 -> 0 | L13: =+'09-E1'!AK$6 -> 0 | M13: =+'09-E1'!AL$6 -> 0 | N13: =+'09-E1'!AM$6 -> 0 | O13: =+'09-E1'!AN$6 -> 0 | P13: =+'09-E1'!AO$6 -> 0 | Q13: =+'09-E1'!AP$6 -> 0 | R13: =+'09-E1'!AQ$6 -> 0 | S13: =+'09-E1'!AR$6 -> 0 | T13: =+'09-E1'!AS$6 -> 0 | U13: =+'09-E1'!AT$6 -> 0 | V13: =+'09-E1'!AU$6 -> 0 | W13: =+'09-E1'!AV$6 -> 0 | X13: =+'09-E1'!AW$6 -> 0 | Y13: =+'09-E1'!AX$6 -> 0 | Z13: =+'09-E1'!AY$6 -> 0 | AA13: =+'09-E1'!AZ$6 -> 0 | AB13: =+'09-E1'!BA$6 -> 0 | AC13: =+'09-E1'!BB$6 -> 0 | AD13: =+'09-E1'!BC$6 -> 0 | AE13: =+'09-E1'!BD$6 -> 0 | AF13: =+'09-E1'!BE$6 -> 0 | AG13: =+'09-E1'!BF$6 -> 0 | AH13: =+'09-E1'!BG$6 -> 0 | AI13: =+'09-E1'!BH$6 -> 0 | AJ13: =+'09-E1'!BI$6 -> 0 | AK13: =+'09-E1'!BJ$6 -> 0 | AL13: =+'09-E1'!BK$6 -> 0 | AM13: =+'09-E1'!BL$6 -> 0 | AN13: =+'09-E1'!BM$6 -> 0 | AO13: =+'09-E1'!BN$6 -> 0 | AP13: =+'09-E1'!BO$6 -> 0 | AQ13: =+'09-E1'!BP$6 -> 0 | AR13: =+'09-E1'!BQ$6 -> 0 | AS13: =+'09-E1'!BR$6 -> 0 | AT13: =+'09-E1'!BS$6 -> 0 | AU13: =+'09-E1'!BT$6 -> 0 | AV13: =+'09-E1'!BU$6 -> 0 | AW13: =+'09-E1'!BV$6 -> 0 | AX13: =+'09-E1'!BW$6 -> 0 | AZ13: =+'09-E1'!BY$6 -> 0 | BB13: =+'09-E1'!CA$6 -> 0 | BC13: =+'09-E1'!CB$6 -> 0 | BD13: =+'09-E1'!CC$6 -> 0 | BE13: =+'09-E1'!CD$6 -> 0 | BF13: =+'09-E1'!CE$6 -> 0 | BG13: =+'09-E1'!CF$6 -> 0 | BH13: =+'09-E1'!CG$6 -> 0 | BI13: =+'09-E1'!CH$6 -> 0
A14: =+'10-A1'!Z$6 -> 10-A1 | B14: =+'10-A1'!AA$6 -> Fresno County Courthouse | C14: =+'10-A1'!AB$6 -> 1100 Van Ness Ave. | D14: =+'10-A1'!AC$6 -> Fresno | E14: =+'10-A1'!AD$6 -> 93724 | F14: =+'10-A1'!AE$6 -> Fresno | G14: =+'10-A1'!AF$6 -> NCRO | I14: =+'10-A1'!AH$6 -> 0 | J14: =+'10-A1'!AI$6 -> 0 | K14: =+'10-A1'!AJ$6 -> 0 | L14: =+'10-A1'!AK$6 -> 0 | M14: =+'10-A1'!AL$6 -> 0 | N14: =+'10-A1'!AM$6 -> 0 | O14: =+'10-A1'!AN$6 -> 0 | P14: =+'10-A1'!AO$6 -> 0 | Q14: =+'10-A1'!AP$6 -> 0 | R14: =+'10-A1'!AQ$6 -> 0 | S14: =+'10-A1'!AR$6 -> 0 | T14: =+'10-A1'!AS$6 -> 0 | U14: =+'10-A1'!AT$6 -> 0 | V14: =+'10-A1'!AU$6 -> 0 | W14: =+'10-A1'!AV$6 -> 0 | X14: =+'10-A1'!AW$6 -> 0 | Y14: =+'10-A1'!AX$6 -> 0 | Z14: =+'10-A1'!AY$6 -> 0 | AA14: =+'10-A1'!AZ$6 -> 0 | AB14: =+'10-A1'!BA$6 -> 0 | AC14: =+'10-A1'!BB$6 -> 0 | AD14: =+'10-A1'!BC$6 -> 0 | AE14: =+'10-A1'!BD$6 -> 0 | AF14: =+'10-A1'!BE$6 -> 0 | AG14: =+'10-A1'!BF$6 -> 0 | AH14: =+'10-A1'!BG$6 -> 0 | AI14: =+'10-A1'!BH$6 -> 0 | AJ14: =+'10-A1'!BI$6 -> 0 | AK14: =+'10-A1'!BJ$6 -> 0 | AL14: =+'10-A1'!BK$6 -> 0 | AM14: =+'10-A1'!BL$6 -> 0 | AN14: =+'10-A1'!BM$6 -> 0 | AO14: =+'10-A1'!BN$6 -> 0 | AP14: =+'10-A1'!BO$6 -> 0 | AQ14: =+'10-A1'!BP$6 -> 0 | AR14: =+'10-A1'!BQ$6 -> 0 | AS14: =+'10-A1'!BR$6 -> 0 | AT14: =+'10-A1'!BS$6 -> 0 | AU14: =+'10-A1'!BT$6 -> 0 | AV14: =+'10-A1'!BU$6 -> 0 | AW14: =+'10-A1'!BV$6 -> 0 | AX14: =+'10-A1'!BW$6 -> 0 | AZ14: =+'10-A1'!BY$6 -> 0 | BB14: =+'10-A1'!CA$6 -> 0 | BC14: =+'10-A1'!CB$6 -> 0 | BD14: =+'10-A1'!CC$6 -> 0 | BE14: =+'10-A1'!CD$6 -> 0 | BF14: =+'10-A1'!CE$6 -> 0 | BG14: =+'10-A1'!CF$6 -> 0 | BH14: =+'10-A1'!CG$6 -> 0 | BI14: =+'10-A1'!CH$6 -> 0
A15: =+'10-F1'!Z$6 -> 10-F1 | B15: =+'10-F1'!AA$6 -> Reedley Court | C15: =+'10-F1'!AB$6 -> 815 G Street | D15: =+'10-F1'!AC$6 -> Reedley | E15: =+'10-F1'!AD$6 -> 93654 | F15: =+'10-F1'!AE$6 -> Fresno | G15: =+'10-F1'!AF$6 -> NCRO | I15: =+'10-F1'!AH$6 -> 0 | J15: =+'10-F1'!AI$6 -> 0 | K15: =+'10-F1'!AJ$6 -> 0 | L15: =+'10-F1'!AK$6 -> 0 | M15: =+'10-F1'!AL$6 -> 0 | N15: =+'10-F1'!AM$6 -> 0 | O15: =+'10-F1'!AN$6 -> 0 | P15: =+'10-F1'!AO$6 -> 0 | Q15: =+'10-F1'!AP$6 -> 0 | R15: =+'10-F1'!AQ$6 -> 0 | S15: =+'10-F1'!AR$6 -> 0 | T15: =+'10-F1'!AS$6 -> 0 | U15: =+'10-F1'!AT$6 -> 0 | V15: =+'10-F1'!AU$6 -> 0 | W15: =+'10-F1'!AV$6 -> 0 | X15: =+'10-F1'!AW$6 -> 0 | Y15: =+'10-F1'!AX$6 -> 0 | Z15: =+'10-F1'!AY$6 -> 0 | AA15: =+'10-F1'!AZ$6 -> 0 | AB15: =+'10-F1'!BA$6 -> 0 | AC15: =+'10-F1'!BB$6 -> 0 | AD15: =+'10-F1'!BC$6 -> 0 | AE15: =+'10-F1'!BD$6 -> 0 | AF15: =+'10-F1'!BE$6 -> 0 | AG15: =+'10-F1'!BF$6 -> 0 | AH15: =+'10-F1'!BG$6 -> 0 | AI15: =+'10-F1'!BH$6 -> 0 | AJ15: =+'10-F1'!BI$6 -> 0 | AK15: =+'10-F1'!BJ$6 -> 0 | AL15: =+'10-F1'!BK$6 -> 0 | AM15: =+'10-F1'!BL$6 -> 0 | AN15: =+'10-F1'!BM$6 -> 0 | AO15: =+'10-F1'!BN$6 -> 0 | AP15: =+'10-F1'!BO$6 -> 0 | AQ15: =+'10-F1'!BP$6 -> 0 | AR15: =+'10-F1'!BQ$6 -> 0 | AS15: =+'10-F1'!BR$6 -> 0 | AT15: =+'10-F1'!BS$6 -> 0 | AU15: =+'10-F1'!BT$6 -> 0 | AV15: =+'10-F1'!BU$6 -> 0 | AW15: =+'10-F1'!BV$6 -> 0 | AX15: =+'10-F1'!BW$6 -> 0 | AZ15: =+'10-F1'!BY$6 -> 0 | BB15: =+'10-F1'!CA$6 -> 0 | BC15: =+'10-F1'!CB$6 -> 0 | BD15: =+'10-F1'!CC$6 -> 0 | BE15: =+'10-F1'!CD$6 -> 0 | BF15: =+'10-F1'!CE$6 -> 0 | BG15: =+'10-F1'!CF$6 -> 0 | BH15: =+'10-F1'!CG$6 -> 0 | BI15: =+'10-F1'!CH$6 -> 0
A16: =+'10-G1'!Z$6 -> 10-G1 | B16: =+'10-G1'!AA$6 -> Clovis Court | C16: =+'10-G1'!AB$6 -> 1011 5th St. | D16: =+'10-G1'!AC$6 -> Clovis | E16: =+'10-G1'!AD$6 -> 93612 | F16: =+'10-G1'!AE$6 -> Fresno | G16: =+'10-G1'!AF$6 -> NCRO | I16: =+'10-G1'!AH$6 -> 0 | J16: =+'10-G1'!AI$6 -> 0 | K16: =+'10-G1'!AJ$6 -> 0 | L16: =+'10-G1'!AK$6 -> 0 | M16: =+'10-G1'!AL$6 -> 0 | N16: =+'10-G1'!AM$6 -> 0 | O16: =+'10-G1'!AN$6 -> 0 | P16: =+'10-G1'!AO$6 -> 0 | Q16: =+'10-G1'!AP$6 -> 0 | R16: =+'10-G1'!AQ$6 -> 0 | S16: =+'10-G1'!AR$6 -> 0 | T16: =+'10-G1'!AS$6 -> 0 | U16: =+'10-G1'!AT$6 -> 0 | V16: =+'10-G1'!AU$6 -> 0 | W16: =+'10-G1'!AV$6 -> 0 | X16: =+'10-G1'!AW$6 -> 0 | Y16: =+'10-G1'!AX$6 -> 0 | Z16: =+'10-G1'!AY$6 -> 0 | AA16: =+'10-G1'!AZ$6 -> 0 | AB16: =+'10-G1'!BA$6 -> 0 | AC16: =+'10-G1'!BB$6 -> 0 | AD16: =+'10-G1'!BC$6 -> 0 | AE16: =+'10-G1'!BD$6 -> 0 | AF16: =+'10-G1'!BE$6 -> 0 | AG16: =+'10-G1'!BF$6 -> 0 | AH16: =+'10-G1'!BG$6 -> 0 | AI16: =+'10-G1'!BH$6 -> 0 | AJ16: =+'10-G1'!BI$6 -> 0 | AK16: =+'10-G1'!BJ$6 -> 0 | AL16: =+'10-G1'!BK$6 -> 0 | AM16: =+'10-G1'!BL$6 -> 0 | AN16: =+'10-G1'!BM$6 -> 0 | AO16: =+'10-G1'!BN$6 -> 0 | AP16: =+'10-G1'!BO$6 -> 0 | AQ16: =+'10-G1'!BP$6 -> 0 | AR16: =+'10-G1'!BQ$6 -> 0 | AS16: =+'10-G1'!BR$6 -> 0 | AT16: =+'10-G1'!BS$6 -> 0 | AU16: =+'10-G1'!BT$6 -> 0 | AV16: =+'10-G1'!BU$6 -> 0 | AW16: =+'10-G1'!BV$6 -> 0 | AX16: =+'10-G1'!BW$6 -> 0 | AZ16: =+'10-G1'!BY$6 -> 0 | BB16: =+'10-G1'!CA$6 -> 0 | BC16: =+'10-G1'!CB$6 -> 0 | BD16: =+'10-G1'!CC$6 -> 0 | BE16: =+'10-G1'!CD$6 -> 0 | BF16: =+'10-G1'!CE$6 -> 0 | BG16: =+'10-G1'!CF$6 -> 0 | BH16: =+'10-G1'!CG$6 -> 0 | BI16: =+'10-G1'!CH$6 -> 0
A17: =+'10-O1'!Z$6 -> 10-O1 | B17: =+'10-O1'!AA$6 -> B.F. Sisk Courthouse | C17: =+'10-O1'!AB$6 -> 1130 O Street | D17: =+'10-O1'!AC$6 -> Fresno | E17: =+'10-O1'!AD$6 -> 93721 | F17: =+'10-O1'!AE$6 -> Fresno | G17: =+'10-O1'!AF$6 -> NCRO | I17: =+'10-O1'!AH$6 -> 0 | J17: =+'10-O1'!AI$6 -> 0 | K17: =+'10-O1'!AJ$6 -> 0 | L17: =+'10-O1'!AK$6 -> 0 | M17: =+'10-O1'!AL$6 -> 0 | N17: =+'10-O1'!AM$6 -> 0 | O17: =+'10-O1'!AN$6 -> 0 | P17: =+'10-O1'!AO$6 -> 0 | Q17: =+'10-O1'!AP$6 -> 0 | R17: =+'10-O1'!AQ$6 -> 0 | S17: =+'10-O1'!AR$6 -> 0 | T17: =+'10-O1'!AS$6 -> 0 | U17: =+'10-O1'!AT$6 -> 0 | V17: =+'10-O1'!AU$6 -> 0 | W17: =+'10-O1'!AV$6 -> 0 | X17: =+'10-O1'!AW$6 -> 0 | Y17: =+'10-O1'!AX$6 -> 0 | Z17: =+'10-O1'!AY$6 -> 0 | AA17: =+'10-O1'!AZ$6 -> 0 | AB17: =+'10-O1'!BA$6 -> 0 | AC17: =+'10-O1'!BB$6 -> 0 | AD17: =+'10-O1'!BC$6 -> 0 | AE17: =+'10-O1'!BD$6 -> 0 | AF17: =+'10-O1'!BE$6 -> 0 | AG17: =+'10-O1'!BF$6 -> 0 | AH17: =+'10-O1'!BG$6 -> 0 | AI17: =+'10-O1'!BH$6 -> 0 | AJ17: =+'10-O1'!BI$6 -> 0 | AK17: =+'10-O1'!BJ$6 -> 0 | AL17: =+'10-O1'!BK$6 -> 0 | AM17: =+'10-O1'!BL$6 -> 0 | AN17: =+'10-O1'!BM$6 -> 0 | AO17: =+'10-O1'!BN$6 -> 0 | AP17: =+'10-O1'!BO$6 -> 0 | AQ17: =+'10-O1'!BP$6 -> 0 | AR17: =+'10-O1'!BQ$6 -> 0 | AS17: =+'10-O1'!BR$6 -> 0 | AT17: =+'10-O1'!BS$6 -> 0 | AU17: =+'10-O1'!BT$6 -> 0 | AV17: =+'10-O1'!BU$6 -> 0 | AW17: =+'10-O1'!BV$6 -> 0 | AX17: =+'10-O1'!BW$6 -> 0 | AZ17: =+'10-O1'!BY$6 -> 0 | BB17: =+'10-O1'!CA$6 -> 0 | BC17: =+'10-O1'!CB$6 -> 0 | BD17: =+'10-O1'!CC$6 -> 0 | BE17: =+'10-O1'!CD$6 -> 0 | BF17: =+'10-O1'!CE$6 -> 0 | BG17: =+'10-O1'!CF$6 -> 0 | BH17: =+'10-O1'!CG$6 -> 0 | BI17: =+'10-O1'!CH$6 -> 0
A18: =+'10-P1'!Z$6 -> 10-P1 | B18: =+'10-P1'!AA$6 -> Juvenile Delinquency Courthouse | C18: =+'10-P1'!AB$6 -> 3333 E. American Avenue | D18: =+'10-P1'!AC$6 -> Frenso | E18: =+'10-P1'!AD$6 -> 93725 | F18: =+'10-P1'!AE$6 -> Fresno | G18: =+'10-P1'!AF$6 -> NCRO | I18: =+'10-P1'!AH$6 -> 0 | J18: =+'10-P1'!AI$6 -> 0 | K18: =+'10-P1'!AJ$6 -> 0 | L18: =+'10-P1'!AK$6 -> 0 | M18: =+'10-P1'!AL$6 -> 0 | N18: =+'10-P1'!AM$6 -> 0 | O18: =+'10-P1'!AN$6 -> 0 | P18: =+'10-P1'!AO$6 -> 0 | Q18: =+'10-P1'!AP$6 -> 0 | R18: =+'10-P1'!AQ$6 -> 0 | S18: =+'10-P1'!AR$6 -> 0 | T18: =+'10-P1'!AS$6 -> 0 | U18: =+'10-P1'!AT$6 -> 0 | V18: =+'10-P1'!AU$6 -> 0 | W18: =+'10-P1'!AV$6 -> 0 | X18: =+'10-P1'!AW$6 -> 0 | Y18: =+'10-P1'!AX$6 -> 0 | Z18: =+'10-P1'!AY$6 -> 0 | AA18: =+'10-P1'!AZ$6 -> 0 | AB18: =+'10-P1'!BA$6 -> 0 | AC18: =+'10-P1'!BB$6 -> 0 | AD18: =+'10-P1'!BC$6 -> 0 | AE18: =+'10-P1'!BD$6 -> 0 | AF18: =+'10-P1'!BE$6 -> 0 | AG18: =+'10-P1'!BF$6 -> 0 | AH18: =+'10-P1'!BG$6 -> 0 | AI18: =+'10-P1'!BH$6 -> 0 | AJ18: =+'10-P1'!BI$6 -> 0 | AK18: =+'10-P1'!BJ$6 -> 0 | AL18: =+'10-P1'!BK$6 -> 0 | AM18: =+'10-P1'!BL$6 -> 0 | AN18: =+'10-P1'!BM$6 -> 0 | AO18: =+'10-P1'!BN$6 -> 0 | AP18: =+'10-P1'!BO$6 -> 0 | AQ18: =+'10-P1'!BP$6 -> 0 | AR18: =+'10-P1'!BQ$6 -> 0 | AS18: =+'10-P1'!BR$6 -> 0 | AT18: =+'10-P1'!BS$6 -> 0 | AU18: =+'10-P1'!BT$6 -> 0 | AV18: =+'10-P1'!BU$6 -> 0 | AW18: =+'10-P1'!BV$6 -> 0 | AX18: =+'10-P1'!BW$6 -> 0 | AZ18: =+'10-P1'!BY$6 -> 0 | BB18: =+'10-P1'!CA$6 -> 0 | BC18: =+'10-P1'!CB$6 -> 0 | BD18: =+'10-P1'!CC$6 -> 0 | BE18: =+'10-P1'!CD$6 -> 0 | BF18: =+'10-P1'!CE$6 -> 0 | BG18: =+'10-P1'!CF$6 -> 0 | BH18: =+'10-P1'!CG$6 -> 0 | BI18: =+'10-P1'!CH$6 -> 0
A19: =+'11-A1'!Z$6 -> 11-A1 | B19: =+'11-A1'!AA$6 -> Historic Courthouse | C19: =+'11-A1'!AB$6 -> 526 West Sycamore St. | D19: =+'11-A1'!AC$6 -> Willows | E19: =+'11-A1'!AD$6 -> 95988 | F19: =+'11-A1'!AE$6 -> Glenn | G19: =+'11-A1'!AF$6 -> NCRO | I19: =+'11-A1'!AH$6 -> 0 | J19: =+'11-A1'!AI$6 -> 0 | K19: =+'11-A1'!AJ$6 -> 0 | L19: =+'11-A1'!AK$6 -> 0 | M19: =+'11-A1'!AL$6 -> 0 | N19: =+'11-A1'!AM$6 -> 0 | O19: =+'11-A1'!AN$6 -> 0 | P19: =+'11-A1'!AO$6 -> 0 | Q19: =+'11-A1'!AP$6 -> 0 | R19: =+'11-A1'!AQ$6 -> 0 | S19: =+'11-A1'!AR$6 -> 0 | T19: =+'11-A1'!AS$6 -> 0 | U19: =+'11-A1'!AT$6 -> 0 | V19: =+'11-A1'!AU$6 -> 0 | W19: =+'11-A1'!AV$6 -> 0 | X19: =+'11-A1'!AW$6 -> 0 | Y19: =+'11-A1'!AX$6 -> 0 | Z19: =+'11-A1'!AY$6 -> 0 | AA19: =+'11-A1'!AZ$6 -> 0 | AB19: =+'11-A1'!BA$6 -> 0 | AC19: =+'11-A1'!BB$6 -> 0 | AD19: =+'11-A1'!BC$6 -> 0 | AE19: =+'11-A1'!BD$6 -> 0 | AF19: =+'11-A1'!BE$6 -> 0 | AG19: =+'11-A1'!BF$6 -> 0 | AH19: =+'11-A1'!BG$6 -> 0 | AI19: =+'11-A1'!BH$6 -> 0 | AJ19: =+'11-A1'!BI$6 -> 0 | AK19: =+'11-A1'!BJ$6 -> 0 | AL19: =+'11-A1'!BK$6 -> 0 | AM19: =+'11-A1'!BL$6 -> 0 | AN19: =+'11-A1'!BM$6 -> 0 | AO19: =+'11-A1'!BN$6 -> 0 | AP19: =+'11-A1'!BO$6 -> 0 | AQ19: =+'11-A1'!BP$6 -> 0 | AR19: =+'11-A1'!BQ$6 -> 0 | AS19: =+'11-A1'!BR$6 -> 0 | AT19: =+'11-A1'!BS$6 -> 0 | AU19: =+'11-A1'!BT$6 -> 0 | AV19: =+'11-A1'!BU$6 -> 0 | AW19: =+'11-A1'!BV$6 -> 0 | AX19: =+'11-A1'!BW$6 -> 0 | AZ19: =+'11-A1'!BY$6 -> 0 | BB19: =+'11-A1'!CA$6 -> 0 | BC19: =+'11-A1'!CB$6 -> 0 | BD19: =+'11-A1'!CC$6 -> 0 | BE19: =+'11-A1'!CD$6 -> 0 | BF19: =+'11-A1'!CE$6 -> 0 | BG19: =+'11-A1'!CF$6 -> 0 | BH19: =+'11-A1'!CG$6 -> 0 | BI19: =+'11-A1'!CH$6 -> 0
A20: =+'16-A5'!Z$6 -> 16-A5 | B20: =+'16-A5'!AA$6 -> Hanford Courthouse | C20: =+'16-A5'!AB$6 -> 1640 Kings County Drive | D20: =+'16-A5'!AC$6 -> Hanford | E20: =+'16-A5'!AD$6 -> 93230 | F20: =+'16-A5'!AE$6 -> Kings | G20: =+'16-A5'!AF$6 -> NCRO | I20: =+'16-A5'!AH$6 -> 0 | J20: =+'16-A5'!AI$6 -> 0 | K20: =+'16-A5'!AJ$6 -> 0 | L20: =+'16-A5'!AK$6 -> 0 | M20: =+'16-A5'!AL$6 -> 0 | N20: =+'16-A5'!AM$6 -> 0 | O20: =+'16-A5'!AN$6 -> 0 | P20: =+'16-A5'!AO$6 -> 0 | Q20: =+'16-A5'!AP$6 -> 0 | R20: =+'16-A5'!AQ$6 -> 0 | S20: =+'16-A5'!AR$6 -> 0 | T20: =+'16-A5'!AS$6 -> 0 | U20: =+'16-A5'!AT$6 -> 0 | V20: =+'16-A5'!AU$6 -> 0 | W20: =+'16-A5'!AV$6 -> 0 | X20: =+'16-A5'!AW$6 -> 0 | Y20: =+'16-A5'!AX$6 -> 0 | Z20: =+'16-A5'!AY$6 -> 0 | AA20: =+'16-A5'!AZ$6 -> 0 | AB20: =+'16-A5'!BA$6 -> 0 | AC20: =+'16-A5'!BB$6 -> 0 | AD20: =+'16-A5'!BC$6 -> 0 | AE20: =+'16-A5'!BD$6 -> 0 | AF20: =+'16-A5'!BE$6 -> 0 | AG20: =+'16-A5'!BF$6 -> 0 | AH20: =+'16-A5'!BG$6 -> 0 | AI20: =+'16-A5'!BH$6 -> 0 | AJ20: =+'16-A5'!BI$6 -> 0 | AK20: =+'16-A5'!BJ$6 -> 0 | AL20: =+'16-A5'!BK$6 -> 0 | AM20: =+'16-A5'!BL$6 -> 0 | AN20: =+'16-A5'!BM$6 -> 0 | AO20: =+'16-A5'!BN$6 -> 0 | AP20: =+'16-A5'!BO$6 -> 0 | AQ20: =+'16-A5'!BP$6 -> 0 | AR20: =+'16-A5'!BQ$6 -> 0 | AS20: =+'16-A5'!BR$6 -> 0 | AT20: =+'16-A5'!BS$6 -> 0 | AU20: =+'16-A5'!BT$6 -> 0 | AV20: =+'16-A5'!BU$6 -> 0 | AW20: =+'16-A5'!BV$6 -> 0 | AX20: =+'16-A5'!BW$6 -> 0 | AZ20: =+'16-A5'!BY$6 -> 0 | BB20: =+'16-A5'!CA$6 -> 0 | BC20: =+'16-A5'!CB$6 -> 0 | BD20: =+'16-A5'!CC$6 -> 0 | BE20: =+'16-A5'!CD$6 -> 0 | BF20: =+'16-A5'!CE$6 -> 0 | BG20: =+'16-A5'!CF$6 -> 0 | BH20: =+'16-A5'!CG$6 -> 0 | BI20: =+'16-A5'!CH$6 -> 0
A21: =+'16-C1'!Z$6 -> 16-C1 | B21: =+'16-C1'!AA$6 -> Avenal Court | C21: =+'16-C1'!AB$6 -> 501 E. Kings Street | D21: =+'16-C1'!AC$6 -> Avenal | E21: =+'16-C1'!AD$6 -> 93204 | F21: =+'16-C1'!AE$6 -> Kings | G21: =+'16-C1'!AF$6 -> NCRO | I21: =+'16-C1'!AH$6 -> 0 | J21: =+'16-C1'!AI$6 -> 0 | K21: =+'16-C1'!AJ$6 -> 0 | L21: =+'16-C1'!AK$6 -> 0 | M21: =+'16-C1'!AL$6 -> 0 | N21: =+'16-C1'!AM$6 -> 0 | O21: =+'16-C1'!AN$6 -> 0 | P21: =+'16-C1'!AO$6 -> 0 | Q21: =+'16-C1'!AP$6 -> 0 | R21: =+'16-C1'!AQ$6 -> 0 | S21: =+'16-C1'!AR$6 -> 0 | T21: =+'16-C1'!AS$6 -> 0 | U21: =+'16-C1'!AT$6 -> 0 | V21: =+'16-C1'!AU$6 -> 0 | W21: =+'16-C1'!AV$6 -> 0 | X21: =+'16-C1'!AW$6 -> 0 | Y21: =+'16-C1'!AX$6 -> 0 | Z21: =+'16-C1'!AY$6 -> 0 | AA21: =+'16-C1'!AZ$6 -> 0 | AB21: =+'16-C1'!BA$6 -> 0 | AC21: =+'16-C1'!BB$6 -> 0 | AD21: =+'16-C1'!BC$6 -> 0 | AE21: =+'16-C1'!BD$6 -> 0 | AF21: =+'16-C1'!BE$6 -> 0 | AG21: =+'16-C1'!BF$6 -> 0 | AH21: =+'16-C1'!BG$6 -> 0 | AI21: =+'16-C1'!BH$6 -> 0 | AJ21: =+'16-C1'!BI$6 -> 0 | AK21: =+'16-C1'!BJ$6 -> 0 | AL21: =+'16-C1'!BK$6 -> 0 | AM21: =+'16-C1'!BL$6 -> 0 | AN21: =+'16-C1'!BM$6 -> 0 | AO21: =+'16-C1'!BN$6 -> 0 | AP21: =+'16-C1'!BO$6 -> 0 | AQ21: =+'16-C1'!BP$6 -> 0 | AR21: =+'16-C1'!BQ$6 -> 0 | AS21: =+'16-C1'!BR$6 -> 0 | AT21: =+'16-C1'!BS$6 -> 0 | AU21: =+'16-C1'!BT$6 -> 0 | AV21: =+'16-C1'!BU$6 -> 0 | AW21: =+'16-C1'!BV$6 -> 0 | AX21: =+'16-C1'!BW$6 -> 0 | AZ21: =+'16-C1'!BY$6 -> 0 | BB21: =+'16-C1'!CA$6 -> 0 | BC21: =+'16-C1'!CB$6 -> 0 | BD21: =+'16-C1'!CC$6 -> 0 | BE21: =+'16-C1'!CD$6 -> 0 | BF21: =+'16-C1'!CE$6 -> 0 | BG21: =+'16-C1'!CF$6 -> 0 | BH21: =+'16-C1'!CG$6 -> 0 | BI21: =+'16-C1'!CH$6 -> 0
A22: =+'18-C1'!Z$6 -> 18-C1 | B22: =+'18-C1'!AA$6 -> Hall of Justice | C22: =+'18-C1'!AB$6 -> 2610 Riverside Drive | D22: =+'18-C1'!AC$6 -> Susanville | E22: =+'18-C1'!AD$6 -> 96130 | F22: =+'18-C1'!AE$6 -> Lassen | G22: =+'18-C1'!AF$6 -> NCRO | I22: =+'18-C1'!AH$6 -> 0 | J22: =+'18-C1'!AI$6 -> 0 | K22: =+'18-C1'!AJ$6 -> 0 | L22: =+'18-C1'!AK$6 -> 0 | M22: =+'18-C1'!AL$6 -> 0 | N22: =+'18-C1'!AM$6 -> 0 | O22: =+'18-C1'!AN$6 -> 0 | P22: =+'18-C1'!AO$6 -> 0 | Q22: =+'18-C1'!AP$6 -> 0 | R22: =+'18-C1'!AQ$6 -> 0 | S22: =+'18-C1'!AR$6 -> 0 | T22: =+'18-C1'!AS$6 -> 0 | U22: =+'18-C1'!AT$6 -> 0 | V22: =+'18-C1'!AU$6 -> 0 | W22: =+'18-C1'!AV$6 -> 0 | X22: =+'18-C1'!AW$6 -> 0 | Y22: =+'18-C1'!AX$6 -> 0 | Z22: =+'18-C1'!AY$6 -> 0 | AA22: =+'18-C1'!AZ$6 -> 0 | AB22: =+'18-C1'!BA$6 -> 0 | AC22: =+'18-C1'!BB$6 -> 0 | AD22: =+'18-C1'!BC$6 -> 0 | AE22: =+'18-C1'!BD$6 -> 0 | AF22: =+'18-C1'!BE$6 -> 0 | AG22: =+'18-C1'!BF$6 -> 0 | AH22: =+'18-C1'!BG$6 -> 0 | AI22: =+'18-C1'!BH$6 -> 0 | AJ22: =+'18-C1'!BI$6 -> 0 | AK22: =+'18-C1'!BJ$6 -> 0 | AL22: =+'18-C1'!BK$6 -> 0 | AM22: =+'18-C1'!BL$6 -> 0 | AN22: =+'18-C1'!BM$6 -> 0 | AO22: =+'18-C1'!BN$6 -> 0 | AP22: =+'18-C1'!BO$6 -> 0 | AQ22: =+'18-C1'!BP$6 -> 0 | AR22: =+'18-C1'!BQ$6 -> 0 | AS22: =+'18-C1'!BR$6 -> 0 | AT22: =+'18-C1'!BS$6 -> 0 | AU22: =+'18-C1'!BT$6 -> 0 | AV22: =+'18-C1'!BU$6 -> 0 | AW22: =+'18-C1'!BV$6 -> 0 | AX22: =+'18-C1'!BW$6 -> 0 | AZ22: =+'18-C1'!BY$6 -> 0 | BB22: =+'18-C1'!CA$6 -> 0 | BC22: =+'18-C1'!CB$6 -> 0 | BD22: =+'18-C1'!CC$6 -> 0 | BE22: =+'18-C1'!CD$6 -> 0 | BF22: =+'18-C1'!CE$6 -> 0 | BG22: =+'18-C1'!CF$6 -> 0 | BH22: =+'18-C1'!CG$6 -> 0 | BI22: =+'18-C1'!CH$6 -> 0
A23: =+'20-F1'!Z$6 -> 20-F1 | B23: =+'20-F1'!AA$6 -> Main Courthouse | C23: =+'20-F1'!AB$6 -> 200 South G Street | D23: =+'20-F1'!AC$6 -> Madera | E23: =+'20-F1'!AD$6 -> 93637 | F23: =+'20-F1'!AE$6 -> Madera | G23: =+'20-F1'!AF$6 -> NCRO | I23: =+'20-F1'!AH$6 -> 0 | J23: =+'20-F1'!AI$6 -> 0 | K23: =+'20-F1'!AJ$6 -> 0 | L23: =+'20-F1'!AK$6 -> 0 | M23: =+'20-F1'!AL$6 -> 0 | N23: =+'20-F1'!AM$6 -> 0 | O23: =+'20-F1'!AN$6 -> 0 | P23: =+'20-F1'!AO$6 -> 0 | Q23: =+'20-F1'!AP$6 -> 0 | R23: =+'20-F1'!AQ$6 -> 0 | S23: =+'20-F1'!AR$6 -> 0 | T23: =+'20-F1'!AS$6 -> 0 | U23: =+'20-F1'!AT$6 -> 0 | V23: =+'20-F1'!AU$6 -> 0 | W23: =+'20-F1'!AV$6 -> 0 | X23: =+'20-F1'!AW$6 -> 0 | Y23: =+'20-F1'!AX$6 -> 0 | Z23: =+'20-F1'!AY$6 -> 0 | AA23: =+'20-F1'!AZ$6 -> 0 | AB23: =+'20-F1'!BA$6 -> 0 | AC23: =+'20-F1'!BB$6 -> 0 | AD23: =+'20-F1'!BC$6 -> 0 | AE23: =+'20-F1'!BD$6 -> 0 | AF23: =+'20-F1'!BE$6 -> 0 | AG23: =+'20-F1'!BF$6 -> 0 | AH23: =+'20-F1'!BG$6 -> 0 | AI23: =+'20-F1'!BH$6 -> 0 | AJ23: =+'20-F1'!BI$6 -> 0 | AK23: =+'20-F1'!BJ$6 -> 0 | AL23: =+'20-F1'!BK$6 -> 0 | AM23: =+'20-F1'!BL$6 -> 0 | AN23: =+'20-F1'!BM$6 -> 0 | AO23: =+'20-F1'!BN$6 -> 0 | AP23: =+'20-F1'!BO$6 -> 0 | AQ23: =+'20-F1'!BP$6 -> 0 | AR23: =+'20-F1'!BQ$6 -> 0 | AS23: =+'20-F1'!BR$6 -> 0 | AT23: =+'20-F1'!BS$6 -> 0 | AU23: =+'20-F1'!BT$6 -> 0 | AV23: =+'20-F1'!BU$6 -> 0 | AW23: =+'20-F1'!BV$6 -> 0 | AX23: =+'20-F1'!BW$6 -> 0 | AZ23: =+'20-F1'!BY$6 -> 0 | BB23: =+'20-F1'!CA$6 -> 0 | BC23: =+'20-F1'!CB$6 -> 0 | BD23: =+'20-F1'!CC$6 -> 0 | BE23: =+'20-F1'!CD$6 -> 0 | BF23: =+'20-F1'!CE$6 -> 0 | BG23: =+'20-F1'!CF$6 -> 0 | BH23: =+'20-F1'!CG$6 -> 0 | BI23: =+'20-F1'!CH$6 -> 0
A24: =+'20-F2'!Z$6 -> 20-F2 | B24: =+'20-F2'!AA$6 -> Main Courthouse Parking Garage | C24: =+'20-F2'!AB$6 -> 220/224 and 228 South G Street | D24: =+'20-F2'!AC$6 -> Madera | E24: =+'20-F2'!AD$6 -> 93637 | F24: =+'20-F2'!AE$6 -> Madera | G24: =+'20-F2'!AF$6 -> NCRO | I24: =+'20-F2'!AH$6 -> 0 | J24: =+'20-F2'!AI$6 -> 0 | K24: =+'20-F2'!AJ$6 -> 0 | L24: =+'20-F2'!AK$6 -> 0 | M24: =+'20-F2'!AL$6 -> 0 | N24: =+'20-F2'!AM$6 -> 0 | O24: =+'20-F2'!AN$6 -> 0 | P24: =+'20-F2'!AO$6 -> 0 | Q24: =+'20-F2'!AP$6 -> 0 | R24: =+'20-F2'!AQ$6 -> 0 | S24: =+'20-F2'!AR$6 -> 0 | T24: =+'20-F2'!AS$6 -> 0 | U24: =+'20-F2'!AT$6 -> 0 | V24: =+'20-F2'!AU$6 -> 0 | W24: =+'20-F2'!AV$6 -> 0 | X24: =+'20-F2'!AW$6 -> 0 | Y24: =+'20-F2'!AX$6 -> 0 | Z24: =+'20-F2'!AY$6 -> 0 | AA24: =+'20-F2'!AZ$6 -> 0 | AB24: =+'20-F2'!BA$6 -> 0 | AC24: =+'20-F2'!BB$6 -> 0 | AD24: =+'20-F2'!BC$6 -> 0 | AE24: =+'20-F2'!BD$6 -> 0 | AF24: =+'20-F2'!BE$6 -> 0 | AG24: =+'20-F2'!BF$6 -> 0 | AH24: =+'20-F2'!BG$6 -> 0 | AI24: =+'20-F2'!BH$6 -> 0 | AJ24: =+'20-F2'!BI$6 -> 0 | AK24: =+'20-F2'!BJ$6 -> 0 | AL24: =+'20-F2'!BK$6 -> 0 | AM24: =+'20-F2'!BL$6 -> 0 | AN24: =+'20-F2'!BM$6 -> 0 | AO24: =+'20-F2'!BN$6 -> 0 | AP24: =+'20-F2'!BO$6 -> 0 | AQ24: =+'20-F2'!BP$6 -> 0 | AR24: =+'20-F2'!BQ$6 -> 0 | AS24: =+'20-F2'!BR$6 -> 0 | AT24: =+'20-F2'!BS$6 -> 0 | AU24: =+'20-F2'!BT$6 -> 0 | AV24: =+'20-F2'!BU$6 -> 0 | AW24: =+'20-F2'!BV$6 -> 0 | AX24: =+'20-F2'!BW$6 -> 0 | AZ24: =+'20-F2'!BY$6 -> 0 | BB24: =+'20-F2'!CA$6 -> 0 | BC24: =+'20-F2'!CB$6 -> 0 | BD24: =+'20-F2'!CC$6 -> 0 | BE24: =+'20-F2'!CD$6 -> 0 | BF24: =+'20-F2'!CE$6 -> 0 | BG24: =+'20-F2'!CF$6 -> 0 | BH24: =+'20-F2'!CG$6 -> 0 | BI24: =+'20-F2'!CH$6 -> 0
A25: =+'24-A1'!Z$6 -> 24-A1 | B25: =+'24-A1'!AA$6 -> Old Court | C25: =+'24-A1'!AB$6 -> 627 W. 21st Street | D25: =+'24-A1'!AC$6 -> Merced | E25: =+'24-A1'!AD$6 -> 95340 | F25: =+'24-A1'!AE$6 -> Merced | G25: =+'24-A1'!AF$6 -> NCRO | I25: =+'24-A1'!AH$6 -> 0 | J25: =+'24-A1'!AI$6 -> 0 | K25: =+'24-A1'!AJ$6 -> 0 | L25: =+'24-A1'!AK$6 -> 0 | M25: =+'24-A1'!AL$6 -> 0 | N25: =+'24-A1'!AM$6 -> 0 | O25: =+'24-A1'!AN$6 -> 0 | P25: =+'24-A1'!AO$6 -> 0 | Q25: =+'24-A1'!AP$6 -> 0 | R25: =+'24-A1'!AQ$6 -> 0 | S25: =+'24-A1'!AR$6 -> 0 | T25: =+'24-A1'!AS$6 -> 0 | U25: =+'24-A1'!AT$6 -> 0 | V25: =+'24-A1'!AU$6 -> 0 | W25: =+'24-A1'!AV$6 -> 0 | X25: =+'24-A1'!AW$6 -> 0 | Y25: =+'24-A1'!AX$6 -> 0 | Z25: =+'24-A1'!AY$6 -> 0 | AA25: =+'24-A1'!AZ$6 -> 0 | AB25: =+'24-A1'!BA$6 -> 0 | AC25: =+'24-A1'!BB$6 -> 0 | AD25: =+'24-A1'!BC$6 -> 0 | AE25: =+'24-A1'!BD$6 -> 0 | AF25: =+'24-A1'!BE$6 -> 0 | AG25: =+'24-A1'!BF$6 -> 0 | AH25: =+'24-A1'!BG$6 -> 0 | AI25: =+'24-A1'!BH$6 -> 0 | AJ25: =+'24-A1'!BI$6 -> 0 | AK25: =+'24-A1'!BJ$6 -> 0 | AL25: =+'24-A1'!BK$6 -> 0 | AM25: =+'24-A1'!BL$6 -> 0 | AN25: =+'24-A1'!BM$6 -> 0 | AO25: =+'24-A1'!BN$6 -> 0 | AP25: =+'24-A1'!BO$6 -> 0 | AQ25: =+'24-A1'!BP$6 -> 0 | AR25: =+'24-A1'!BQ$6 -> 0 | AS25: =+'24-A1'!BR$6 -> 0 | AT25: =+'24-A1'!BS$6 -> 0 | AU25: =+'24-A1'!BT$6 -> 0 | AV25: =+'24-A1'!BU$6 -> 0 | AW25: =+'24-A1'!BV$6 -> 0 | AX25: =+'24-A1'!BW$6 -> 0 | AZ25: =+'24-A1'!BY$6 -> 0 | BB25: =+'24-A1'!CA$6 -> 0 | BC25: =+'24-A1'!CB$6 -> 0 | BD25: =+'24-A1'!CC$6 -> 0 | BE25: =+'24-A1'!CD$6 -> 0 | BF25: =+'24-A1'!CE$6 -> 0 | BG25: =+'24-A1'!CF$6 -> 0 | BH25: =+'24-A1'!CG$6 -> 0 | BI25: =+'24-A1'!CH$6 -> 0
A26: =+'24-A8'!Z$6 -> 24-A8 | B26: =+'24-A8'!AA$6 -> Main Merced Courthouse | C26: =+'24-A8'!AB$6 -> 2260 N Street | D26: =+'24-A8'!AC$6 -> Merced | E26: =+'24-A8'!AD$6 -> 95340 | F26: =+'24-A8'!AE$6 -> Merced | G26: =+'24-A8'!AF$6 -> NCRO | I26: =+'24-A8'!AH$6 -> 0 | J26: =+'24-A8'!AI$6 -> 0 | K26: =+'24-A8'!AJ$6 -> 0 | L26: =+'24-A8'!AK$6 -> 0 | M26: =+'24-A8'!AL$6 -> 0 | N26: =+'24-A8'!AM$6 -> 0 | O26: =+'24-A8'!AN$6 -> 0 | P26: =+'24-A8'!AO$6 -> 0 | Q26: =+'24-A8'!AP$6 -> 0 | R26: =+'24-A8'!AQ$6 -> 0 | S26: =+'24-A8'!AR$6 -> 0 | T26: =+'24-A8'!AS$6 -> 0 | U26: =+'24-A8'!AT$6 -> 0 | V26: =+'24-A8'!AU$6 -> 0 | W26: =+'24-A8'!AV$6 -> 0 | X26: =+'24-A8'!AW$6 -> 0 | Y26: =+'24-A8'!AX$6 -> 0 | Z26: =+'24-A8'!AY$6 -> 0 | AA26: =+'24-A8'!AZ$6 -> 0 | AB26: =+'24-A8'!BA$6 -> 0 | AC26: =+'24-A8'!BB$6 -> 0 | AD26: =+'24-A8'!BC$6 -> 0 | AE26: =+'24-A8'!BD$6 -> 0 | AF26: =+'24-A8'!BE$6 -> 0 | AG26: =+'24-A8'!BF$6 -> 0 | AH26: =+'24-A8'!BG$6 -> 0 | AI26: =+'24-A8'!BH$6 -> 0 | AJ26: =+'24-A8'!BI$6 -> 0 | AK26: =+'24-A8'!BJ$6 -> 0 | AL26: =+'24-A8'!BK$6 -> 0 | AM26: =+'24-A8'!BL$6 -> 0 | AN26: =+'24-A8'!BM$6 -> 0 | AO26: =+'24-A8'!BN$6 -> 0 | AP26: =+'24-A8'!BO$6 -> 0 | AQ26: =+'24-A8'!BP$6 -> 0 | AR26: =+'24-A8'!BQ$6 -> 0 | AS26: =+'24-A8'!BR$6 -> 0 | AT26: =+'24-A8'!BS$6 -> 0 | AU26: =+'24-A8'!BT$6 -> 0 | AV26: =+'24-A8'!BU$6 -> 0 | AW26: =+'24-A8'!BV$6 -> 0 | AX26: =+'24-A8'!BW$6 -> 0 | AZ26: =+'24-A8'!BY$6 -> 0 | BB26: =+'24-A8'!CA$6 -> 0 | BC26: =+'24-A8'!CB$6 -> 0 | BD26: =+'24-A8'!CC$6 -> 0 | BE26: =+'24-A8'!CD$6 -> 0 | BF26: =+'24-A8'!CE$6 -> 0 | BG26: =+'24-A8'!CF$6 -> 0 | BH26: =+'24-A8'!CG$6 -> 0 | BI26: =+'24-A8'!CH$6 -> 0
A27: =+'24-G1'!Z$6 -> 24-G1 | B27: =+'24-G1'!AA$6 -> Robert M. Falasco Justice Center | C27: =+'24-G1'!AB$6 -> 1159 G Street | D27: =+'24-G1'!AC$6 -> Los Banos | E27: =+'24-G1'!AD$6 -> 93635 | F27: =+'24-G1'!AE$6 -> Merced | G27: =+'24-G1'!AF$6 -> NCRO | I27: =+'24-G1'!AH$6 -> 0 | J27: =+'24-G1'!AI$6 -> 0 | K27: =+'24-G1'!AJ$6 -> 0 | L27: =+'24-G1'!AK$6 -> 0 | M27: =+'24-G1'!AL$6 -> 0 | N27: =+'24-G1'!AM$6 -> 0 | O27: =+'24-G1'!AN$6 -> 0 | P27: =+'24-G1'!AO$6 -> 0 | Q27: =+'24-G1'!AP$6 -> 0 | R27: =+'24-G1'!AQ$6 -> 0 | S27: =+'24-G1'!AR$6 -> 0 | T27: =+'24-G1'!AS$6 -> 0 | U27: =+'24-G1'!AT$6 -> 0 | V27: =+'24-G1'!AU$6 -> 0 | W27: =+'24-G1'!AV$6 -> 0 | X27: =+'24-G1'!AW$6 -> 0 | Y27: =+'24-G1'!AX$6 -> 0 | Z27: =+'24-G1'!AY$6 -> 0 | AA27: =+'24-G1'!AZ$6 -> 0 | AB27: =+'24-G1'!BA$6 -> 0 | AC27: =+'24-G1'!BB$6 -> 0 | AD27: =+'24-G1'!BC$6 -> 0 | AE27: =+'24-G1'!BD$6 -> 0 | AF27: =+'24-G1'!BE$6 -> 0 | AG27: =+'24-G1'!BF$6 -> 0 | AH27: =+'24-G1'!BG$6 -> 0 | AI27: =+'24-G1'!BH$6 -> 0 | AJ27: =+'24-G1'!BI$6 -> 0 | AK27: =+'24-G1'!BJ$6 -> 0 | AL27: =+'24-G1'!BK$6 -> 0 | AM27: =+'24-G1'!BL$6 -> 0 | AN27: =+'24-G1'!BM$6 -> 0 | AO27: =+'24-G1'!BN$6 -> 0 | AP27: =+'24-G1'!BO$6 -> 0 | AQ27: =+'24-G1'!BP$6 -> 0 | AR27: =+'24-G1'!BQ$6 -> 0 | AS27: =+'24-G1'!BR$6 -> 0 | AT27: =+'24-G1'!BS$6 -> 0 | AU27: =+'24-G1'!BT$6 -> 0 | AV27: =+'24-G1'!BU$6 -> 0 | AW27: =+'24-G1'!BV$6 -> 0 | AX27: =+'24-G1'!BW$6 -> 0 | AZ27: =+'24-G1'!BY$6 -> 0 | BB27: =+'24-G1'!CA$6 -> 0 | BC27: =+'24-G1'!CB$6 -> 0 | BD27: =+'24-G1'!CC$6 -> 0 | BE27: =+'24-G1'!CD$6 -> 0 | BF27: =+'24-G1'!CE$6 -> 0 | BG27: =+'24-G1'!CF$6 -> 0 | BH27: =+'24-G1'!CG$6 -> 0 | BI27: =+'24-G1'!CH$6 -> 0
A28: =+'25-A1'!Z$6 -> 25-A1 | B28: =+'25-A1'!AA$6 -> Barclay Justice Center | C28: =+'25-A1'!AB$6 -> 205 S. East Street | D28: =+'25-A1'!AC$6 -> Alturas | E28: =+'25-A1'!AD$6 -> 96101 | F28: =+'25-A1'!AE$6 -> Modoc | G28: =+'25-A1'!AF$6 -> NCRO | I28: =+'25-A1'!AH$6 -> 0 | J28: =+'25-A1'!AI$6 -> 0 | K28: =+'25-A1'!AJ$6 -> 0 | L28: =+'25-A1'!AK$6 -> 0 | M28: =+'25-A1'!AL$6 -> 0 | N28: =+'25-A1'!AM$6 -> 0 | O28: =+'25-A1'!AN$6 -> 0 | P28: =+'25-A1'!AO$6 -> 0 | Q28: =+'25-A1'!AP$6 -> 0 | R28: =+'25-A1'!AQ$6 -> 0 | S28: =+'25-A1'!AR$6 -> 0 | T28: =+'25-A1'!AS$6 -> 0 | U28: =+'25-A1'!AT$6 -> 0 | V28: =+'25-A1'!AU$6 -> 0 | W28: =+'25-A1'!AV$6 -> 0 | X28: =+'25-A1'!AW$6 -> 0 | Y28: =+'25-A1'!AX$6 -> 0 | Z28: =+'25-A1'!AY$6 -> 0 | AA28: =+'25-A1'!AZ$6 -> 0 | AB28: =+'25-A1'!BA$6 -> 0 | AC28: =+'25-A1'!BB$6 -> 0 | AD28: =+'25-A1'!BC$6 -> 0 | AE28: =+'25-A1'!BD$6 -> 0 | AF28: =+'25-A1'!BE$6 -> 0 | AG28: =+'25-A1'!BF$6 -> 0 | AH28: =+'25-A1'!BG$6 -> 0 | AI28: =+'25-A1'!BH$6 -> 0 | AJ28: =+'25-A1'!BI$6 -> 0 | AK28: =+'25-A1'!BJ$6 -> 0 | AL28: =+'25-A1'!BK$6 -> 0 | AM28: =+'25-A1'!BL$6 -> 0 | AN28: =+'25-A1'!BM$6 -> 0 | AO28: =+'25-A1'!BN$6 -> 0 | AP28: =+'25-A1'!BO$6 -> 0 | AQ28: =+'25-A1'!BP$6 -> 0 | AR28: =+'25-A1'!BQ$6 -> 0 | AS28: =+'25-A1'!BR$6 -> 0 | AT28: =+'25-A1'!BS$6 -> 0 | AU28: =+'25-A1'!BT$6 -> 0 | AV28: =+'25-A1'!BU$6 -> 0 | AW28: =+'25-A1'!BV$6 -> 0 | AX28: =+'25-A1'!BW$6 -> 0 | AZ28: =+'25-A1'!BY$6 -> 0 | BB28: =+'25-A1'!CA$6 -> 0 | BC28: =+'25-A1'!CB$6 -> 0 | BD28: =+'25-A1'!CC$6 -> 0 | BE28: =+'25-A1'!CD$6 -> 0 | BF28: =+'25-A1'!CE$6 -> 0 | BG28: =+'25-A1'!CF$6 -> 0 | BH28: =+'25-A1'!CG$6 -> 0 | BI28: =+'25-A1'!CH$6 -> 0
A29: =+'26-B2'!Z$6 -> 26-B2 | B29: =+'26-B2'!AA$6 -> Mammoth Lakes Courthouse | C29: =+'26-B2'!AB$6 -> 100 Thompsons Way | D29: =+'26-B2'!AC$6 -> Mammoth Lakes | E29: =+'26-B2'!AD$6 -> 93546 | F29: =+'26-B2'!AE$6 -> Mono | G29: =+'26-B2'!AF$6 -> NCRO | I29: =+'26-B2'!AH$6 -> 0 | J29: =+'26-B2'!AI$6 -> 0 | K29: =+'26-B2'!AJ$6 -> 0 | L29: =+'26-B2'!AK$6 -> 0 | M29: =+'26-B2'!AL$6 -> 0 | N29: =+'26-B2'!AM$6 -> 0 | O29: =+'26-B2'!AN$6 -> 0 | P29: =+'26-B2'!AO$6 -> 0 | Q29: =+'26-B2'!AP$6 -> 0 | R29: =+'26-B2'!AQ$6 -> 0 | S29: =+'26-B2'!AR$6 -> 0 | T29: =+'26-B2'!AS$6 -> 0 | U29: =+'26-B2'!AT$6 -> 0 | V29: =+'26-B2'!AU$6 -> 0 | W29: =+'26-B2'!AV$6 -> 0 | X29: =+'26-B2'!AW$6 -> 0 | Y29: =+'26-B2'!AX$6 -> 0 | Z29: =+'26-B2'!AY$6 -> 0 | AA29: =+'26-B2'!AZ$6 -> 0 | AB29: =+'26-B2'!BA$6 -> 0 | AC29: =+'26-B2'!BB$6 -> 0 | AD29: =+'26-B2'!BC$6 -> 0 | AE29: =+'26-B2'!BD$6 -> 0 | AF29: =+'26-B2'!BE$6 -> 0 | AG29: =+'26-B2'!BF$6 -> 0 | AH29: =+'26-B2'!BG$6 -> 0 | AI29: =+'26-B2'!BH$6 -> 0 | AJ29: =+'26-B2'!BI$6 -> 0 | AK29: =+'26-B2'!BJ$6 -> 0 | AL29: =+'26-B2'!BK$6 -> 0 | AM29: =+'26-B2'!BL$6 -> 0 | AN29: =+'26-B2'!BM$6 -> 0 | AO29: =+'26-B2'!BN$6 -> 0 | AP29: =+'26-B2'!BO$6 -> 0 | AQ29: =+'26-B2'!BP$6 -> 0 | AR29: =+'26-B2'!BQ$6 -> 0 | AS29: =+'26-B2'!BR$6 -> 0 | AT29: =+'26-B2'!BS$6 -> 0 | AU29: =+'26-B2'!BT$6 -> 0 | AV29: =+'26-B2'!BU$6 -> 0 | AW29: =+'26-B2'!BV$6 -> 0 | AX29: =+'26-B2'!BW$6 -> 0 | AZ29: =+'26-B2'!BY$6 -> 0 | BB29: =+'26-B2'!CA$6 -> 0 | BC29: =+'26-B2'!CB$6 -> 0 | BD29: =+'26-B2'!CC$6 -> 0 | BE29: =+'26-B2'!CD$6 -> 0 | BF29: =+'26-B2'!CE$6 -> 0 | BG29: =+'26-B2'!CF$6 -> 0 | BH29: =+'26-B2'!CG$6 -> 0 | BI29: =+'26-B2'!CH$6 -> 0
A30: =+'31-H1'!Z$6 -> 31-H1 | B30: =+'31-H1'!AA$6 -> Hon. Howard G. Gibson Courthouse | C30: =+'31-H1'!AB$6 -> 10820 Justice Center Drive | D30: =+'31-H1'!AC$6 -> Roseville | E30: =+'31-H1'!AD$6 -> 95678 | F30: =+'31-H1'!AE$6 -> Placer | G30: =+'31-H1'!AF$6 -> NCRO | I30: =+'31-H1'!AH$6 -> 0 | J30: =+'31-H1'!AI$6 -> 0 | K30: =+'31-H1'!AJ$6 -> 0 | L30: =+'31-H1'!AK$6 -> 0 | M30: =+'31-H1'!AL$6 -> 0 | N30: =+'31-H1'!AM$6 -> 0 | O30: =+'31-H1'!AN$6 -> 0 | P30: =+'31-H1'!AO$6 -> 0 | Q30: =+'31-H1'!AP$6 -> 0 | R30: =+'31-H1'!AQ$6 -> 0 | S30: =+'31-H1'!AR$6 -> 0 | T30: =+'31-H1'!AS$6 -> 0 | U30: =+'31-H1'!AT$6 -> 0 | V30: =+'31-H1'!AU$6 -> 0 | W30: =+'31-H1'!AV$6 -> 0 | X30: =+'31-H1'!AW$6 -> 0 | Y30: =+'31-H1'!AX$6 -> 0 | Z30: =+'31-H1'!AY$6 -> 0 | AA30: =+'31-H1'!AZ$6 -> 0 | AB30: =+'31-H1'!BA$6 -> 0 | AC30: =+'31-H1'!BB$6 -> 0 | AD30: =+'31-H1'!BC$6 -> 0 | AE30: =+'31-H1'!BD$6 -> 0 | AF30: =+'31-H1'!BE$6 -> 0 | AG30: =+'31-H1'!BF$6 -> 0 | AH30: =+'31-H1'!BG$6 -> 0 | AI30: =+'31-H1'!BH$6 -> 0 | AJ30: =+'31-H1'!BI$6 -> 0 | AK30: =+'31-H1'!BJ$6 -> 0 | AL30: =+'31-H1'!BK$6 -> 0 | AM30: =+'31-H1'!BL$6 -> 0 | AN30: =+'31-H1'!BM$6 -> 0 | AO30: =+'31-H1'!BN$6 -> 0 | AP30: =+'31-H1'!BO$6 -> 0 | AQ30: =+'31-H1'!BP$6 -> 0 | AR30: =+'31-H1'!BQ$6 -> 0 | AS30: =+'31-H1'!BR$6 -> 0 | AT30: =+'31-H1'!BS$6 -> 0 | AU30: =+'31-H1'!BT$6 -> 0 | AV30: =+'31-H1'!BU$6 -> 0 | AW30: =+'31-H1'!BV$6 -> 0 | AX30: =+'31-H1'!BW$6 -> 0 | AZ30: =+'31-H1'!BY$6 -> 0 | BB30: =+'31-H1'!CA$6 -> 0 | BC30: =+'31-H1'!CB$6 -> 0 | BD30: =+'31-H1'!CC$6 -> 0 | BE30: =+'31-H1'!CD$6 -> 0 | BF30: =+'31-H1'!CE$6 -> 0 | BG30: =+'31-H1'!CF$6 -> 0 | BH30: =+'31-H1'!CG$6 -> 0 | BI30: =+'31-H1'!CH$6 -> 0
A31: =+'31-H2'!Z$6 -> 31-H2 | B31: =+'31-H2'!AA$6 -> Arraignment Court Facility | C31: =+'31-H2'!AB$6 -> 11801 Go For Broke Road | D31: =+'31-H2'!AC$6 -> Roseville | E31: =+'31-H2'!AD$6 -> 95678 | F31: =+'31-H2'!AE$6 -> Placer | G31: =+'31-H2'!AF$6 -> NCRO | I31: =+'31-H2'!AH$6 -> 0 | J31: =+'31-H2'!AI$6 -> 0 | K31: =+'31-H2'!AJ$6 -> 0 | L31: =+'31-H2'!AK$6 -> 0 | M31: =+'31-H2'!AL$6 -> 0 | N31: =+'31-H2'!AM$6 -> 0 | O31: =+'31-H2'!AN$6 -> 0 | P31: =+'31-H2'!AO$6 -> 0 | Q31: =+'31-H2'!AP$6 -> 0 | R31: =+'31-H2'!AQ$6 -> 0 | S31: =+'31-H2'!AR$6 -> 0 | T31: =+'31-H2'!AS$6 -> 0 | U31: =+'31-H2'!AT$6 -> 0 | V31: =+'31-H2'!AU$6 -> 0 | W31: =+'31-H2'!AV$6 -> 0 | X31: =+'31-H2'!AW$6 -> 0 | Y31: =+'31-H2'!AX$6 -> 0 | Z31: =+'31-H2'!AY$6 -> 0 | AA31: =+'31-H2'!AZ$6 -> 0 | AB31: =+'31-H2'!BA$6 -> 0 | AC31: =+'31-H2'!BB$6 -> 0 | AD31: =+'31-H2'!BC$6 -> 0 | AE31: =+'31-H2'!BD$6 -> 0 | AF31: =+'31-H2'!BE$6 -> 0 | AG31: =+'31-H2'!BF$6 -> 0 | AH31: =+'31-H2'!BG$6 -> 0 | AI31: =+'31-H2'!BH$6 -> 0 | AJ31: =+'31-H2'!BI$6 -> 0 | AK31: =+'31-H2'!BJ$6 -> 0 | AL31: =+'31-H2'!BK$6 -> 0 | AM31: =+'31-H2'!BL$6 -> 0 | AN31: =+'31-H2'!BM$6 -> 0 | AO31: =+'31-H2'!BN$6 -> 0 | AP31: =+'31-H2'!BO$6 -> 0 | AQ31: =+'31-H2'!BP$6 -> 0 | AR31: =+'31-H2'!BQ$6 -> 0 | AS31: =+'31-H2'!BR$6 -> 0 | AT31: =+'31-H2'!BS$6 -> 0 | AU31: =+'31-H2'!BT$6 -> 0 | AV31: =+'31-H2'!BU$6 -> 0 | AW31: =+'31-H2'!BV$6 -> 0 | AX31: =+'31-H2'!BW$6 -> 0 | AZ31: =+'31-H2'!BY$6 -> 0 | BB31: =+'31-H2'!CA$6 -> 0 | BC31: =+'31-H2'!CB$6 -> 0 | BD31: =+'31-H2'!CC$6 -> 0 | BE31: =+'31-H2'!CD$6 -> 0 | BF31: =+'31-H2'!CE$6 -> 0 | BG31: =+'31-H2'!CF$6 -> 0 | BH31: =+'31-H2'!CG$6 -> 0 | BI31: =+'31-H2'!CH$6 -> 0
A32: =+'34-A1'!Z$6 -> 34-A1 | B32: =+'34-A1'!AA$6 -> Gordon Schaber Sacramento Superior Court | C32: =+'34-A1'!AB$6 -> 720 Ninth St. | D32: =+'34-A1'!AC$6 -> Sacramento | E32: =+'34-A1'!AD$6 -> 95814 | F32: =+'34-A1'!AE$6 -> Sacramento | G32: =+'34-A1'!AF$6 -> NCRO | I32: =+'34-A1'!AH$6 -> 0 | J32: =+'34-A1'!AI$6 -> 0 | K32: =+'34-A1'!AJ$6 -> 0 | L32: =+'34-A1'!AK$6 -> 0 | M32: =+'34-A1'!AL$6 -> 0 | N32: =+'34-A1'!AM$6 -> 0 | O32: =+'34-A1'!AN$6 -> 0 | P32: =+'34-A1'!AO$6 -> 0 | Q32: =+'34-A1'!AP$6 -> 0 | R32: =+'34-A1'!AQ$6 -> 0 | S32: =+'34-A1'!AR$6 -> 0 | T32: =+'34-A1'!AS$6 -> 0 | U32: =+'34-A1'!AT$6 -> 0 | V32: =+'34-A1'!AU$6 -> 0 | W32: =+'34-A1'!AV$6 -> 0 | X32: =+'34-A1'!AW$6 -> 0 | Y32: =+'34-A1'!AX$6 -> 0 | Z32: =+'34-A1'!AY$6 -> 0 | AA32: =+'34-A1'!AZ$6 -> 0 | AB32: =+'34-A1'!BA$6 -> 0 | AC32: =+'34-A1'!BB$6 -> 0 | AD32: =+'34-A1'!BC$6 -> 0 | AE32: =+'34-A1'!BD$6 -> 0 | AF32: =+'34-A1'!BE$6 -> 0 | AG32: =+'34-A1'!BF$6 -> 0 | AH32: =+'34-A1'!BG$6 -> 0 | AI32: =+'34-A1'!BH$6 -> 0 | AJ32: =+'34-A1'!BI$6 -> 0 | AK32: =+'34-A1'!BJ$6 -> 0 | AL32: =+'34-A1'!BK$6 -> 0 | AM32: =+'34-A1'!BL$6 -> 0 | AN32: =+'34-A1'!BM$6 -> 0 | AO32: =+'34-A1'!BN$6 -> 0 | AP32: =+'34-A1'!BO$6 -> 0 | AQ32: =+'34-A1'!BP$6 -> 0 | AR32: =+'34-A1'!BQ$6 -> 0 | AS32: =+'34-A1'!BR$6 -> 0 | AT32: =+'34-A1'!BS$6 -> 0 | AU32: =+'34-A1'!BT$6 -> 0 | AV32: =+'34-A1'!BU$6 -> 0 | AW32: =+'34-A1'!BV$6 -> 0 | AX32: =+'34-A1'!BW$6 -> 0 | AZ32: =+'34-A1'!BY$6 -> 0 | BB32: =+'34-A1'!CA$6 -> 0 | BC32: =+'34-A1'!CB$6 -> 0 | BD32: =+'34-A1'!CC$6 -> 0 | BE32: =+'34-A1'!CD$6 -> 0 | BF32: =+'34-A1'!CE$6 -> 0 | BG32: =+'34-A1'!CF$6 -> 0 | BH32: =+'34-A1'!CG$6 -> 0 | BI32: =+'34-A1'!CH$6 -> 0
A33: =+'34-C2'!Z$6 -> 34-C2 | B33: =+'34-C2'!AA$6 -> Juvenile Courthouse | C33: =+'34-C2'!AB$6 -> 9605 Kiefer Road | D33: =+'34-C2'!AC$6 -> Sacramento | E33: =+'34-C2'!AD$6 -> 95827 | F33: =+'34-C2'!AE$6 -> Sacramento | G33: =+'34-C2'!AF$6 -> NCRO | I33: =+'34-C2'!AH$6 -> 0 | J33: =+'34-C2'!AI$6 -> 0 | K33: =+'34-C2'!AJ$6 -> 0 | L33: =+'34-C2'!AK$6 -> 0 | M33: =+'34-C2'!AL$6 -> 0 | N33: =+'34-C2'!AM$6 -> 0 | O33: =+'34-C2'!AN$6 -> 0 | P33: =+'34-C2'!AO$6 -> 0 | Q33: =+'34-C2'!AP$6 -> 0 | R33: =+'34-C2'!AQ$6 -> 0 | S33: =+'34-C2'!AR$6 -> 0 | T33: =+'34-C2'!AS$6 -> 0 | U33: =+'34-C2'!AT$6 -> 0 | V33: =+'34-C2'!AU$6 -> 0 | W33: =+'34-C2'!AV$6 -> 0 | X33: =+'34-C2'!AW$6 -> 0 | Y33: =+'34-C2'!AX$6 -> 0 | Z33: =+'34-C2'!AY$6 -> 0 | AA33: =+'34-C2'!AZ$6 -> 0 | AB33: =+'34-C2'!BA$6 -> 0 | AC33: =+'34-C2'!BB$6 -> 0 | AD33: =+'34-C2'!BC$6 -> 0 | AE33: =+'34-C2'!BD$6 -> 0 | AF33: =+'34-C2'!BE$6 -> 0 | AG33: =+'34-C2'!BF$6 -> 0 | AH33: =+'34-C2'!BG$6 -> 0 | AI33: =+'34-C2'!BH$6 -> 0 | AJ33: =+'34-C2'!BI$6 -> 0 | AK33: =+'34-C2'!BJ$6 -> 0 | AL33: =+'34-C2'!BK$6 -> 0 | AM33: =+'34-C2'!BL$6 -> 0 | AN33: =+'34-C2'!BM$6 -> 0 | AO33: =+'34-C2'!BN$6 -> 0 | AP33: =+'34-C2'!BO$6 -> 0 | AQ33: =+'34-C2'!BP$6 -> 0 | AR33: =+'34-C2'!BQ$6 -> 0 | AS33: =+'34-C2'!BR$6 -> 0 | AT33: =+'34-C2'!BS$6 -> 0 | AU33: =+'34-C2'!BT$6 -> 0 | AV33: =+'34-C2'!BU$6 -> 0 | AW33: =+'34-C2'!BV$6 -> 0 | AX33: =+'34-C2'!BW$6 -> 0 | AZ33: =+'34-C2'!BY$6 -> 0 | BB33: =+'34-C2'!CA$6 -> 0 | BC33: =+'34-C2'!CB$6 -> 0 | BD33: =+'34-C2'!CC$6 -> 0 | BE33: =+'34-C2'!CD$6 -> 0 | BF33: =+'34-C2'!CE$6 -> 0 | BG33: =+'34-C2'!CF$6 -> 0 | BH33: =+'34-C2'!CG$6 -> 0 | BI33: =+'34-C2'!CH$6 -> 0
A34: =+'34-D1'!Z$6 -> 34-D1 | B34: =+'34-D1'!AA$6 -> Carol Miller Justice Center Court Facility | C34: =+'34-D1'!AB$6 -> 301 Bicentennial Circle | D34: =+'34-D1'!AC$6 -> Sacramento | E34: =+'34-D1'!AD$6 -> 95826 | F34: =+'34-D1'!AE$6 -> Sacramento | G34: =+'34-D1'!AF$6 -> NCRO | I34: =+'34-D1'!AH$6 -> 0 | J34: =+'34-D1'!AI$6 -> 0 | K34: =+'34-D1'!AJ$6 -> 0 | L34: =+'34-D1'!AK$6 -> 0 | M34: =+'34-D1'!AL$6 -> 0 | N34: =+'34-D1'!AM$6 -> 0 | O34: =+'34-D1'!AN$6 -> 0 | P34: =+'34-D1'!AO$6 -> 0 | Q34: =+'34-D1'!AP$6 -> 0 | R34: =+'34-D1'!AQ$6 -> 0 | S34: =+'34-D1'!AR$6 -> 0 | T34: =+'34-D1'!AS$6 -> 0 | U34: =+'34-D1'!AT$6 -> 0 | V34: =+'34-D1'!AU$6 -> 0 | W34: =+'34-D1'!AV$6 -> 0 | X34: =+'34-D1'!AW$6 -> 0 | Y34: =+'34-D1'!AX$6 -> 0 | Z34: =+'34-D1'!AY$6 -> 0 | AA34: =+'34-D1'!AZ$6 -> 0 | AB34: =+'34-D1'!BA$6 -> 0 | AC34: =+'34-D1'!BB$6 -> 0 | AD34: =+'34-D1'!BC$6 -> 0 | AE34: =+'34-D1'!BD$6 -> 0 | AF34: =+'34-D1'!BE$6 -> 0 | AG34: =+'34-D1'!BF$6 -> 0 | AH34: =+'34-D1'!BG$6 -> 0 | AI34: =+'34-D1'!BH$6 -> 0 | AJ34: =+'34-D1'!BI$6 -> 0 | AK34: =+'34-D1'!BJ$6 -> 0 | AL34: =+'34-D1'!BK$6 -> 0 | AM34: =+'34-D1'!BL$6 -> 0 | AN34: =+'34-D1'!BM$6 -> 0 | AO34: =+'34-D1'!BN$6 -> 0 | AP34: =+'34-D1'!BO$6 -> 0 | AQ34: =+'34-D1'!BP$6 -> 0 | AR34: =+'34-D1'!BQ$6 -> 0 | AS34: =+'34-D1'!BR$6 -> 0 | AT34: =+'34-D1'!BS$6 -> 0 | AU34: =+'34-D1'!BT$6 -> 0 | AV34: =+'34-D1'!BU$6 -> 0 | AW34: =+'34-D1'!BV$6 -> 0 | AX34: =+'34-D1'!BW$6 -> 0 | AZ34: =+'34-D1'!BY$6 -> 0 | BB34: =+'34-D1'!CA$6 -> 0 | BC34: =+'34-D1'!CB$6 -> 0 | BD34: =+'34-D1'!CC$6 -> 0 | BE34: =+'34-D1'!CD$6 -> 0 | BF34: =+'34-D1'!CE$6 -> 0 | BG34: =+'34-D1'!CF$6 -> 0 | BH34: =+'34-D1'!CG$6 -> 0 | BI34: =+'34-D1'!CH$6 -> 0
A35: =+'39-C1'!Z$6 -> 39-C1 | B35: =+'39-C1'!AA$6 -> Manteca Branch Court | C35: =+'39-C1'!AB$6 -> 315 E. Center St. | D35: =+'39-C1'!AC$6 -> Manteca | E35: =+'39-C1'!AD$6 -> 95336 | F35: =+'39-C1'!AE$6 -> San Joaquin | G35: =+'39-C1'!AF$6 -> NCRO | I35: =+'39-C1'!AH$6 -> 0 | J35: =+'39-C1'!AI$6 -> 0 | K35: =+'39-C1'!AJ$6 -> 0 | L35: =+'39-C1'!AK$6 -> 0 | M35: =+'39-C1'!AL$6 -> 0 | N35: =+'39-C1'!AM$6 -> 0 | O35: =+'39-C1'!AN$6 -> 0 | P35: =+'39-C1'!AO$6 -> 0 | Q35: =+'39-C1'!AP$6 -> 0 | R35: =+'39-C1'!AQ$6 -> 0 | S35: =+'39-C1'!AR$6 -> 0 | T35: =+'39-C1'!AS$6 -> 0 | U35: =+'39-C1'!AT$6 -> 0 | V35: =+'39-C1'!AU$6 -> 0 | W35: =+'39-C1'!AV$6 -> 0 | X35: =+'39-C1'!AW$6 -> 0 | Y35: =+'39-C1'!AX$6 -> 0 | Z35: =+'39-C1'!AY$6 -> 0 | AA35: =+'39-C1'!AZ$6 -> 0 | AB35: =+'39-C1'!BA$6 -> 0 | AC35: =+'39-C1'!BB$6 -> 0 | AD35: =+'39-C1'!BC$6 -> 0 | AE35: =+'39-C1'!BD$6 -> 0 | AF35: =+'39-C1'!BE$6 -> 0 | AG35: =+'39-C1'!BF$6 -> 0 | AH35: =+'39-C1'!BG$6 -> 0 | AI35: =+'39-C1'!BH$6 -> 0 | AJ35: =+'39-C1'!BI$6 -> 0 | AK35: =+'39-C1'!BJ$6 -> 0 | AL35: =+'39-C1'!BK$6 -> 0 | AM35: =+'39-C1'!BL$6 -> 0 | AN35: =+'39-C1'!BM$6 -> 0 | AO35: =+'39-C1'!BN$6 -> 0 | AP35: =+'39-C1'!BO$6 -> 0 | AQ35: =+'39-C1'!BP$6 -> 0 | AR35: =+'39-C1'!BQ$6 -> 0 | AS35: =+'39-C1'!BR$6 -> 0 | AT35: =+'39-C1'!BS$6 -> 0 | AU35: =+'39-C1'!BT$6 -> 0 | AV35: =+'39-C1'!BU$6 -> 0 | AW35: =+'39-C1'!BV$6 -> 0 | AX35: =+'39-C1'!BW$6 -> 0 | AZ35: =+'39-C1'!BY$6 -> 0 | BB35: =+'39-C1'!CA$6 -> 0 | BC35: =+'39-C1'!CB$6 -> 0 | BD35: =+'39-C1'!CC$6 -> 0 | BE35: =+'39-C1'!CD$6 -> 0 | BF35: =+'39-C1'!CE$6 -> 0 | BG35: =+'39-C1'!CF$6 -> 0 | BH35: =+'39-C1'!CG$6 -> 0 | BI35: =+'39-C1'!CH$6 -> 0
A36: =+'39-D2'!Z$6 -> 39-D2 | B36: =+'39-D2'!AA$6 -> Lodi Branch Dept. 2 | C36: =+'39-D2'!AB$6 -> 315 W. Elm St. | D36: =+'39-D2'!AC$6 -> Lodi | E36: =+'39-D2'!AD$6 -> 95240 | F36: =+'39-D2'!AE$6 -> San Joaquin | G36: =+'39-D2'!AF$6 -> NCRO | I36: =+'39-D2'!AH$6 -> 0 | J36: =+'39-D2'!AI$6 -> 0 | K36: =+'39-D2'!AJ$6 -> 0 | L36: =+'39-D2'!AK$6 -> 0 | M36: =+'39-D2'!AL$6 -> 0 | N36: =+'39-D2'!AM$6 -> 0 | O36: =+'39-D2'!AN$6 -> 0 | P36: =+'39-D2'!AO$6 -> 0 | Q36: =+'39-D2'!AP$6 -> 0 | R36: =+'39-D2'!AQ$6 -> 0 | S36: =+'39-D2'!AR$6 -> 0 | T36: =+'39-D2'!AS$6 -> 0 | U36: =+'39-D2'!AT$6 -> 0 | V36: =+'39-D2'!AU$6 -> 0 | W36: =+'39-D2'!AV$6 -> 0 | X36: =+'39-D2'!AW$6 -> 0 | Y36: =+'39-D2'!AX$6 -> 0 | Z36: =+'39-D2'!AY$6 -> 0 | AA36: =+'39-D2'!AZ$6 -> 0 | AB36: =+'39-D2'!BA$6 -> 0 | AC36: =+'39-D2'!BB$6 -> 0 | AD36: =+'39-D2'!BC$6 -> 0 | AE36: =+'39-D2'!BD$6 -> 0 | AF36: =+'39-D2'!BE$6 -> 0 | AG36: =+'39-D2'!BF$6 -> 0 | AH36: =+'39-D2'!BG$6 -> 0 | AI36: =+'39-D2'!BH$6 -> 0 | AJ36: =+'39-D2'!BI$6 -> 0 | AK36: =+'39-D2'!BJ$6 -> 0 | AL36: =+'39-D2'!BK$6 -> 0 | AM36: =+'39-D2'!BL$6 -> 0 | AN36: =+'39-D2'!BM$6 -> 0 | AO36: =+'39-D2'!BN$6 -> 0 | AP36: =+'39-D2'!BO$6 -> 0 | AQ36: =+'39-D2'!BP$6 -> 0 | AR36: =+'39-D2'!BQ$6 -> 0 | AS36: =+'39-D2'!BR$6 -> 0 | AT36: =+'39-D2'!BS$6 -> 0 | AU36: =+'39-D2'!BT$6 -> 0 | AV36: =+'39-D2'!BU$6 -> 0 | AW36: =+'39-D2'!BV$6 -> 0 | AX36: =+'39-D2'!BW$6 -> 0 | AZ36: =+'39-D2'!BY$6 -> 0 | BB36: =+'39-D2'!CA$6 -> 0 | BC36: =+'39-D2'!CB$6 -> 0 | BD36: =+'39-D2'!CC$6 -> 0 | BE36: =+'39-D2'!CD$6 -> 0 | BF36: =+'39-D2'!CE$6 -> 0 | BG36: =+'39-D2'!CF$6 -> 0 | BH36: =+'39-D2'!CG$6 -> 0 | BI36: =+'39-D2'!CH$6 -> 0
A37: =+'39-E1'!Z$6 -> 39-E1 | B37: =+'39-E1'!AA$6 -> Tracy Branch Courthouse | C37: =+'39-E1'!AB$6 -> 475 E. 10th St. | D37: =+'39-E1'!AC$6 -> Tracy | E37: =+'39-E1'!AD$6 -> 95376 | F37: =+'39-E1'!AE$6 -> San Joaquin | G37: =+'39-E1'!AF$6 -> NCRO | I37: =+'39-E1'!AH$6 -> 0 | J37: =+'39-E1'!AI$6 -> 0 | K37: =+'39-E1'!AJ$6 -> 0 | L37: =+'39-E1'!AK$6 -> 0 | M37: =+'39-E1'!AL$6 -> 0 | N37: =+'39-E1'!AM$6 -> 0 | O37: =+'39-E1'!AN$6 -> 0 | P37: =+'39-E1'!AO$6 -> 0 | Q37: =+'39-E1'!AP$6 -> 0 | R37: =+'39-E1'!AQ$6 -> 0 | S37: =+'39-E1'!AR$6 -> 0 | T37: =+'39-E1'!AS$6 -> 0 | U37: =+'39-E1'!AT$6 -> 0 | V37: =+'39-E1'!AU$6 -> 0 | W37: =+'39-E1'!AV$6 -> 0 | X37: =+'39-E1'!AW$6 -> 0 | Y37: =+'39-E1'!AX$6 -> 0 | Z37: =+'39-E1'!AY$6 -> 0 | AA37: =+'39-E1'!AZ$6 -> 0 | AB37: =+'39-E1'!BA$6 -> 0 | AC37: =+'39-E1'!BB$6 -> 0 | AD37: =+'39-E1'!BC$6 -> 0 | AE37: =+'39-E1'!BD$6 -> 0 | AF37: =+'39-E1'!BE$6 -> 0 | AG37: =+'39-E1'!BF$6 -> 0 | AH37: =+'39-E1'!BG$6 -> 0 | AI37: =+'39-E1'!BH$6 -> 0 | AJ37: =+'39-E1'!BI$6 -> 0 | AK37: =+'39-E1'!BJ$6 -> 0 | AL37: =+'39-E1'!BK$6 -> 0 | AM37: =+'39-E1'!BL$6 -> 0 | AN37: =+'39-E1'!BM$6 -> 0 | AO37: =+'39-E1'!BN$6 -> 0 | AP37: =+'39-E1'!BO$6 -> 0 | AQ37: =+'39-E1'!BP$6 -> 0 | AR37: =+'39-E1'!BQ$6 -> 0 | AS37: =+'39-E1'!BR$6 -> 0 | AT37: =+'39-E1'!BS$6 -> 0 | AU37: =+'39-E1'!BT$6 -> 0 | AV37: =+'39-E1'!BU$6 -> 0 | AW37: =+'39-E1'!BV$6 -> 0 | AX37: =+'39-E1'!BW$6 -> 0 | AZ37: =+'39-E1'!BY$6 -> 0 | BB37: =+'39-E1'!CA$6 -> 0 | BC37: =+'39-E1'!CB$6 -> 0 | BD37: =+'39-E1'!CC$6 -> 0 | BE37: =+'39-E1'!CD$6 -> 0 | BF37: =+'39-E1'!CE$6 -> 0 | BG37: =+'39-E1'!CF$6 -> 0 | BH37: =+'39-E1'!CG$6 -> 0 | BI37: =+'39-E1'!CH$6 -> 0
A38: =+'39-E2'!Z$6 -> 39-E2 | B38: =+'39-E2'!AA$6 -> Tracy Modular 1: Support | C38: =+'39-E2'!AB$6 -> 475 East Tenth St. | D38: =+'39-E2'!AC$6 -> Tracy | E38: =+'39-E2'!AD$6 -> 95376 | F38: =+'39-E2'!AE$6 -> San Joaqin | G38: =+'39-E2'!AF$6 -> NCRO | I38: =+'39-E2'!AH$6 -> 0 | J38: =+'39-E2'!AI$6 -> 0 | K38: =+'39-E2'!AJ$6 -> 0 | L38: =+'39-E2'!AK$6 -> 0 | M38: =+'39-E2'!AL$6 -> 0 | N38: =+'39-E2'!AM$6 -> 0 | O38: =+'39-E2'!AN$6 -> 0 | P38: =+'39-E2'!AO$6 -> 0 | Q38: =+'39-E2'!AP$6 -> 0 | R38: =+'39-E2'!AQ$6 -> 0 | S38: =+'39-E2'!AR$6 -> 0 | T38: =+'39-E2'!AS$6 -> 0 | U38: =+'39-E2'!AT$6 -> 0 | V38: =+'39-E2'!AU$6 -> 0 | W38: =+'39-E2'!AV$6 -> 0 | X38: =+'39-E2'!AW$6 -> 0 | Y38: =+'39-E2'!AX$6 -> 0 | Z38: =+'39-E2'!AY$6 -> 0 | AA38: =+'39-E2'!AZ$6 -> 0 | AB38: =+'39-E2'!BA$6 -> 0 | AC38: =+'39-E2'!BB$6 -> 0 | AD38: =+'39-E2'!BC$6 -> 0 | AE38: =+'39-E2'!BD$6 -> 0 | AF38: =+'39-E2'!BE$6 -> 0 | AG38: =+'39-E2'!BF$6 -> 0 | AH38: =+'39-E2'!BG$6 -> 0 | AI38: =+'39-E2'!BH$6 -> 0 | AJ38: =+'39-E2'!BI$6 -> 0 | AK38: =+'39-E2'!BJ$6 -> 0 | AL38: =+'39-E2'!BK$6 -> 0 | AM38: =+'39-E2'!BL$6 -> 0 | AN38: =+'39-E2'!BM$6 -> 0 | AO38: =+'39-E2'!BN$6 -> 0 | AP38: =+'39-E2'!BO$6 -> 0 | AQ38: =+'39-E2'!BP$6 -> 0 | AR38: =+'39-E2'!BQ$6 -> 0 | AS38: =+'39-E2'!BR$6 -> 0 | AT38: =+'39-E2'!BS$6 -> 0 | AU38: =+'39-E2'!BT$6 -> 0 | AV38: =+'39-E2'!BU$6 -> 0 | AW38: =+'39-E2'!BV$6 -> 0 | AX38: =+'39-E2'!BW$6 -> 0 | AZ38: =+'39-E2'!BY$6 -> 0 | BB38: =+'39-E2'!CA$6 -> 0 | BC38: =+'39-E2'!CB$6 -> 0 | BD38: =+'39-E2'!CC$6 -> 0 | BE38: =+'39-E2'!CD$6 -> 0 | BF38: =+'39-E2'!CE$6 -> 0 | BG38: =+'39-E2'!CF$6 -> 0 | BH38: =+'39-E2'!CG$6 -> 0 | BI38: =+'39-E2'!CH$6 -> 0
A39: =+'39-E3'!Z$6 -> 39-E3 | B39: =+'39-E3'!AA$6 -> Tracy Modular 2: Courtroom | C39: =+'39-E3'!AB$6 -> 475 East Tenth St. | D39: =+'39-E3'!AC$6 -> Tracy | E39: =+'39-E3'!AD$6 -> 95376 | F39: =+'39-E3'!AE$6 -> San Joaqin | G39: =+'39-E3'!AF$6 -> NCRO | I39: =+'39-E3'!AH$6 -> 0 | J39: =+'39-E3'!AI$6 -> 0 | K39: =+'39-E3'!AJ$6 -> 0 | L39: =+'39-E3'!AK$6 -> 0 | M39: =+'39-E3'!AL$6 -> 0 | N39: =+'39-E3'!AM$6 -> 0 | O39: =+'39-E3'!AN$6 -> 0 | P39: =+'39-E3'!AO$6 -> 0 | Q39: =+'39-E3'!AP$6 -> 0 | R39: =+'39-E3'!AQ$6 -> 0 | S39: =+'39-E3'!AR$6 -> 0 | T39: =+'39-E3'!AS$6 -> 0 | U39: =+'39-E3'!AT$6 -> 0 | V39: =+'39-E3'!AU$6 -> 0 | W39: =+'39-E3'!AV$6 -> 0 | X39: =+'39-E3'!AW$6 -> 0 | Y39: =+'39-E3'!AX$6 -> 0 | Z39: =+'39-E3'!AY$6 -> 0 | AA39: =+'39-E3'!AZ$6 -> 0 | AB39: =+'39-E3'!BA$6 -> 0 | AC39: =+'39-E3'!BB$6 -> 0 | AD39: =+'39-E3'!BC$6 -> 0 | AE39: =+'39-E3'!BD$6 -> 0 | AF39: =+'39-E3'!BE$6 -> 0 | AG39: =+'39-E3'!BF$6 -> 0 | AH39: =+'39-E3'!BG$6 -> 0 | AI39: =+'39-E3'!BH$6 -> 0 | AJ39: =+'39-E3'!BI$6 -> 0 | AK39: =+'39-E3'!BJ$6 -> 0 | AL39: =+'39-E3'!BK$6 -> 0 | AM39: =+'39-E3'!BL$6 -> 0 | AN39: =+'39-E3'!BM$6 -> 0 | AO39: =+'39-E3'!BN$6 -> 0 | AP39: =+'39-E3'!BO$6 -> 0 | AQ39: =+'39-E3'!BP$6 -> 0 | AR39: =+'39-E3'!BQ$6 -> 0 | AS39: =+'39-E3'!BR$6 -> 0 | AT39: =+'39-E3'!BS$6 -> 0 | AU39: =+'39-E3'!BT$6 -> 0 | AV39: =+'39-E3'!BU$6 -> 0 | AW39: =+'39-E3'!BV$6 -> 0 | AX39: =+'39-E3'!BW$6 -> 0 | AZ39: =+'39-E3'!BY$6 -> 0 | BB39: =+'39-E3'!CA$6 -> 0 | BC39: =+'39-E3'!CB$6 -> 0 | BD39: =+'39-E3'!CC$6 -> 0 | BE39: =+'39-E3'!CD$6 -> 0 | BF39: =+'39-E3'!CE$6 -> 0 | BG39: =+'39-E3'!CF$6 -> 0 | BH39: =+'39-E3'!CG$6 -> 0 | BI39: =+'39-E3'!CH$6 -> 0
A40: =+'39-F1'!Z$6 -> 39-F1 | B40: =+'39-F1'!AA$6 -> Stockton Courthouse | C40: =+'39-F1'!AB$6 -> 180 East Weber Avenue | D40: =+'39-F1'!AC$6 -> Stockton | E40: =+'39-F1'!AD$6 -> 95202 | F40: =+'39-F1'!AE$6 -> San Joaquin | G40: =+'39-F1'!AF$6 -> NCRO | I40: =+'39-F1'!AH$6 -> 0 | J40: =+'39-F1'!AI$6 -> 0 | K40: =+'39-F1'!AJ$6 -> 0 | L40: =+'39-F1'!AK$6 -> 0 | M40: =+'39-F1'!AL$6 -> 0 | N40: =+'39-F1'!AM$6 -> 0 | O40: =+'39-F1'!AN$6 -> 0 | P40: =+'39-F1'!AO$6 -> 0 | Q40: =+'39-F1'!AP$6 -> 0 | R40: =+'39-F1'!AQ$6 -> 0 | S40: =+'39-F1'!AR$6 -> 0 | T40: =+'39-F1'!AS$6 -> 0 | U40: =+'39-F1'!AT$6 -> 0 | V40: =+'39-F1'!AU$6 -> 0 | W40: =+'39-F1'!AV$6 -> 0 | X40: =+'39-F1'!AW$6 -> 0 | Y40: =+'39-F1'!AX$6 -> 0 | Z40: =+'39-F1'!AY$6 -> 0 | AA40: =+'39-F1'!AZ$6 -> 0 | AB40: =+'39-F1'!BA$6 -> 0 | AC40: =+'39-F1'!BB$6 -> 0 | AD40: =+'39-F1'!BC$6 -> 0 | AE40: =+'39-F1'!BD$6 -> 0 | AF40: =+'39-F1'!BE$6 -> 0 | AG40: =+'39-F1'!BF$6 -> 0 | AH40: =+'39-F1'!BG$6 -> 0 | AI40: =+'39-F1'!BH$6 -> 0 | AJ40: =+'39-F1'!BI$6 -> 0 | AK40: =+'39-F1'!BJ$6 -> 0 | AL40: =+'39-F1'!BK$6 -> 0 | AM40: =+'39-F1'!BL$6 -> 0 | AN40: =+'39-F1'!BM$6 -> 0 | AO40: =+'39-F1'!BN$6 -> 0 | AP40: =+'39-F1'!BO$6 -> 0 | AQ40: =+'39-F1'!BP$6 -> 0 | AR40: =+'39-F1'!BQ$6 -> 0 | AS40: =+'39-F1'!BR$6 -> 0 | AT40: =+'39-F1'!BS$6 -> 0 | AU40: =+'39-F1'!BT$6 -> 0 | AV40: =+'39-F1'!BU$6 -> 0 | AW40: =+'39-F1'!BV$6 -> 0 | AX40: =+'39-F1'!BW$6 -> 0 | AZ40: =+'39-F1'!BY$6 -> 0 | BB40: =+'39-F1'!CA$6 -> 0 | BC40: =+'39-F1'!CB$6 -> 0 | BD40: =+'39-F1'!CC$6 -> 0 | BE40: =+'39-F1'!CD$6 -> 0 | BF40: =+'39-F1'!CE$6 -> 0 | BG40: =+'39-F1'!CF$6 -> 0 | BH40: =+'39-F1'!CG$6 -> 0 | BI40: =+'39-F1'!CH$6 -> 0
A41: =+'45-A1'!Z$6 -> 45-A1 | B41: =+'45-A1'!AA$6 -> Main Courthouse | C41: =+'45-A1'!AB$6 -> 1500 Court St. | D41: =+'45-A1'!AC$6 -> Redding | E41: =+'45-A1'!AD$6 -> 96001 | F41: =+'45-A1'!AE$6 -> Shasta | G41: =+'45-A1'!AF$6 -> NCRO | I41: =+'45-A1'!AH$6 -> 0 | J41: =+'45-A1'!AI$6 -> 0 | K41: =+'45-A1'!AJ$6 -> 0 | L41: =+'45-A1'!AK$6 -> 0 | M41: =+'45-A1'!AL$6 -> 0 | N41: =+'45-A1'!AM$6 -> 0 | O41: =+'45-A1'!AN$6 -> 0 | P41: =+'45-A1'!AO$6 -> 0 | Q41: =+'45-A1'!AP$6 -> 0 | R41: =+'45-A1'!AQ$6 -> 0 | S41: =+'45-A1'!AR$6 -> 0 | T41: =+'45-A1'!AS$6 -> 0 | U41: =+'45-A1'!AT$6 -> 0 | V41: =+'45-A1'!AU$6 -> 0 | W41: =+'45-A1'!AV$6 -> 0 | X41: =+'45-A1'!AW$6 -> 0 | Y41: =+'45-A1'!AX$6 -> 0 | Z41: =+'45-A1'!AY$6 -> 0 | AA41: =+'45-A1'!AZ$6 -> 0 | AB41: =+'45-A1'!BA$6 -> 0 | AC41: =+'45-A1'!BB$6 -> 0 | AD41: =+'45-A1'!BC$6 -> 0 | AE41: =+'45-A1'!BD$6 -> 0 | AF41: =+'45-A1'!BE$6 -> 0 | AG41: =+'45-A1'!BF$6 -> 0 | AH41: =+'45-A1'!BG$6 -> 0 | AI41: =+'45-A1'!BH$6 -> 0 | AJ41: =+'45-A1'!BI$6 -> 0 | AK41: =+'45-A1'!BJ$6 -> 0 | AL41: =+'45-A1'!BK$6 -> 0 | AM41: =+'45-A1'!BL$6 -> 0 | AN41: =+'45-A1'!BM$6 -> 0 | AO41: =+'45-A1'!BN$6 -> 0 | AP41: =+'45-A1'!BO$6 -> 0 | AQ41: =+'45-A1'!BP$6 -> 0 | AR41: =+'45-A1'!BQ$6 -> 0 | AS41: =+'45-A1'!BR$6 -> 0 | AT41: =+'45-A1'!BS$6 -> 0 | AU41: =+'45-A1'!BT$6 -> 0 | AV41: =+'45-A1'!BU$6 -> 0 | AW41: =+'45-A1'!BV$6 -> 0 | AX41: =+'45-A1'!BW$6 -> 0 | AZ41: =+'45-A1'!BY$6 -> 0 | BB41: =+'45-A1'!CA$6 -> 0 | BC41: =+'45-A1'!CB$6 -> 0 | BD41: =+'45-A1'!CC$6 -> 0 | BE41: =+'45-A1'!CD$6 -> 0 | BF41: =+'45-A1'!CE$6 -> 0 | BG41: =+'45-A1'!CF$6 -> 0 | BH41: =+'45-A1'!CG$6 -> 0 | BI41: =+'45-A1'!CH$6 -> 0
A42: =+'45-A7'!Z$6 -> 45-A7 | B42: =+'45-A7'!AA$6 -> Courthouse Annex | C42: =+'45-A7'!AB$6 -> 1500 Court St. | D42: =+'45-A7'!AC$6 -> Redding | E42: =+'45-A7'!AD$6 -> 96001 | F42: =+'45-A7'!AE$6 -> Shasta | G42: =+'45-A7'!AF$6 -> NCRO | I42: =+'45-A7'!AH$6 -> 0 | J42: =+'45-A7'!AI$6 -> 0 | K42: =+'45-A7'!AJ$6 -> 0 | L42: =+'45-A7'!AK$6 -> 0 | M42: =+'45-A7'!AL$6 -> 0 | N42: =+'45-A7'!AM$6 -> 0 | O42: =+'45-A7'!AN$6 -> 0 | P42: =+'45-A7'!AO$6 -> 0 | Q42: =+'45-A7'!AP$6 -> 0 | R42: =+'45-A7'!AQ$6 -> 0 | S42: =+'45-A7'!AR$6 -> 0 | T42: =+'45-A7'!AS$6 -> 0 | U42: =+'45-A7'!AT$6 -> 0 | V42: =+'45-A7'!AU$6 -> 0 | W42: =+'45-A7'!AV$6 -> 0 | X42: =+'45-A7'!AW$6 -> 0 | Y42: =+'45-A7'!AX$6 -> 0 | Z42: =+'45-A7'!AY$6 -> 0 | AA42: =+'45-A7'!AZ$6 -> 0 | AB42: =+'45-A7'!BA$6 -> 0 | AC42: =+'45-A7'!BB$6 -> 0 | AD42: =+'45-A7'!BC$6 -> 0 | AE42: =+'45-A7'!BD$6 -> 0 | AF42: =+'45-A7'!BE$6 -> 0 | AG42: =+'45-A7'!BF$6 -> 0 | AH42: =+'45-A7'!BG$6 -> 0 | AI42: =+'45-A7'!BH$6 -> 0 | AJ42: =+'45-A7'!BI$6 -> 0 | AK42: =+'45-A7'!BJ$6 -> 0 | AL42: =+'45-A7'!BK$6 -> 0 | AM42: =+'45-A7'!BL$6 -> 0 | AN42: =+'45-A7'!BM$6 -> 0 | AO42: =+'45-A7'!BN$6 -> 0 | AP42: =+'45-A7'!BO$6 -> 0 | AQ42: =+'45-A7'!BP$6 -> 0 | AR42: =+'45-A7'!BQ$6 -> 0 | AS42: =+'45-A7'!BR$6 -> 0 | AT42: =+'45-A7'!BS$6 -> 0 | AU42: =+'45-A7'!BT$6 -> 0 | AV42: =+'45-A7'!BU$6 -> 0 | AW42: =+'45-A7'!BV$6 -> 0 | AX42: =+'45-A7'!BW$6 -> 0 | AZ42: =+'45-A7'!BY$6 -> 0 | BB42: =+'45-A7'!CA$6 -> 0 | BC42: =+'45-A7'!CB$6 -> 0 | BD42: =+'45-A7'!CC$6 -> 0 | BE42: =+'45-A7'!CD$6 -> 0 | BF42: =+'45-A7'!CE$6 -> 0 | BG42: =+'45-A7'!CF$6 -> 0 | BH42: =+'45-A7'!CG$6 -> 0 | BI42: =+'45-A7'!CH$6 -> 0
A43: =+'45-A9'!Z$6 -> 45-A9 | B43: =+'45-A9'!AA$6 -> Justice Center Court Modular | C43: =+'45-A9'!AB$6 -> 1655 West Street | D43: =+'45-A9'!AC$6 -> Redding | E43: =+'45-A9'!AD$6 -> 96001 | F43: =+'45-A9'!AE$6 -> Shasta | G43: =+'45-A9'!AF$6 -> NCRO | I43: =+'45-A9'!AH$6 -> 0 | J43: =+'45-A9'!AI$6 -> 0 | K43: =+'45-A9'!AJ$6 -> 0 | L43: =+'45-A9'!AK$6 -> 0 | M43: =+'45-A9'!AL$6 -> 0 | N43: =+'45-A9'!AM$6 -> 0 | O43: =+'45-A9'!AN$6 -> 0 | P43: =+'45-A9'!AO$6 -> 0 | Q43: =+'45-A9'!AP$6 -> 0 | R43: =+'45-A9'!AQ$6 -> 0 | S43: =+'45-A9'!AR$6 -> 0 | T43: =+'45-A9'!AS$6 -> 0 | U43: =+'45-A9'!AT$6 -> 0 | V43: =+'45-A9'!AU$6 -> 0 | W43: =+'45-A9'!AV$6 -> 0 | X43: =+'45-A9'!AW$6 -> 0 | Y43: =+'45-A9'!AX$6 -> 0 | Z43: =+'45-A9'!AY$6 -> 0 | AA43: =+'45-A9'!AZ$6 -> 0 | AB43: =+'45-A9'!BA$6 -> 0 | AC43: =+'45-A9'!BB$6 -> 0 | AD43: =+'45-A9'!BC$6 -> 0 | AE43: =+'45-A9'!BD$6 -> 0 | AF43: =+'45-A9'!BE$6 -> 0 | AG43: =+'45-A9'!BF$6 -> 0 | AH43: =+'45-A9'!BG$6 -> 0 | AI43: =+'45-A9'!BH$6 -> 0 | AJ43: =+'45-A9'!BI$6 -> 0 | AK43: =+'45-A9'!BJ$6 -> 0 | AL43: =+'45-A9'!BK$6 -> 0 | AM43: =+'45-A9'!BL$6 -> 0 | AN43: =+'45-A9'!BM$6 -> 0 | AO43: =+'45-A9'!BN$6 -> 0 | AP43: =+'45-A9'!BO$6 -> 0 | AQ43: =+'45-A9'!BP$6 -> 0 | AR43: =+'45-A9'!BQ$6 -> 0 | AS43: =+'45-A9'!BR$6 -> 0 | AT43: =+'45-A9'!BS$6 -> 0 | AU43: =+'45-A9'!BT$6 -> 0 | AV43: =+'45-A9'!BU$6 -> 0 | AW43: =+'45-A9'!BV$6 -> 0 | AX43: =+'45-A9'!BW$6 -> 0 | AZ43: =+'45-A9'!BY$6 -> 0 | BB43: =+'45-A9'!CA$6 -> 0 | BC43: =+'45-A9'!CB$6 -> 0 | BD43: =+'45-A9'!CC$6 -> 0 | BE43: =+'45-A9'!CD$6 -> 0 | BF43: =+'45-A9'!CE$6 -> 0 | BG43: =+'45-A9'!CF$6 -> 0 | BH43: =+'45-A9'!CG$6 -> 0 | BI43: =+'45-A9'!CH$6 -> 0
A44: =+'50-A1'!Z$6 -> 50-A1 | B44: =+'50-A1'!AA$6 -> Modesto Main Courthouse | C44: =+'50-A1'!AB$6 -> 800 11th Street | D44: =+'50-A1'!AC$6 -> Modesto | E44: =+'50-A1'!AD$6 -> 95354 | F44: =+'50-A1'!AE$6 -> Stanislaus | G44: =+'50-A1'!AF$6 -> NCRO | I44: =+'50-A1'!AH$6 -> 0 | J44: =+'50-A1'!AI$6 -> 0 | K44: =+'50-A1'!AJ$6 -> 0 | L44: =+'50-A1'!AK$6 -> 0 | M44: =+'50-A1'!AL$6 -> 0 | N44: =+'50-A1'!AM$6 -> 0 | O44: =+'50-A1'!AN$6 -> 0 | P44: =+'50-A1'!AO$6 -> 0 | Q44: =+'50-A1'!AP$6 -> 0 | R44: =+'50-A1'!AQ$6 -> 0 | S44: =+'50-A1'!AR$6 -> 0 | T44: =+'50-A1'!AS$6 -> 0 | U44: =+'50-A1'!AT$6 -> 0 | V44: =+'50-A1'!AU$6 -> 0 | W44: =+'50-A1'!AV$6 -> 0 | X44: =+'50-A1'!AW$6 -> 0 | Y44: =+'50-A1'!AX$6 -> 0 | Z44: =+'50-A1'!AY$6 -> 0 | AA44: =+'50-A1'!AZ$6 -> 0 | AB44: =+'50-A1'!BA$6 -> 0 | AC44: =+'50-A1'!BB$6 -> 0 | AD44: =+'50-A1'!BC$6 -> 0 | AE44: =+'50-A1'!BD$6 -> 0 | AF44: =+'50-A1'!BE$6 -> 0 | AG44: =+'50-A1'!BF$6 -> 0 | AH44: =+'50-A1'!BG$6 -> 0 | AI44: =+'50-A1'!BH$6 -> 0 | AJ44: =+'50-A1'!BI$6 -> 0 | AK44: =+'50-A1'!BJ$6 -> 0 | AL44: =+'50-A1'!BK$6 -> 0 | AM44: =+'50-A1'!BL$6 -> 0 | AN44: =+'50-A1'!BM$6 -> 0 | AO44: =+'50-A1'!BN$6 -> 0 | AP44: =+'50-A1'!BO$6 -> 0 | AQ44: =+'50-A1'!BP$6 -> 0 | AR44: =+'50-A1'!BQ$6 -> 0 | AS44: =+'50-A1'!BR$6 -> 0 | AT44: =+'50-A1'!BS$6 -> 0 | AU44: =+'50-A1'!BT$6 -> 0 | AV44: =+'50-A1'!BU$6 -> 0 | AW44: =+'50-A1'!BV$6 -> 0 | AX44: =+'50-A1'!BW$6 -> 0 | AZ44: =+'50-A1'!BY$6 -> 0 | BB44: =+'50-A1'!CA$6 -> 0 | BC44: =+'50-A1'!CB$6 -> 0 | BD44: =+'50-A1'!CC$6 -> 0 | BE44: =+'50-A1'!CD$6 -> 0 | BF44: =+'50-A1'!CE$6 -> 0 | BG44: =+'50-A1'!CF$6 -> 0 | BH44: =+'50-A1'!CG$6 -> 0 | BI44: =+'50-A1'!CH$6 -> 0
A45: =+'50-A2'!Z$6 -> 50-A2 | B45: =+'50-A2'!AA$6 -> Hall of Records | C45: =+'50-A2'!AB$6 -> 1100 I Street | D45: =+'50-A2'!AC$6 -> Modesto | E45: =+'50-A2'!AD$6 -> 95353 | F45: =+'50-A2'!AE$6 -> Stanislaus | G45: =+'50-A2'!AF$6 -> NCRO | I45: =+'50-A2'!AH$6 -> 0 | J45: =+'50-A2'!AI$6 -> 0 | K45: =+'50-A2'!AJ$6 -> 0 | L45: =+'50-A2'!AK$6 -> 0 | M45: =+'50-A2'!AL$6 -> 0 | N45: =+'50-A2'!AM$6 -> 0 | O45: =+'50-A2'!AN$6 -> 0 | P45: =+'50-A2'!AO$6 -> 0 | Q45: =+'50-A2'!AP$6 -> 0 | R45: =+'50-A2'!AQ$6 -> 0 | S45: =+'50-A2'!AR$6 -> 0 | T45: =+'50-A2'!AS$6 -> 0 | U45: =+'50-A2'!AT$6 -> 0 | V45: =+'50-A2'!AU$6 -> 0 | W45: =+'50-A2'!AV$6 -> 0 | X45: =+'50-A2'!AW$6 -> 0 | Y45: =+'50-A2'!AX$6 -> 0 | Z45: =+'50-A2'!AY$6 -> 0 | AA45: =+'50-A2'!AZ$6 -> 0 | AB45: =+'50-A2'!BA$6 -> 0 | AC45: =+'50-A2'!BB$6 -> 0 | AD45: =+'50-A2'!BC$6 -> 0 | AE45: =+'50-A2'!BD$6 -> 0 | AF45: =+'50-A2'!BE$6 -> 0 | AG45: =+'50-A2'!BF$6 -> 0 | AH45: =+'50-A2'!BG$6 -> 0 | AI45: =+'50-A2'!BH$6 -> 0 | AJ45: =+'50-A2'!BI$6 -> 0 | AK45: =+'50-A2'!BJ$6 -> 0 | AL45: =+'50-A2'!BK$6 -> 0 | AM45: =+'50-A2'!BL$6 -> 0 | AN45: =+'50-A2'!BM$6 -> 0 | AO45: =+'50-A2'!BN$6 -> 0 | AP45: =+'50-A2'!BO$6 -> 0 | AQ45: =+'50-A2'!BP$6 -> 0 | AR45: =+'50-A2'!BQ$6 -> 0 | AS45: =+'50-A2'!BR$6 -> 0 | AT45: =+'50-A2'!BS$6 -> 0 | AU45: =+'50-A2'!BT$6 -> 0 | AV45: =+'50-A2'!BU$6 -> 0 | AW45: =+'50-A2'!BV$6 -> 0 | AX45: =+'50-A2'!BW$6 -> 0 | AZ45: =+'50-A2'!BY$6 -> 0 | BB45: =+'50-A2'!CA$6 -> 0 | BC45: =+'50-A2'!CB$6 -> 0 | BD45: =+'50-A2'!CC$6 -> 0 | BE45: =+'50-A2'!CD$6 -> 0 | BF45: =+'50-A2'!CE$6 -> 0 | BG45: =+'50-A2'!CF$6 -> 0 | BH45: =+'50-A2'!CG$6 -> 0 | BI45: =+'50-A2'!CH$6 -> 0
A46: =+'50-C1'!Z$6 -> 50-C1 | B46: =+'50-C1'!AA$6 -> Ceres Superior Court | C46: =+'50-C1'!AB$6 -> 2744 Second St. | D46: =+'50-C1'!AC$6 -> Ceres | E46: =+'50-C1'!AD$6 -> 95307 | F46: =+'50-C1'!AE$6 -> Stanislaus | G46: =+'50-C1'!AF$6 -> NCRO | I46: =+'50-C1'!AH$6 -> 0 | J46: =+'50-C1'!AI$6 -> 0 | K46: =+'50-C1'!AJ$6 -> 0 | L46: =+'50-C1'!AK$6 -> 0 | M46: =+'50-C1'!AL$6 -> 0 | N46: =+'50-C1'!AM$6 -> 0 | O46: =+'50-C1'!AN$6 -> 0 | P46: =+'50-C1'!AO$6 -> 0 | Q46: =+'50-C1'!AP$6 -> 0 | R46: =+'50-C1'!AQ$6 -> 0 | S46: =+'50-C1'!AR$6 -> 0 | T46: =+'50-C1'!AS$6 -> 0 | U46: =+'50-C1'!AT$6 -> 0 | V46: =+'50-C1'!AU$6 -> 0 | W46: =+'50-C1'!AV$6 -> 0 | X46: =+'50-C1'!AW$6 -> 0 | Y46: =+'50-C1'!AX$6 -> 0 | Z46: =+'50-C1'!AY$6 -> 0 | AA46: =+'50-C1'!AZ$6 -> 0 | AB46: =+'50-C1'!BA$6 -> 0 | AC46: =+'50-C1'!BB$6 -> 0 | AD46: =+'50-C1'!BC$6 -> 0 | AE46: =+'50-C1'!BD$6 -> 0 | AF46: =+'50-C1'!BE$6 -> 0 | AG46: =+'50-C1'!BF$6 -> 0 | AH46: =+'50-C1'!BG$6 -> 0 | AI46: =+'50-C1'!BH$6 -> 0 | AJ46: =+'50-C1'!BI$6 -> 0 | AK46: =+'50-C1'!BJ$6 -> 0 | AL46: =+'50-C1'!BK$6 -> 0 | AM46: =+'50-C1'!BL$6 -> 0 | AN46: =+'50-C1'!BM$6 -> 0 | AO46: =+'50-C1'!BN$6 -> 0 | AP46: =+'50-C1'!BO$6 -> 0 | AQ46: =+'50-C1'!BP$6 -> 0 | AR46: =+'50-C1'!BQ$6 -> 0 | AS46: =+'50-C1'!BR$6 -> 0 | AT46: =+'50-C1'!BS$6 -> 0 | AU46: =+'50-C1'!BT$6 -> 0 | AV46: =+'50-C1'!BU$6 -> 0 | AW46: =+'50-C1'!BV$6 -> 0 | AX46: =+'50-C1'!BW$6 -> 0 | AZ46: =+'50-C1'!BY$6 -> 0 | BB46: =+'50-C1'!CA$6 -> 0 | BC46: =+'50-C1'!CB$6 -> 0 | BD46: =+'50-C1'!CC$6 -> 0 | BE46: =+'50-C1'!CD$6 -> 0 | BF46: =+'50-C1'!CE$6 -> 0 | BG46: =+'50-C1'!CF$6 -> 0 | BH46: =+'50-C1'!CG$6 -> 0 | BI46: =+'50-C1'!CH$6 -> 0
A47: =+'50-D1'!Z$6 -> 50-D1 | B47: =+'50-D1'!AA$6 -> Turlock Superior Court | C47: =+'50-D1'!AB$6 -> 300 Starr Ave. | D47: =+'50-D1'!AC$6 -> Turlock | E47: =+'50-D1'!AD$6 -> 95380 | F47: =+'50-D1'!AE$6 -> Stanislaus | G47: =+'50-D1'!AF$6 -> NCRO | I47: =+'50-D1'!AH$6 -> 0 | J47: =+'50-D1'!AI$6 -> 0 | K47: =+'50-D1'!AJ$6 -> 0 | L47: =+'50-D1'!AK$6 -> 0 | M47: =+'50-D1'!AL$6 -> 0 | N47: =+'50-D1'!AM$6 -> 0 | O47: =+'50-D1'!AN$6 -> 0 | P47: =+'50-D1'!AO$6 -> 0 | Q47: =+'50-D1'!AP$6 -> 0 | R47: =+'50-D1'!AQ$6 -> 0 | S47: =+'50-D1'!AR$6 -> 0 | T47: =+'50-D1'!AS$6 -> 0 | U47: =+'50-D1'!AT$6 -> 0 | V47: =+'50-D1'!AU$6 -> 0 | W47: =+'50-D1'!AV$6 -> 0 | X47: =+'50-D1'!AW$6 -> 0 | Y47: =+'50-D1'!AX$6 -> 0 | Z47: =+'50-D1'!AY$6 -> 0 | AA47: =+'50-D1'!AZ$6 -> 0 | AB47: =+'50-D1'!BA$6 -> 0 | AC47: =+'50-D1'!BB$6 -> 0 | AD47: =+'50-D1'!BC$6 -> 0 | AE47: =+'50-D1'!BD$6 -> 0 | AF47: =+'50-D1'!BE$6 -> 0 | AG47: =+'50-D1'!BF$6 -> 0 | AH47: =+'50-D1'!BG$6 -> 0 | AI47: =+'50-D1'!BH$6 -> 0 | AJ47: =+'50-D1'!BI$6 -> 0 | AK47: =+'50-D1'!BJ$6 -> 0 | AL47: =+'50-D1'!BK$6 -> 0 | AM47: =+'50-D1'!BL$6 -> 0 | AN47: =+'50-D1'!BM$6 -> 0 | AO47: =+'50-D1'!BN$6 -> 0 | AP47: =+'50-D1'!BO$6 -> 0 | AQ47: =+'50-D1'!BP$6 -> 0 | AR47: =+'50-D1'!BQ$6 -> 0 | AS47: =+'50-D1'!BR$6 -> 0 | AT47: =+'50-D1'!BS$6 -> 0 | AU47: =+'50-D1'!BT$6 -> 0 | AV47: =+'50-D1'!BU$6 -> 0 | AW47: =+'50-D1'!BV$6 -> 0 | AX47: =+'50-D1'!BW$6 -> 0 | AZ47: =+'50-D1'!BY$6 -> 0 | BB47: =+'50-D1'!CA$6 -> 0 | BC47: =+'50-D1'!CB$6 -> 0 | BD47: =+'50-D1'!CC$6 -> 0 | BE47: =+'50-D1'!CD$6 -> 0 | BF47: =+'50-D1'!CE$6 -> 0 | BG47: =+'50-D1'!CF$6 -> 0 | BH47: =+'50-D1'!CG$6 -> 0 | BI47: =+'50-D1'!CH$6 -> 0
A48: =+'51-C1'!Z$6 -> 51-C1 | B48: =+'51-C1'!AA$6 -> Sutter County Superior Courthouse | C48: =+'51-C1'!AB$6 -> 1175 Civic Center Blvd. | D48: =+'51-C1'!AC$6 -> Yuba City | E48: =+'51-C1'!AD$6 -> 95993 | F48: =+'51-C1'!AE$6 -> Sutter | G48: =+'51-C1'!AF$6 -> NCRO | I48: =+'51-C1'!AH$6 -> 0 | J48: =+'51-C1'!AI$6 -> 0 | K48: =+'51-C1'!AJ$6 -> 0 | L48: =+'51-C1'!AK$6 -> 0 | M48: =+'51-C1'!AL$6 -> 0 | N48: =+'51-C1'!AM$6 -> 0 | O48: =+'51-C1'!AN$6 -> 0 | P48: =+'51-C1'!AO$6 -> 0 | Q48: =+'51-C1'!AP$6 -> 0 | R48: =+'51-C1'!AQ$6 -> 0 | S48: =+'51-C1'!AR$6 -> 0 | T48: =+'51-C1'!AS$6 -> 0 | U48: =+'51-C1'!AT$6 -> 0 | V48: =+'51-C1'!AU$6 -> 0 | W48: =+'51-C1'!AV$6 -> 0 | X48: =+'51-C1'!AW$6 -> 0 | Y48: =+'51-C1'!AX$6 -> 0 | Z48: =+'51-C1'!AY$6 -> 0 | AA48: =+'51-C1'!AZ$6 -> 0 | AB48: =+'51-C1'!BA$6 -> 0 | AC48: =+'51-C1'!BB$6 -> 0 | AD48: =+'51-C1'!BC$6 -> 0 | AE48: =+'51-C1'!BD$6 -> 0 | AF48: =+'51-C1'!BE$6 -> 0 | AG48: =+'51-C1'!BF$6 -> 0 | AH48: =+'51-C1'!BG$6 -> 0 | AI48: =+'51-C1'!BH$6 -> 0 | AJ48: =+'51-C1'!BI$6 -> 0 | AK48: =+'51-C1'!BJ$6 -> 0 | AL48: =+'51-C1'!BK$6 -> 0 | AM48: =+'51-C1'!BL$6 -> 0 | AN48: =+'51-C1'!BM$6 -> 0 | AO48: =+'51-C1'!BN$6 -> 0 | AP48: =+'51-C1'!BO$6 -> 0 | AQ48: =+'51-C1'!BP$6 -> 0 | AR48: =+'51-C1'!BQ$6 -> 0 | AS48: =+'51-C1'!BR$6 -> 0 | AT48: =+'51-C1'!BS$6 -> 0 | AU48: =+'51-C1'!BT$6 -> 0 | AV48: =+'51-C1'!BU$6 -> 0 | AW48: =+'51-C1'!BV$6 -> 0 | AX48: =+'51-C1'!BW$6 -> 0 | AZ48: =+'51-C1'!BY$6 -> 0 | BB48: =+'51-C1'!CA$6 -> 0 | BC48: =+'51-C1'!CB$6 -> 0 | BD48: =+'51-C1'!CC$6 -> 0 | BE48: =+'51-C1'!CD$6 -> 0 | BF48: =+'51-C1'!CE$6 -> 0 | BG48: =+'51-C1'!CF$6 -> 0 | BH48: =+'51-C1'!CG$6 -> 0 | BI48: =+'51-C1'!CH$6 -> 0
A49: =+'52-E1'!Z$6 -> 52-E1 | B49: =+'52-E1'!AA$6 -> Tehama County Courthouse | C49: =+'52-E1'!AB$6 -> 1740 Walnut Street | D49: =+'52-E1'!AC$6 -> Red Bluff | E49: =+'52-E1'!AD$6 -> 96080 | F49: =+'52-E1'!AE$6 -> Tehama | G49: =+'52-E1'!AF$6 -> NCRO | I49: =+'52-E1'!AH$6 -> 0 | J49: =+'52-E1'!AI$6 -> 0 | K49: =+'52-E1'!AJ$6 -> 0 | L49: =+'52-E1'!AK$6 -> 0 | M49: =+'52-E1'!AL$6 -> 0 | N49: =+'52-E1'!AM$6 -> 0 | O49: =+'52-E1'!AN$6 -> 0 | P49: =+'52-E1'!AO$6 -> 0 | Q49: =+'52-E1'!AP$6 -> 0 | R49: =+'52-E1'!AQ$6 -> 0 | S49: =+'52-E1'!AR$6 -> 0 | T49: =+'52-E1'!AS$6 -> 0 | U49: =+'52-E1'!AT$6 -> 0 | V49: =+'52-E1'!AU$6 -> 0 | W49: =+'52-E1'!AV$6 -> 0 | X49: =+'52-E1'!AW$6 -> 0 | Y49: =+'52-E1'!AX$6 -> 0 | Z49: =+'52-E1'!AY$6 -> 0 | AA49: =+'52-E1'!AZ$6 -> 0 | AB49: =+'52-E1'!BA$6 -> 0 | AC49: =+'52-E1'!BB$6 -> 0 | AD49: =+'52-E1'!BC$6 -> 0 | AE49: =+'52-E1'!BD$6 -> 0 | AF49: =+'52-E1'!BE$6 -> 0 | AG49: =+'52-E1'!BF$6 -> 0 | AH49: =+'52-E1'!BG$6 -> 0 | AI49: =+'52-E1'!BH$6 -> 0 | AJ49: =+'52-E1'!BI$6 -> 0 | AK49: =+'52-E1'!BJ$6 -> 0 | AL49: =+'52-E1'!BK$6 -> 0 | AM49: =+'52-E1'!BL$6 -> 0 | AN49: =+'52-E1'!BM$6 -> 0 | AO49: =+'52-E1'!BN$6 -> 0 | AP49: =+'52-E1'!BO$6 -> 0 | AQ49: =+'52-E1'!BP$6 -> 0 | AR49: =+'52-E1'!BQ$6 -> 0 | AS49: =+'52-E1'!BR$6 -> 0 | AT49: =+'52-E1'!BS$6 -> 0 | AU49: =+'52-E1'!BT$6 -> 0 | AV49: =+'52-E1'!BU$6 -> 0 | AW49: =+'52-E1'!BV$6 -> 0 | AX49: =+'52-E1'!BW$6 -> 0 | AZ49: =+'52-E1'!BY$6 -> 0 | BB49: =+'52-E1'!CA$6 -> 0 | BC49: =+'52-E1'!CB$6 -> 0 | BD49: =+'52-E1'!CC$6 -> 0 | BE49: =+'52-E1'!CD$6 -> 0 | BF49: =+'52-E1'!CE$6 -> 0 | BG49: =+'52-E1'!CF$6 -> 0 | BH49: =+'52-E1'!CG$6 -> 0 | BI49: =+'52-E1'!CH$6 -> 0
A50: =+'54-B1'!Z$6 -> 54-B1 | B50: =+'54-B1'!AA$6 -> Tulare Division | C50: =+'54-B1'!AB$6 -> 425 E. Kern St. | D50: =+'54-B1'!AC$6 -> Tulare | E50: =+'54-B1'!AD$6 -> 93274 | F50: =+'54-B1'!AE$6 -> Tulare | G50: =+'54-B1'!AF$6 -> NCRO | I50: =+'54-B1'!AH$6 -> 0 | J50: =+'54-B1'!AI$6 -> 0 | K50: =+'54-B1'!AJ$6 -> 0 | L50: =+'54-B1'!AK$6 -> 0 | M50: =+'54-B1'!AL$6 -> 0 | N50: =+'54-B1'!AM$6 -> 0 | O50: =+'54-B1'!AN$6 -> 0 | P50: =+'54-B1'!AO$6 -> 0 | Q50: =+'54-B1'!AP$6 -> 0 | R50: =+'54-B1'!AQ$6 -> 0 | S50: =+'54-B1'!AR$6 -> 0 | T50: =+'54-B1'!AS$6 -> 0 | U50: =+'54-B1'!AT$6 -> 0 | V50: =+'54-B1'!AU$6 -> 0 | W50: =+'54-B1'!AV$6 -> 0 | X50: =+'54-B1'!AW$6 -> 0 | Y50: =+'54-B1'!AX$6 -> 0 | Z50: =+'54-B1'!AY$6 -> 0 | AA50: =+'54-B1'!AZ$6 -> 0 | AB50: =+'54-B1'!BA$6 -> 0 | AC50: =+'54-B1'!BB$6 -> 0 | AD50: =+'54-B1'!BC$6 -> 0 | AE50: =+'54-B1'!BD$6 -> 0 | AF50: =+'54-B1'!BE$6 -> 0 | AG50: =+'54-B1'!BF$6 -> 0 | AH50: =+'54-B1'!BG$6 -> 0 | AI50: =+'54-B1'!BH$6 -> 0 | AJ50: =+'54-B1'!BI$6 -> 0 | AK50: =+'54-B1'!BJ$6 -> 0 | AL50: =+'54-B1'!BK$6 -> 0 | AM50: =+'54-B1'!BL$6 -> 0 | AN50: =+'54-B1'!BM$6 -> 0 | AO50: =+'54-B1'!BN$6 -> 0 | AP50: =+'54-B1'!BO$6 -> 0 | AQ50: =+'54-B1'!BP$6 -> 0 | AR50: =+'54-B1'!BQ$6 -> 0 | AS50: =+'54-B1'!BR$6 -> 0 | AT50: =+'54-B1'!BS$6 -> 0 | AU50: =+'54-B1'!BT$6 -> 0 | AV50: =+'54-B1'!BU$6 -> 0 | AW50: =+'54-B1'!BV$6 -> 0 | AX50: =+'54-B1'!BW$6 -> 0 | AZ50: =+'54-B1'!BY$6 -> 0 | BB50: =+'54-B1'!CA$6 -> 0 | BC50: =+'54-B1'!CB$6 -> 0 | BD50: =+'54-B1'!CC$6 -> 0 | BE50: =+'54-B1'!CD$6 -> 0 | BF50: =+'54-B1'!CE$6 -> 0 | BG50: =+'54-B1'!CF$6 -> 0 | BH50: =+'54-B1'!CG$6 -> 0 | BI50: =+'54-B1'!CH$6 -> 0
A51: =+'54-I1'!Z$6 -> 54-I1 | B51: =+'54-I1'!AA$6 -> South County Justice Center | C51: =+'54-I1'!AB$6 -> 300 East Olive Avenue | D51: =+'54-I1'!AC$6 -> Porterville | E51: =+'54-I1'!AD$6 -> 93257 | F51: =+'54-I1'!AE$6 -> Tulare | G51: =+'54-I1'!AF$6 -> NCRO | I51: =+'54-I1'!AH$6 -> 0 | J51: =+'54-I1'!AI$6 -> 0 | K51: =+'54-I1'!AJ$6 -> 0 | L51: =+'54-I1'!AK$6 -> 0 | M51: =+'54-I1'!AL$6 -> 0 | N51: =+'54-I1'!AM$6 -> 0 | O51: =+'54-I1'!AN$6 -> 0 | P51: =+'54-I1'!AO$6 -> 0 | Q51: =+'54-I1'!AP$6 -> 0 | R51: =+'54-I1'!AQ$6 -> 0 | S51: =+'54-I1'!AR$6 -> 0 | T51: =+'54-I1'!AS$6 -> 0 | U51: =+'54-I1'!AT$6 -> 0 | V51: =+'54-I1'!AU$6 -> 0 | W51: =+'54-I1'!AV$6 -> 0 | X51: =+'54-I1'!AW$6 -> 0 | Y51: =+'54-I1'!AX$6 -> 0 | Z51: =+'54-I1'!AY$6 -> 0 | AA51: =+'54-I1'!AZ$6 -> 0 | AB51: =+'54-I1'!BA$6 -> 0 | AC51: =+'54-I1'!BB$6 -> 0 | AD51: =+'54-I1'!BC$6 -> 0 | AE51: =+'54-I1'!BD$6 -> 0 | AF51: =+'54-I1'!BE$6 -> 0 | AG51: =+'54-I1'!BF$6 -> 0 | AH51: =+'54-I1'!BG$6 -> 0 | AI51: =+'54-I1'!BH$6 -> 0 | AJ51: =+'54-I1'!BI$6 -> 0 | AK51: =+'54-I1'!BJ$6 -> 0 | AL51: =+'54-I1'!BK$6 -> 0 | AM51: =+'54-I1'!BL$6 -> 0 | AN51: =+'54-I1'!BM$6 -> 0 | AO51: =+'54-I1'!BN$6 -> 0 | AP51: =+'54-I1'!BO$6 -> 0 | AQ51: =+'54-I1'!BP$6 -> 0 | AR51: =+'54-I1'!BQ$6 -> 0 | AS51: =+'54-I1'!BR$6 -> 0 | AT51: =+'54-I1'!BS$6 -> 0 | AU51: =+'54-I1'!BT$6 -> 0 | AV51: =+'54-I1'!BU$6 -> 0 | AW51: =+'54-I1'!BV$6 -> 0 | AX51: =+'54-I1'!BW$6 -> 0 | AZ51: =+'54-I1'!BY$6 -> 0 | BB51: =+'54-I1'!CA$6 -> 0 | BC51: =+'54-I1'!CB$6 -> 0 | BD51: =+'54-I1'!CC$6 -> 0 | BE51: =+'54-I1'!CD$6 -> 0 | BF51: =+'54-I1'!CE$6 -> 0 | BG51: =+'54-I1'!CF$6 -> 0 | BH51: =+'54-I1'!CG$6 -> 0 | BI51: =+'54-I1'!CH$6 -> 0
A52: =+'57-A10'!Z$6 -> 57-A10 | B52: =+'57-A10'!AA$6 -> Yolo Superior Court | C52: =+'57-A10'!AB$6 -> 1000 Main Street | D52: =+'57-A10'!AC$6 -> Woodland | E52: =+'57-A10'!AD$6 -> 95695 | F52: =+'57-A10'!AE$6 -> Yolo | G52: =+'57-A10'!AF$6 -> NCRO | I52: =+'57-A10'!AH$6 -> 0 | J52: =+'57-A10'!AI$6 -> 0 | K52: =+'57-A10'!AJ$6 -> 0 | L52: =+'57-A10'!AK$6 -> 0 | M52: =+'57-A10'!AL$6 -> 0 | N52: =+'57-A10'!AM$6 -> 0 | O52: =+'57-A10'!AN$6 -> 0 | P52: =+'57-A10'!AO$6 -> 0 | Q52: =+'57-A10'!AP$6 -> 0 | R52: =+'57-A10'!AQ$6 -> 0 | S52: =+'57-A10'!AR$6 -> 0 | T52: =+'57-A10'!AS$6 -> 0 | U52: =+'57-A10'!AT$6 -> 0 | V52: =+'57-A10'!AU$6 -> 0 | W52: =+'57-A10'!AV$6 -> 0 | X52: =+'57-A10'!AW$6 -> 0 | Y52: =+'57-A10'!AX$6 -> 0 | Z52: =+'57-A10'!AY$6 -> 0 | AA52: =+'57-A10'!AZ$6 -> 0 | AB52: =+'57-A10'!BA$6 -> 0 | AC52: =+'57-A10'!BB$6 -> 0 | AD52: =+'57-A10'!BC$6 -> 0 | AE52: =+'57-A10'!BD$6 -> 0 | AF52: =+'57-A10'!BE$6 -> 0 | AG52: =+'57-A10'!BF$6 -> 0 | AH52: =+'57-A10'!BG$6 -> 0 | AI52: =+'57-A10'!BH$6 -> 0 | AJ52: =+'57-A10'!BI$6 -> 0 | AK52: =+'57-A10'!BJ$6 -> 0 | AL52: =+'57-A10'!BK$6 -> 0 | AM52: =+'57-A10'!BL$6 -> 0 | AN52: =+'57-A10'!BM$6 -> 0 | AO52: =+'57-A10'!BN$6 -> 0 | AP52: =+'57-A10'!BO$6 -> 0 | AQ52: =+'57-A10'!BP$6 -> 0 | AR52: =+'57-A10'!BQ$6 -> 0 | AS52: =+'57-A10'!BR$6 -> 0 | AT52: =+'57-A10'!BS$6 -> 0 | AU52: =+'57-A10'!BT$6 -> 0 | AV52: =+'57-A10'!BU$6 -> 0 | AW52: =+'57-A10'!BV$6 -> 0 | AX52: =+'57-A10'!BW$6 -> 0 | AZ52: =+'57-A10'!BY$6 -> 0 | BB52: =+'57-A10'!CA$6 -> 0 | BC52: =+'57-A10'!CB$6 -> 0 | BD52: =+'57-A10'!CC$6 -> 0 | BE52: =+'57-A10'!CD$6 -> 0 | BF52: =+'57-A10'!CE$6 -> 0 | BG52: =+'57-A10'!CF$6 -> 0 | BH52: =+'57-A10'!CG$6 -> 0 | BI52: =+'57-A10'!CH$6 -> 0
A53: =+'57-A11'!Z$6 -> 57-A11 | B53: =+'57-A11'!AA$6 -> Yolo Superior Court Parking | C53: =+'57-A11'!AB$6 -> 525 & 625 Sixth Street | D53: =+'57-A11'!AC$6 -> Woodland | E53: =+'57-A11'!AD$6 -> 95695 | F53: =+'57-A11'!AE$6 -> Yolo | G53: =+'57-A11'!AF$6 -> NCRO | I53: =+'57-A11'!AH$6 -> 0 | J53: =+'57-A11'!AI$6 -> 0 | K53: =+'57-A11'!AJ$6 -> 0 | L53: =+'57-A11'!AK$6 -> 0 | M53: =+'57-A11'!AL$6 -> 0 | N53: =+'57-A11'!AM$6 -> 0 | O53: =+'57-A11'!AN$6 -> 0 | P53: =+'57-A11'!AO$6 -> 0 | Q53: =+'57-A11'!AP$6 -> 0 | R53: =+'57-A11'!AQ$6 -> 0 | S53: =+'57-A11'!AR$6 -> 0 | T53: =+'57-A11'!AS$6 -> 0 | U53: =+'57-A11'!AT$6 -> 0 | V53: =+'57-A11'!AU$6 -> 0 | W53: =+'57-A11'!AV$6 -> 0 | X53: =+'57-A11'!AW$6 -> 0 | Y53: =+'57-A11'!AX$6 -> 0 | Z53: =+'57-A11'!AY$6 -> 0 | AA53: =+'57-A11'!AZ$6 -> 0 | AB53: =+'57-A11'!BA$6 -> 0 | AC53: =+'57-A11'!BB$6 -> 0 | AD53: =+'57-A11'!BC$6 -> 0 | AE53: =+'57-A11'!BD$6 -> 0 | AF53: =+'57-A11'!BE$6 -> 0 | AG53: =+'57-A11'!BF$6 -> 0 | AH53: =+'57-A11'!BG$6 -> 0 | AI53: =+'57-A11'!BH$6 -> 0 | AJ53: =+'57-A11'!BI$6 -> 0 | AK53: =+'57-A11'!BJ$6 -> 0 | AL53: =+'57-A11'!BK$6 -> 0 | AM53: =+'57-A11'!BL$6 -> 0 | AN53: =+'57-A11'!BM$6 -> 0 | AO53: =+'57-A11'!BN$6 -> 0 | AP53: =+'57-A11'!BO$6 -> 0 | AQ53: =+'57-A11'!BP$6 -> 0 | AR53: =+'57-A11'!BQ$6 -> 0 | AS53: =+'57-A11'!BR$6 -> 0 | AT53: =+'57-A11'!BS$6 -> 0 | AU53: =+'57-A11'!BT$6 -> 0 | AV53: =+'57-A11'!BU$6 -> 0 | AW53: =+'57-A11'!BV$6 -> 0 | AX53: =+'57-A11'!BW$6 -> 0 | AZ53: =+'57-A11'!BY$6 -> 0 | BB53: =+'57-A11'!CA$6 -> 0 | BC53: =+'57-A11'!CB$6 -> 0 | BD53: =+'57-A11'!CC$6 -> 0 | BE53: =+'57-A11'!CD$6 -> 0 | BF53: =+'57-A11'!CE$6 -> 0 | BG53: =+'57-A11'!CF$6 -> 0 | BH53: =+'57-A11'!CG$6 -> 0 | BI53: =+'57-A11'!CH$6 -> 0
A54: =+'65-A2'!Z$6 -> 65-A2 | B54: =+'65-A2'!AA$6 -> 2424 Ventura Street - 5 DCA | C54: =+'65-A2'!AB$6 -> 2424 Ventura Street | D54: =+'65-A2'!AC$6 -> Fresno | E54: =+'65-A2'!AD$6 -> 93721 | F54: =+'65-A2'!AE$6 -> Fresno | G54: =+'65-A2'!AF$6 -> NCRO | I54: =+'65-A2'!AH$6 -> 0 | J54: =+'65-A2'!AI$6 -> 0 | K54: =+'65-A2'!AJ$6 -> 0 | L54: =+'65-A2'!AK$6 -> 0 | M54: =+'65-A2'!AL$6 -> 0 | N54: =+'65-A2'!AM$6 -> 0 | O54: =+'65-A2'!AN$6 -> 0 | P54: =+'65-A2'!AO$6 -> 0 | Q54: =+'65-A2'!AP$6 -> 0 | R54: =+'65-A2'!AQ$6 -> 0 | S54: =+'65-A2'!AR$6 -> 0 | T54: =+'65-A2'!AS$6 -> 0 | U54: =+'65-A2'!AT$6 -> 0 | V54: =+'65-A2'!AU$6 -> 0 | W54: =+'65-A2'!AV$6 -> 0 | X54: =+'65-A2'!AW$6 -> 0 | Y54: =+'65-A2'!AX$6 -> 0 | Z54: =+'65-A2'!AY$6 -> 0 | AA54: =+'65-A2'!AZ$6 -> 0 | AB54: =+'65-A2'!BA$6 -> 0 | AC54: =+'65-A2'!BB$6 -> 0 | AD54: =+'65-A2'!BC$6 -> 0 | AE54: =+'65-A2'!BD$6 -> 0 | AF54: =+'65-A2'!BE$6 -> 0 | AG54: =+'65-A2'!BF$6 -> 0 | AH54: =+'65-A2'!BG$6 -> 0 | AI54: =+'65-A2'!BH$6 -> 0 | AJ54: =+'65-A2'!BI$6 -> 0 | AK54: =+'65-A2'!BJ$6 -> 0 | AL54: =+'65-A2'!BK$6 -> 0 | AM54: =+'65-A2'!BL$6 -> 0 | AN54: =+'65-A2'!BM$6 -> 0 | AO54: =+'65-A2'!BN$6 -> 0 | AP54: =+'65-A2'!BO$6 -> 0 | AQ54: =+'65-A2'!BP$6 -> 0 | AR54: =+'65-A2'!BQ$6 -> 0 | AS54: =+'65-A2'!BR$6 -> 0 | AT54: =+'65-A2'!BS$6 -> 0 | AU54: =+'65-A2'!BT$6 -> 0 | AV54: =+'65-A2'!BU$6 -> 0 | AW54: =+'65-A2'!BV$6 -> 0 | AX54: =+'65-A2'!BW$6 -> 0 | AZ54: =+'65-A2'!BY$6 -> 0 | BB54: =+'65-A2'!CA$6 -> 0 | BC54: =+'65-A2'!CB$6 -> 0 | BD54: =+'65-A2'!CC$6 -> 0 | BE54: =+'65-A2'!CD$6 -> 0 | BF54: =+'65-A2'!CE$6 -> 0 | BG54: =+'65-A2'!CF$6 -> 0 | BH54: =+'65-A2'!CG$6 -> 0 | BI54: =+'65-A2'!CH$6 -> 0
A55: =+'65-A3'!Z$6 -> 65-A3 | B55: =+'65-A3'!AA$6 -> 5th DCA Fresno Parking | C55: =+'65-A3'!AB$6 -> NEC of O Street & Santa Clara | D55: =+'65-A3'!AC$6 -> Fresno | E55: =+'65-A3'!AD$6 -> 93721 | F55: =+'65-A3'!AE$6 -> Fresno | G55: =+'65-A3'!AF$6 -> NCRO | I55: =+'65-A3'!AH$6 -> 0 | J55: =+'65-A3'!AI$6 -> 0 | K55: =+'65-A3'!AJ$6 -> 0 | L55: =+'65-A3'!AK$6 -> 0 | M55: =+'65-A3'!AL$6 -> 0 | N55: =+'65-A3'!AM$6 -> 0 | O55: =+'65-A3'!AN$6 -> 0 | P55: =+'65-A3'!AO$6 -> 0 | Q55: =+'65-A3'!AP$6 -> 0 | R55: =+'65-A3'!AQ$6 -> 0 | S55: =+'65-A3'!AR$6 -> 0 | T55: =+'65-A3'!AS$6 -> 0 | U55: =+'65-A3'!AT$6 -> 0 | V55: =+'65-A3'!AU$6 -> 0 | W55: =+'65-A3'!AV$6 -> 0 | X55: =+'65-A3'!AW$6 -> 0 | Y55: =+'65-A3'!AX$6 -> 0 | Z55: =+'65-A3'!AY$6 -> 0 | AA55: =+'65-A3'!AZ$6 -> 0 | AB55: =+'65-A3'!BA$6 -> 0 | AC55: =+'65-A3'!BB$6 -> 0 | AD55: =+'65-A3'!BC$6 -> 0 | AE55: =+'65-A3'!BD$6 -> 0 | AF55: =+'65-A3'!BE$6 -> 0 | AG55: =+'65-A3'!BF$6 -> 0 | AH55: =+'65-A3'!BG$6 -> 0 | AI55: =+'65-A3'!BH$6 -> 0 | AJ55: =+'65-A3'!BI$6 -> 0 | AK55: =+'65-A3'!BJ$6 -> 0 | AL55: =+'65-A3'!BK$6 -> 0 | AM55: =+'65-A3'!BL$6 -> 0 | AN55: =+'65-A3'!BM$6 -> 0 | AO55: =+'65-A3'!BN$6 -> 0 | AP55: =+'65-A3'!BO$6 -> 0 | AQ55: =+'65-A3'!BP$6 -> 0 | AR55: =+'65-A3'!BQ$6 -> 0 | AS55: =+'65-A3'!BR$6 -> 0 | AT55: =+'65-A3'!BS$6 -> 0 | AU55: =+'65-A3'!BT$6 -> 0 | AV55: =+'65-A3'!BU$6 -> 0 | AW55: =+'65-A3'!BV$6 -> 0 | AX55: =+'65-A3'!BW$6 -> 0 | AZ55: =+'65-A3'!BY$6 -> 0 | BB55: =+'65-A3'!CA$6 -> 0 | BC55: =+'65-A3'!CB$6 -> 0 | BD55: =+'65-A3'!CC$6 -> 0 | BE55: =+'65-A3'!CD$6 -> 0 | BF55: =+'65-A3'!CE$6 -> 0 | BG55: =+'65-A3'!CF$6 -> 0 | BH55: =+'65-A3'!CG$6 -> 0 | BI55: =+'65-A3'!CH$6 -> 0
AZ56: =SUM(AZ7:AZ55) -> 0 | BB56: =SUM(BB7:BB55)/C57 -> 0 | BC56: =SUM(BC7:BC55)/C57 -> 0 | BD56: =SUM(BD7:BD55)/C57 -> 0 | BE56: =SUM(BE7:BE55)/C57 -> 0 | BF56: =SUM(BF7:BF55)/C57 -> 0 | BG56: =SUM(BG7:BG55)/C57 -> 0 | BH56: =SUM(BH7:BH55)/C57 -> 0 | BI56: =SUM(BI7:BI55)/C57 -> 0
B57: Number of Facilities in Region | C57: =COUNTIF(A7:A55,"*") -> 49
A58: 1 | B58: Year One Firm Fixed Price | C58: =+AZ56 -> 0 | D58: 1. Sum of Fixed Price - Facility Total Annual Cost Year 1 in Region = Year One Firm Fixed Price value
A59: 2 | B59: Evaluated Hourly Cost | C59: =+(BG56*C57)*1000 -> 0 | D59: 2. Average Hourly Rate for all facilities in region: Total of Hourly Rates proposed in cost proposal, divided by the Number of Facilities in Region (to establish Average Hourly Rate),multiplied by the Number of Facilities in Region, multiplied by 1,000 hours = Evaluated Hourly Cost evaluation value.
A60: 3 | B60: Mark-up On Materials Value | C60: =+C59*0.3*BH56 -> 0 | D60: 3. Markup on Materials: Evaluated Hourly Cost value for Region, multiplied by 0.3 (to establish the Materials value), multiplied by the average proposed Mark Up on Materials percentage = Markup on Materials evaluation value.
A61: 4 | B61: Mark-up On Subcontractor/Third-Parties Value | C61: =+C59*0.25*BI56 -> 0 | D61: 4. Markup on Subcontractor/Third-Parties: Evaluated Hourly Cost value, multiplied by 0.25 (to establish the Materials value), multiplied by the average proposed Mark Up on Subcontractor/Third-Parties percentage = Markup on Subcontractor/Third-Parties evaluation value.
A62: 5 | B62: Snow Removal | C62: =+BB56*4*C57 -> 0 | D62: 5. Snow Removal (crew hourly rate); Average Snow Removal (crew hourly rate) in Region, multiplied by the Number of Facilities in Region, multiplied by four (4) events per facility = Snow Removal evaluation value.
A63: 6 | B63: Unclogging Blocked Toilet – In-custody holding cell | C63: =+BC56*26*C57 -> 0 | D63: 6. Unclogging Blocked Toilet – In-custody holding cell (labor only); Average Unclogging Blocked Toilet – In-custody holding cell costs in Region, multiplied by the Number of Facilities in Region, multiplied by twenty-six (26) events per facility = Unclogging Blocked Toilet – In-custody holding cell evaluation value.
A64: 7 | B64: Unclogging Blocked Toilet – Public / Court Staff | C64: =+BD56*104*C57 -> 0 | D64: 7. Unclogging Blocked Toilet – Public / Court Staff (labor only); Average Unclogging Blocked Toilet – Public / Court Staff costs in Region, multiplied by the Number of Facilities in Region, multiplied by one hundred and four (104) events per facility = Unclogging Blocked Toilet – Public / Court Staff evaluation value.
A65: 8 | B65: Clean up & Disposal of Biological Waste Per Event | C65: =+BE56*C57*12 -> 0 | D65: 8. Cleanup and Disposal of Biological Waste; Average Cleanup and Disposal of Biological Waste cost in region, multiplied by the number of facilities in the region, multiplied by twelve (12) events per facility = Cleanup and Disposal of Biological Waste evaluation value.
A66: 9 | B66: Clean up & Disposal of Biological Waste Labor Rate | C66: =+BF56*C57*20 -> 0 | D66: 9. Clean-up & Disposal of Biological Waste Labor Rate (for hours over four (4) per Clean-up & Disposal of Biological Waste Event) Average costs throughout the Region, multiplied by the Number of Facilities per Region, multiplied by twenty (20) hours per facility = Clean-up & Disposal of Biological Waste Labor Rate evaluation value.
A67: 10 | B67: Phase-In Costs | C67: 0 | D67: 10. Phase-In Costs - Lump Sum Amount
A68: 11 | B68: Phase-Out Costs | C68: 0 | D68: 11. Phase-Out Costs - Lump Sum Amount at end of Contract Term
A69: 12 | B69: Total Evaluated Price | C69: =SUM(C58:C68) -> 0 | D69: 12. Each of the values for items 1 through 10 above will be calculated and added together to establish the Total Evaluated Price value.

Sheet Equipment List Template (hidden)
H1: =COUNTIF($A$3:$A$803,"*") -> 49 | I1: Subsystem | J1: Access Doors, Gates, Sally Port | K1: Air Cooled DX (Split System) | L1: Air Handling Unit (Air Cooled DX / Package) | M1: Air-Cooled Chiller | N1: Centrifugal Chiller | O1: Cooling Tower (Induced Draft) | P1: Ice Chiller Tank | Q1: Geothermal System | R1: Water Source Heat Pump | S1: Fan Coil System | T1: Supply / Return Fan and Exhaust | U1: Evaporative and Spot Coolers (swamp coolers; spot cooler) | V1: Unique HVAC System | W1: Electrical Panels | X1: Emergency Generator | Y1: Motor Control Center | Z1: Automatic Transfer Switch | AA1: Building Automated Systems (BAS) | AB1: Transformer (Dry-Type) | AC1: Uninterruptible Power Supply (UPS) | AD1: Lighting and Controls (Interior and Exterior) | AE1: Unique Electrical System | AF1: Life Safety Systems | AG1: Reduced Pressure Backflow Preventer(s) | AH1: Boiler (Condensing) | AI1: Domestic Water Heater (Gas-Fired, Condensing) | AJ1: Domestic Water Heater (Electric, Non- Condensing) | AK1: Boiler (Steam, low pressure) | AL1: Steam System | AM1: Pneumatic Compressor System | AN1: Unique Plumbing System | AO1: Rounds and Readings | AP1: Vertical Transportation | AQ1: Water Treatment | AR1: Building Exterior / Hardscape (Monthly) | AS1: Fountain Maintenance (Monthly) | AT1: Above-Ground/Underground Fuel Storage Tanks (Quarterly) If applicable | AU1: Landscape Maintenance * | AV1: Pest Control (Monthly) | AW1: Photovoltaic (PV) System | AX1: Account Management and Supervision (Monthly) | AY1: Fee (Monthly)
A2: JCC ID | B2: Facility Name | C2: Address | D2: City / Town | E2: Zip Code | F2: County | G2: Region | H2: Notes | I2: System ID | J2: A1 | K2: H1 | L2: H2 | M2: H3 | N2: H4 | O2: H5 | P2: H6 | Q2: H7 | R2: H8 | S2: H9 | T2: H10 | U2: H11 | V2: H12 | W2: E1 | X2: E2 | Y2: E3 | Z2: E4 | AA2: E5 | AB2: E6 | AC2: E7 | AD2: E8 | AE2: E9 | AF2: L1 | AG2: L2 | AH2: P1 | AI2: P2 | AJ2: P3 | AK2: P4 | AL2: P5 | AM2: P6 | AN2: P7 | AO2: R1 | AP2: V1 | AQ2: W1 | AR2: B1 | AS2: F1 | AT2: F2 | AU2: G1 | AV2: PC1 | AW2: PV1 | AX2: C1 | AY2: C2
A3: 03-C1 | B3: Amador Superior Court | C3: 500 Argonaut Lane | D3: Jackson | E3: 95642 | F3: Amador | G3: NCRO | J3: 4 | K3: 19 | L3: 0 | M3: 0 | N3: 0 | O3: 0 | P3: 0 | Q3: 0 | R3: 0 | S3: 0 | T3: 1 | U3: 0 | V3: 0 | W3: 1 | X3: 1 | Y3: 0 | Z3: 1 | AA3: 1 | AB3: 0 | AC3: 0 | AD3: 1 | AE3: 0 | AF3: 3 | AG3: 3 | AH3: 0 | AI3: 1 | AJ3: 0 | AK3: 0 | AL3: 0 | AM3: 0 | AN3: 0 | AO3: 40 | AP3: 0 | AQ3: 40 | AR3: 1 | AS3: 0 | AT3: 0 | AU3: 1
A4: 04-A1 | B4: Butte County Courthouse | C4: 1 Court St. | D4: Oroville | E4: 95965 | F4: Butte | G4: NCRO | J4: 3 | K4: 21 | L4: 0 | M4: 0 | N4: 1 | O4: 2 | P4: 0 | Q4: 0 | R4: 0 | S4: 0 | T4: 8 | U4: 0 | V4: 0 | W4: 2 | X4: 1 | Y4: 0 | Z4: 1 | AA4: 1 | AB4: 3 | AC4: 0 | AD4: 1 | AE4: 0 | AF4: 5 | AG4: 7 | AH4: 1 | AI4: 1 | AJ4: 2 | AK4: 0 | AL4: 0 | AM4: 0 | AN4: 0 | AO4: 248 | AP4: 10 | AQ4: 248 | AR4: 1 | AS4: 0 | AT4: 0 | AU4: 1
A5: 04-F1 | B5: North Butte County Courthouse | C5: 1775 Concord Avenue | D5: Chico | E5: 95928 | F5: Butte | G5: NCRO | J5: 6 | K5: 0 | L5: 4 | M5: 0 | N5: 1 | O5: 0 | P5: 0 | Q5: 0 | R5: 3 | S5: 13 | T5: 3 | U5: 0 | V5: 0 | W5: 8 | X5: 1 | Y5: 1 | Z5: 4 | AA5: 1 | AB5: 6 | AC5: 0 | AD5: 1 | AE5: 0 | AF5: 3 | AG5: 6 | AH5: 3 | AI5: 2 | AJ5: 0 | AK5: 0 | AL5: 0 | AM5: 0 | AN5: 0 | AO5: 248 | AP5: 6 | AQ5: 248 | AR5: 1 | AS5: 0 | AT5: 0 | AU5: 1
A6: 05-C1 | B6: Calaveras Superior Court | C6: 400 Government Center Drive | D6: San Andreas | E6: 95249 | F6: Calaveras | G6: NCRO | J6: 6 | K6: 9 | L6: 3 | M6: 0 | N6: 2 | O6: 0 | P6: 0 | Q6: 0 | R6: 0 | S6: 0 | T6: 2 | U6: 0 | V6: 0 | W6: 3 | X6: 1 | Y6: 0 | Z6: 2 | AA6: 1 | AB6: 1 | AC6: 0 | AD6: 0 | AE6: 0 | AF6: 4 | AG6: 6 | AH6: 2 | AI6: 1 | AJ6: 0 | AK6: 0 | AL6: 0 | AM6: 0 | AN6: 0 | AO6: 248 | AP6: 4 | AQ6: 248 | AR6: 1 | AS6: 0 | AT6: 0 | AU6: 1
A7: 09-A1 | B7: Main St. Courthouse | C7: 495 Main St. | D7: Placerville | E7: 95667 | F7: El Dorado | G7: NCRO | J7: 2 | K7: 7 | L7: 0 | M7: 0 | N7: 1 | O7: 0 | P7: 0 | Q7: 0 | R7: 0 | S7: 0 | T7: 0 | U7: 0 | V7: 0 | W7: 1 | X7: 0 | Y7: 0 | Z7: 0 | AA7: 0 | AB7: 0 | AC7: 0 | AD7: 1 | AE7: 0 | AF7: 1 | AG7: 2 | AH7: 1 | AI7: 0 | AJ7: 4 | AK7: 0 | AL7: 0 | AM7: 0 | AN7: 0 | AO7: 248 | AP7: 1 | AQ7: 248 | AR7: 1 | AS7: 0 | AT7: 0 | AU7: 1
A8: 09-C1 | B8: Cameron Park | C8: 3321 Cameron Park Dr. | D8: Cameron Park | E8: 95682 | F8: El Dorado | G8: NCRO | H8: missing from the list | J8: 5 | K8: 5 | L8: 0 | M8: 0 | N8: 0 | O8: 0 | P8: 0 | Q8: 0 | R8: 2 | S8: 0 | T8: 0 | U8: 0 | V8: 0 | W8: 1 | X8: 0 | Y8: 0 | Z8: 0 | AA8: 0 | AB8: 0 | AC8: 0 | AD8: 1 | AE8: 0 | AF8: 4 | AG8: 0 | AH8: 0 | AI8: 0 | AJ8: 2 | AK8: 0 | AL8: 0 | AM8: 0 | AN8: 0 | AO8: 40 | AP8: 0 | AQ8: 40 | AR8: 1 | AS8: 0 | AT8: 0 | AU8: 1
A9: 09-E1 | B9: Johnson Bldg. | C9: 1354 Johnson Blvd. | D9: South Lake Tahoe | E9: 96150 | F9: El Dorado | G9: NCRO | H9: missing from the list | J9: 0 | K9: 1 | L9: 2 | M9: 0 | N9: 1 | O9: 0 | P9: 0 | Q9: 0 | R9: 0 | S9: 0 | T9: 1 | U9: 0 | V9: 0 | W9: 1 | X9: 0 | Y9: 0 | Z9: 0 | AA9: 1 | AB9: 0 | AC9: 0 | AD9: 1 | AE9: 0 | AF9: 5 | AG9: 2 | AH9: 1 | AI9: 2 | AJ9: 0 | AK9: 0 | AL9: 0 | AM9: 0 | AN9: 0 | AO9: 248 | AP9: 2 | AQ9: 248 | AR9: 1 | AS9: 0 | AT9: 0 | AU9: 1
A10: 10-A1 | B10: Fresno County Courthouse | C10: 1100 Van Ness Ave. | D10: Fresno | E10: 93724 | F10: Fresno | G10: NCRO | J10: 1 | K10: 13 | L10: 12 | M10: 0 | N10: 2 | O10: 2 | P10: 0 | Q10: 0 | R10: 0 | S10: 4 | T10: 3 | U10: 0 | V10: 0 | W10: 3 | X10: 1 | Y10: 1 | Z10: 1 | AA10: 1 | AB10: 2 | AC10: 1 | AD10: 1 | AE10: 0 | AF10: 4 | AG10: 1 | AH10: 0 | AI10: 0 | AJ10: 1 | AK10: 0 | AL10: 2 | AM10: 0 | AN10: 0 | AO10: 248 | AP10: 6 | AQ10: 248 | AR10: 1 | AS10: 0 | AT10: 0 | AU10: 1
A11: 10-F1 | B11: Reedley Court | C11: 815 G Street | D11: Reedley | E11: 93654 | F11: Fresno | G11: NCRO | H11: Vacant but needs pricing Non OP R/R | J11: 0 | K11: 4 | L11: 0 | M11: 0 | N11: 0 | O11: 0 | P11: 0 | Q11: 0 | R11: 0 | S11: 0 | T11: 0 | U11: 0 | V11: 0 | W11: 1 | X11: 0 | Y11: 0 | Z11: 0 | AA11: 0 | AB11: 0 | AC11: 0 | AD11: 1 | AE11: 0 | AF11: 1 | AG11: 1 | AH11: 0 | AI11: 2 | AJ11: 0 | AK11: 0 | AL11: 0 | AM11: 0 | AN11: 0 | AO11: 40 | AP11: 0 | AQ11: 40 | AR11: 1 | AS11: 0 | AT11: 0 | AU11: 1
A12: 10-G1 | B12: Clovis Court | C12: 1011 5th St. | D12: Clovis | E12: 93612 | F12: Fresno | G12: NCRO | H12: Vacant but needs pricing Non OP R/R | J12: 0 | K12: 4 | L12: 0 | M12: 0 | N12: 0 | O12: 0 | P12: 0 | Q12: 0 | R12: 0 | S12: 0 | T12: 0 | U12: 0 | V12: 0 | W12: 1 | X12: 0 | Y12: 0 | Z12: 0 | AA12: 0 | AB12: 0 | AC12: 0 | AD12: 1 | AE12: 0 | AF12: 1 | AG12: 1 | AH12: 0 | AI12: 0 | AJ12: 1 | AK12: 0 | AL12: 0 | AM12: 0 | AN12: 0 | AO12: 40 | AP12: 0 | AQ12: 40 | AR12: 1 | AS12: 0 | AT12: 0 | AU12: 1
A13: 10-O1 | B13: B.F. Sisk Courthouse | C13: 1130 O Street | D13: Fresno | E13: 93721 | F13: Fresno | G13: NCRO | J13: 7 | K13: 15 | L13: 11 | M13: 0 | N13: 2 | O13: 2 | P13: 0 | Q13: 0 | R13: 0 | S13: 1 | T13: 29 | U13: 0 | V13: 0 | W13: 12 | X13: 1 | Y13: 1 | Z13: 1 | AA13: 1 | AB13: 12 | AC13: 2 | AD13: 2 | AE13: 0 | AF13: 7 | AG13: 2 | AH13: 3 | AI13: 1 | AJ13: 0 | AK13: 0 | AL13: 0 | AM13: 0 | AN13: 0 | AO13: 248 | AP13: 6 | AQ13: 248 | AR13: 1 | AS13: 0 | AT13: 1 | AU13: 1
A14: 10-P1 | B14: Juvenile Delinquency Courthouse | C14: 3333 E. American Avenue | D14: Frenso | E14: 93725 | F14: Fresno | G14: NCRO | J14: 0 | K14: 0 | L14: 0 | M14: 0 | N14: 0 | O14: 0 | P14: 0 | Q14: 0 | R14: 0 | S14: 0 | T14: 0 | U14: 0 | V14: 0 | W14: 0 | X14: 0 | Y14: 0 | Z14: 0 | AA14: 0 | AB14: 0 | AC14: 1 | AD14: 0 | AE14: 0 | AF14: 1 | AG14: 0 | AH14: 0 | AI14: 0 | AJ14: 0 | AK14: 0 | AL14: 0 | AM14: 0 | AN14: 0 | AO14: 40 | AP14: 5 | AQ14: 40 | AR14: 0 | AS14: 0 | AT14: 0 | AU14: 0
A15: 11-A1 | B15: Historic Courthouse | C15: 526 West Sycamore St. | D15: Willows | E15: 95988 | F15: Glenn | G15: NCRO | H15: Not in RFP, No Costing Sheet | J15: 0 | K15: 11 | L15: 0 | M15: 0 | N15: 0 | O15: 0 | P15: 0 | Q15: 0 | R15: 0 | S15: 0 | T15: 0 | U15: 0 | V15: 0 | W15: 1 | X15: 0 | Y15: 0 | Z15: 0 | AA15: 0 | AB15: 0 | AC15: 0 | AD15: 2 | AE15: 0 | AF15: 2 | AG15: 1 | AH15: 0 | AI15: 0 | AJ15: 2 | AK15: 0 | AL15: 0 | AM15: 0 | AN15: 0 | AO15: 40 | AP15: 1 | AQ15: 40 | AR15: 1 | AS15: 0 | AT15: 0 | AU15: 1
A16: 16-A5 | B16: Hanford Courthouse | C16: 1640 Kings County Drive | D16: Hanford | E16: 93230 | F16: Kings | G16: NCRO | J16: 9 | K16: 29 | L16: 8 | M16: 0 | N16: 2 | O16: 2 | P16: 1 | Q16: 0 | R16: 0 | S16: 11 | T16: 6 | U16: 0 | V16: 0 | W16: 12 | X16: 1 | Y16: 0 | Z16: 4 | AA16: 1 | AB16: 17 | AC16: 1 | AD16: 2 | AE16: 0 | AF16: 15 | AG16: 8 | AH16: 3 | AI16: 0 | AJ16: 2 | AK16: 0 | AL16: 0 | AM16: 0 | AN16: 0 | AO16: 248 | AP16: 5 | AQ16: 248 | AR16: 1 | AS16: 0 | AT16: 0 | AU16: 1
A17: 16-C1 | B17: Avenal Court | C17: 501 E. Kings Street | D17: Avenal | E17: 93204 | F17: Kings | G17: NCRO | H17: Vacant but needs pricing Non OP R/R | J17: 0 | K17: 4 | L17: 0 | M17: 0 | N17: 0 | O17: 0 | P17: 0 | Q17: 0 | R17: 0 | S17: 0 | T17: 0 | U17: 0 | V17: 0 | W17: 0 | X17: 0 | Y17: 0 | Z17: 0 | AA17: 0 | AB17: 0 | AC17: 0 | AD17: 0 | AE17: 0 | AF17: 1 | AG17: 0 | AH17: 0 | AI17: 1 | AJ17: 0 | AK17: 0 | AL17: 0 | AM17: 0 | AN17: 0 | AO17: 40 | AP17: 0 | AQ17: 40 | AR17: 1 | AS17: 0 | AT17: 0 | AU17: 1
A18: 18-C1 | B18: Hall of Justice | C18: 2610 Riverside Drive | D18: Susanville | E18: 96130 | F18: Lassen | G18: NCRO | J18: 3 | K18: 3 | L18: 2 | M18: 0 | N18: 0 | O18: 0 | P18: 0 | Q18: 0 | R18: 0 | S18: 6 | T18: 6 | U18: 0 | V18: 0 | W18: 2 | X18: 1 | Y18: 0 | Z18: 1 | AA18: 1 | AB18: 2 | AC18: 1 | AD18: 1 | AE18: 0 | AF18: 5 | AG18: 3 | AH18: 3 | AI18: 0 | AJ18: 3 | AK18: 0 | AL18: 0 | AM18: 0 | AN18: 0 | AO18: 40 | AP18: 4 | AQ18: 40 | AR18: 1 | AS18: 0 | AT18: 0 | AU18: 1
A19: 20-F1 | B19: Main Courthouse | C19: 200 South G Street | D19: Madera | E19: 93637 | F19: Madera | G19: NCRO | J19: 10 | K19: 6 | L19: 4 | M19: 0 | N19: 2 | O19: 0 | P19: 0 | Q19: 0 | R19: 0 | S19: 19 | T19: 10 | U19: 0 | V19: 0 | W19: 8 | X19: 1 | Y19: 0 | Z19: 4 | AA19: 1 | AB19: 17 | AC19: 0 | AD19: 1 | AE19: 0 | AF19: 10 | AG19: 5 | AH19: 2 | AI19: 1 | AJ19: 0 | AK19: 0 | AL19: 0 | AM19: 0 | AN19: 0 | AO19: 248 | AP19: 5 | AQ19: 248 | AR19: 1 | AS19: 0 | AT19: 0 | AU19: 1
A20: 20-F2 | B20: Main Courthouse Parking Garage | C20: 220/224 and 228 South G Street | D20: Madera | E20: 93637 | F20: Madera | G20: NCRO | J20: 2 | K20: 1 | L20: 0 | M20: 0 | N20: 0 | O20: 0 | P20: 0 | Q20: 0 | R20: 0 | S20: 0 | T20: 1 | U20: 0 | V20: 0 | W20: 1 | X20: 0 | Y20: 0 | Z20: 0 | AA20: 0 | AB20: 1 | AC20: 1 | AD20: 1 | AE20: 0 | AF20: 2 | AG20: 0 | AH20: 0 | AI20: 0 | AJ20: 0 | AK20: 0 | AL20: 0 | AM20: 0 | AN20: 0 | AO20: 40 | AP20: 1 | AQ20: 40 | AR20: 1 | AS20: 0 | AT20: 0 | AU20: 1
A21: 24-A1 | B21: Old Court | C21: 627 W. 21st Street | D21: Merced | E21: 95340 | F21: Merced | G21: NCRO | J21: 1 | K21: 12 | L21: 0 | M21: 0 | N21: 0 | O21: 0 | P21: 0 | Q21: 0 | R21: 1 | S21: 0 | T21: 0 | U21: 0 | V21: 0 | W21: 1 | X21: 0 | Y21: 0 | Z21: 0 | AA21: 0 | AB21: 0 | AC21: 0 | AD21: 1 | AE21: 0 | AF21: 3 | AG21: 0 | AH21: 0 | AI21: 0 | AJ21: 2 | AK21: 0 | AL21: 0 | AM21: 0 | AN21: 0 | AO21: 40 | AP21: 0 | AQ21: 40 | AR21: 1 | AS21: 0 | AT21: 0 | AU21: 1
A22: 24-A8 | B22: Main Merced Courthouse | C22: 2260 N Street | D22: Merced | E22: 95340 | F22: Merced | G22: NCRO | J22: 4 | K22: 4 | L22: 0 | M22: 0 | N22: 0 | O22: 0 | P22: 0 | Q22: 0 | R22: 0 | S22: 0 | T22: 2 | U22: 0 | V22: 0 | W22: 1 | X22: 1 | Y22: 0 | Z22: 1 | AA22: 0 | AB22: 0 | AC22: 0 | AD22: 1 | AE22: 0 | AF22: 4 | AG22: 1 | AH22: 1 | AI22: 1 | AJ22: 0 | AK22: 0 | AL22: 0 | AM22: 0 | AN22: 0 | AO22: 40 | AP22: 4 | AQ22: 40 | AR22: 1 | AS22: 0 | AT22: 0 | AU22: 1
A23: 24-G1 | B23: Robert M. Falasco Justice Center | C23: 1159 G Street | D23: Los Banos | E23: 93635 | F23: Merced | G23: NCRO | J23: 5 | K23: 4 | L23: 2 | M23: 0 | N23: 0 | O23: 0 | P23: 0 | Q23: 0 | R23: 0 | S23: 0 | T23: 0 | U23: 0 | V23: 0 | W23: 1 | X23: 1 | Y23: 0 | Z23: 2 | AA23: 0 | AB23: 0 | AC23: 1 | AD23: 0 | AE23: 0 | AF23: 4 | AG23: 4 | AH23: 2 | AI23: 1 | AJ23: 0 | AK23: 0 | AL23: 0 | AM23: 0 | AN23: 0 | AO23: 40 | AP23: 3 | AQ23: 40 | AR23: 1 | AS23: 0 | AT23: 0 | AU23: 1
A24: 25-A1 | B24: Barclay Justice Center | C24: 205 S. East Street | D24: Alturas | E24: 96101 | F24: Modoc | G24: NCRO | J24: 0 | K24: 7 | L24: 0 | M24: 0 | N24: 0 | O24: 0 | P24: 0 | Q24: 0 | R24: 0 | S24: 0 | T24: 0 | U24: 0 | V24: 0 | W24: 2 | X24: 0 | Y24: 0 | Z24: 0 | AA24: 0 | AB24: 0 | AC24: 0 | AD24: 0 | AE24: 0 | AF24: 2 | AG24: 0 | AH24: 0 | AI24: 0 | AJ24: 2 | AK24: 0 | AL24: 0 | AM24: 0 | AN24: 0 | AO24: 40 | AP24: 0 | AQ24: 40 | AR24: 1 | AS24: 0 | AT24: 1 | AU24: 1
A25: 26-B2 | B25: Mammoth Lakes Courthouse | C25: 100 Thompsons Way | D25: Mammoth Lakes | E25: 93546 | F25: Mono | G25: NCRO | J25: 7 | K25: 4 | L25: 1 | M25: 0 | N25: 0 | O25: 0 | P25: 0 | Q25: 0 | R25: 0 | S25: 0 | T25: 2 | U25: 0 | V25: 0 | W25: 1 | X25: 0 | Y25: 0 | Z25: 1 | AA25: 0 | AB25: 0 | AC25: 0 | AD25: 2 | AE25: 0 | AF25: 4 | AG25: 5 | AH25: 2 | AI25: 1 | AJ25: 0 | AK25: 0 | AL25: 2 | AM25: 0 | AN25: 0 | AO25: 40 | AP25: 2 | AQ25: 40 | AR25: 1 | AS25: 0 | AT25: 0 | AU25: 1
A26: 31-H1 | B26: Hon. Howard G. Gibson Courthouse | C26: 10820 Justice Center Drive | D26: Roseville | E26: 95678 | F26: Placer | G26: NCRO | J26: 5 | K26: 11 | L26: 5 | M26: 0 | N26: 0 | O26: 0 | P26: 0 | Q26: 0 | R26: 2 | S26: 0 | T26: 11 | U26: 0 | V26: 0 | W26: 1 | X26: 1 | Y26: 0 | Z26: 1 | AA26: 1 | AB26: 0 | AC26: 0 | AD26: 1 | AE26: 0 | AF26: 3 | AG26: 1 | AH26: 2 | AI26: 0 | AJ26: 5 | AK26: 0 | AL26: 0 | AM26: 0 | AN26: 0 | AO26: 40 | AP26: 7 | AQ26: 40 | AR26: 1 | AS26: 0 | AT26: 0 | AU26: 0
A27: 31-H2 | B27: Arraignment Court Facility | C27: 11801 Go For Broke Road | D27: Roseville | E27: 95678 | F27: Placer | G27: NCRO | H27: missing from list | J27: 1 | K27: 5 | L27: 0 | M27: 0 | N27: 0 | O27: 0 | P27: 0 | Q27: 0 | R27: 0 | S27: 0 | T27: 4 | U27: 0 | V27: 0 | W27: 1 | X27: 0 | Y27: 0 | Z27: 0 | AA27: 0 | AB27: 0 | AC27: 0 | AD27: 0 | AE27: 0 | AF27: 0 | AG27: 1 | AH27: 0 | AI27: 1 | AJ27: 0 | AK27: 0 | AL27: 0 | AM27: 0 | AN27: 0 | AO27: 40 | AP27: 0 | AQ27: 40 | AR27: 1 | AS27: 0 | AT27: 0 | AU27: 0
A28: 34-A1 | B28: Gordon Schaber Sacramento Superior Court | C28: 720 Ninth St. | D28: Sacramento | E28: 95814 | F28: Sacramento | G28: NCRO | J28: 4 | K28: 3 | L28: 12 | M28: 0 | N28: 0 | O28: 0 | P28: 0 | Q28: 0 | R28: 0 | S28: 0 | T28: 16 | U28: 0 | V28: 0 | W28: 1 | X28: 1 | Y28: 15 | Z28: 1 | AA28: 1 | AB28: 3 | AC28: 0 | AD28: 1 | AE28: 0 | AF28: 4 | AG28: 7 | AH28: 1 | AI28: 0 | AJ28: 0 | AK28: 0 | AL28: 0 | AM28: 0 | AN28: 0 | AO28: 40 | AP28: 5 | AQ28: 40 | AR28: 1 | AS28: 0 | AT28: 0 | AU28: 1
A29: 34-C2 | B29: Juvenile Courthouse | C29: 9605 Kiefer Road | D29: Sacramento | E29: 95827 | F29: Sacramento | G29: NCRO | H29: 4 condensors 2 splits? | J29: 3 | K29: 7 | L29: 3 | M29: 0 | N29: 2 | O29: 2 | P29: 0 | Q29: 0 | R29: 0 | S29: 16 | T29: 3 | U29: 0 | V29: 0 | W29: 1 | X29: 1 | Y29: 0 | Z29: 1 | AA29: 1 | AB29: 0 | AC29: 2 | AD29: 1 | AE29: 0 | AF29: 4 | AG29: 8 | AH29: 2 | AI29: 2 | AJ29: 0 | AK29: 0 | AL29: 0 | AM29: 0 | AN29: 0 | AO29: 248 | AP29: 12 | AQ29: 248 | AR29: 1 | AS29: 0 | AT29: 0 | AU29: 1
A30: 34-D1 | B30: Carol Miller Justice Center Court Facility | C30: 301 Bicentennial Circle | D30: Sacramento | E30: 95826 | F30: Sacramento | G30: NCRO | H30: 2 move & cools? | J30: 5 | K30: 7 | L30: 2 | M30: 0 | N30: 2 | O30: 1 | P30: 0 | Q30: 0 | R30: 0 | S30: 0 | T30: 2 | U30: 0 | V30: 0 | W30: 1 | X30: 1 | Y30: 0 | Z30: 1 | AA30: 3 | AB30: 0 | AC30: 0 | AD30: 1 | AE30: 0 | AF30: 3 | AG30: 6 | AH30: 2 | AI30: 1 | AJ30: 1 | AK30: 0 | AL30: 0 | AM30: 0 | AN30: 0 | AO30: 248 | AP30: 4 | AQ30: 248 | AR30: 1 | AS30: 0 | AT30: 0 | AU30: 1
A31: 39-C1 | B31: Manteca Branch Court | C31: 315 E. Center St. | D31: Manteca | E31: 95336 | F31: San Joaquin | G31: NCRO | J31: 3 | K31: 11 | L31: 0 | M31: 0 | N31: 0 | O31: 0 | P31: 0 | Q31: 0 | R31: 0 | S31: 0 | T31: 4 | U31: 0 | V31: 0 | W31: 3 | X31: 0 | Y31: 0 | Z31: 0 | AA31: 0 | AB31: 0 | AC31: 0 | AD31: 1 | AE31: 0 | AF31: 3 | AG31: 4 | AH31: 0 | AI31: 2 | AJ31: 1 | AK31: 0 | AL31: 0 | AM31: 0 | AN31: 0 | AO31: 40 | AP31: 0 | AQ31: 40 | AR31: 1 | AS31: 0 | AT31: 0 | AU31: 1
A32: 39-D2 | B32: Lodi Branch Dept. 2 | C32: 315 W. Elm St. | D32: Lodi | E32: 95240 | F32: San Joaquin | G32: NCRO | J32: 1 | K32: 2 | L32: 0 | M32: 0 | N32: 0 | O32: 0 | P32: 0 | Q32: 0 | R32: 0 | S32: 0 | T32: 4 | U32: 0 | V32: 0 | W32: 1 | X32: 0 | Y32: 0 | Z32: 0 | AA32: 0 | AB32: 0 | AC32: 0 | AD32: 0 | AE32: 0 | AF32: 3 | AG32: 3 | AH32: 0 | AI32: 1 | AJ32: 0 | AK32: 0 | AL32: 0 | AM32: 0 | AN32: 0 | AO32: 40 | AP32: 0 | AQ32: 40 | AR32: 1 | AS32: 0 | AT32: 0 | AU32: 1
A33: 39-E1 | B33: Tracy Branch Courthouse | C33: 475 E. 10th St. | D33: Tracy | E33: 95376 | F33: San Joaquin | G33: NCRO | H33: Vacant, Cost+ and expected to reopen with completion of construction project TBD. Remove but add to Cost plus list. | J33: 0 | K33: 6 | L33: 0 | M33: 0 | N33: 0 | O33: 0 | P33: 0 | Q33: 0 | R33: 0 | S33: 0 | T33: 0 | U33: 0 | V33: 0 | W33: 1 | X33: 0 | Y33: 0 | Z33: 0 | AA33: 0 | AB33: 0 | AC33: 0 | AD33: 1 | AE33: 0 | AF33: 1 | AG33: 2 | AH33: 0 | AI33: 1 | AJ33: 0 | AK33: 0 | AL33: 0 | AM33: 0 | AN33: 0 | AO33: 40 | AP33: 0 | AQ33: 40 | AR33: 1 | AS33: 0 | AT33: 0 | AU33: 1
A34: 39-E2 | B34: Tracy Modular 1: Support | C34: 475 East Tenth St. | D34: Tracy | E34: 95376 | F34: San Joaqin | G34: NCRO | H34: Not in RFP, No Costing Sheet | J34: 0 | K34: 2 | L34: 0 | M34: 0 | N34: 0 | O34: 0 | P34: 0 | Q34: 0 | R34: 0 | S34: 0 | T34: 0 | U34: 0 | V34: 0 | W34: 0 | X34: 0 | Y34: 0 | Z34: 0 | AA34: 0 | AB34: 0 | AC34: 0 | AD34: 0 | AE34: 0 | AF34: 1 | AG34: 0 | AH34: 0 | AI34: 0 | AJ34: 0 | AK34: 0 | AL34: 0 | AM34: 0 | AN34: 0 | AO34: 40 | AP34: 0 | AQ34: 40 | AR34: 1 | AS34: 0 | AT34: 0 | AU34: 1
A35: 39-E3 | B35: Tracy Modular 2: Courtroom | C35: 475 East Tenth St. | D35: Tracy | E35: 95376 | F35: San Joaqin | G35: NCRO | H35: Not in RFP, No Costing Sheet | J35: 0 | K35: 2 | L35: 0 | M35: 0 | N35: 0 | O35: 0 | P35: 0 | Q35: 0 | R35: 0 | S35: 0 | T35: 0 | U35: 0 | V35: 0 | W35: 0 | X35: 0 | Y35: 0 | Z35: 0 | AA35: 0 | AB35: 0 | AC35: 0 | AD35: 0 | AE35: 0 | AF35: 1 | AG35: 0 | AH35: 0 | AI35: 0 | AJ35: 0 | AK35: 0 | AL35: 0 | AM35: 0 | AN35: 0 | AO35: 40 | AP35: 0 | AQ35: 40 | AR35: 1 | AS35: 0 | AT35: 0 | AU35: 1
A36: 39-F1 | B36: Stockton Courthouse | C36: 180 East Weber Avenue | D36: Stockton | E36: 95202 | F36: San Joaquin | G36: NCRO | J36: 8 | K36: 9 | L36: 31 | M36: 0 | N36: 2 | O36: 2 | P36: 1 | Q36: 0 | R36: 0 | S36: 44 | T36: 14 | U36: 1 | V36: 0 | W36: 1 | X36: 1 | Y36: 0 | Z36: 3 | AA36: 0 | AB36: 2 | AC36: 0 | AD36: 1 | AE36: 0 | AF36: 20 | AG36: 12 | AH36: 4 | AI36: 3 | AJ36: 0 | AK36: 0 | AL36: 0 | AM36: 0 | AN36: 0 | AO36: 248 | AP36: 15 | AQ36: 248 | AR36: 1 | AS36: 1 | AT36: 0 | AU36: 1
A37: 45-A1 | B37: Main Courthouse | C37: 1500 Court St. | D37: Redding | E37: 96001 | F37: Shasta | G37: NCRO | J37: 0 | K37: 13 | L37: 1 | M37: 0 | N37: 1 | O37: 1 | P37: 0 | Q37: 0 | R37: 0 | S37: 0 | T37: 4 | U37: 0 | V37: 0 | W37: 1 | X37: 1 | Y37: 0 | Z37: 1 | AA37: 0 | AB37: 0 | AC37: 0 | AD37: 0 | AE37: 0 | AF37: 4 | AG37: 2 | AH37: 1 | AI37: 0 | AJ37: 1 | AK37: 0 | AL37: 0 | AM37: 0 | AN37: 0 | AO37: 248 | AP37: 1 | AQ37: 248 | AR37: 1 | AS37: 0 | AT37: 0 | AU37: 1
A38: 45-A7 | B38: Courthouse Annex | C38: 1500 Court St. | D38: Redding | E38: 96001 | F38: Shasta | G38: NCRO | J38: 2 | K38: 3 | L38: 2 | M38: 0 | N38: 1 | O38: 1 | P38: 0 | Q38: 0 | R38: 0 | S38: 0 | T38: 4 | U38: 0 | V38: 0 | W38: 0 | X38: 0 | Y38: 0 | Z38: 0 | AA38: 0 | AB38: 0 | AC38: 0 | AD38: 1 | AE38: 0 | AF38: 3 | AG38: 1 | AH38: 0 | AI38: 1 | AJ38: 0 | AK38: 0 | AL38: 0 | AM38: 0 | AN38: 0 | AO38: 248 | AP38: 2 | AQ38: 248 | AR38: 1 | AS38: 0 | AT38: 0 | AU38: 1
A39: 45-A9 | B39: Justice Center Court Modular | C39: 1655 West Street | D39: Redding | E39: 96001 | F39: Shasta | G39: NCRO | H39: Not in RFP, No Costing Sheet | J39: 1 | K39: 0 | L39: 0 | M39: 0 | N39: 0 | O39: 0 | P39: 0 | Q39: 0 | R39: 4 | S39: 0 | T39: 0 | U39: 0 | V39: 0 | W39: 0 | X39: 0 | Y39: 0 | Z39: 0 | AA39: 0 | AB39: 0 | AC39: 0 | AD39: 0 | AE39: 0 | AF39: 2 | AG39: 0 | AH39: 0 | AI39: 0 | AJ39: 0 | AK39: 0 | AL39: 0 | AM39: 0 | AN39: 0 | AO39: 40 | AP39: 0 | AQ39: 40 | AR39: 1 | AS39: 0 | AT39: 0 | AU39: 1
A40: 50-A1 | B40: Modesto Main Courthouse | C40: 800 11th Street | D40: Modesto | E40: 95354 | F40: Stanislaus | G40: NCRO | J40: 2 | K40: 2 | L40: 2 | M40: 0 | N40: 2 | O40: 1 | P40: 0 | Q40: 0 | R40: 0 | S40: 0 | T40: 4 | U40: 0 | V40: 0 | W40: 1 | X40: 0 | Y40: 1 | Z40: 0 | AA40: 1 | AB40: 0 | AC40: 0 | AD40: 1 | AE40: 0 | AF40: 2 | AG40: 4 | AH40: 2 | AI40: 1 | AJ40: 0 | AK40: 0 | AL40: 0 | AM40: 0 | AN40: 0 | AO40: 248 | AP40: 3 | AQ40: 248 | AR40: 1 | AS40: 0 | AT40: 0 | AU40: 1
A41: 50-A2 | B41: Hall of Records | C41: 1100 I Street | D41: Modesto | E41: 95353 | F41: Stanislaus | G41: NCRO | J41: 1 | K41: 6 | L41: 4 | M41: 0 | N41: 1 | O41: 1 | P41: 0 | Q41: 0 | R41: 0 | S41: 0 | T41: 5 | U41: 0 | V41: 0 | W41: 2 | X41: 0 | Y41: 0 | Z41: 0 | AA41: 0 | AB41: 0 | AC41: 0 | AD41: 1 | AE41: 0 | AF41: 2 | AG41: 0 | AH41: 0 | AI41: 0 | AJ41: 0 | AK41: 0 | AL41: 0 | AM41: 0 | AN41: 0 | AO41: 248 | AP41: 1 | AQ41: 248 | AR41: 1 | AS41: 0 | AT41: 0 | AU41: 1
A42: 50-C1 | B42: Ceres Superior Court | C42: 2744 Second St. | D42: Ceres | E42: 95307 | F42: Stanislaus | G42: NCRO | H42: 2 condensors only? | J42: 0 | K42: 2 | L42: 0 | M42: 0 | N42: 0 | O42: 0 | P42: 0 | Q42: 0 | R42: 0 | S42: 0 | T42: 0 | U42: 0 | V42: 0 | W42: 0 | X42: 0 | Y42: 0 | Z42: 0 | AA42: 0 | AB42: 0 | AC42: 0 | AD42: 0 | AE42: 0 | AF42: 1 | AG42: 0 | AH42: 0 | AI42: 0 | AJ42: 1 | AK42: 0 | AL42: 0 | AM42: 0 | AN42: 0 | AO42: 40 | AP42: 0 | AQ42: 40 | AR42: 1 | AS42: 0 | AT42: 0 | AU42: 1
A43: 50-D1 | B43: Turlock Superior Court | C43: 300 Starr Ave. | D43: Turlock | E43: 95380 | F43: Stanislaus | G43: NCRO | H43: ac unit gas? | J43: 2 | K43: 5 | L43: 0 | M43: 0 | N43: 0 | O43: 0 | P43: 0 | Q43: 0 | R43: 0 | S43: 0 | T43: 0 | U43: 0 | V43: 0 | W43: 1 | X43: 0 | Y43: 0 | Z43: 0 | AA43: 0 | AB43: 0 | AC43: 0 | AD43: 0 | AE43: 0 | AF43: 1 | AG43: 1 | AH43: 0 | AI43: 0 | AJ43: 1 | AK43: 0 | AL43: 0 | AM43: 0 | AN43: 0 | AO43: 40 | AP43: 0 | AQ43: 40 | AR43: 1 | AS43: 0 | AT43: 0 | AU43: 1
A44: 51-C1 | B44: Sutter County Superior Courthouse | C44: 1175 Civic Center Blvd. | D44: Yuba City | E44: 95993 | F44: Sutter | G44: NCRO | J44: 5 | K44: 4 | L44: 4 | M44: 0 | N44: 2 | O44: 0 | P44: 0 | Q44: 0 | R44: 0 | S44: 6 | T44: 8 | U44: 0 | V44: 0 | W44: 17 | X44: 1 | Y44: 0 | Z44: 4 | AA44: 1 | AB44: 12 | AC44: 0 | AD44: 0 | AE44: 0 | AF44: 5 | AG44: 5 | AH44: 2 | AI44: 0 | AJ44: 1 | AK44: 0 | AL44: 0 | AM44: 0 | AN44: 0 | AO44: 248 | AP44: 5 | AQ44: 248 | AR44: 1 | AS44: 0 | AT44: 0 | AU44: 1
A45: 52-E1 | B45: Tehama County Courthouse | C45: 1740 Walnut Street | D45: Red Bluff | E45: 96080 | F45: Tehama | G45: NCRO | H45: package units heater? | J45: 0 | K45: 10 | L45: 4 | M45: 0 | N45: 0 | O45: 0 | P45: 0 | Q45: 0 | R45: 0 | S45: 0 | T45: 5 | U45: 0 | V45: 0 | W45: 0 | X45: 0 | Y45: 0 | Z45: 0 | AA45: 0 | AB45: 0 | AC45: 0 | AD45: 0 | AE45: 0 | AF45: 4 | AG45: 6 | AH45: 2 | AI45: 1 | AJ45: 0 | AK45: 0 | AL45: 0 | AM45: 0 | AN45: 0 | AO45: 40 | AP45: 5 | AQ45: 40 | AR45: 1 | AS45: 0 | AT45: 0 | AU45: 1
A46: 54-B1 | B46: Tulare Division | C46: 425 E. Kern St. | D46: Tulare | E46: 93274 | F46: Tulare | G46: NCRO | H46: Building is vacant. (Cost Plus List) | J46: 0 | K46: 0 | L46: 3 | M46: 0 | N46: 1 | O46: 1 | P46: 0 | Q46: 0 | R46: 0 | S46: 0 | T46: 0 | U46: 0 | V46: 0 | W46: 1 | X46: 0 | Y46: 0 | Z46: 0 | AA46: 0 | AB46: 0 | AC46: 0 | AD46: 1 | AE46: 0 | AF46: 3 | AG46: 3 | AH46: 1 | AI46: 1 | AJ46: 0 | AK46: 0 | AL46: 0 | AM46: 0 | AN46: 0 | AO46: 248 | AP46: 0 | AQ46: 248 | AR46: 1 | AS46: 0 | AT46: 0 | AU46: 1
A47: 54-I1 | B47: South County Justice Center | C47: 300 East Olive Avenue | D47: Porterville | E47: 93257 | F47: Tulare | G47: NCRO | J47: 8 | K47: 0 | L47: 4 | M47: 0 | N47: 1 | O47: 0 | P47: 1 | Q47: 0 | R47: 4 | S47: 18 | T47: 5 | U47: 0 | V47: 0 | W47: 1 | X47: 1 | Y47: 0 | Z47: 2 | AA47: 1 | AB47: 0 | AC47: 1 | AD47: 0 | AE47: 0 | AF47: 5 | AG47: 2 | AH47: 2 | AI47: 2 | AJ47: 0 | AK47: 0 | AL47: 0 | AM47: 0 | AN47: 0 | AO47: 248 | AP47: 5 | AQ47: 248 | AR47: 1 | AS47: 0 | AT47: 0 | AU47: 1
A48: 57-A10 | B48: Yolo Superior Court | C48: 1000 Main Street | D48: Woodland | E48: 95695 | F48: Yolo | G48: NCRO | J48: 18 | K48: 0 | L48: 3 | M48: 0 | N48: 2 | O48: 2 | P48: 0 | Q48: 0 | R48: 7 | S48: 11 | T48: 8 | U48: 0 | V48: 0 | W48: 7 | X48: 1 | Y48: 0 | Z48: 2 | AA48: 0 | AB48: 16 | AC48: 1 | AD48: 1 | AE48: 0 | AF48: 5 | AG48: 8 | AH48: 2 | AI48: 0 | AJ48: 2 | AK48: 0 | AL48: 0 | AM48: 0 | AN48: 0 | AO48: 248 | AP48: 7 | AQ48: 248 | AR48: 1 | AS48: 0 | AT48: 0 | AU48: 1
A49: 57-A11 | B49: Yolo Superior Court Parking | C49: 525 & 625 Sixth Street | D49: Woodland | E49: 95695 | F49: Yolo | G49: NCRO | H49: Landscaping and lighting only | J49: 0 | K49: 0 | L49: 0 | M49: 0 | N49: 0 | O49: 0 | P49: 0 | Q49: 0 | R49: 0 | S49: 0 | T49: 0 | U49: 0 | V49: 0 | W49: 0 | X49: 0 | Y49: 0 | Z49: 0 | AA49: 0 | AB49: 0 | AC49: 0 | AD49: 0 | AE49: 0 | AF49: 0 | AG49: 2 | AH49: 0 | AI49: 0 | AJ49: 0 | AK49: 0 | AL49: 0 | AM49: 0 | AN49: 0 | AO49: 40 | AP49: 0 | AQ49: 40 | AR49: 1 | AS49: 0 | AT49: 0 | AU49: 1
A50: 65-A2 | B50: 2424 Ventura Street - 5 DCA | C50: 2424 Ventura Street | D50: Fresno | E50: 93721 | F50: Fresno | G50: NCRO | H50: Both Court and JCC have responsibility. JCC performs PMs and court-requested work. (add to list) Dummy Preaction? | J50: 2 | K50: 3 | L50: 2 | M50: 0 | N50: 0 | O50: 0 | P50: 0 | Q50: 0 | R50: 0 | S50: 0 | T50: 3 | U50: 0 | V50: 0 | W50: 1 | X50: 1 | Y50: 0 | Z50: 1 | AA50: 0 | AB50: 0 | AC50: 0 | AD50: 0 | AE50: 0 | AF50: 5 | AG50: 0 | AH50: 2 | AI50: 2 | AJ50: 0 | AK50: 0 | AL50: 0 | AM50: 0 | AN50: 0 | AO50: 40 | AP50: 1 | AQ50: 40 | AR50: 1 | AS50: 0 | AT50: 0 | AU50: 1
A51: 65-A3 | B51: 5th DCA Fresno Parking | C51: NEC of O Street & Santa Clara | D51: Fresno | E51: 93721 | F51: Fresno | G51: NCRO | H51: \Landscaping and parking only | J51: 0 | K51: 0 | L51: 0 | M51: 0 | N51: 0 | O51: 0 | P51: 0 | Q51: 0 | R51: 0 | S51: 0 | T51: 0 | U51: 0 | V51: 0 | W51: 0 | X51: 0 | Y51: 0 | Z51: 0 | AA51: 0 | AB51: 0 | AC51: 0 | AD51: 0 | AE51: 0 | AF51: 0 | AG51: 0 | AH51: 0 | AI51: 0 | AJ51: 0 | AK51: 0 | AL51: 0 | AM51: 0 | AN51: 0 | AO51: 40 | AP51: 0 | AQ51: 40 | AR51: 0 | AS51: 0 | AT51: 0 | AU51: 0

Sheet Master Template (hidden)
B1: JCC ID | C1: Facility Name | D1: Address | F1: City / Town | H1: Zip Code | J1: County | L1: Region | N1: RFP | P1: Proposer
C2: =IFERROR(VLOOKUP($B$2,'Equipment List Template'!$1:$1048576,2,FALSE),"") ->  | D2: =IFERROR(VLOOKUP($B$2,'Equipment List Template'!$1:$1048576,3,FALSE),"") ->  | F2: =IFERROR(VLOOKUP($B$2,'Equipment List Template'!$1:$1048576,4,FALSE),"") ->  | H2: =IFERROR(VLOOKUP($B$2,'Equipment List Template'!$1:$1048576,5,FALSE),"") ->  | J2: =IFERROR(VLOOKUP($B$2,'Equipment List Template'!$1:$1048576,6,FALSE),"") ->  | L2: =IFERROR(VLOOKUP($B$2,'Equipment List Template'!$1:$1048576,7,FALSE),"") ->  | N2: ='Summary Pricing Sheet'!B2 -> RFP-FS-SP-2019-03-JP | P2: ='Summary Pricing Sheet'!B3 -> Firm Name TBD
D3: Daily Activity | G3: Weekly Activity | J3: Monthly Activity | M3: Quarterly Activity | P3: Annual Activity | U3: Summary | AG3: System | AH3: HVAC | AS3: Electrical | BA3: Plumbing | BE3: Building Systems | BP3: Corporate | BU3: Fixed Price - Facility Total Annual Cost Year 1
B4: System ID | C4: Subsystem | D4: Quantity | E4: Cost | F4: Daily Total | G4: Quantity | H4: Cost | I4: Weekly Total | J4: Monthly Quantity | K4: Cost | L4: Monthly Total | M4: Quarterly Quantity | N4: Cost | O4: Quarterly Total | P4: Annual Quantity | Q4: Cost | R4: Annual PM Total | T4: Number of PM's | U4: Annual Cost | V4: Quantity | W4: Total Annual Cost | AG4: Subsystem | AH4: Air Cooled DX (Package / Split System) | AI4: Air Handling Unit (Air-cooled DX) | AJ4: Air-Cooled Chiller | AK4: Centrifugal Chiller | AL4: Cooling Tower (Induced Draft) | AM4: Ice Chiller | AN4: Multitask (Geothermal) | AO4: Water Source Heat Pump | AP4: Fan Coil System | AQ4: Exhaust Fan | AR4: HVAC Unique System | AS4: Electrical Panels | AT4: Emergency Generator | AU4: Motor Control Center | AV4: Primary Switch (High) | AW4: Primary Switch (Low) | AX4: Transformer (Dry-Type) | AY4: Uninterruptible Power Supply (UPS) | AZ4: Electrical Unique System | BA4: Hot Water Boiler | BB4: Condensing Water Heater | BC4: Electric Water Heater | BD4: Plumbing Unique System | BE4: Steam System | BF4: Pneumatic Compressor | BG4: Vertical Transportation | BH4: Life Safety | BI4: Backflow Preventor | BJ4: Rounds and Readings | BK4: Access Doors, Gates, Sally Port | BL4: Water Treatment | BM4: Building Exterior / Hardscape (Monthly) | BN4: Fountain Maintenance (Monthly) | BO4: Fuel Storage Tanks (Quarterly) If applicable | BP4: Landscape Maintenance * | BQ4: Pest Control (Monthly) | BR4: Account Management and Supervision (Monthly) | BS4: Fee (Monthly) | BW4: Snow Removal - (crew hourly rate) | BX4: Unclogging Blocked Toilet - In-custody holding cell (labor) | BY4: Unclogging Blocked Toilet - Public/Court Staff (labor) | BZ4: Clean up & Disposal of Biological Waste Event | CA4: Clean up & Disposal of Biological Waste Labor Rate | CB4: Hourly Rate | CC4: Markup on Materials | CD4: Markup on Subcontractors/Third-Parties
A5: =$B$2 -> 0 | B5: A1 | C5: Access Doors, Gates, Sally Port | J5: 11 | K5: 0 | L5: =+K5*J5 -> 0 | M5: 0 | N5: 0 | O5: =+N5*M5 -> 0 | P5: 1 | Q5: 0 | R5: =+Q5*P5 -> 0 | S5: =+$J5+$M5+$P5 -> 12 | T5: =IF($V5>0,$S5,0) -> 12 | U5: =+R5+O5+L5+I5+F5 -> 0 | V5: =IFERROR(VLOOKUP($A$5,'Equipment List Template'!$1:$1048576,10,FALSE),"0") -> 0 | W5: =+U5*V5 -> 0 | Z5: JCC ID | AA5: Facility Name | AB5: Address | AC5: City / Town | AD5: County | AE5: Region | AF5: Region | AG5: System ID | AH5: H1 | AI5: H2 | AJ5: H3 | AK5: H4 | AL5: H5 | AM5: H6 | AN5: H7 | AO5: H8 | AP5: H9 | AQ5: H10 | AR5: H11 | AS5: E1 | AT5: E2 | AU5: E3 | AV5: E4 | AW5: E5 | AX5: E6 | AY5: E7 | AZ5: E8 | BA5: P1 | BB5: P2 | BC5: P3 | BD5: P4 | BE5: P5 | BF5: P6 | BG5: V1 | BH5: L1 | BI5: L2 | BJ5: R1 | BK5: A1 | BL5: W1 | BM5: B1 | BN5: F1 | BO5: F2 | BP5: G1 | BQ5: PC1 | BR5: C1 | BS5: C2 | BW5: S1 | BX5: I1 | BY5: I2 | BZ5: I3 | CA5: I4 | CB5: Hr 1 | CC5: M1 | CD5: Sub1
A6: =$B$2 -> 0 | B6: H1 | C6: Air Cooled DX (Package / Split System) | J6: 0 | K6: 0 | L6: =+K6*J6 -> 0 | M6: 3 | N6: 0 | O6: =+N6*M6 -> 0 | P6: 1 | Q6: 0 | R6: =+Q6*P6 -> 0 | S6: =+$J6+$M6+$P6 -> 4 | T6: =IF($V6>0,$S6,0) -> 4 | U6: =+R6+O6+L6+I6+F6 -> 0 | V6: =IFERROR(VLOOKUP($A$5,'Equipment List Template'!$1:$1048576,11,FALSE),"0") -> 0 | W6: =+U6*V6 -> 0 | Z6: =B2 -> 0 | AA6: =IFERROR(VLOOKUP($Z$6,'Equipment List Template'!$1:$1048576,2,FALSE),"") ->  | AB6: =IFERROR(VLOOKUP($Z$6,'Equipment List Template'!$1:$1048576,3,FALSE),"") ->  | AC6: =IFERROR(VLOOKUP($Z$6,'Equipment List Template'!$1:$1048576,4,FALSE),"") ->  | AD6: =IFERROR(VLOOKUP($Z$6,'Equipment List Template'!$1:$1048576,5,FALSE),"") ->  | AE6: =IFERROR(VLOOKUP($Z$6,'Equipment List Template'!$1:$1048576,6,FALSE),"") ->  | AF6: =IFERROR(VLOOKUP($Z$6,'Equipment List Template'!$1:$1048576,7,FALSE),"") ->  | AH6: =+$W5 -> 0 | AI6: =+$W6 -> 0 | AJ6: =+$W7 -> 0 | AK6: =+$W8 -> 0 | AL6: =+$W9 -> 0 | AM6: =+$W10 -> 0 | AN6: =+$W11 -> 0 | AO6: =+$W12 -> 0 | AP6: =+$W13 -> 0 | AQ6: =+$W14 -> 0 | AR6: =+$W15 -> 0 | AS6: =+$W16 -> 0 | AT6: =+$W17 -> 0 | AU6: =+$W18 -> 0 | AV6: =+$W19 -> 0 | AW6: =+$W20 -> 0 | AX6: =+$W21 -> 0 | AY6: =+$W22 -> 0 | AZ6: =+$W23 -> 0 | BA6: =+$W24 -> 0 | BB6: =+$W25 -> 0 | BC6: =+$W26 -> 0 | BD6: =+$W27 -> 0 | BE6: =+$W28 -> 0 | BF6: =+$W29 -> 0 | BG6: =+$W30 -> 0 | BH6: =+$W31 -> 0 | BI6: =+$W32 -> 0 | BJ6: =+$W33 -> 0 | BK6: =+$W34 -> 0 | BL6: =+$W35 -> 0 | BM6: =+$W36 -> 0 | BN6: =+$W37 -> 0 | BO6: =+$W38 -> 0 | BP6: =+$W39 -> 0 | BQ6: =+$W40 -> 0 | BR6: =+$W41 -> 0 | BS6: =+$W42 -> 0 | BU6: =+W43 -> 0 | BW6: =+D44 -> 0 | BX6: =+D45 -> 0 | BY6: =+D46 -> 0 | BZ6: =+D47 -> 0 | CA6: =+D48 -> 0 | CB6: =+D49 -> 0 | CC6: =+D50 -> 0 | CD6: =+D51 -> 0
A7: 0 | B7: H2 | C7: Air Handling Unit (Air-cooled DX) | J7: 0 | K7: 0 | L7: 0 | M7: 3 | N7: 0 | O7: 0 | P7: 1 | Q7: 0 | R7: 0 | S7: 4 | T7: 4 | U7: 0 | V7: =IFERROR(VLOOKUP($A$5,'Equipment List Template'!$1:$1048576,12,FALSE),"0") -> 0 | W7: =+U7*V7 -> 0
A8: 0 | B8: H3 | C8: Air-Cooled Chiller | G8: 40 | H8: 0 | I8: =+H8*G8 -> 0 | J8: 8 | K8: 0 | L8: 0 | M8: 3 | N8: 0 | O8: 0 | P8: 1 | Q8: 0 | R8: 0 | S8: 12 | T8: 12 | U8: 0 | V8: =IFERROR(VLOOKUP($A$5,'Equipment List Template'!$1:$1048576,13,FALSE),"0") -> 0 | W8: 0
A9: 0 | B9: H4 | C9: Centrifugal Chiller | J9: 11 | K9: 0 | L9: 0 | M9: 0 | N9: 0 | O9: 0 | P9: 1 | Q9: 0 | R9: 0 | S9: 12 | T9: 12 | U9: 0 | V9: =IFERROR(VLOOKUP($A$5,'Equipment List Template'!$1:$1048576,14,FALSE),"0") -> 0 | W9: 0
A10: 0 | B10: H5 | C10: Cooling Tower (Induced Draft) | J10: 8 | K10: 0 | L10: 0 | M10: 3 | N10: 0 | O10: 0 | P10: 1 | Q10: 0 | R10: 0 | S10: 12 | T10: 12 | U10: 0 | V10: =IFERROR(VLOOKUP($A$5,'Equipment List Template'!$1:$1048576,15,FALSE),"0") -> 0 | W10: 0
A11: 0 | B11: H6 | C11: Ice Chiller | J11: 8 | K11: 0 | L11: 0 | M11: 3 | N11: 0 | O11: 0 | P11: 1 | Q11: 0 | R11: 0 | S11: 12 | T11: 12 | U11: 0 | V11: =IFERROR(VLOOKUP($A$5,'Equipment List Template'!$1:$1048576,16,FALSE),"0") -> 0 | W11: 0
A12: 0 | B12: H7 | C12: MultiStack (Geothermal) | J12: 0 | K12: 0 | L12: 0 | M12: 0 | N12: 0 | O12: 0 | P12: 1 | Q12: 0 | R12: 0 | S12: 1 | T12: 1 | U12: 0 | V12: =IFERROR(VLOOKUP($A$5,'Equipment List Template'!$1:$1048576,17,FALSE),"0") -> 0 | W12: 0
A13: 0 | B13: H8 | C13: Water Source Heat Pump | J13: 8 | K13: 0 | L13: 0 | M13: 3 | N13: 0 | O13: 0 | P13: 1 | Q13: 0 | R13: 0 | S13: 12 | T13: 12 | U13: 0 | V13: =IFERROR(VLOOKUP($A$5,'Equipment List Template'!$1:$1048576,18,FALSE),"0") -> 0 | W13: 0
A14: 0 | B14: H9 | C14: Fan Coil System | J14: 0 | K14: 0 | L14: 0 | M14: 3 | N14: 0 | O14: 0 | P14: 1 | Q14: 0 | R14: 0 | S14: 4 | T14: 4 | U14: 0 | V14: =IFERROR(VLOOKUP($A$5,'Equipment List Template'!$1:$1048576,19,FALSE),"0") -> 0 | W14: 0
A15: 0 | B15: H10 | C15: Exhaust Fan | J15: 0 | K15: 0 | L15: 0 | M15: 3 | N15: 0 | O15: 0 | P15: 1 | Q15: 0 | R15: 0 | S15: 4 | T15: 4 | U15: 0 | V15: =IFERROR(VLOOKUP($A$5,'Equipment List Template'!$1:$1048576,20,FALSE),"0") -> 0 | W15: 0
A16: 0 | B16: H11 | C16: HVAC Unique System | J16: 8 | K16: 0 | L16: 0 | M16: 3 | N16: 0 | O16: 0 | P16: 1 | Q16: 0 | R16: 0 | S16: 12 | T16: 12 | U16: 0 | V16: =IFERROR(VLOOKUP($A$5,'Equipment List Template'!$1:$1048576,21,FALSE),"0") -> 0 | W16: 0
A17: 0 | B17: E1 | C17: Electrical Panels | J17: 0 | K17: 0 | L17: 0 | M17: 3 | N17: 0 | O17: 0 | P17: 1 | Q17: 0 | R17: 0 | S17: 4 | T17: 4 | U17: 0 | V17: =IFERROR(VLOOKUP($A$5,'Equipment List Template'!$1:$1048576,22,FALSE),"0") -> 0 | W17: 0
A18: 0 | B18: E2 | C18: Emergency Generator | J18: 8 | K18: 0 | L18: 0 | M18: 3 | N18: 0 | O18: 0 | P18: 1 | Q18: 0 | R18: 0 | S18: 12 | T18: 12 | U18: 0 | V18: =IFERROR(VLOOKUP($A$5,'Equipment List Template'!$1:$1048576,23,FALSE),"0") -> 0 | W18: 0
A19: 0 | B19: E3 | C19: Motor Control Center | J19: 0 | K19: 0 | L19: 0 | M19: 4 | N19: 0 | O19: 0 | P19: 0 | Q19: 0 | R19: 0 | S19: 4 | T19: 4 | U19: 0 | V19: =IFERROR(VLOOKUP($A$5,'Equipment List Template'!$1:$1048576,24,FALSE),"0") -> 0 | W19: 0
A20: 0 | B20: E4 | C20: Automatic Switch Gear | J20: 8 | K20: 0 | L20: 0 | M20: 3 | N20: 0 | O20: 0 | P20: 1 | Q20: 0 | R20: 0 | S20: 12 | T20: 12 | U20: 0 | V20: =IFERROR(VLOOKUP($A$5,'Equipment List Template'!$1:$1048576,25,FALSE),"0") -> 0 | W20: 0
A21: 0 | B21: E5 | C21: Not Used | J21: 8 | K21: 0 | L21: 0 | M21: 3 | N21: 0 | O21: 0 | P21: 1 | Q21: 0 | R21: 0 | S21: 12 | T21: 12 | U21: 0 | V21: =IFERROR(VLOOKUP($A$5,'Equipment List Template'!$1:$1048576,26,FALSE),"0") -> 0 | W21: 0
A22: 0 | B22: E6 | C22: Transformer (Dry-Type) | J22: 0 | K22: 0 | L22: 0 | M22: 3 | N22: 0 | O22: 0 | P22: 1 | Q22: 0 | R22: 0 | S22: 4 | T22: 4 | U22: 0 | V22: =IFERROR(VLOOKUP($A$5,'Equipment List Template'!$1:$1048576,27,FALSE),"0") -> 0 | W22: 0
A23: 0 | B23: E7 | C23: Uninterruptible Power Supply (UPS) | J23: 0 | K23: 0 | L23: 0 | M23: 0 | N23: 0 | O23: 0 | P23: 1 | Q23: 0 | R23: 0 | S23: 1 | T23: 1 | U23: 0 | V23: =IFERROR(VLOOKUP($A$5,'Equipment List Template'!$1:$1048576,28,FALSE),"0") -> 0 | W23: 0
A24: 0 | B24: E8 | C24: Electrical Unique System | J24: 8 | K24: 0 | L24: 0 | M24: 3 | N24: 0 | O24: 0 | P24: 1 | Q24: 0 | R24: 0 | S24: 12 | T24: 12 | U24: 0 | V24: =IFERROR(VLOOKUP($A$5,'Equipment List Template'!$1:$1048576,29,FALSE),"0") -> 0 | W24: 0
A25: 0 | B25: L1 | C25: Life Safety | J25: 0 | K25: 0 | L25: 0 | M25: 3 | N25: 0 | O25: 0 | P25: 1 | Q25: 0 | R25: 0 | S25: 4 | T25: 4 | U25: 0 | V25: =IFERROR(VLOOKUP($A$5,'Equipment List Template'!$1:$1048576,30,FALSE),"0") -> 0 | W25: =+U25*V25 -> 0
A26: 0 | B26: L2 | C26: Backflow Preventer(s) | J26: 0 | K26: 0 | L26: 0 | M26: 0 | N26: 0 | O26: 0 | P26: 1 | Q26: 0 | R26: 0 | S26: 1 | T26: 1 | U26: 0 | V26: =IFERROR(VLOOKUP($A$5,'Equipment List Template'!$1:$1048576,31,FALSE),"0") -> 0 | W26: =+U26*V26 -> 0
A27: 0 | B27: P1 | C27: Hot Water Boiler | J27: 8 | K27: 0 | L27: 0 | M27: 3 | N27: 0 | O27: 0 | P27: 1 | Q27: 0 | R27: 0 | S27: 12 | T27: 12 | U27: 0 | V27: =IFERROR(VLOOKUP($A$5,'Equipment List Template'!$1:$1048576,32,FALSE),"0") -> 0 | W27: 0
A28: 0 | B28: P2 | C28: Gas Water Heater | J28: 0 | K28: 0 | L28: 0 | M28: 0 | N28: 0 | O28: 0 | P28: 1 | Q28: 0 | R28: 0 | S28: 1 | T28: 1 | U28: 0 | V28: =IFERROR(VLOOKUP($A$5,'Equipment List Template'!$1:$1048576,33,FALSE),"0") -> 0 | W28: 0
A29: 0 | B29: P3 | C29: Electric Water Heater | J29: 0 | K29: 0 | L29: 0 | M29: 0 | N29: 0 | O29: 0 | P29: 1 | Q29: 0 | R29: 0 | S29: 1 | T29: 1 | U29: 0 | V29: =IFERROR(VLOOKUP($A$5,'Equipment List Template'!$1:$1048576,34,FALSE),"0") -> 0 | W29: 0
A30: 0 | B30: P4 | C30: Plumbing Unique System | J30: 0 | K30: 0 | L30: 0 | M30: 3 | N30: 0 | O30: 0 | P30: 1 | Q30: 0 | R30: 0 | S30: 4 | T30: 4 | U30: 0 | V30: =IFERROR(VLOOKUP($A$5,'Equipment List Template'!$1:$1048576,35,FALSE),"0") -> 0 | W30: 0
A31: 0 | B31: P5 | C31: Steam System | J31: 0 | K31: 0 | L31: 0 | M31: 3 | N31: 0 | O31: 0 | P31: 1 | Q31: 0 | R31: 0 | S31: 4 | T31: 4 | U31: 0 | V31: =IFERROR(VLOOKUP($A$5,'Equipment List Template'!$1:$1048576,36,FALSE),"0") -> 0 | W31: 0
A32: 0 | B32: P6 | C32: Pneumatic Compressor | J32: 11 | K32: 0 | L32: 0 | M32: 0 | N32: 0 | O32: 0 | P32: 1 | Q32: 0 | R32: 0 | S32: 12 | T32: 12 | U32: 0 | V32: =IFERROR(VLOOKUP($A$5,'Equipment List Template'!$1:$1048576,37,FALSE),"0") -> 0 | W32: 0
A33: 0 | B33: R1 | C33: Rounds and Readings | D33: =IFERROR(IF(VLOOKUP($A33,'Equipment List Template'!$1:$1048576,38,FALSE)=248,248,0),0) -> 0 | E33: 0 | F33: =+E33*D33 -> 0 | G33: =IFERROR(IF(VLOOKUP($A33,'Equipment List Template'!$1:$1048576,38,FALSE)=40,40,0),0) -> 0 | H33: 0 | I33: =+H33*G33 -> 0 | J33: 12 | K33: 0 | L33: 0 | S33: 12 | T33: 12 | U33: =+R33+O33+L33+I33+F33 -> 0 | V33: 1 | W33: =+U33*V33 -> 0
A34: 0 | B34: V1 | C34: Vertical Transportation | J34: 8 | K34: 0 | L34: =+K34*J34 -> 0 | M34: 3 | N34: 0 | O34: =+N34*M34 -> 0 | P34: 1 | Q34: 0 | R34: =+Q34*P34 -> 0 | S34: 12 | T34: 12 | U34: =+R34+O34+L34 -> 0 | V34: =IFERROR(VLOOKUP($A$5,'Equipment List Template'!$1:$1048576,39,FALSE),"0") -> 0 | W34: =+U34*V34 -> 0
A35: 0 | B35: W1 | C35: Water Treatment | D35: =IFERROR(IF(VLOOKUP($A35,'Equipment List Template'!$1:$1048576,40,FALSE)=248,260,0),0) -> 0 | E35: 0 | F35: =+E35*D35 -> 0 | S35: 0 | T35: 0 | U35: =+R35+O35+L35+I35+F35 -> 0 | V35: 1 | W35: 0
A36: 0 | B36: B1 | C36: Building Exterior / Hardscape (Monthly) | J36: 12 | K36: 0 | L36: =+K36*J36 -> 0 | S36: 12 | T36: 12 | U36: 0 | V36: =IFERROR(VLOOKUP($A$5,'Equipment List Template'!$1:$1048576,41,FALSE),"0") -> 0 | W36: 0
A37: 0 | B37: F1 | C37: Fountain Maintenance (Monthly) | J37: 12 | K37: 0 | L37: =+K37*J37 -> 0 | S37: 12 | T37: 12 | U37: 0 | V37: =IFERROR(VLOOKUP($A$5,'Equipment List Template'!$1:$1048576,42,FALSE),"0") -> 0 | W37: 0
A38: 0 | B38: F2 | C38: Fuel Storage Tanks (Quarterly) If applicable | M38: 4 | N38: 0 | O38: =+N38*M38 -> 0 | S38: 4 | T38: 4 | U38: 0 | V38: =IFERROR(VLOOKUP($A$5,'Equipment List Template'!$1:$1048576,43,FALSE),"0") -> 0 | W38: 0
A39: 0 | B39: G1 | C39: Landscape Maintenance * | G39: 40 | H39: 0 | I39: =+H39*G39 -> 0 | S39: 0 | T39: 0 | U39: 0 | V39: =IFERROR(VLOOKUP($A$5,'Equipment List Template'!$1:$1048576,44,FALSE),"0") -> 0 | W39: 0
B40: PC1 | C40: Pest Control (Monthly) | J40: 12 | K40: 0 | S40: 12 | T40: 12 | U40: 0 | V40: 1 | W40: 0
A41: 0 | B41: C1 | C41: Account Management and Supervision (Monthly) | J41: 12 | K41: 0 | L41: =+K41*J41 -> 0 | S41: 12 | T41: 12 | U41: 0 | V41: 1 | W41: 0
A42: 0 | B42: C2 | C42: Fee (Monthly) | J42: 12 | K42: 0 | L42: =+K42*J42 -> 0 | S42: 12 | T42: 12 | U42: 0 | V42: 1 | W42: 0
Q43: JCC ID | R43: =B2 -> 0 | U43: Total | W43: =SUM(W6:W42) -> 0
B44: S1 | C44: Snow Removal - (crew hourly rate) | D44: 0 | U44: Total # of PM's | W44: =SUM(T5:T42) -> 289
B45: I1 | C45: Unclogging Blocked Toilet - In-custody cell (labor-only) | D45: 0
B46: I2 | C46: Unclogging Blocked Toilet - Public/Court Staff (labor-only) | D46: 0
B47: I3 | C47: Clean up & Disposal of Biological Waste Event | D47: 0
B48: I4 | C48: Clean up & Disposal of Biological Waste Labor Rate | D48: 0
B49: Hr 1 | C49: Hourly Rate (All Labor categories) | D49: 0
B50: M1 | C50: Markup on Materials (Percentage) | D50: 0
B51: Sub1 | C51: Markup on Subcontractors/Third-Parties (Percentage) | D51: 0
B53: * Landscape Maintenance varies by location on the number of weeks per year it can be preformed. For the purpose of the RFP, all facilities are pre-established at 40 weeks of service. The actual amount paid by facility will be based upon the actual weeks that service has been performed, validated and invoiced.

Sheet 03-C1
B1: JCC ID | C1: Facility Name | D1: Address | F1: City / Town | H1: Zip Code | J1: County | L1: Region | N1: RFP | P1: Proposer
B2: 03-C1 | C2: =IFERROR(VLOOKUP($B$2,'Equipment List Template'!$1:$1048576,2,FALSE),"") -> Amador Superior Court | D2: =IFERROR(VLOOKUP($B$2,'Equipment List Template'!$1:$1048576,3,FALSE),"") -> 500 Argonaut Lane | F2: =IFERROR(VLOOKUP($B$2,'Equipment List Template'!$1:$1048576,4,FALSE),"") -> Jackson | H2: =IFERROR(VLOOKUP($B$2,'Equipment List Template'!$1:$1048576,5,FALSE),"") -> 95642 | J2: =IFERROR(VLOOKUP($B$2,'Equipment List Template'!$1:$1048576,6,FALSE),"") -> Amador | L2: =IFERROR(VLOOKUP($B$2,'Equipment List Template'!$1:$1048576,7,FALSE),"") -> NCRO | N2: ='Summary Pricing Sheet'!B2 -> RFP-FS-SP-2019-03-JP | P2: ='Summary Pricing Sheet'!B3 -> Firm Name TBD
D3: Daily Activity | G3: Weekly Activity | J3: Monthly Activity | M3: Quarterly Activity | P3: Annual Activity | U3: Summary | AG3: System | AH3: Access | AI3: HVAC | AU3: Electrical | BD3: Life Safety | BF3: Plumbing | BM3: Building Systems | BV3: Corporate | BY3: Fixed Price - Facility Total Annual Cost Year 1 | CA3: Unit Pricing
B4: System ID | C4: Subsystem | D4: Quantity | E4: Cost | F4: Daily Total | G4: Quantity | H4: Cost | I4: Weekly Total | J4: Monthly Quantity | K4: Cost | L4: Monthly Total | M4: Quarterly Quantity | N4: Cost | O4: Quarterly Total | P4: Annual Quantity | Q4: Cost | R4: Annual PM Total | T4: Number of PM's | U4: Annual Cost | V4: Quantity | W4: Total Annual Cost | AG4: Subsystem | AH4: Access Doors, Gates, Sally Port | AI4: Air Cooled DX (Split System) | AJ4: Air Handling Unit (Air Cooled DX / Package) | AK4: Air-Cooled Chiller | AL4: Centrifugal Chiller | AM4: Cooling Tower (Induced Draft) | AN4: Ice Chiller Tank | AO4: Geothermal System | AP4: Water Source Heat Pump | AQ4: Fan Coil System | AR4: Supply / Return Fan and Exhaust | AS4: Evaporative and Spot Coolers (swamp coolers; spot cooler) | AT4: Unique HVAC System | AU4: Electrical Panels | AV4: Emergency Generator | AW4: Motor Control Center | AX4: Automatic Transfer Switch | AY4: Building Automated Systems (BAS) | AZ4: Transformer (Dry-Type) | BA4: Uninterruptible Power Supply (UPS) | BB4: Lighting and Controls (Interior and Exterior) | BC4: Unique Electrical System | BD4: Life Safety Systems | BE4: Reduced Pressure Backflow Preventer(s) | BF4: Boiler (Condensing) | BG4: Domestic Water Heater (Gas-Fired, Condensing) | BH4: Domestic Water Heater (Electric, Non- Condensing) | BI4: Boiler (Steam, low pressure) | BJ4: Steam System | BK4: Pneumatic Compressor System | BL4: Unique Plumbing System | BM4: Rounds and Readings | BN4: Vertical Transportation | BO4: Water Treatment | BP4: Building Exterior / Hardscape (Monthly) | BQ4: Fountain Maintenance (Monthly) | BR4: Above-Ground/Underground Fuel Storage Tanks (Quarterly) If applicable | BS4: Landscape Maintenance * | BT4: Pest Control (Monthly) | BU4: Photovoltaic (PV) System | BV4: Account Management and Supervision (Monthly) | BW4: Fee (Monthly) | CA4: Snow Removal - (crew hourly rate) | CB4: Unclogging Blocked Toilet - In-custody holding cell (labor) | CC4: Unclogging Blocked Toilet - Public/Court Staff (labor) | CD4: Clean up & Disposal of Biological Waste Event | CE4: Clean up & Disposal of Biological Waste Labor Rate | CF4: Hourly Rate | CG4: Markup on Materials | CH4: Markup on Subcontractors/Third-Parties
A5: =$B$2 -> 03-C1 | B5: A1 | C5: Access Doors, Gates, Sally Port | J5: 11 | K5: 0 | L5: =+K5*J5 -> 0 | M5: 0 | N5: 0 | O5: =+N5*M5 -> 0 | P5: 1 | Q5: 0 | R5: =+Q5*P5 -> 0 | S5: =+$J5+$M5+$P5 -> 12 | T5: =IF($V5>0,$S5,0) -> 12 | U5: =+R5+O5+L5+I5+F5 -> 0 | V5: =IFERROR(VLOOKUP($A$5,'Equipment List Template'!$1:$1048576,10,FALSE),"0") -> 4 | W5: =+U5*V5 -> 0 | X5: =$T5*$V5 -> 48 | Z5: JCC ID | AA5: Facility Name | AB5: Address | AC5: City / Town | AD5: County | AE5: Region | AF5: Region | AG5: System ID | AH5: A1 | AI5: H1 | AJ5: H2 | AK5: H3 | AL5: H4 | AM5: H5 | AN5: H6 | AO5: H7 | AP5: H8 | AQ5: H9 | AR5: H10 | AS5: H11 | AT5: H12 | AU5: E1 | AV5: E2 | AW5: E3 | AX5: E4 | AY5: E5 | AZ5: E6 | BA5: E7 | BB5: E8 | BC5: E9 | BD5: L1 | BE5: L2 | BF5: P1 | BG5: P2 | BH5: P3 | BI5: P4 | BJ5: P5 | BK5: P6 | BL5: P7 | BM5: R1 | BN5: V1 | BO5: W1 | BP5: B1 | BQ5: F1 | BR5: F2 | BS5: G1 | BT5: PC1 | BU5: PV1 | BV5: C1 | BW5: C2 | CA5: S1 | CB5: I1 | CC5: I2 | CD5: I3 | CE5: I4 | CF5: Hr 1 | CG5: M1 | CH5: Sub1
A6: =$B$2 -> 03-C1 | B6: H1 | C6: Air Cooled DX (Split System) | J6: 0 | K6: 0 | L6: =+K6*J6 -> 0 | M6: 3 | N6: 0 | O6: =+N6*M6 -> 0 | P6: 1 | Q6: 0 | R6: =+Q6*P6 -> 0 | S6: =+$J6+$M6+$P6 -> 4 | T6: =IF($V6>0,$S6,0) -> 4 | U6: =+R6+O6+L6+I6+F6 -> 0 | V6: =IFERROR(VLOOKUP($A$5,'Equipment List Template'!$1:$1048576,11,FALSE),"0") -> 19 | W6: =+U6*V6 -> 0 | X6: =$T6*$V6 -> 76 | Z6: =B2 -> 03-C1 | AA6: =IFERROR(VLOOKUP($Z$6,'Equipment List Template'!$1:$1048576,2,FALSE),"") -> Amador Superior Court | AB6: =IFERROR(VLOOKUP($Z$6,'Equipment List Template'!$1:$1048576,3,FALSE),"") -> 500 Argonaut Lane | AC6: =IFERROR(VLOOKUP($Z$6,'Equipment List Template'!$1:$1048576,4,FALSE),"") -> Jackson | AD6: =IFERROR(VLOOKUP($Z$6,'Equipment List Template'!$1:$1048576,5,FALSE),"") -> 95642 | AE6: =IFERROR(VLOOKUP($Z$6,'Equipment List Template'!$1:$1048576,6,FALSE),"") -> Amador | AF6: =IFERROR(VLOOKUP($Z$6,'Equipment List Template'!$1:$1048576,7,FALSE),"") -> NCRO | AH6: =+$W5 -> 0 | AI6: =+$W6 -> 0 | AJ6: =+$W7 -> 0 | AK6: =+$W8 -> 0 | AL6: =+$W9 -> 0 | AM6: =+$W10 -> 0 | AN6: =+$W11 -> 0 | AO6: =+$W12 -> 0 | AP6: =+$W13 -> 0 | AQ6: =+$W14 -> 0 | AR6: =+$W15 -> 0 | AS6: =+$W16 -> 0 | AT6: =+$W17 -> 0 | AU6: =+$W18 -> 0 | AV6: =+$W19 -> 0 | AW6: =+$W20 -> 0 | AX6: =+$W21 -> 0 | AY6: =+$W22 -> 0 | AZ6: =+$W23 -> 0 | BA6: =+$W24 -> 0 | BB6: =+$W25 -> 0 | BC6: =+$W26 -> 0 | BD6: =+$W27 -> 0 | BE6: =+$W28 -> 0 | BF6: =+$W29 -> 0 | BG6: =+$W30 -> 0 | BH6: =+$W31 -> 0 | BI6: =+$W32 -> 0 | BJ6: =+$W33 -> 0 | BK6: =+$W34 -> 0 | BL6: =+$W35 -> 0 | BM6: =+$W36 -> 0 | BN6: =+$W37 -> 0 | BO6: =+$W38 -> 0 | BP6: =+$W39 -> 0 | BQ6: =+$W40 -> 0 | BR6: =+$W41 -> 0 | BS6: =+$W42 -> 0 | BT6: =+$W43 -> 0 | BU6: =+$W44 -> 0 | BV6: =+$W45 -> 0 | BW6: =+$W46 -> 0 | BY6: =+W47 -> 0 | CA6: =+$D48 -> 0 | CB6: =+$D49 -> 0 | CC6: =+$D50 -> 0 | CD6: =+$D51 -> 0 | CE6: =+$D52 -> 0 | CF6: =+$D53 -> 0 | CG6: =+$D54 -> 0 | CH6: =+$D55 -> 0
A7: 03-C1 | B7: H2 | C7: Air Handling Unit (Air Cooled DX / Package) | J7: 0 | K7: 0 | L7: 0 | M7: 3 | N7: 0 | O7: 0 | P7: 1 | Q7: 0 | R7: 0 | S7: 4 | T7: 0 | U7: 0 | V7: =IFERROR(VLOOKUP($A$5,'Equipment List Template'!$1:$1048576,12,FALSE),"0") -> 0 | W7: =+U7*V7 -> 0 | X7: 0
A8: 03-C1 | B8: H3 | C8: Air-Cooled Chiller | J8: 11 | K8: 0 | L8: 0 | M8: 0 | N8: 0 | O8: 0 | P8: 1 | Q8: 0 | R8: 0 | S8: 12 | T8: 0 | U8: 0 | V8: =IFERROR(VLOOKUP($A$5,'Equipment List Template'!$1:$1048576,13,FALSE),"0") -> 0 | W8: 0 | X8: 0
A9: 03-C1 | B9: H4 | C9: Centrifugal Chiller | J9: 11 | K9: 0 | L9: 0 | M9: 0 | N9: 0 | O9: 0 | P9: 1 | Q9: 0 | R9: 0 | S9: 12 | T9: 0 | U9: 0 | V9: =IFERROR(VLOOKUP($A$5,'Equipment List Template'!$1:$1048576,14,FALSE),"0") -> 0 | W9: 0 | X9: 0
A10: 03-C1 | B10: H5 | C10: Cooling Tower (Induced Draft) | J10: 8 | K10: 0 | L10: 0 | M10: 3 | N10: 0 | O10: 0 | P10: 1 | Q10: 0 | R10: 0 | S10: 12 | T10: 0 | U10: 0 | V10: =IFERROR(VLOOKUP($A$5,'Equipment List Template'!$1:$1048576,15,FALSE),"0") -> 0 | W10: 0 | X10: 0
A11: 03-C1 | B11: H6 | C11: Ice Chiller Tank | J11: 8 | K11: 0 | L11: 0 | M11: 3 | N11: 0 | O11: 0 | P11: 1 | Q11: 0 | R11: 0 | S11: 12 | T11: 0 | U11: 0 | V11: =IFERROR(VLOOKUP($A$5,'Equipment List Template'!$1:$1048576,16,FALSE),"0") -> 0 | W11: 0 | X11: 0
A12: 03-C1 | B12: H7 | C12: Geothermal System | J12: 11 | K12: 0 | L12: 0 | M12: 0 | N12: 0 | O12: 0 | P12: 1 | Q12: 0 | R12: 0 | S12: 12 | T12: 0 | U12: 0 | V12: =IFERROR(VLOOKUP($A$5,'Equipment List Template'!$1:$1048576,17,FALSE),"0") -> 0 | W12: 0 | X12: 0
A13: 03-C1 | B13: H8 | C13: Water Source Heat Pump | J13: 8 | K13: 0 | L13: 0 | M13: 3 | N13: 0 | O13: 0 | P13: 1 | Q13: 0 | R13: 0 | S13: 12 | T13: 0 | U13: 0 | V13: =IFERROR(VLOOKUP($A$5,'Equipment List Template'!$1:$1048576,18,FALSE),"0") -> 0 | W13: 0 | X13: 0
A14: 03-C1 | B14: H9 | C14: Fan Coil System | J14: 0 | K14: 0 | L14: 0 | M14: 3 | N14: 0 | O14: 0 | P14: 1 | Q14: 0 | R14: 0 | S14: 4 | T14: 0 | U14: 0 | V14: =IFERROR(VLOOKUP($A$5,'Equipment List Template'!$1:$1048576,19,FALSE),"0") -> 0 | W14: 0 | X14: 0
A15: 03-C1 | B15: H10 | C15: Supply / Return Fan and Exhaust | J15: 0 | K15: 0 | L15: 0 | M15: 3 | N15: 0 | O15: 0 | P15: 1 | Q15: 0 | R15: 0 | S15: 4 | T15: 4 | U15: 0 | V15: =IFERROR(VLOOKUP($A$5,'Equipment List Template'!$1:$1048576,20,FALSE),"0") -> 1 | W15: 0 | X15: 4
A16: 03-C1 | B16: H11 | C16: Evaporative and Spot Coolers (swamp coolers; spot cooler) | J16: 8 | K16: 0 | L16: 0 | M16: 3 | N16: 0 | O16: 0 | P16: 1 | Q16: 0 | R16: 0 | S16: 12 | T16: 0 | U16: 0 | V16: =IFERROR(VLOOKUP($A$5,'Equipment List Template'!$1:$1048576,21,FALSE),"0") -> 0 | W16: 0 | X16: 0
B17: H12 | C17: Unique HVAC System | J17: 0 | K17: 0 | L17: =+K17*J17 -> 0 | M17: 0 | N17: 0 | O17: =+N17*M17 -> 0 | P17: 0 | Q17: 0 | R17: =+Q17*P17 -> 0 | S17: 0 | T17: 0 | V17: 0 | W17: 0 | X17: 0
A18: 03-C1 | B18: E1 | C18: Electrical Panels | J18: 0 | K18: 0 | L18: 0 | M18: 3 | N18: 0 | O18: 0 | P18: 1 | Q18: 0 | R18: 0 | S18: 4 | T18: 4 | U18: 0 | V18: =IFERROR(VLOOKUP($A$5,'Equipment List Template'!$1:$1048576,23,FALSE),"0") -> 1 | W18: 0 | X18: 4
A19: 03-C1 | B19: E2 | C19: Emergency Generator | J19: 8 | K19: 0 | L19: 0 | M19: 3 | N19: 0 | O19: 0 | P19: 1 | Q19: 0 | R19: 0 | S19: 12 | T19: 12 | U19: 0 | V19: =IFERROR(VLOOKUP($A$5,'Equipment List Template'!$1:$1048576,24,FALSE),"0") -> 1 | W19: 0 | X19: 12
A20: 03-C1 | B20: E3 | C20: Motor Control Center | J20: 0 | K20: 0 | L20: 0 | M20: 3 | N20: 0 | O20: 0 | P20: 1 | Q20: 0 | R20: 0 | S20: 4 | T20: 0 | U20: 0 | V20: =IFERROR(VLOOKUP($A$5,'Equipment List Template'!$1:$1048576,25,FALSE),"0") -> 0 | W20: 0 | X20: 0
A21: 03-C1 | B21: E4 | C21: Automatic Transfer Switch | J21: 8 | K21: 0 | L21: 0 | M21: 3 | N21: 0 | O21: 0 | P21: 1 | Q21: 0 | R21: 0 | S21: 12 | T21: 12 | U21: 0 | V21: =IFERROR(VLOOKUP($A$5,'Equipment List Template'!$1:$1048576,26,FALSE),"0") -> 1 | W21: 0 | X21: 12
A22: 03-C1 | B22: E5 | C22: Building Automated Systems (BAS) | J22: 0 | K22: 0 | L22: 0 | M22: 0 | N22: 0 | O22: 0 | P22: 1 | Q22: 0 | R22: 0 | S22: 1 | T22: 1 | U22: 0 | V22: =IFERROR(VLOOKUP($A$5,'Equipment List Template'!$1:$1048576,27,FALSE),"0") -> 1 | W22: 0 | X22: 1
A23: 03-C1 | B23: E6 | C23: Transformer (Dry-Type) | J23: 0 | K23: 0 | L23: 0 | M23: 3 | N23: 0 | O23: 0 | P23: 1 | Q23: 0 | R23: 0 | S23: 4 | T23: 0 | U23: 0 | V23: =IFERROR(VLOOKUP($A$5,'Equipment List Template'!$1:$1048576,28,FALSE),"0") -> 0 | W23: 0 | X23: 0
A24: 03-C1 | B24: E7 | C24: Uninterruptible Power Supply (UPS) | J24: 0 | K24: 0 | L24: 0 | M24: 0 | N24: 0 | O24: 0 | P24: 1 | Q24: 0 | R24: 0 | S24: 1 | T24: 0 | U24: 0 | V24: =IFERROR(VLOOKUP($A$5,'Equipment List Template'!$1:$1048576,29,FALSE),"0") -> 0 | W24: 0 | X24: 0
A25: 03-C1 | B25: E8 | C25: Lighting and Controls (Interior and Exterior) | J25: 12 | K25: 0 | L25: 0 | M25: 0 | N25: 0 | O25: 0 | P25: 0 | Q25: 0 | R25: 0 | S25: 12 | T25: 12 | U25: 0 | V25: =IFERROR(VLOOKUP($A$5,'Equipment List Template'!$1:$1048576,30,FALSE),"0") -> 1 | W25: 0 | X25: 12
B26: E9 | C26: Unique Electrical System | J26: 0 | K26: 0 | L26: 0 | M26: 0 | N26: 0 | O26: 0 | P26: 0 | Q26: 0 | R26: 0 | S26: 0 | T26: 0 | V26: 0 | W26: 0 | X26: 0
A27: 03-C1 | B27: L1 | C27: Life Safety Systems | J27: 0 | K27: 0 | L27: 0 | M27: 3 | N27: 0 | O27: 0 | P27: 1 | Q27: 0 | R27: 0 | S27: 4 | T27: 4 | U27: 0 | V27: =IFERROR(VLOOKUP($A$5,'Equipment List Template'!$1:$1048576,32,FALSE),"0") -> 3 | W27: 0 | X27: 12
A28: 03-C1 | B28: L2 | C28: Reduced Pressure Backflow Preventer(s) | J28: 0 | K28: 0 | L28: 0 | M28: 0 | N28: 0 | O28: 0 | P28: 1 | Q28: 0 | R28: 0 | S28: 1 | T28: 1 | U28: 0 | V28: =IFERROR(VLOOKUP($A$5,'Equipment List Template'!$1:$1048576,33,FALSE),"0") -> 3 | W28: 0 | X28: 3
A29: 03-C1 | B29: P1 | C29: Boiler (Condensing) | J29: 8 | K29: 0 | L29: 0 | M29: 3 | N29: 0 | O29: 0 | P29: 1 | Q29: 0 | R29: 0 | S29: 12 | T29: 0 | U29: 0 | V29: =IFERROR(VLOOKUP($A$5,'Equipment List Template'!$1:$1048576,34,FALSE),"0") -> 0 | W29: 0 | X29: 0
A30: 03-C1 | B30: P2 | C30: Domestic Water Heater (Gas-Fired, Condensing) | J30: 0 | K30: 0 | L30: 0 | M30: 0 | N30: 0 | O30: 0 | P30: 1 | Q30: 0 | R30: 0 | S30: 1 | T30: 1 | U30: 0 | V30: =IFERROR(VLOOKUP($A$5,'Equipment List Template'!$1:$1048576,35,FALSE),"0") -> 1 | W30: 0 | X30: 1
A31: 03-C1 | B31: P3 | C31: Domestic Water Heater (Electric, Non- Condensing) | J31: 0 | K31: 0 | L31: 0 | M31: 0 | N31: 0 | O31: 0 | P31: 1 | Q31: 0 | R31: 0 | S31: 1 | T31: 0 | U31: 0 | V31: =IFERROR(VLOOKUP($A$5,'Equipment List Template'!$1:$1048576,36,FALSE),"0") -> 0 | W31: 0 | X31: 0
A32: 03-C1 | B32: P4 | C32: Boiler (Steam, low pressure) | J32: 0 | K32: 0 | L32: 0 | M32: 3 | N32: 0 | O32: 0 | P32: 1 | Q32: 0 | R32: 0 | S32: 4 | T32: 0 | U32: 0 | V32: =IFERROR(VLOOKUP($A$5,'Equipment List Template'!$1:$1048576,37,FALSE),"0") -> 0 | W32: 0 | X32: 0
A33: 03-C1 | B33: P5 | C33: Steam System | J33: 8 | K33: 0 | L33: 0 | M33: 3 | N33: 0 | O33: 0 | P33: 1 | Q33: 0 | R33: 0 | S33: 12 | T33: 0 | U33: 0 | V33: =IFERROR(VLOOKUP($A$5,'Equipment List Template'!$1:$1048576,38,FALSE),"0") -> 0 | W33: 0 | X33: 0
A34: 03-C1 | B34: P6 | C34: Pneumatic Compressor System | J34: 11 | K34: 0 | L34: 0 | M34: 0 | N34: 0 | O34: 0 | P34: 1 | Q34: 0 | R34: 0 | S34: 12 | T34: 0 | U34: 0 | V34: =IFERROR(VLOOKUP($A$5,'Equipment List Template'!$1:$1048576,39,FALSE),"0") -> 0 | W34: 0 | X34: 0
B35: P7 | C35: Unique Plumbing System | J35: 0 | K35: 0 | L35: =+K35*J35 -> 0 | M35: 0 | N35: 0 | O35: =+N35*M35 -> 0 | P35: 0 | Q35: 0 | R35: =+Q35*P35 -> 0 | S35: 0 | T35: 0 | U35: =+R35+O35+L35+I35+F35 -> 0 | V35: 0 | W35: 0 | X35: 0
A36: 03-C1 | B36: R1 | C36: Rounds and Readings | D36: =IFERROR(IF(VLOOKUP($A36,'Equipment List Template'!$1:$1048576,38,FALSE)=248,248,0),0) -> 0 | E36: 0 | F36: =+E36*D36 -> 0 | G36: =IFERROR(IF(VLOOKUP($A36,'Equipment List Template'!$1:$1048576,38,FALSE)=40,40,0),0) -> 0 | H36: 0 | I36: =+H36*G36 -> 0 | J36: 12 | K36: 0 | L36: 0 | S36: =+$J36+$M36+$P36+D36+G36 -> 12 | T36: 12 | U36: =+R36+O36+L36+I36+F36 -> 0 | V36: 1 | W36: =+U36*V36 -> 0 | X36: 12
A37: 03-C1 | B37: V1 | C37: Vertical Transportation | J37: 8 | K37: 0 | L37: =+K37*J37 -> 0 | M37: 3 | N37: 0 | O37: =+N37*M37 -> 0 | P37: 1 | Q37: 0 | R37: =+Q37*P37 -> 0 | S37: =+$J37+$M37+$P37+D37+G37 -> 12 | T37: 0 | U37: =+R37+O37+L37 -> 0 | V37: =IFERROR(VLOOKUP($A$5,'Equipment List Template'!$1:$1048576,42,FALSE),"0") -> 0 | W37: =+U37*V37 -> 0 | X37: 0
A38: 03-C1 | B38: W1 | C38: Water Treatment | D38: =IFERROR(IF(VLOOKUP($A38,'Equipment List Template'!$1:$1048576,40,FALSE)=248,260,0),0) -> 0 | E38: 0 | F38: =+E38*D38 -> 0 | S38: 0 | T38: 0 | U38: =+R38+O38+L38+I38+F38 -> 0 | V38: 1 | W38: 0 | X38: 0
A39: 03-C1 | B39: B1 | C39: Building Exterior / Hardscape (Monthly) | J39: 12 | K39: 0 | L39: =+K39*J39 -> 0 | S39: 12 | T39: 12 | U39: 0 | V39: =IFERROR(VLOOKUP($A$5,'Equipment List Template'!$1:$1048576,44,FALSE),"0") -> 1 | W39: 0 | X39: 12
A40: 03-C1 | B40: F1 | C40: Fountain Maintenance (Monthly) | J40: 12 | K40: 0 | L40: =+K40*J40 -> 0 | S40: 12 | T40: 0 | U40: 0 | V40: =IFERROR(VLOOKUP($A$5,'Equipment List Template'!$1:$1048576,45,FALSE),"0") -> 0 | W40: 0 | X40: 0
A41: 03-C1 | B41: F2 | C41: Above-Ground/Underground Fuel Storage Tanks (Quarterly) If applicable | M41: 4 | N41: 0 | O41: =+N41*M41 -> 0 | S41: 4 | T41: 0 | U41: 0 | V41: =IFERROR(VLOOKUP($A$5,'Equipment List Template'!$1:$1048576,46,FALSE),"0") -> 0 | W41: 0 | X41: 0
A42: 03-C1 | B42: G1 | C42: Landscape Maintenance * | S42: 0 | T42: 0 | U42: 0 | V42: =IFERROR(VLOOKUP($A$5,'Equipment List Template'!$1:$1048576,47,FALSE),"0") -> 1 | W42: 0 | X42: 0
B43: PC1 | C43: Pest Control (Monthly) | J43: 12 | K43: 0 | L43: =+K43*J43 -> 0 | S43: 12 | T43: 12 | U43: 0 | V43: 1 | W43: 0 | X43: 12
B44: PV1 | C44: Photovoltaic (PV) System | P44: 1 | Q44: 0 | R44: =+Q44*P44 -> 0 | S44: 1 | T44: 0 | U44: 0 | V44: 0 | W44: =+U44*V44 -> 0 | X44: 0
A45: 03-C1 | B45: C1 | C45: Account Management and Supervision (Monthly) | J45: 12 | K45: 0 | L45: =+K45*J45 -> 0 | S45: 12 | T45: 12 | U45: 0 | V45: 1 | W45: 0 | X45: 12
A46: 03-C1 | B46: C2 | C46: Fee (Monthly) | J46: 12 | K46: 0 | L46: =+K46*J46 -> 0 | S46: 12 | T46: 12 | U46: 0 | V46: 1 | W46: 0 | X46: 12
Q47: JCC ID | R47: =B2 -> 03-C1 | U47: Total | W47: =SUM(W5:W46) -> 0
B48: S1 | C48: Snow Removal - (crew hourly rate) | D48: 0 | U48: Total # of PM's | W48: =SUM($X$5:$X$46) -> 245
B49: I1 | C49: Unclogging Blocked Toilet - In-custody cell (labor-only) | D49: 0
B50: I2 | C50: Unclogging Blocked Toilet - Public/Court Staff (labor-only) | D50: 0
B51: I3 | C51: Clean up & Disposal of Biological Waste Event | D51: 0
B52: I4 | C52: Clean up & Disposal of Biological Waste Labor Rate | D52: 0
B53: Hr 1 | C53: Hourly Rate (All Labor categories) | D53: 0
B54: M1 | C54: Markup on Materials (Percentage) | D54: 0
B55: Sub1 | C55: Markup on Subcontractors/Third-Parties (Percentage) | D55: 0
B57: * Landscape Maintenance varies by location on the number of weeks per year it can be preformed. For the purpose of the RFP, all facilities are pre-established at 40 weeks of service. The actual amount paid by facility will be based upon the actual weeks that service has been performed, validated and invoiced.

Sheet 04-A1
B1: JCC ID | C1: Facility Name | D1: Address | F1: City / Town | H1: Zip Code | J1: County | L1: Region | N1: RFP | P1: Proposer
B2: 04-A1 | C2: =IFERROR(VLOOKUP($B$2,'Equipment List Template'!$1:$1048576,2,FALSE),"") -> Butte County Courthouse | D2: =IFERROR(VLOOKUP($B$2,'Equipment List Template'!$1:$1048576,3,FALSE),"") -> 1 Court St. | F2: =IFERROR(VLOOKUP($B$2,'Equipment List Template'!$1:$1048576,4,FALSE),"") -> Oroville | H2: =IFERROR(VLOOKUP($B$2,'Equipment List Template'!$1:$1048576,5,FALSE),"") -> 95965 | J2: =IFERROR(VLOOKUP($B$2,'Equipment List Template'!$1:$1048576,6,FALSE),"") -> Butte | L2: =IFERROR(VLOOKUP($B$2,'Equipment List Template'!$1:$1048576,7,FALSE),"") -> NCRO | N2: ='Summary Pricing Sheet'!B2 -> RFP-FS-SP-2019-03-JP | P2: ='Summary Pricing Sheet'!B3 -> Firm Name TBD
D3: Daily Activity | G3: Weekly Activity | J3: Monthly Activity | M3: Quarterly Activity | P3: Annual Activity | U3: Summary | AG3: System | AH3: Access | AI3: HVAC | AU3: Electrical | BD3: Life Safety | BF3: Plumbing | BM3: Building Systems | BV3: Corporate | BY3: Fixed Price - Facility Total Annual Cost Year 1 | CA3: Unit Pricing
B4: System ID | C4: Subsystem | D4: Quantity | E4: Cost | F4: Daily Total | G4: Quantity | H4: Cost | I4: Weekly Total | J4: Monthly Quantity | K4: Cost | L4: Monthly Total | M4: Quarterly Quantity | N4: Cost | O4: Quarterly Total | P4: Annual Quantity | Q4: Cost | R4: Annual PM Total | T4: Number of PM's | U4: Annual Cost | V4: Quantity | W4: Total Annual Cost | AG4: Subsystem | AH4: Access Doors, Gates, Sally Port | AI4: Air Cooled DX (Split System) | AJ4: Air Handling Unit (Air Cooled DX / Package) | AK4: Air-Cooled Chiller | AL4: Centrifugal Chiller | AM4: Cooling Tower (Induced Draft) | AN4: Ice Chiller Tank | AO4: Geothermal System | AP4: Water Source Heat Pump | AQ4: Fan Coil System | AR4: Supply / Return Fan and Exhaust | AS4: Evaporative and Spot Coolers (swamp coolers; spot cooler) | AT4: Unique HVAC System | AU4: Electrical Panels | AV4: Emergency Generator | AW4: Motor Control Center | AX4: Automatic Transfer Switch | AY4: Building Automated Systems (BAS) | AZ4: Transformer (Dry-Type) | BA4: Uninterruptible Power Supply (UPS) | BB4: Lighting and Controls (Interior and Exterior) | BC4: Unique Electrical System | BD4: Life Safety Systems | BE4: Reduced Pressure Backflow Preventer(s) | BF4: Boiler (Condensing) | BG4: Domestic Water Heater (Gas-Fired, Condensing) | BH4: Domestic Water Heater (Electric, Non- Condensing) | BI4: Boiler (Steam, low pressure) | BJ4: Steam System | BK4: Pneumatic Compressor System | BL4: Unique Plumbing System | BM4: Rounds and Readings | BN4: Vertical Transportation | BO4: Water Treatment | BP4: Building Exterior / Hardscape (Monthly) | BQ4: Fountain Maintenance (Monthly) | BR4: Above-Ground/Underground Fuel Storage Tanks (Quarterly) If applicable | BS4: Landscape Maintenance * | BT4: Pest Control (Monthly) | BU4: Photovoltaic (PV) System | BV4: Account Management and Supervision (Monthly) | BW4: Fee (Monthly) | CA4: Snow Removal - (crew hourly rate) | CB4: Unclogging Blocked Toilet - In-custody holding cell (labor) | CC4: Unclogging Blocked Toilet - Public/Court Staff (labor) | CD4: Clean up & Disposal of Biological Waste Event | CE4: Clean up & Disposal of Biological Waste Labor Rate | CF4: Hourly Rate | CG4: Markup on Materials | CH4: Markup on Subcontractors/Third-Parties
A5: =$B$2 -> 04-A1 | B5: A1 | C5: Access Doors, Gates, Sally Port | J5: 11 | K5: 0 | L5: =+K5*J5 -> 0 | M5: 0 | N5: 0 | O5: =+N5*M5 -> 0 | P5: 1 | Q5: 0 | R5: =+Q5*P5 -> 0 | S5: =+$J5+$M5+$P5 -> 12 | T5: =IF($V5>0,$S5,0) -> 12 | U5: =+R5+O5+L5+I5+F5 -> 0 | V5: =IFERROR(VLOOKUP($A$5,'Equipment List Template'!$1:$1048576,10,FALSE),"0") -> 3 | W5: =+U5*V5 -> 0 | X5: =$T5*$V5 -> 36 | Z5: JCC ID | AA5: Facility Name | AB5: Address | AC5: City / Town | AD5: County | AE5: Region | AF5: Region | AG5: System ID | AH5: A1 | AI5: H1 | AJ5: H2 | AK5: H3 | AL5: H4 | AM5: H5 | AN5: H6 | AO5: H7 | AP5: H8 | AQ5: H9 | AR5: H10 | AS5: H11 | AT5: H12 | AU5: E1 | AV5: E2 | AW5: E3 | AX5: E4 | AY5: E5 | AZ5: E6 | BA5: E7 | BB5: E8 | BC5: E9 | BD5: L1 | BE5: L2 | BF5: P1 | BG5: P2 | BH5: P3 | BI5: P4 | BJ5: P5 | BK5: P6 | BL5: P7 | BM5: R1 | BN5: V1 | BO5: W1 | BP5: B1 | BQ5: F1 | BR5: F2 | BS5: G1 | BT5: PC1 | BU5: PV1 | BV5: C1 | BW5: C2 | CA5: S1 | CB5: I1 | CC5: I2 | CD5: I3 | CE5: I4 | CF5: Hr 1 | CG5: M1 | CH5: Sub1
A6: =$B$2 -> 04-A1 | B6: H1 | C6: Air Cooled DX (Split System) | J6: 0 | K6: 0 | L6: =+K6*J6 -> 0 | M6: 3 | N6: 0 | O6: =+N6*M6 -> 0 | P6: 1 | Q6: 0 | R6: =+Q6*P6 -> 0 | S6: =+$J6+$M6+$P6 -> 4 | T6: =IF($V6>0,$S6,0) -> 4 | U6: =+R6+O6+L6+I6+F6 -> 0 | V6: =IFERROR(VLOOKUP($A$5,'Equipment List Template'!$1:$1048576,11,FALSE),"0") -> 21 | W6: =+U6*V6 -> 0 | X6: =$T6*$V6 -> 84 | Z6: =B2 -> 04-A1 | AA6: =IFERROR(VLOOKUP($Z$6,'Equipment List Template'!$1:$1048576,2,FALSE),"") -> Butte County Courthouse | AB6: =IFERROR(VLOOKUP($Z$6,'Equipment List Template'!$1:$1048576,3,FALSE),"") -> 1 Court St. | AC6: =IFERROR(VLOOKUP($Z$6,'Equipment List Template'!$1:$1048576,4,FALSE),"") -> Oroville | AD6: =IFERROR(VLOOKUP($Z$6,'Equipment List Template'!$1:$1048576,5,FALSE),"") -> 95965 | AE6: =IFERROR(VLOOKUP($Z$6,'Equipment List Template'!$1:$1048576,6,FALSE),"") -> Butte | AF6: =IFERROR(VLOOKUP($Z$6,'Equipment List Template'!$1:$1048576,7,FALSE),"") -> NCRO | AH6: =+$W5 -> 0 | AI6: =+$W6 -> 0 | AJ6: =+$W7 -> 0 | AK6: =+$W8 -> 0 | AL6: =+$W9 -> 0 | AM6: =+$W10 -> 0 | AN6: =+$W11 -> 0 | AO6: =+$W12 -> 0 | AP6: =+$W13 -> 0 | AQ6: =+$W14 -> 0 | AR6: =+$W15 -> 0 | AS6: =+$W16 -> 0 | AT6: =+$W17 -> 0 | AU6: =+$W18 -> 0 | AV6: =+$W19 -> 0 | AW6: =+$W20 -> 0 | AX6: =+$W21 -> 0 | AY6: =+$W22 -> 0 | AZ6: =+$W23 -> 0 | BA6: =+$W24 -> 0 | BB6: =+$W25 -> 0 | BC6: =+$W26 -> 0 | BD6: =+$W27 -> 0 | BE6: =+$W28 -> 0 | BF6: =+$W29 -> 0 | BG6: =+$W30 -> 0 | BH6: =+$W31 -> 0 | BI6: =+$W32 -> 0 | BJ6: =+$W33 -> 0 | BK6: =+$W34 -> 0 | BL6: =+$W35 -> 0 | BM6: =+$W36 -> 0 | BN6: =+$W37 -> 0 | BO6: =+$W38 -> 0 | BP6: =+$W39 -> 0 | BQ6: =+$W40 -> 0 | BR6: =+$W41 -> 0 | BS6: =+$W42 -> 0 | BT6: =+$W43 -> 0 | BU6: =+$W44 -> 0 | BV6: =+$W45 -> 0 | BW6: =+$W46 -> 0 | BY6: =+W47 -> 0 | CA6: =+$D48 -> 0 | CB6: =+$D49 -> 0 | CC6: =+$D50 -> 0 | CD6: =+$D51 -> 0 | CE6: =+$D52 -> 0 | CF6: =+$D53 -> 0 | CG6: =+$D54 -> 0 | CH6: =+$D55 -> 0
A7: =$B$2 -> 04-A1 | B7: H2 | C7: Air Handling Unit (Air Cooled DX / Package) | J7: 0 | K7: 0 | L7: =+K7*J7 -> 0 | M7: 3 | N7: 0 | O7: =+N7*M7 -> 0 | P7: 1 | Q7: 0 | R7: =+Q7*P7 -> 0 | S7: =+$J7+$M7+$P7 -> 4 | T7: =IF($V7>0,$S7,0) -> 0 | U7: =+R7+O7+L7+I7+F7 -> 0 | V7: =IFERROR(VLOOKUP($A$5,'Equipment List Template'!$1:$1048576,12,FALSE),"0") -> 0 | W7: =+U7*V7 -> 0 | X7: =$T7*$V7 -> 0
A8: 04-A1 | B8: H3 | C8: Air-Cooled Chiller | J8: 11 | K8: 0 | L8: 0 | M8: 0 | N8: 0 | O8: 0 | P8: 1 | Q8: 0 | R8: 0 | S8: 12 | T8: 0 | U8: 0 | V8: =IFERROR(VLOOKUP($A$5,'Equipment List Template'!$1:$1048576,13,FALSE),"0") -> 0 | W8: 0 | X8: 0
A9: 04-A1 | B9: H4 | C9: Centrifugal Chiller | J9: 11 | K9: 0 | L9: 0 | M9: 0 | N9: 0 | O9: 0 | P9: 1 | Q9: 0 | R9: 0 | S9: 12 | T9: 12 | U9: 0 | V9: =IFERROR(VLOOKUP($A$5,'Equipment List Template'!$1:$1048576,14,FALSE),"0") -> 1 | W9: 0 | X9: 12
A10: 04-A1 | B10: H5 | C10: Cooling Tower (Induced Draft) | J10: 8 | K10: 0 | L10: 0 | M10: 3 | N10: 0 | O10: 0 | P10: 1 | Q10: 0 | R10: 0 | S10: 12 | T10: 12 | U10: 0 | V10: =IFERROR(VLOOKUP($A$5,'Equipment List Template'!$1:$1048576,15,FALSE),"0") -> 2 | W10: 0 | X10: 24
A11: 04-A1 | B11: H6 | C11: Ice Chiller Tank | J11: 8 | K11: 0 | L11: 0 | M11: 3 | N11: 0 | O11: 0 | P11: 1 | Q11: 0 | R11: 0 | S11: 12 | T11: 0 | U11: 0 | V11: =IFERROR(VLOOKUP($A$5,'Equipment List Template'!$1:$1048576,16,FALSE),"0") -> 0 | W11: 0 | X11: 0
A12: 04-A1 | B12: H7 | C12: Geothermal System | J12: 11 | K12: 0 | L12: 0 | M12: 0 | N12: 0 | O12: 0 | P12: 1 | Q12: 0 | R12: 0 | S12: 12 | T12: 0 | U12: 0 | V12: =IFERROR(VLOOKUP($A$5,'Equipment List Template'!$1:$1048576,17,FALSE),"0") -> 0 | W12: 0 | X12: 0
A13: 04-A1 | B13: H8 | C13: Water Source Heat Pump | J13: 8 | K13: 0 | L13: 0 | M13: 3 | N13: 0 | O13: 0 | P13: 1 | Q13: 0 | R13: 0 | S13: 12 | T13: 0 | U13: 0 | V13: =IFERROR(VLOOKUP($A$5,'Equipment List Template'!$1:$1048576,18,FALSE),"0") -> 0 | W13: 0 | X13: 0
A14: 04-A1 | B14: H9 | C14: Fan Coil System | J14: 0 | K14: 0 | L14: 0 | M14: 3 | N14: 0 | O14: 0 | P14: 1 | Q14: 0 | R14: 0 | S14: 4 | T14: 0 | U14: 0 | V14: =IFERROR(VLOOKUP($A$5,'Equipment List Template'!$1:$1048576,19,FALSE),"0") -> 0 | W14: 0 | X14: 0
A15: 04-A1 | B15: H10 | C15: Supply / Return Fan and Exhaust | J15: 0 | K15: 0 | L15: 0 | M15: 3 | N15: 0 | O15: 0 | P15: 1 | Q15: 0 | R15: 0 | S15: 4 | T15: 4 | U15: 0 | V15: =IFERROR(VLOOKUP($A$5,'Equipment List Template'!$1:$1048576,20,FALSE),"0") -> 8 | W15: 0 | X15: 32
A16: 04-A1 | B16: H11 | C16: Evaporative and Spot Coolers (swamp coolers; spot cooler) | J16: 8 | K16: 0 | L16: 0 | M16: 3 | N16: 0 | O16: 0 | P16: 1 | Q16: 0 | R16: 0 | S16: 12 | T16: 0 | U16: 0 | V16: =IFERROR(VLOOKUP($A$5,'Equipment List Template'!$1:$1048576,21,FALSE),"0") -> 0 | W16: 0 | X16: 0
B17: H12 | C17: Unique HVAC System | J17: 0 | K17: 0 | L17: 0 | M17: 0 | N17: 0 | O17: 0 | P17: 0 | Q17: 0 | R17: 0 | S17: 0 | T17: 0 | V17: 0 | W17: 0
A18: 04-A1 | B18: E1 | C18: Electrical Panels | J18: 0 | K18: 0 | L18: 0 | M18: 3 | N18: 0 | O18: 0 | P18: 1 | Q18: 0 | R18: 0 | S18: 4 | T18: 4 | U18: 0 | V18: =IFERROR(VLOOKUP($A$5,'Equipment List Template'!$1:$1048576,23,FALSE),"0") -> 2 | W18: 0 | X18: 8
A19: 04-A1 | B19: E2 | C19: Emergency Generator | J19: 8 | K19: 0 | L19: 0 | M19: 3 | N19: 0 | O19: 0 | P19: 1 | Q19: 0 | R19: 0 | S19: 12 | T19: 12 | U19: 0 | V19: =IFERROR(VLOOKUP($A$5,'Equipment List Template'!$1:$1048576,24,FALSE),"0") -> 1 | W19: 0 | X19: 12
A20: 04-A1 | B20: E3 | C20: Motor Control Center | J20: 0 | K20: 0 | L20: 0 | M20: 3 | N20: 0 | O20: 0 | P20: 1 | Q20: 0 | R20: 0 | S20: 4 | T20: 0 | U20: 0 | V20: =IFERROR(VLOOKUP($A$5,'Equipment List Template'!$1:$1048576,25,FALSE),"0") -> 0 | W20: 0 | X20: 0
A21: 04-A1 | B21: E4 | C21: Automatic Transfer Switch | J21: 8 | K21: 0 | L21: 0 | M21: 3 | N21: 0 | O21: 0 | P21: 1 | Q21: 0 | R21: 0 | S21: 12 | T21: 12 | U21: 0 | V21: =IFERROR(VLOOKUP($A$5,'Equipment List Template'!$1:$1048576,26,FALSE),"0") -> 1 | W21: 0 | X21: 12
A22: 04-A1 | B22: E5 | C22: Building Automated Systems (BAS) | J22: 0 | K22: 0 | L22: 0 | M22: 0 | N22: 0 | O22: 0 | P22: 1 | Q22: 0 | R22: 0 | S22: 1 | T22: 1 | U22: 0 | V22: =IFERROR(VLOOKUP($A$5,'Equipment List Template'!$1:$1048576,27,FALSE),"0") -> 1 | W22: 0 | X22: 1
A23: 04-A1 | B23: E6 | C23: Transformer (Dry-Type) | J23: 0 | K23: 0 | L23: 0 | M23: 3 | N23: 0 | O23: 0 | P23: 1 | Q23: 0 | R23: 0 | S23: 4 | T23: 4 | U23: 0 | V23: =IFERROR(VLOOKUP($A$5,'Equipment List Template'!$1:$1048576,28,FALSE),"0") -> 3 | W23: 0 | X23: 12
A24: 04-A1 | B24: E7 | C24: Uninterruptible Power Supply (UPS) | J24: 0 | K24: 0 | L24: 0 | M24: 0 | N24: 0 | O24: 0 | P24: 1 | Q24: 0 | R24: 0 | S24: 1 | T24: 0 | U24: 0 | V24: =IFERROR(VLOOKUP($A$5,'Equipment List Template'!$1:$1048576,29,FALSE),"0") -> 0 | W24: 0 | X24: 0
A25: 04-A1 | B25: E8 | C25: Lighting and Controls (Interior and Exterior) | J25: 12 | K25: 0 | L25: 0 | M25: 0 | N25: 0 | O25: 0 | P25: 0 | Q25: 0 | R25: 0 | S25: 12 | T25: 12 | U25: 0 | V25: =IFERROR(VLOOKUP($A$5,'Equipment List Template'!$1:$1048576,30,FALSE),"0") -> 1 | W25: 0 | X25: 12
B26: E9 | C26: Unique Electrical System | J26: 0 | K26: 0 | L26: 0 | M26: 0 | N26: 0 | O26: 0 | P26: 0 | Q26: 0 | R26: 0 | S26: 0 | T26: 0 | V26: 0 | W26: 0
A27: 04-A1 | B27: L1 | C27: Life Safety Systems | J27: 0 | K27: 0 | L27: 0 | M27: 3 | N27: 0 | O27: 0 | P27: 1 | Q27: 0 | R27: 0 | S27: 4 | T27: 4 | U27: 0 | V27: =IFERROR(VLOOKUP($A$5,'Equipment List Template'!$1:$1048576,32,FALSE),"0") -> 5 | W27: 0 | X27: 20
A28: 04-A1 | B28: L2 | C28: Reduced Pressure Backflow Preventer(s) | J28: 0 | K28: 0 | L28: 0 | M28: 0 | N28: 0 | O28: 0 | P28: 1 | Q28: 0 | R28: 0 | S28: 1 | T28: 1 | U28: 0 | V28: =IFERROR(VLOOKUP($A$5,'Equipment List Template'!$1:$1048576,33,FALSE),"0") -> 7 | W28: 0 | X28: 7
A29: 04-A1 | B29: P1 | C29: Boiler (Condensing) | J29: 8 | K29: 0 | L29: 0 | M29: 3 | N29: 0 | O29: 0 | P29: 1 | Q29: 0 | R29: 0 | S29: 12 | T29: 12 | U29: 0 | V29: =IFERROR(VLOOKUP($A$5,'Equipment List Template'!$1:$1048576,34,FALSE),"0") -> 1 | W29: 0 | X29: 12
A30: 04-A1 | B30: P2 | C30: Domestic Water Heater (Gas-Fired, Condensing) | J30: 0 | K30: 0 | L30: 0 | M30: 0 | N30: 0 | O30: 0 | P30: 1 | Q30: 0 | R30: 0 | S30: 1 | T30: 1 | U30: 0 | V30: =IFERROR(VLOOKUP($A$5,'Equipment List Template'!$1:$1048576,35,FALSE),"0") -> 1 | W30: 0 | X30: 1
A31: 04-A1 | B31: P3 | C31: Domestic Water Heater (Electric, Non- Condensing) | J31: 0 | K31: 0 | L31: 0 | M31: 0 | N31: 0 | O31: 0 | P31: 1 | Q31: 0 | R31: 0 | S31: 1 | T31: 1 | U31: 0 | V31: =IFERROR(VLOOKUP($A$5,'Equipment List Template'!$1:$1048576,36,FALSE),"0") -> 2 | W31: 0 | X31: 2
A32: 04-A1 | B32: P4 | C32: Boiler (Steam, low pressure) | J32: 0 | K32: 0 | L32: 0 | M32: 3 | N32: 0 | O32: 0 | P32: 1 | Q32: 0 | R32: 0 | S32: 4 | T32: 0 | U32: 0 | V32: =IFERROR(VLOOKUP($A$5,'Equipment List Template'!$1:$1048576,37,FALSE),"0") -> 0 | W32: 0 | X32: 0
A33: 04-A1 | B33: P5 | C33: Steam System | J33: 8 | K33: 0 | L33: 0 | M33: 3 | N33: 0 | O33: 0 | P33: 1 | Q33: 0 | R33: 0 | S33: 12 | T33: 0 | U33: 0 | V33: =IFERROR(VLOOKUP($A$5,'Equipment List Template'!$1:$1048576,38,FALSE),"0") -> 0 | W33: 0 | X33: 0
A34: 04-A1 | B34: P6 | C34: Pneumatic Compressor System | J34: 11 | K34: 0 | L34: 0 | M34: 0 | N34: 0 | O34: 0 | P34: 1 | Q34: 0 | R34: 0 | S34: 12 | T34: 0 | U34: 0 | V34: =IFERROR(VLOOKUP($A$5,'Equipment List Template'!$1:$1048576,39,FALSE),"0") -> 0 | W34: 0 | X34: 0
B35: P7 | C35: Unique Plumbing System | J35: 0 | K35: 0 | L35: 0 | M35: 0 | N35: 0 | O35: 0 | P35: 0 | Q35: 0 | R35: 0 | S35: 0 | T35: 0 | U35: 0 | V35: 0 | W35: 0
A36: 04-A1 | B36: R1 | C36: Rounds and Readings | D36: =IFERROR(IF(VLOOKUP($A36,'Equipment List Template'!$1:$1048576,38,FALSE)=248,248,0),0) -> 0 | E36: 0 | F36: =+E36*D36 -> 0 | G36: =IFERROR(IF(VLOOKUP($A36,'Equipment List Template'!$1:$1048576,38,FALSE)=40,40,0),0) -> 0 | H36: 0 | I36: =+H36*G36 -> 0 | J36: 12 | K36: 0 | L36: 0 | S36: =+$J36+$M36+$P36+D36+G36 -> 12 | T36: 12 | U36: =+R36+O36+L36+I36+F36 -> 0 | V36: 1 | W36: =+U36*V36 -> 0 | X36: 12
A37: 04-A1 | B37: V1 | C37: Vertical Transportation | J37: 8 | K37: 0 | L37: =+K37*J37 -> 0 | M37: 3 | N37: 0 | O37: =+N37*M37 -> 0 | P37: 1 | Q37: 0 | R37: =+Q37*P37 -> 0 | S37: =+$J37+$M37+$P37+D37+G37 -> 12 | T37: 12 | U37: =+R37+O37+L37 -> 0 | V37: =IFERROR(VLOOKUP($A$5,'Equipment List Template'!$1:$1048576,42,FALSE),"0") -> 10 | W37: =+U37*V37 -> 0 | X37: 120
A38: 04-A1 | B38: W1 | C38: Water Treatment | D38: =IFERROR(IF(VLOOKUP($A38,'Equipment List Template'!$1:$1048576,40,FALSE)=248,260,0),0) -> 0 | E38: 0 | F38: =+E38*D38 -> 0 | S38: 0 | T38: 0 | U38: =+R38+O38+L38+I38+F38 -> 0 | V38: 1 | W38: 0 | X38: 0
A39: 04-A1 | B39: B1 | C39: Building Exterior / Hardscape (Monthly) | J39: 12 | K39: 0 | L39: =+K39*J39 -> 0 | S39: 12 | T39: 12 | U39: 0 | V39: =IFERROR(VLOOKUP($A$5,'Equipment List Template'!$1:$1048576,44,FALSE),"0") -> 1 | W39: 0 | X39: 12
A40: 04-A1 | B40: F1 | C40: Fountain Maintenance (Monthly) | J40: 12 | K40: 0 | L40: =+K40*J40 -> 0 | S40: 12 | T40: 0 | U40: 0 | V40: =IFERROR(VLOOKUP($A$5,'Equipment List Template'!$1:$1048576,45,FALSE),"0") -> 0 | W40: 0 | X40: 0
A41: 04-A1 | B41: F2 | C41: Above-Ground/Underground Fuel Storage Tanks (Quarterly) If applicable | M41: 4 | N41: 0 | O41: =+N41*M41 -> 0 | S41: 4 | T41: 0 | U41: 0 | V41: =IFERROR(VLOOKUP($A$5,'Equipment List Template'!$1:$1048576,46,FALSE),"0") -> 0 | W41: 0 | X41: 0
A42: 04-A1 | B42: G1 | C42: Landscape Maintenance * | S42: 0 | T42: 0 | U42: 0 | V42: =IFERROR(VLOOKUP($A$5,'Equipment List Template'!$1:$1048576,47,FALSE),"0") -> 1 | W42: 0 | X42: 0
B43: PC1 | C43: Pest Control (Monthly) | J43: 12 | K43: 0 | L43: =+K43*J43 -> 0 | S43: 12 | T43: 12 | U43: 0 | V43: 1 | W43: 0 | X43: 12
B44: PV1 | C44: Photovoltaic (PV) System | P44: 1 | Q44: 0 | R44: =+Q44*P44 -> 0 | S44: 1 | T44: 0 | U44: 0 | V44: 0 | W44: 0
A45: 04-A1 | B45: C1 | C45: Account Management and Supervision (Monthly) | J45: 12 | K45: 0 | L45: =+K45*J45 -> 0 | S45: 12 | T45: 12 | U45: 0 | V45: 1 | W45: 0 | X45: 12
A46: 04-A1 | B46: C2 | C46: Fee (Monthly) | J46: 12 | K46: 0 | L46: =+K46*J46 -> 0 | S46: 12 | T46: 12 | U46: 0 | V46: 1 | W46: 0 | X46: 12
Q47: JCC ID | R47: =B2 -> 04-A1 | U47: Total | W47: =SUM(W5:W46) -> 0
B48: S1 | C48: Snow Removal - (crew hourly rate) | D48: 0 | U48: Total # of PM's | W48: =SUM($X$5:$X$46) -> 467
B49: I1 | C49: Unclogging Blocked Toilet - In-custody cell (labor-only) | D49: 0
B50: I2 | C50: Unclogging Blocked Toilet - Public/Court Staff (labor-only) | D50: 0
B51: I3 | C51: Clean up & Disposal of Biological Waste Event | D51: 0
B52: I4 | C52: Clean up & Disposal of Biological Waste Labor Rate | D52: 0
B53: Hr 1 | C53: Hourly Rate (All Labor categories) | D53: 0
B54: M1 | C54: Markup on Materials (Percentage) | D54: 0
B55: Sub1 | C55: Markup on Subcontractors/Third-Parties (Percentage) | D55: 0
B57: * Landscape Maintenance varies by location on the number of weeks per year it can be preformed. For the purpose of the RFP, all facilities are pre-established at 40 weeks of service. The actual amount paid by facility will be based upon the actual weeks that service has been performed, validated and invoiced.

Sheet 04-F1
B1: JCC ID | C1: Facility Name | D1: Address | F1: City / Town | H1: Zip Code | J1: County | L1: Region | N1: RFP | P1: Proposer
B2: 04-F1 | C2: =IFERROR(VLOOKUP($B$2,'Equipment List Template'!$1:$1048576,2,FALSE),"") -> North Butte County Courthouse | D2: =IFERROR(VLOOKUP($B$2,'Equipment List Template'!$1:$1048576,3,FALSE),"") -> 1775 Concord Avenue | F2: =IFERROR(VLOOKUP($B$2,'Equipment List Template'!$1:$1048576,4,FALSE),"") -> Chico | H2: =IFERROR(VLOOKUP($B$2,'Equipment List Template'!$1:$1048576,5,FALSE),"") -> 95928 | J2: =IFERROR(VLOOKUP($B$2,'Equipment List Template'!$1:$1048576,6,FALSE),"") -> Butte | L2: =IFERROR(VLOOKUP($B$2,'Equipment List Template'!$1:$1048576,7,FALSE),"") -> NCRO | N2: ='Summary Pricing Sheet'!B2 -> RFP-FS-SP-2019-03-JP | P2: ='Summary Pricing Sheet'!B3 -> Firm Name TBD
D3: Daily Activity | G3: Weekly Activity | J3: Monthly Activity | M3: Quarterly Activity | P3: Annual Activity | U3: Summary | AG3: System | AH3: Access | AI3: HVAC | AU3: Electrical | BD3: Life Safety | BF3: Plumbing | BM3: Building Systems | BV3: Corporate | BY3: Fixed Price - Facility Total Annual Cost Year 1 | CA3: Unit Pricing
B4: System ID | C4: Subsystem | D4: Quantity | E4: Cost | F4: Daily Total | G4: Quantity | H4: Cost | I4: Weekly Total | J4: Monthly Quantity | K4: Cost | L4: Monthly Total | M4: Quarterly Quantity | N4: Cost | O4: Quarterly Total | P4: Annual Quantity | Q4: Cost | R4: Annual PM Total | T4: Number of PM's | U4: Annual Cost | V4: Quantity | W4: Total Annual Cost | AG4: Subsystem | AH4: Access Doors, Gates, Sally Port | AI4: Air Cooled DX (Split System) | AJ4: Air Handling Unit (Air Cooled DX / Package) | AK4: Air-Cooled Chiller | AL4: Centrifugal Chiller | AM4: Cooling Tower (Induced Draft) | AN4: Ice Chiller Tank | AO4: Geothermal System | AP4: Water Source Heat Pump | AQ4: Fan Coil System | AR4: Supply / Return Fan and Exhaust | AS4: Evaporative and Spot Coolers (swamp coolers; spot cooler) | AT4: Unique HVAC System | AU4: Electrical Panels | AV4: Emergency Generator | AW4: Motor Control Center | AX4: Automatic Transfer Switch | AY4: Building Automated Systems (BAS) | AZ4: Transformer (Dry-Type) | BA4: Uninterruptible Power Supply (UPS) | BB4: Lighting and Controls (Interior and Exterior) | BC4: Unique Electrical System | BD4: Life Safety Systems | BE4: Reduced Pressure Backflow Preventer(s) | BF4: Boiler (Condensing) | BG4: Domestic Water Heater (Gas-Fired, Condensing) | BH4: Domestic Water Heater (Electric, Non- Condensing) | BI4: Boiler (Steam, low pressure) | BJ4: Steam System | BK4: Pneumatic Compressor System | BL4: Unique Plumbing System | BM4: Rounds and Readings | BN4: Vertical Transportation | BO4: Water Treatment | BP4: Building Exterior / Hardscape (Monthly) | BQ4: Fountain Maintenance (Monthly) | BR4: Above-Ground/Underground Fuel Storage Tanks (Quarterly) If applicable | BS4: Landscape Maintenance * | BT4: Pest Control (Monthly) | BU4: Photovoltaic (PV) System | BV4: Account Management and Supervision (Monthly) | BW4: Fee (Monthly) | CA4: Snow Removal - (crew hourly rate) | CB4: Unclogging Blocked Toilet - In-custody holding cell (labor) | CC4: Unclogging Blocked Toilet - Public/Court Staff (labor) | CD4: Clean up & Disposal of Biological Waste Event | CE4: Clean up & Disposal of Biological Waste Labor Rate | CF4: Hourly Rate | CG4: Markup on Materials | CH4: Markup on Subcontractors/Third-Parties
A5: =$B$2 -> 04-F1 | B5: A1 | C5: Access Doors, Gates, Sally Port | J5: 11 | K5: 0 | L5: =+K5*J5 -> 0 | M5: 0 | N5: 0 | O5: =+N5*M5 -> 0 | P5: 1 | Q5: 0 | R5: =+Q5*P5 -> 0 | S5: =+$J5+$M5+$P5 -> 12 | T5: =IF($V5>0,$S5,0) -> 12 | U5: =+R5+O5+L5+I5+F5 -> 0 | V5: =IFERROR(VLOOKUP($A$5,'Equipment List Template'!$1:$1048576,10,FALSE),"0") -> 6 | W5: =+U5*V5 -> 0 | X5: =$T5*$V5 -> 72 | Z5: JCC ID | AA5: Facility Name | AB5: Address | AC5: City / Town | AD5: County | AE5: Region | AF5: Region | AG5: System ID | AH5: A1 | AI5: H1 | AJ5: H2 | AK5: H3 | AL5: H4 | AM5: H5 | AN5: H6 | AO5: H7 | AP5: H8 | AQ5: H9 | AR5: H10 | AS5: H11 | AT5: H12 | AU5: E1 | AV5: E2 | AW5: E3 | AX5: E4 | AY5: E5 | AZ5: E6 | BA5: E7 | BB5: E8 | BC5: E9 | BD5: L1 | BE5: L2 | BF5: P1 | BG5: P2 | BH5: P3 | BI5: P4 | BJ5: P5 | BK5: P6 | BL5: P7 | BM5: R1 | BN5: V1 | BO5: W1 | BP5: B1 | BQ5: F1 | BR5: F2 | BS5: G1 | BT5: PC1 | BU5: PV1 | BV5: C1 | BW5: C2 | CA5: S1 | CB5: I1 | CC5: I2 | CD5: I3 | CE5: I4 | CF5: Hr 1 | CG5: M1 | CH5: Sub1
A6: =$B$2 -> 04-F1 | B6: H1 | C6: Air Cooled DX (Split System) | J6: 0 | K6: 0 | L6: =+K6*J6 -> 0 | M6: 3 | N6: 0 | O6: =+N6*M6 -> 0 | P6: 1 | Q6: 0 | R6: =+Q6*P6 -> 0 | S6: =+$J6+$M6+$P6 -> 4 | T6: =IF($V6>0,$S6,0) -> 0 | U6: =+R6+O6+L6+I6+F6 -> 0 | V6: =IFERROR(VLOOKUP($A$5,'Equipment List Template'!$1:$1048576,11,FALSE),"0") -> 0 | W6: =+U6*V6 -> 0 | X6: =$T6*$V6 -> 0 | Z6: =B2 -> 04-F1 | AA6: =IFERROR(VLOOKUP($Z$6,'Equipment List Template'!$1:$1048576,2,FALSE),"") -> North Butte County Courthouse | AB6: =IFERROR(VLOOKUP($Z$6,'Equipment List Template'!$1:$1048576,3,FALSE),"") -> 1775 Concord Avenue | AC6: =IFERROR(VLOOKUP($Z$6,'Equipment List Template'!$1:$1048576,4,FALSE),"") -> Chico | AD6: =IFERROR(VLOOKUP($Z$6,'Equipment List Template'!$1:$1048576,5,FALSE),"") -> 95928 | AE6: =IFERROR(VLOOKUP($Z$6,'Equipment List Template'!$1:$1048576,6,FALSE),"") -> Butte | AF6: =IFERROR(VLOOKUP($Z$6,'Equipment List Template'!$1:$1048576,7,FALSE),"") -> NCRO | AH6: =+$W5 -> 0 | AI6: =+$W6 -> 0 | AJ6: =+$W7 -> 0 | AK6: =+$W8 -> 0 | AL6: =+$W9 -> 0 | AM6: =+$W10 -> 0 | AN6: =+$W11 -> 0 | AO6: =+$W12 -> 0 | AP6: =+$W13 -> 0 | AQ6: =+$W14 -> 0 | AR6: =+$W15 -> 0 | AS6: =+$W16 -> 0 | AT6: =+$W17 -> 0 | AU6: =+$W18 -> 0 | AV6: =+$W19 -> 0 | AW6: =+$W20 -> 0 | AX6: =+$W21 -> 0 | AY6: =+$W22 -> 0 | AZ6: =+$W23 -> 0 | BA6: =+$W24 -> 0 | BB6: =+$W25 -> 0 | BC6: =+$W26 -> 0 | BD6: =+$W27 -> 0 | BE6: =+$W28 -> 0 | BF6: =+$W29 -> 0 | BG6: =+$W30 -> 0 | BH6: =+$W31 -> 0 | BI6: =+$W32 -> 0 | BJ6: =+$W33 -> 0 | BK6: =+$W34 -> 0 | BL6: =+$W35 -> 0 | BM6: =+$W36 -> 0 | BN6: =+$W37 -> 0 | BO6: =+$W38 -> 0 | BP6: =+$W39 -> 0 | BQ6: =+$W40 -> 0 | BR6: =+$W41 -> 0 | BS6: =+$W42 -> 0 | BT6: =+$W43 -> 0 | BU6: =+$W44 -> 0 | BV6: =+$W45 -> 0 | BW6: =+$W46 -> 0 | BY6: =+W47 -> 0 | CA6: =+$D48 -> 0 | CB6: =+$D49 -> 0 | CC6: =+$D50 -> 0 | CD6: =+$D51 -> 0 | CE6: =+$D52 -> 0 | CF6: =+$D53 -> 0 | CG6: =+$D54 -> 0 | CH6: =+$D55 -> 0
A7: =$B$2 -> 04-F1 | B7: H2 | C7: Air Handling Unit (Air Cooled DX / Package) | J7: 0 | K7: 0 | L7: =+K7*J7 -> 0 | M7: 3 | N7: 0 | O7: =+N7*M7 -> 0 | P7: 1 | Q7: 0 | R7: =+Q7*P7 -> 0 | S7: =+$J7+$M7+$P7 -> 4 | T7: =IF($V7>0,$S7,0) -> 4 | U7: =+R7+O7+L7+I7+F7 -> 0 | V7: =IFERROR(VLOOKUP($A$5,'Equipment List Template'!$1:$1048576,12,FALSE),"0") -> 4 | W7: =+U7*V7 -> 0 | X7: =$T7*$V7 -> 16
A8: 04-F1 | B8: H3 | C8: Air-Cooled Chiller | J8: 11 | K8: 0 | L8: 0 | M8: 0 | N8: 0 | O8: 0 | P8: 1 | Q8: 0 | R8: 0 | S8: 12 | T8: 0 | U8: 0 | V8: =IFERROR(VLOOKUP($A$5,'Equipment List Template'!$1:$1048576,13,FALSE),"0") -> 0 | W8: 0 | X8: 0
A9: 04-F1 | B9: H4 | C9: Centrifugal Chiller | J9: 11 | K9: 0 | L9: 0 | M9: 0 | N9: 0 | O9: 0 | P9: 1 | Q9: 0 | R9: 0 | S9: 12 | T9: 12 | U9: 0 | V9: =IFERROR(VLOOKUP($A$5,'Equipment List Template'!$1:$1048576,14,FALSE),"0") -> 1 | W9: 0 | X9: 12
A10: 04-F1 | B10: H5 | C10: Cooling Tower (Induced Draft) | J10: 8 | K10: 0 | L10: 0 | M10: 3 | N10: 0 | O10: 0 | P10: 1 | Q10: 0 | R10: 0 | S10: 12 | T10: 0 | U10: 0 | V10: =IFERROR(VLOOKUP($A$5,'Equipment List Template'!$1:$1048576,15,FALSE),"0") -> 0 | W10: 0 | X10: 0
A11: 04-F1 | B11: H6 | C11: Ice Chiller Tank | J11: 8 | K11: 0 | L11: 0 | M11: 3 | N11: 0 | O11: 0 | P11: 1 | Q11: 0 | R11: 0 | S11: 12 | T11: 0 | U11: 0 | V11: =IFERROR(VLOOKUP($A$5,'Equipment List Template'!$1:$1048576,16,FALSE),"0") -> 0 | W11: 0 | X11: 0
A12: 04-F1 | B12: H7 | C12: Geothermal System | J12: 11 | K12: 0 | L12: 0 | M12: 0 | N12: 0 | O12: 0 | P12: 1 | Q12: 0 | R12: 0 | S12: 12 | T12: 0 | U12: 0 | V12: =IFERROR(VLOOKUP($A$5,'Equipment List Template'!$1:$1048576,17,FALSE),"0") -> 0 | W12: 0 | X12: 0
A13: 04-F1 | B13: H8 | C13: Water Source Heat Pump | J13: 8 | K13: 0 | L13: 0 | M13: 3 | N13: 0 | O13: 0 | P13: 1 | Q13: 0 | R13: 0 | S13: 12 | T13: 12 | U13: 0 | V13: =IFERROR(VLOOKUP($A$5,'Equipment List Template'!$1:$1048576,18,FALSE),"0") -> 3 | W13: 0 | X13: 36
A14: 04-F1 | B14: H9 | C14: Fan Coil System | J14: 0 | K14: 0 | L14: 0 | M14: 3 | N14: 0 | O14: 0 | P14: 1 | Q14: 0 | R14: 0 | S14: 4 | T14: 4 | U14: 0 | V14: =IFERROR(VLOOKUP($A$5,'Equipment List Template'!$1:$1048576,19,FALSE),"0") -> 13 | W14: 0 | X14: 52
A15: 04-F1 | B15: H10 | C15: Supply / Return Fan and Exhaust | J15: 0 | K15: 0 | L15: 0 | M15: 3 | N15: 0 | O15: 0 | P15: 1 | Q15: 0 | R15: 0 | S15: 4 | T15: 4 | U15: 0 | V15: =IFERROR(VLOOKUP($A$5,'Equipment List Template'!$1:$1048576,20,FALSE),"0") -> 3 | W15: 0 | X15: 12
A16: 04-F1 | B16: H11 | C16: Evaporative and Spot Coolers (swamp coolers; spot cooler) | J16: 8 | K16: 0 | L16: 0 | M16: 3 | N16: 0 | O16: 0 | P16: 1 | Q16: 0 | R16: 0 | S16: 12 | T16: 0 | U16: 0 | V16: =IFERROR(VLOOKUP($A$5,'Equipment List Template'!$1:$1048576,21,FALSE),"0") -> 0 | W16: 0 | X16: 0
B17: H12 | C17: Unique HVAC System | J17: 0 | K17: 0 | L17: 0 | M17: 0 | N17: 0 | O17: 0 | P17: 0 | Q17: 0 | R17: 0 | S17: 0 | T17: 0 | V17: 0 | W17: 0
A18: 04-F1 | B18: E1 | C18: Electrical Panels | J18: 0 | K18: 0 | L18: 0 | M18: 3 | N18: 0 | O18: 0 | P18: 1 | Q18: 0 | R18: 0 | S18: 4 | T18: 4 | U18: 0 | V18: =IFERROR(VLOOKUP($A$5,'Equipment List Template'!$1:$1048576,23,FALSE),"0") -> 8 | W18: 0 | X18: 32
A19: 04-F1 | B19: E2 | C19: Emergency Generator | J19: 8 | K19: 0 | L19: 0 | M19: 3 | N19: 0 | O19: 0 | P19: 1 | Q19: 0 | R19: 0 | S19: 12 | T19: 12 | U19: 0 | V19: =IFERROR(VLOOKUP($A$5,'Equipment List Template'!$1:$1048576,24,FALSE),"0") -> 1 | W19: 0 | X19: 12
A20: 04-F1 | B20: E3 | C20: Motor Control Center | J20: 0 | K20: 0 | L20: 0 | M20: 3 | N20: 0 | O20: 0 | P20: 1 | Q20: 0 | R20: 0 | S20: 4 | T20: 4 | U20: 0 | V20: =IFERROR(VLOOKUP($A$5,'Equipment List Template'!$1:$1048576,25,FALSE),"0") -> 1 | W20: 0 | X20: 4
A21: 04-F1 | B21: E4 | C21: Automatic Transfer Switch | J21: 8 | K21: 0 | L21: 0 | M21: 3 | N21: 0 | O21: 0 | P21: 1 | Q21: 0 | R21: 0 | S21: 12 | T21: 12 | U21: 0 | V21: =IFERROR(VLOOKUP($A$5,'Equipment List Template'!$1:$1048576,26,FALSE),"0") -> 4 | W21: 0 | X21: 48
A22: 04-F1 | B22: E5 | C22: Building Automated Systems (BAS) | J22: 0 | K22: 0 | L22: 0 | M22: 0 | N22: 0 | O22: 0 | P22: 1 | Q22: 0 | R22: 0 | S22: 1 | T22: 1 | U22: 0 | V22: =IFERROR(VLOOKUP($A$5,'Equipment List Template'!$1:$1048576,27,FALSE),"0") -> 1 | W22: 0 | X22: 1
A23: 04-F1 | B23: E6 | C23: Transformer (Dry-Type) | J23: 0 | K23: 0 | L23: 0 | M23: 3 | N23: 0 | O23: 0 | P23: 1 | Q23: 0 | R23: 0 | S23: 4 | T23: 4 | U23: 0 | V23: =IFERROR(VLOOKUP($A$5,'Equipment List Template'!$1:$1048576,28,FALSE),"0") -> 6 | W23: 0 | X23: 24
A24: 04-F1 | B24: E7 | C24: Uninterruptible Power Supply (UPS) | J24: 0 | K24: 0 | L24: 0 | M24: 0 | N24: 0 | O24: 0 | P24: 1 | Q24: 0 | R24: 0 | S24: 1 | T24: 0 | U24: 0 | V24: =IFERROR(VLOOKUP($A$5,'Equipment List Template'!$1:$1048576,29,FALSE),"0") -> 0 | W24: 0 | X24: 0
A25: 04-F1 | B25: E8 | C25: Lighting and Controls (Interior and Exterior) | J25: 12 | K25: 0 | L25: 0 | M25: 0 | N25: 0 | O25: 0 | P25: 0 | Q25: 0 | R25: 0 | S25: 12 | T25: 12 | U25: 0 | V25: =IFERROR(VLOOKUP($A$5,'Equipment List Template'!$1:$1048576,30,FALSE),"0") -> 1 | W25: 0 | X25: 12
B26: E9 | C26: Unique Electrical System | J26: 0 | K26: 0 | L26: 0 | M26: 0 | N26: 0 | O26: 0 | P26: 0 | Q26: 0 | R26: 0 | S26: 0 | T26: 0 | V26: 0 | W26: 0
A27: 04-F1 | B27: L1 | C27: Life Safety Systems | J27: 0 | K27: 0 | L27: 0 | M27: 3 | N27: 0 | O27: 0 | P27: 1 | Q27: 0 | R27: 0 | S27: 4 | T27: 4 | U27: 0 | V27: =IFERROR(VLOOKUP($A$5,'Equipment List Template'!$1:$1048576,32,FALSE),"0") -> 3 | W27: 0 | X27: 12
A28: 04-F1 | B28: L2 | C28: Reduced Pressure Backflow Preventer(s) | J28: 0 | K28: 0 | L28: 0 | M28: 0 | N28: 0 | O28: 0 | P28: 1 | Q28: 0 | R28: 0 | S28: 1 | T28: 1 | U28: 0 | V28: =IFERROR(VLOOKUP($A$5,'Equipment List Template'!$1:$1048576,33,FALSE),"0") -> 6 | W28: 0 | X28: 6
A29: 04-F1 | B29: P1 | C29: Boiler (Condensing) | J29: 8 | K29: 0 | L29: 0 | M29: 3 | N29: 0 | O29: 0 | P29: 1 | Q29: 0 | R29: 0 | S29: 12 | T29: 12 | U29: 0 | V29: =IFERROR(VLOOKUP($A$5,'Equipment List Template'!$1:$1048576,34,FALSE),"0") -> 3 | W29: 0 | X29: 36
A30: 04-F1 | B30: P2 | C30: Domestic Water Heater (Gas-Fired, Condensing) | J30: 0 | K30: 0 | L30: 0 | M30: 0 | N30: 0 | O30: 0 | P30: 1 | Q30: 0 | R30: 0 | S30: 1 | T30: 1 | U30: 0 | V30: =IFERROR(VLOOKUP($A$5,'Equipment List Template'!$1:$1048576,35,FALSE),"0") -> 2 | W30: 0 | X30: 2
A31: 04-F1 | B31: P3 | C31: Domestic Water Heater (Electric, Non- Condensing) | J31: 0 | K31: 0 | L31: 0 | M31: 0 | N31: 0 | O31: 0 | P31: 1 | Q31: 0 | R31: 0 | S31: 1 | T31: 0 | U31: 0 | V31: =IFERROR(VLOOKUP($A$5,'Equipment List Template'!$1:$1048576,36,FALSE),"0") -> 0 | W31: 0 | X31: 0
A32: 04-F1 | B32: P4 | C32: Boiler (Steam, low pressure) | J32: 0 | K32: 0 | L32: 0 | M32: 3 | N32: 0 | O32: 0 | P32: 1 | Q32: 0 | R32: 0 | S32: 4 | T32: 0 | U32: 0 | V32: =IFERROR(VLOOKUP($A$5,'Equipment List Template'!$1:$1048576,37,FALSE),"0") -> 0 | W32: 0 | X32: 0
A33: 04-F1 | B33: P5 | C33: Steam System | J33: 8 | K33: 0 | L33: 0 | M33: 3 | N33: 0 | O33: 0 | P33: 1 | Q33: 0 | R33: 0 | S33: 12 | T33: 0 | U33: 0 | V33: =IFERROR(VLOOKUP($A$5,'Equipment List Template'!$1:$1048576,38,FALSE),"0") -> 0 | W33: 0 | X33: 0
A34: 04-F1 | B34: P6 | C34: Pneumatic Compressor System | J34: 11 | K34: 0 | L34: 0 | M34: 0 | N34: 0 | O34: 0 | P34: 1 | Q34: 0 | R34: 0 | S34: 12 | T34: 0 | U34: 0 | V34: =IFERROR(VLOOKUP($A$5,'Equipment List Template'!$1:$1048576,39,FALSE),"0") -> 0 | W34: 0 | X34: 0
B35: P7 | C35: Unique Plumbing System | J35: 0 | K35: 0 | L35: 0 | M35: 0 | N35: 0 | O35: 0 | P35: 0 | Q35: 0 | R35: 0 | S35: 0 | T35: 0 | U35: 0 | V35: 0 | W35: 0
A36: 04-F1 | B36: R1 | C36: Rounds and Readings | D36: =IFERROR(IF(VLOOKUP($A36,'Equipment List Template'!$1:$1048576,38,FALSE)=248,248,0),0) -> 0 | E36: 0 | F36: =+E36*D36 -> 0 | G36: =IFERROR(IF(VLOOKUP($A36,'Equipment List Template'!$1:$1048576,38,FALSE)=40,40,0),0) -> 0 | H36: 0 | I36: =+H36*G36 -> 0 | J36: 12 | K36: 0 | L36: 0 | S36: =+$J36+$M36+$P36+D36+G36 -> 12 | T36: 12 | U36: =+R36+O36+L36+I36+F36 -> 0 | V36: 1 | W36: =+U36*V36 -> 0 | X36: 12
A37: 04-F1 | B37: V1 | C37: Vertical Transportation | J37: 8 | K37: 0 | L37: =+K37*J37 -> 0 | M37: 3 | N37: 0 | O37: =+N37*M37 -> 0 | P37: 1 | Q37: 0 | R37: =+Q37*P37 -> 0 | S37: =+$J37+$M37+$P37+D37+G37 -> 12 | T37: 12 | U37: =+R37+O37+L37 -> 0 | V37: =IFERROR(VLOOKUP($A$5,'Equipment List Template'!$1:$1048576,42,FALSE),"0") -> 6 | W37: =+U37*V37 -> 0 | X37: 72
A38: 04-F1 | B38: W1 | C38: Water Treatment | D38: =IFERROR(IF(VLOOKUP($A38,'Equipment List Template'!$1:$1048576,40,FALSE)=248,260,0),0) -> 0 | E38: 0 | F38: =+E38*D38 -> 0 | S38: 0 | T38: 0 | U38: =+R38+O38+L38+I38+F38 -> 0 | V38: 1 | W38: 0 | X38: 0
A39: 04-F1 | B39: B1 | C39: Building Exterior / Hardscape (Monthly) | J39: 12 | K39: 0 | L39: =+K39*J39 -> 0 | S39: 12 | T39: 12 | U39: 0 | V39: =IFERROR(VLOOKUP($A$5,'Equipment List Template'!$1:$1048576,44,FALSE),"0") -> 1 | W39: 0 | X39: 12
A40: 04-F1 | B40: F1 | C40: Fountain Maintenance (Monthly) | J40: 12 | K40: 0 | L40: =+K40*J40 -> 0 | S40: 12 | T40: 0 | U40: 0 | V40: =IFERROR(VLOOKUP($A$5,'Equipment List Template'!$1:$1048576,45,FALSE),"0") -> 0 | W40: 0 | X40: 0
A41: 04-F1 | B41: F2 | C41: Above-Ground/Underground Fuel Storage Tanks (Quarterly) If applicable | M41: 4 | N41: 0 | O41: =+N41*M41 -> 0 | S41: 4 | T41: 0 | U41: 0 | V41: =IFERROR(VLOOKUP($A$5,'Equipment List Template'!$1:$1048576,46,FALSE),"0") -> 0 | W41: 0 | X41: 0
A42: 04-F1 | B42: G1 | C42: Landscape Maintenance * | S42: 0 | T42: 0 | U42: 0 | V42: =IFERROR(VLOOKUP($A$5,'Equipment List Template'!$1:$1048576,47,FALSE),"0") -> 1 | W42: 0 | X42: 0
B43: PC1 | C43: Pest Control (Monthly) | J43: 12 | K43: 0 | L43: =+K43*J43 -> 0 | S43: 12 | T43: 12 | U43: 0 | V43: 1 | W43: 0 | X43: 12
B44: PV1 | C44: Photovoltaic (PV) System | P44: 1 | Q44: 0 | R44: =+Q44*P44 -> 0 | S44: 1 | T44: 0 | U44: 0 | V44: 0 | W44: 0
A45: 04-F1 | B45: C1 | C45: Account Management and Supervision (Monthly) | J45: 12 | K45: 0 | L45: =+K45*J45 -> 0 | S45: 12 | T45: 12 | U45: 0 | V45: 1 | W45: 0 | X45: 12
A46: 04-F1 | B46: C2 | C46: Fee (Monthly) | J46: 12 | K46: 0 | L46: =+K46*J46 -> 0 | S46: 12 | T46: 12 | U46: 0 | V46: 1 | W46: 0 | X46: 12
Q47: JCC ID | R47: =B2 -> 04-F1 | U47: Total | W47: =SUM(W5:W46) -> 0
B48: S1 | C48: Snow Removal - (crew hourly rate) | D48: 0 | U48: Total # of PM's | W48: =SUM($X$5:$X$46) -> 521
B49: I1 | C49: Unclogging Blocked Toilet - In-custody cell (labor-only) | D49: 0
B50: I2 | C50: Unclogging Blocked Toilet - Public/Court Staff (labor-only) | D50: 0
B51: I3 | C51: Clean up & Disposal of Biological Waste Event | D51: 0
B52: I4 | C52: Clean up & Disposal of Biological Waste Labor Rate | D52: 0
B53: Hr 1 | C53: Hourly Rate (All Labor categories) | D53: 0
B54: M1 | C54: Markup on Materials (Percentage) | D54: 0
B55: Sub1 | C55: Markup on Subcontractors/Third-Parties (Percentage) | D55: 0
B57: * Landscape Maintenance varies by location on the number of weeks per year it can be preformed. For the purpose of the RFP, all facilities are pre-established at 40 weeks of service. The actual amount paid by facility will be based upon the actual weeks that service has been performed, validated and invoiced.

Sheet 05-C1
B1: JCC ID | C1: Facility Name | D1: Address | F1: City / Town | H1: Zip Code | J1: County | L1: Region | N1: RFP | P1: Proposer
B2: 05-C1 | C2: =IFERROR(VLOOKUP($B$2,'Equipment List Template'!$1:$1048576,2,FALSE),"") -> Calaveras Superior Court | D2: =IFERROR(VLOOKUP($B$2,'Equipment List Template'!$1:$1048576,3,FALSE),"") -> 400 Government Center Drive | F2: =IFERROR(VLOOKUP($B$2,'Equipment List Template'!$1:$1048576,4,FALSE),"") -> San Andreas | H2: =IFERROR(VLOOKUP($B$2,'Equipment List Template'!$1:$1048576,5,FALSE),"") -> 95249 | J2: =IFERROR(VLOOKUP($B$2,'Equipment List Template'!$1:$1048576,6,FALSE),"") -> Calaveras | L2: =IFERROR(VLOOKUP($B$2,'Equipment List Template'!$1:$1048576,7,FALSE),"") -> NCRO | N2: ='Summary Pricing Sheet'!B2 -> RFP-FS-SP-2019-03-JP | P2: ='Summary Pricing Sheet'!B3 -> Firm Name TBD
D3: Daily Activity | G3: Weekly Activity | J3: Monthly Activity | M3: Quarterly Activity | P3: Annual Activity | U3: Summary | AG3: System | AH3: Access | AI3: HVAC | AU3: Electrical | BD3: Life Safety | BF3: Plumbing | BM3: Building Systems | BV3: Corporate | BY3: Fixed Price - Facility Total Annual Cost Year 1 | CA3: Unit Pricing
B4: System ID | C4: Subsystem | D4: Quantity | E4: Cost | F4: Daily Total | G4: Quantity | H4: Cost | I4: Weekly Total | J4: Monthly Quantity | K4: Cost | L4: Monthly Total | M4: Quarterly Quantity | N4: Cost | O4: Quarterly Total | P4: Annual Quantity | Q4: Cost | R4: Annual PM Total | T4: Number of PM's | U4: Annual Cost | V4: Quantity | W4: Total Annual Cost | AG4: Subsystem | AH4: Access Doors, Gates, Sally Port | AI4: Air Cooled DX (Split System) | AJ4: Air Handling Unit (Air Cooled DX / Package) | AK4: Air-Cooled Chiller | AL4: Centrifugal Chiller | AM4: Cooling Tower (Induced Draft) | AN4: Ice Chiller Tank | AO4: Geothermal System | AP4: Water Source Heat Pump | AQ4: Fan Coil System | AR4: Supply / Return Fan and Exhaust | AS4: Evaporative and Spot Coolers (swamp coolers; spot cooler) | AT4: Unique HVAC System | AU4: Electrical Panels | AV4: Emergency Generator | AW4: Motor Control Center | AX4: Automatic Transfer Switch | AY4: Building Automated Systems (BAS) | AZ4: Transformer (Dry-Type) | BA4: Uninterruptible Power Supply (UPS) | BB4: Lighting and Controls (Interior and Exterior) | BC4: Unique Electrical System | BD4: Life Safety Systems | BE4: Reduced Pressure Backflow Preventer(s) | BF4: Boiler (Condensing) | BG4: Domestic Water Heater (Gas-Fired, Condensing) | BH4: Domestic Water Heater (Electric, Non- Condensing) | BI4: Boiler (Steam, low pressure) | BJ4: Steam System | BK4: Pneumatic Compressor System | BL4: Unique Plumbing System | BM4: Rounds and Readings | BN4: Vertical Transportation | BO4: Water Treatment | BP4: Building Exterior / Hardscape (Monthly) | BQ4: Fountain Maintenance (Monthly) | BR4: Above-Ground/Underground Fuel Storage Tanks (Quarterly) If applicable | BS4: Landscape Maintenance * | BT4: Pest Control (Monthly) | BU4: Photovoltaic (PV) System | BV4: Account Management and Supervision (Monthly) | BW4: Fee (Monthly) | CA4: Snow Removal - (crew hourly rate) | CB4: Unclogging Blocked Toilet - In-custody holding cell (labor) | CC4: Unclogging Blocked Toilet - Public/Court Staff (labor) | CD4: Clean up & Disposal of Biological Waste Event | CE4: Clean up & Disposal of Biological Waste Labor Rate | CF4: Hourly Rate | CG4: Markup on Materials | CH4: Markup on Subcontractors/Third-Parties
A5: =$B$2 -> 05-C1 | B5: A1 | C5: Access Doors, Gates, Sally Port | J5: 11 | K5: 0 | L5: =+K5*J5 -> 0 | M5: 0 | N5: 0 | O5: =+N5*M5 -> 0 | P5: 1 | Q5: 0 | R5: =+Q5*P5 -> 0 | S5: =+$J5+$M5+$P5 -> 12 | T5: =IF($V5>0,$S5,0) -> 12 | U5: =+R5+O5+L5+I5+F5 -> 0 | V5: =IFERROR(VLOOKUP($A$5,'Equipment List Template'!$1:$1048576,10,FALSE),"0") -> 6 | W5: =+U5*V5 -> 0 | X5: =$T5*$V5 -> 72 | Z5: JCC ID | AA5: Facility Name | AB5: Address | AC5: City / Town | AD5: County | AE5: Region | AF5: Region | AG5: System ID | AH5: A1 | AI5: H1 | AJ5: H2 | AK5: H3 | AL5: H4 | AM5: H5 | AN5: H6 | AO5: H7 | AP5: H8 | AQ5: H9 | AR5: H10 | AS5: H11 | AT5: H12 | AU5: E1 | AV5: E2 | AW5: E3 | AX5: E4 | AY5: E5 | AZ5: E6 | BA5: E7 | BB5: E8 | BC5: E9 | BD5: L1 | BE5: L2 | BF5: P1 | BG5: P2 | BH5: P3 | BI5: P4 | BJ5: P5 | BK5: P6 | BL5: P7 | BM5: R1 | BN5: V1 | BO5: W1 | BP5: B1 | BQ5: F1 | BR5: F2 | BS5: G1 | BT5: PC1 | BU5: PV1 | BV5: C1 | BW5: C2 | CA5: S1 | CB5: I1 | CC5: I2 | CD5: I3 | CE5: I4 | CF5: Hr 1 | CG5: M1 | CH5: Sub1
A6: =$B$2 -> 05-C1 | B6: H1 | C6: Air Cooled DX (Split System) | J6: 0 | K6: 0 | L6: =+K6*J6 -> 0 | M6: 3 | N6: 0 | O6: =+N6*M6 -> 0 | P6: 1 | Q6: 0 | R6: =+Q6*P6 -> 0 | S6: =+$J6+$M6+$P6 -> 4 | T6: =IF($V6>0,$S6,0) -> 4 | U6: =+R6+O6+L6+I6+F6 -> 0 | V6: =IFERROR(VLOOKUP($A$5,'Equipment List Template'!$1:$1048576,11,FALSE),"0") -> 9 | W6: =+U6*V6 -> 0 | X6: =$T6*$V6 -> 36 | Z6: =B2 -> 05-C1 | AA6: =IFERROR(VLOOKUP($Z$6,'Equipment List Template'!$1:$1048576,2,FALSE),"") -> Calaveras Superior Court | AB6: =IFERROR(VLOOKUP($Z$6,'Equipment List Template'!$1:$1048576,3,FALSE),"") -> 400 Government Center Drive | AC6: =IFERROR(VLOOKUP($Z$6,'Equipment List Template'!$1:$1048576,4,FALSE),"") -> San Andreas | AD6: =IFERROR(VLOOKUP($Z$6,'Equipment List Template'!$1:$1048576,5,FALSE),"") -> 95249 | AE6: =IFERROR(VLOOKUP($Z$6,'Equipment List Template'!$1:$1048576,6,FALSE),"") -> Calaveras | AF6: =IFERROR(VLOOKUP($Z$6,'Equipment List Template'!$1:$1048576,7,FALSE),"") -> NCRO | AH6: =+$W5 -> 0 | AI6: =+$W6 -> 0 | AJ6: =+$W7 -> 0 | AK6: =+$W8 -> 0 | AL6: =+$W9 -> 0 | AM6: =+$W10 -> 0 | AN6: =+$W11 -> 0 | AO6: =+$W12 -> 0 | AP6: =+$W13 -> 0 | AQ6: =+$W14 -> 0 | AR6: =+$W15 -> 0 | AS6: =+$W16 -> 0 | AT6: =+$W17 -> 0 | AU6: =+$W18 -> 0 | AV6: =+$W19 -> 0 | AW6: =+$W20 -> 0 | AX6: =+$W21 -> 0 | AY6: =+$W22 -> 0 | AZ6: =+$W23 -> 0 | BA6: =+$W24 -> 0 | BB6: =+$W25 -> 0 | BC6: =+$W26 -> 0 | BD6: =+$W27 -> 0 | BE6: =+$W28 -> 0 | BF6: =+$W29 -> 0 | BG6: =+$W30 -> 0 | BH6: =+$W31 -> 0 | BI6: =+$W32 -> 0 | BJ6: =+$W33 -> 0 | BK6: =+$W34 -> 0 | BL6: =+$W35 -> 0 | BM6: =+$W36 -> 0 | BN6: =+$W37 -> 0 | BO6: =+$W38 -> 0 | BP6: =+$W39 -> 0 | BQ6: =+$W40 -> 0 | BR6: =+$W41 -> 0 | BS6: =+$W42 -> 0 | BT6: =+$W43 -> 0 | BU6: =+$W44 -> 0 | BV6: =+$W45 -> 0 | BW6: =+$W46 -> 0 | BY6: =+W47 -> 0 | CA6: =+$D48 -> 0 | CB6: =+$D49 -> 0 | CC6: =+$D50 -> 0 | CD6: =+$D51 -> 0 | CE6: =+$D52 -> 0 | CF6: =+$D53 -> 0 | CG6: =+$D54 -> 0 | CH6: =+$D55 -> 0
A7: =$B$2 -> 05-C1 | B7: H2 | C7: Air Handling Unit (Air Cooled DX / Package) | J7: 0 | K7: 0 | L7: =+K7*J7 -> 0 | M7: 3 | N7: 0 | O7: =+N7*M7 -> 0 | P7: 1 | Q7: 0 | R7: =+Q7*P7 -> 0 | S7: =+$J7+$M7+$P7 -> 4 | T7: =IF($V7>0,$S7,0) -> 4 | U7: =+R7+O7+L7+I7+F7 -> 0 | V7: =IFERROR(VLOOKUP($A$5,'Equipment List Template'!$1:$1048576,12,FALSE),"0") -> 3 | W7: =+U7*V7 -> 0 | X7: =$T7*$V7 -> 12
A8: 05-C1 | B8: H3 | C8: Air-Cooled Chiller | J8: 11 | K8: 0 | L8: 0 | M8: 0 | N8: 0 | O8: 0 | P8: 1 | Q8: 0 | R8: 0 | S8: 12 | T8: 0 | U8: 0 | V8: =IFERROR(VLOOKUP($A$5,'Equipment List Template'!$1:$1048576,13,FALSE),"0") -> 0 | W8: 0 | X8: 0
A9: 05-C1 | B9: H4 | C9: Centrifugal Chiller | J9: 11 | K9: 0 | L9: 0 | M9: 0 | N9: 0 | O9: 0 | P9: 1 | Q9: 0 | R9: 0 | S9: 12 | T9: 12 | U9: 0 | V9: =IFERROR(VLOOKUP($A$5,'Equipment List Template'!$1:$1048576,14,FALSE),"0") -> 2 | W9: 0 | X9: 24
A10: 05-C1 | B10: H5 | C10: Cooling Tower (Induced Draft) | J10: 8 | K10: 0 | L10: 0 | M10: 3 | N10: 0 | O10: 0 | P10: 1 | Q10: 0 | R10: 0 | S10: 12 | T10: 0 | U10: 0 | V10: =IFERROR(VLOOKUP($A$5,'Equipment List Template'!$1:$1048576,15,FALSE),"0") -> 0 | W10: 0 | X10: 0
A11: 05-C1 | B11: H6 | C11: Ice Chiller Tank | J11: 8 | K11: 0 | L11: 0 | M11: 3 | N11: 0 | O11: 0 | P11: 1 | Q11: 0 | R11: 0 | S11: 12 | T11: 0 | U11: 0 | V11: =IFERROR(VLOOKUP($A$5,'Equipment List Template'!$1:$1048576,16,FALSE),"0") -> 0 | W11: 0 | X11: 0
A12: 05-C1 | B12: H7 | C12: Geothermal System | J12: 11 | K12: 0 | L12: 0 | M12: 0 | N12: 0 | O12: 0 | P12: 1 | Q12: 0 | R12: 0 | S12: 12 | T12: 0 | U12: 0 | V12: =IFERROR(VLOOKUP($A$5,'Equipment List Template'!$1:$1048576,17,FALSE),"0") -> 0 | W12: 0 | X12: 0
A13: 05-C1 | B13: H8 | C13: Water Source Heat Pump | J13: 8 | K13: 0 | L13: 0 | M13: 3 | N13: 0 | O13: 0 | P13: 1 | Q13: 0 | R13: 0 | S13: 12 | T13: 0 | U13: 0 | V13: =IFERROR(VLOOKUP($A$5,'Equipment List Template'!$1:$1048576,18,FALSE),"0") -> 0 | W13: 0 | X13: 0
A14: 05-C1 | B14: H9 | C14: Fan Coil System | J14: 0 | K14: 0 | L14: 0 | M14: 3 | N14: 0 | O14: 0 | P14: 1 | Q14: 0 | R14: 0 | S14: 4 | T14: 0 | U14: 0 | V14: =IFERROR(VLOOKUP($A$5,'Equipment List Template'!$1:$1048576,19,FALSE),"0") -> 0 | W14: 0 | X14: 0
A15: 05-C1 | B15: H10 | C15: Supply / Return Fan and Exhaust | J15: 0 | K15: 0 | L15: 0 | M15: 3 | N15: 0 | O15: 0 | P15: 1 | Q15: 0 | R15: 0 | S15: 4 | T15: 4 | U15: 0 | V15: =IFERROR(VLOOKUP($A$5,'Equipment List Template'!$1:$1048576,20,FALSE),"0") -> 2 | W15: 0 | X15: 8
A16: 05-C1 | B16: H11 | C16: Evaporative and Spot Coolers (swamp coolers; spot cooler) | J16: 8 | K16: 0 | L16: 0 | M16: 3 | N16: 0 | O16: 0 | P16: 1 | Q16: 0 | R16: 0 | S16: 12 | T16: 0 | U16: 0 | V16: =IFERROR(VLOOKUP($A$5,'Equipment List Template'!$1:$1048576,21,FALSE),"0") -> 0 | W16: 0 | X16: 0
B17: H12 | C17: Unique HVAC System | J17: 0 | K17: 0 | L17: 0 | M17: 0 | N17: 0 | O17: 0 | P17: 0 | Q17: 0 | R17: 0 | S17: 0 | T17: 0 | V17: 0 | W17: 0
A18: 05-C1 | B18: E1 | C18: Electrical Panels | J18: 0 | K18: 0 | L18: 0 | M18: 3 | N18: 0 | O18: 0 | P18: 1 | Q18: 0 | R18: 0 | S18: 4 | T18: 4 | U18: 0 | V18: =IFERROR(VLOOKUP($A$5,'Equipment List Template'!$1:$1048576,23,FALSE),"0") -> 3 | W18: 0 | X18: 12
A19: 05-C1 | B19: E2 | C19: Emergency Generator | J19: 8 | K19: 0 | L19: 0 | M19: 3 | N19: 0 | O19: 0 | P19: 1 | Q19: 0 | R19: 0 | S19: 12 | T19: 12 | U19: 0 | V19: =IFERROR(VLOOKUP($A$5,'Equipment List Template'!$1:$1048576,24,FALSE),"0") -> 1 | W19: 0 | X19: 12
A20: 05-C1 | B20: E3 | C20: Motor Control Center | J20: 0 | K20: 0 | L20: 0 | M20: 3 | N20: 0 | O20: 0 | P20: 1 | Q20: 0 | R20: 0 | S20: 4 | T20: 0 | U20: 0 | V20: =IFERROR(VLOOKUP($A$5,'Equipment List Template'!$1:$1048576,25,FALSE),"0") -> 0 | W20: 0 | X20: 0
A21: 05-C1 | B21: E4 | C21: Automatic Transfer Switch | J21: 8 | K21: 0 | L21: 0 | M21: 3 | N21: 0 | O21: 0 | P21: 1 | Q21: 0 | R21: 0 | S21: 12 | T21: 12 | U21: 0 | V21: =IFERROR(VLOOKUP($A$5,'Equipment List Template'!$1:$1048576,26,FALSE),"0") -> 2 | W21: 0 | X21: 24
A22: 05-C1 | B22: E5 | C22: Building Automated Systems (BAS) | J22: 0 | K22: 0 | L22: 0 | M22: 0 | N22: 0 | O22: 0 | P22: 1 | Q22: 0 | R22: 0 | S22: 1 | T22: 1 | U22: 0 | V22: =IFERROR(VLOOKUP($A$5,'Equipment List Template'!$1:$1048576,27,FALSE),"0") -> 1 | W22: 0 | X22: 1
A23: 05-C1 | B23: E6 | C23: Transformer (Dry-Type) | J23: 0 | K23: 0 | L23: 0 | M23: 3 | N23: 0 | O23: 0 | P23: 1 | Q23: 0 | R23: 0 | S23: 4 | T23: 4 | U23: 0 | V23: =IFERROR(VLOOKUP($A$5,'Equipment List Template'!$1:$1048576,28,FALSE),"0") -> 1 | W23: 0 | X23: 4
A24: 05-C1 | B24: E7 | C24: Uninterruptible Power Supply (UPS) | J24: 0 | K24: 0 | L24: 0 | M24: 0 | N24: 0 | O24: 0 | P24: 1 | Q24: 0 | R24: 0 | S24: 1 | T24: 0 | U24: 0 | V24: =IFERROR(VLOOKUP($A$5,'Equipment List Template'!$1:$1048576,29,FALSE),"0") -> 0 | W24: 0 | X24: 0
A25: 05-C1 | B25: E8 | C25: Lighting and Controls (Interior and Exterior) | J25: 12 | K25: 0 | L25: 0 | M25: 0 | N25: 0 | O25: 0 | P25: 0 | Q25: 0 | R25: 0 | S25: 12 | T25: 0 | U25: 0 | V25: =IFERROR(VLOOKUP($A$5,'Equipment List Template'!$1:$1048576,30,FALSE),"0") -> 0 | W25: 0 | X25: 0
B26: E9 | C26: Unique Electrical System | J26: 0 | K26: 0 | L26: 0 | M26: 0 | N26: 0 | O26: 0 | P26: 0 | Q26: 0 | R26: 0 | S26: 0 | T26: 0 | V26: 0 | W26: 0
A27: 05-C1 | B27: L1 | C27: Life Safety Systems | J27: 0 | K27: 0 | L27: 0 | M27: 3 | N27: 0 | O27: 0 | P27: 1 | Q27: 0 | R27: 0 | S27: 4 | T27: 4 | U27: 0 | V27: =IFERROR(VLOOKUP($A$5,'Equipment List Template'!$1:$1048576,32,FALSE),"0") -> 4 | W27: 0 | X27: 16
A28: 05-C1 | B28: L2 | C28: Reduced Pressure Backflow Preventer(s) | J28: 0 | K28: 0 | L28: 0 | M28: 0 | N28: 0 | O28: 0 | P28: 1 | Q28: 0 | R28: 0 | S28: 1 | T28: 1 | U28: 0 | V28: =IFERROR(VLOOKUP($A$5,'Equipment List Template'!$1:$1048576,33,FALSE),"0") -> 6 | W28: 0 | X28: 6
A29: 05-C1 | B29: P1 | C29: Boiler (Condensing) | J29: 8 | K29: 0 | L29: 0 | M29: 3 | N29: 0 | O29: 0 | P29: 1 | Q29: 0 | R29: 0 | S29: 12 | T29: 12 | U29: 0 | V29: =IFERROR(VLOOKUP($A$5,'Equipment List Template'!$1:$1048576,34,FALSE),"0") -> 2 | W29: 0 | X29: 24
A30: 05-C1 | B30: P2 | C30: Domestic Water Heater (Gas-Fired, Condensing) | J30: 0 | K30: 0 | L30: 0 | M30: 0 | N30: 0 | O30: 0 | P30: 1 | Q30: 0 | R30: 0 | S30: 1 | T30: 1 | U30: 0 | V30: =IFERROR(VLOOKUP($A$5,'Equipment List Template'!$1:$1048576,35,FALSE),"0") -> 1 | W30: 0 | X30: 1
A31: 05-C1 | B31: P3 | C31: Domestic Water Heater (Electric, Non- Condensing) | J31: 0 | K31: 0 | L31: 0 | M31: 0 | N31: 0 | O31: 0 | P31: 1 | Q31: 0 | R31: 0 | S31: 1 | T31: 0 | U31: 0 | V31: =IFERROR(VLOOKUP($A$5,'Equipment List Template'!$1:$1048576,36,FALSE),"0") -> 0 | W31: 0 | X31: 0
A32: 05-C1 | B32: P4 | C32: Boiler (Steam, low pressure) | J32: 0 | K32: 0 | L32: 0 | M32: 3 | N32: 0 | O32: 0 | P32: 1 | Q32: 0 | R32: 0 | S32: 4 | T32: 0 | U32: 0 | V32: =IFERROR(VLOOKUP($A$5,'Equipment List Template'!$1:$1048576,37,FALSE),"0") -> 0 | W32: 0 | X32: 0
A33: 05-C1 | B33: P5 | C33: Steam System | J33: 8 | K33: 0 | L33: 0 | M33: 3 | N33: 0 | O33: 0 | P33: 1 | Q33: 0 | R33: 0 | S33: 12 | T33: 0 | U33: 0 | V33: =IFERROR(VLOOKUP($A$5,'Equipment List Template'!$1:$1048576,38,FALSE),"0") -> 0 | W33: 0 | X33: 0
A34: 05-C1 | B34: P6 | C34: Pneumatic Compressor System | J34: 11 | K34: 0 | L34: 0 | M34: 0 | N34: 0 | O34: 0 | P34: 1 | Q34: 0 | R34: 0 | S34: 12 | T34: 0 | U34: 0 | V34: =IFERROR(VLOOKUP($A$5,'Equipment List Template'!$1:$1048576,39,FALSE),"0") -> 0 | W34: 0 | X34: 0
B35: P7 | C35: Unique Plumbing System | J35: 0 | K35: 0 | L35: 0 | M35: 0 | N35: 0 | O35: 0 | P35: 0 | Q35: 0 | R35: 0 | S35: 0 | T35: 0 | U35: 0 | V35: 0 | W35: 0
A36: 05-C1 | B36: R1 | C36: Rounds and Readings | D36: =IFERROR(IF(VLOOKUP($A36,'Equipment List Template'!$1:$1048576,38,FALSE)=248,248,0),0) -> 0 | E36: 0 | F36: =+E36*D36 -> 0 | G36: =IFERROR(IF(VLOOKUP($A36,'Equipment List Template'!$1:$1048576,38,FALSE)=40,40,0),0) -> 0 | H36: 0 | I36: =+H36*G36 -> 0 | J36: 12 | K36: 0 | L36: 0 | S36: =+$J36+$M36+$P36+D36+G36 -> 12 | T36: 12 | U36: =+R36+O36+L36+I36+F36 -> 0 | V36: 1 | W36: =+U36*V36 -> 0 | X36: 12
A37: 05-C1 | B37: V1 | C37: Vertical Transportation | J37: 8 | K37: 0 | L37: =+K37*J37 -> 0 | M37: 3 | N37: 0 | O37: =+N37*M37 -> 0 | P37: 1 | Q37: 0 | R37: =+Q37*P37 -> 0 | S37: =+$J37+$M37+$P37+D37+G37 -> 12 | T37: 12 | U37: =+R37+O37+L37 -> 0 | V37: =IFERROR(VLOOKUP($A$5,'Equipment List Template'!$1:$1048576,42,FALSE),"0") -> 4 | W37: =+U37*V37 -> 0 | X37: 48
A38: 05-C1 | B38: W1 | C38: Water Treatment | D38: =IFERROR(IF(VLOOKUP($A38,'Equipment List Template'!$1:$1048576,40,FALSE)=248,260,0),0) -> 0 | E38: 0 | F38: =+E38*D38 -> 0 | S38: 0 | T38: 0 | U38: =+R38+O38+L38+I38+F38 -> 0 | V38: 1 | W38: 0 | X38: 0
A39: 05-C1 | B39: B1 | C39: Building Exterior / Hardscape (Monthly) | J39: 12 | K39: 0 | L39: =+K39*J39 -> 0 | S39: 12 | T39: 12 | U39: 0 | V39: =IFERROR(VLOOKUP($A$5,'Equipment List Template'!$1:$1048576,44,FALSE),"0") -> 1 | W39: 0 | X39: 12
A40: 05-C1 | B40: F1 | C40: Fountain Maintenance (Monthly) | J40: 12 | K40: 0 | L40: =+K40*J40 -> 0 | S40: 12 | T40: 0 | U40: 0 | V40: =IFERROR(VLOOKUP($A$5,'Equipment List Template'!$1:$1048576,45,FALSE),"0") -> 0 | W40: 0 | X40: 0
A41: 05-C1 | B41: F2 | C41: Above-Ground/Underground Fuel Storage Tanks (Quarterly) If applicable | M41: 4 | N41: 0 | O41: =+N41*M41 -> 0 | S41: 4 | T41: 0 | U41: 0 | V41: =IFERROR(VLOOKUP($A$5,'Equipment List Template'!$1:$1048576,46,FALSE),"0") -> 0 | W41: 0 | X41: 0
A42: 05-C1 | B42: G1 | C42: Landscape Maintenance * | S42: 0 | T42: 0 | U42: 0 | V42: =IFERROR(VLOOKUP($A$5,'Equipment List Template'!$1:$1048576,47,FALSE),"0") -> 1 | W42: 0 | X42: 0
B43: PC1 | C43: Pest Control (Monthly) | J43: 12 | K43: 0 | L43: =+K43*J43 -> 0 | S43: 12 | T43: 12 | U43: 0 | V43: 1 | W43: 0 | X43: 12
B44: PV1 | C44: Photovoltaic (PV) System | P44: 1 | Q44: 0 | R44: =+Q44*P44 -> 0 | S44: 1 | T44: 0 | U44: 0 | V44: 0 | W44: 0
A45: 05-C1 | B45: C1 | C45: Account Management and Supervision (Monthly) | J45: 12 | K45: 0 | L45: =+K45*J45 -> 0 | S45: 12 | T45: 12 | U45: 0 | V45: 1 | W45: 0 | X45: 12
A46: 05-C1 | B46: C2 | C46: Fee (Monthly) | J46: 12 | K46: 0 | L46: =+K46*J46 -> 0 | S46: 12 | T46: 12 | U46: 0 | V46: 1 | W46: 0 | X46: 12
Q47: JCC ID | R47: =B2 -> 05-C1 | U47: Total | W47: =SUM(W5:W46) -> 0
B48: S1 | C48: Snow Removal - (crew hourly rate) | D48: 0 | U48: Total # of PM's | W48: =SUM($X$5:$X$46) -> 360
B49: I1 | C49: Unclogging Blocked Toilet - In-custody cell (labor-only) | D49: 0
B50: I2 | C50: Unclogging Blocked Toilet - Public/Court Staff (labor-only) | D50: 0
B51: I3 | C51: Clean up & Disposal of Biological Waste Event | D51: 0
B52: I4 | C52: Clean up & Disposal of Biological Waste Labor Rate | D52: 0
B53: Hr 1 | C53: Hourly Rate (All Labor categories) | D53: 0
B54: M1 | C54: Markup on Materials (Percentage) | D54: 0
B55: Sub1 | C55: Markup on Subcontractors/Third-Parties (Percentage) | D55: 0
B57: * Landscape Maintenance varies by location on the number of weeks per year it can be preformed. For the purpose of the RFP, all facilities are pre-established at 40 weeks of service. The actual amount paid by facility will be based upon the actual weeks that service has been performed, validated and invoiced.

Sheet 09-A1
B1: JCC ID | C1: Facility Name | D1: Address | F1: City / Town | H1: Zip Code | J1: County | L1: Region | N1: RFP | P1: Proposer
B2: 09-A1 | C2: =IFERROR(VLOOKUP($B$2,'Equipment List Template'!$1:$1048576,2,FALSE),"") -> Main St. Courthouse | D2: =IFERROR(VLOOKUP($B$2,'Equipment List Template'!$1:$1048576,3,FALSE),"") -> 495 Main St. | F2: =IFERROR(VLOOKUP($B$2,'Equipment List Template'!$1:$1048576,4,FALSE),"") -> Placerville | H2: =IFERROR(VLOOKUP($B$2,'Equipment List Template'!$1:$1048576,5,FALSE),"") -> 95667 | J2: =IFERROR(VLOOKUP($B$2,'Equipment List Template'!$1:$1048576,6,FALSE),"") -> El Dorado | L2: =IFERROR(VLOOKUP($B$2,'Equipment List Template'!$1:$1048576,7,FALSE),"") -> NCRO | N2: ='Summary Pricing Sheet'!B2 -> RFP-FS-SP-2019-03-JP | P2: ='Summary Pricing Sheet'!B3 -> Firm Name TBD
D3: Daily Activity | G3: Weekly Activity | J3: Monthly Activity | M3: Quarterly Activity | P3: Annual Activity | U3: Summary | AG3: System | AH3: Access | AI3: HVAC | AU3: Electrical | BD3: Life Safety | BF3: Plumbing | BM3: Building Systems | BV3: Corporate | BY3: Fixed Price - Facility Total Annual Cost Year 1 | CA3: Unit Pricing
B4: System ID | C4: Subsystem | D4: Quantity | E4: Cost | F4: Daily Total | G4: Quantity | H4: Cost | I4: Weekly Total | J4: Monthly Quantity | K4: Cost | L4: Monthly Total | M4: Quarterly Quantity | N4: Cost | O4: Quarterly Total | P4: Annual Quantity | Q4: Cost | R4: Annual PM Total | T4: Number of PM's | U4: Annual Cost | V4: Quantity | W4: Total Annual Cost | AG4: Subsystem | AH4: Access Doors, Gates, Sally Port | AI4: Air Cooled DX (Split System) | AJ4: Air Handling Unit (Air Cooled DX / Package) | AK4: Air-Cooled Chiller | AL4: Centrifugal Chiller | AM4: Cooling Tower (Induced Draft) | AN4: Ice Chiller Tank | AO4: Geothermal System | AP4: Water Source Heat Pump | AQ4: Fan Coil System | AR4: Supply / Return Fan and Exhaust | AS4: Evaporative and Spot Coolers (swamp coolers; spot cooler) | AT4: Unique HVAC System | AU4: Electrical Panels | AV4: Emergency Generator | AW4: Motor Control Center | AX4: Automatic Transfer Switch | AY4: Building Automated Systems (BAS) | AZ4: Transformer (Dry-Type) | BA4: Uninterruptible Power Supply (UPS) | BB4: Lighting and Controls (Interior and Exterior) | BC4: Unique Electrical System | BD4: Life Safety Systems | BE4: Reduced Pressure Backflow Preventer(s) | BF4: Boiler (Condensing) | BG4: Domestic Water Heater (Gas-Fired, Condensing) | BH4: Domestic Water Heater (Electric, Non- Condensing) | BI4: Boiler (Steam, low pressure) | BJ4: Steam System | BK4: Pneumatic Compressor System | BL4: Unique Plumbing System | BM4: Rounds and Readings | BN4: Vertical Transportation | BO4: Water Treatment | BP4: Building Exterior / Hardscape (Monthly) | BQ4: Fountain Maintenance (Monthly) | BR4: Above-Ground/Underground Fuel Storage Tanks (Quarterly) If applicable | BS4: Landscape Maintenance * | BT4: Pest Control (Monthly) | BU4: Photovoltaic (PV) System | BV4: Account Management and Supervision (Monthly) | BW4: Fee (Monthly) | CA4: Snow Removal - (crew hourly rate) | CB4: Unclogging Blocked Toilet - In-custody holding cell (labor) | CC4: Unclogging Blocked Toilet - Public/Court Staff (labor) | CD4: Clean up & Disposal of Biological Waste Event | CE4: Clean up & Disposal of Biological Waste Labor Rate | CF4: Hourly Rate | CG4: Markup on Materials | CH4: Markup on Subcontractors/Third-Parties
A5: =$B$2 -> 09-A1 | B5: A1 | C5: Access Doors, Gates, Sally Port | J5: 11 | K5: 0 | L5: =+K5*J5 -> 0 | M5: 0 | N5: 0 | O5: =+N5*M5 -> 0 | P5: 1 | Q5: 0 | R5: =+Q5*P5 -> 0 | S5: =+$J5+$M5+$P5 -> 12 | T5: =IF($V5>0,$S5,0) -> 12 | U5: =+R5+O5+L5+I5+F5 -> 0 | V5: =IFERROR(VLOOKUP($A$5,'Equipment List Template'!$1:$1048576,10,FALSE),"0") -> 2 | W5: =+U5*V5 -> 0 | X5: =$T5*$V5 -> 24 | Z5: JCC ID | AA5: Facility Name | AB5: Address | AC5: City / Town | AD5: County | AE5: Region | AF5: Region | AG5: System ID | AH5: A1 | AI5: H1 | AJ5: H2 | AK5: H3 | AL5: H4 | AM5: H5 | AN5: H6 | AO5: H7 | AP5: H8 | AQ5: H9 | AR5: H10 | AS5: H11 | AT5: H12 | AU5: E1 | AV5: E2 | AW5: E3 | AX5: E4 | AY5: E5 | AZ5: E6 | BA5: E7 | BB5: E8 | BC5: E9 | BD5: L1 | BE5: L2 | BF5: P1 | BG5: P2 | BH5: P3 | BI5: P4 | BJ5: P5 | BK5: P6 | BL5: P7 | BM5: R1 | BN5: V1 | BO5: W1 | BP5: B1 | BQ5: F1 | BR5: F2 | BS5: G1 | BT5: PC1 | BU5: PV1 | BV5: C1 | BW5: C2 | CA5: S1 | CB5: I1 | CC5: I2 | CD5: I3 | CE5: I4 | CF5: Hr 1 | CG5: M1 | CH5: Sub1
A6: =$B$2 -> 09-A1 | B6: H1 | C6: Air Cooled DX (Split System) | J6: 0 | K6: 0 | L6: =+K6*J6 -> 0 | M6: 3 | N6: 0 | O6: =+N6*M6 -> 0 | P6: 1 | Q6: 0 | R6: =+Q6*P6 -> 0 | S6: =+$J6+$M6+$P6 -> 4 | T6: =IF($V6>0,$S6,0) -> 4 | U6: =+R6+O6+L6+I6+F6 -> 0 | V6: =IFERROR(VLOOKUP($A$5,'Equipment List Template'!$1:$1048576,11,FALSE),"0") -> 7 | W6: =+U6*V6 -> 0 | X6: =$T6*$V6 -> 28 | Z6: =B2 -> 09-A1 | AA6: =IFERROR(VLOOKUP($Z$6,'Equipment List Template'!$1:$1048576,2,FALSE),"") -> Main St. Courthouse | AB6: =IFERROR(VLOOKUP($Z$6,'Equipment List Template'!$1:$1048576,3,FALSE),"") -> 495 Main St. | AC6: =IFERROR(VLOOKUP($Z$6,'Equipment List Template'!$1:$1048576,4,FALSE),"") -> Placerville | AD6: =IFERROR(VLOOKUP($Z$6,'Equipment List Template'!$1:$1048576,5,FALSE),"") -> 95667 | AE6: =IFERROR(VLOOKUP($Z$6,'Equipment List Template'!$1:$1048576,6,FALSE),"") -> El Dorado | AF6: =IFERROR(VLOOKUP($Z$6,'Equipment List Template'!$1:$1048576,7,FALSE),"") -> NCRO | AH6: =+$W5 -> 0 | AI6: =+$W6 -> 0 | AJ6: =+$W7 -> 0 | AK6: =+$W8 -> 0 | AL6: =+$W9 -> 0 | AM6: =+$W10 -> 0 | AN6: =+$W11 -> 0 | AO6: =+$W12 -> 0 | AP6: =+$W13 -> 0 | AQ6: =+$W14 -> 0 | AR6: =+$W15 -> 0 | AS6: =+$W16 -> 0 | AT6: =+$W17 -> 0 | AU6: =+$W18 -> 0 | AV6: =+$W19 -> 0 | AW6: =+$W20 -> 0 | AX6: =+$W21 -> 0 | AY6: =+$W22 -> 0 | AZ6: =+$W23 -> 0 | BA6: =+$W24 -> 0 | BB6: =+$W25 -> 0 | BC6: =+$W26 -> 0 | BD6: =+$W27 -> 0 | BE6: =+$W28 -> 0 | BF6: =+$W29 -> 0 | BG6: =+$W30 -> 0 | BH6: =+$W31 -> 0 | BI6: =+$W32 -> 0 | BJ6: =+$W33 -> 0 | BK6: =+$W34 -> 0 | BL6: =+$W35 -> 0 | BM6: =+$W36 -> 0 | BN6: =+$W37 -> 0 | BO6: =+$W38 -> 0 | BP6: =+$W39 -> 0 | BQ6: =+$W40 -> 0 | BR6: =+$W41 -> 0 | BS6: =+$W42 -> 0 | BT6: =+$W43 -> 0 | BU6: =+$W44 -> 0 | BV6: =+$W45 -> 0 | BW6: =+$W46 -> 0 | BY6: =+W47 -> 0 | CA6: =+$D48 -> 0 | CB6: =+$D49 -> 0 | CC6: =+$D50 -> 0 | CD6: =+$D51 -> 0 | CE6: =+$D52 -> 0 | CF6: =+$D53 -> 0 | CG6: =+$D54 -> 0 | CH6: =+$D55 -> 0
A7: =$B$2 -> 09-A1 | B7: H2 | C7: Air Handling Unit (Air Cooled DX / Package) | J7: 0 | K7: 0 | L7: =+K7*J7 -> 0 | M7: 3 | N7: 0 | O7: =+N7*M7 -> 0 | P7: 1 | Q7: 0 | R7: =+Q7*P7 -> 0 | S7: =+$J7+$M7+$P7 -> 4 | T7: =IF($V7>0,$S7,0) -> 0 | U7: =+R7+O7+L7+I7+F7 -> 0 | V7: =IFERROR(VLOOKUP($A$5,'Equipment List Template'!$1:$1048576,12,FALSE),"0") -> 0 | W7: =+U7*V7 -> 0 | X7: =$T7*$V7 -> 0
A8: 09-A1 | B8: H3 | C8: Air-Cooled Chiller | J8: 11 | K8: 0 | L8: 0 | M8: 0 | N8: 0 | O8: 0 | P8: 1 | Q8: 0 | R8: 0 | S8: 12 | T8: 0 | U8: 0 | V8: =IFERROR(VLOOKUP($A$5,'Equipment List Template'!$1:$1048576,13,FALSE),"0") -> 0 | W8: 0 | X8: 0
A9: 09-A1 | B9: H4 | C9: Centrifugal Chiller | J9: 11 | K9: 0 | L9: 0 | M9: 0 | N9: 0 | O9: 0 | P9: 1 | Q9: 0 | R9: 0 | S9: 12 | T9: 12 | U9: 0 | V9: =IFERROR(VLOOKUP($A$5,'Equipment List Template'!$1:$1048576,14,FALSE),"0") -> 1 | W9: 0 | X9: 12
A10: 09-A1 | B10: H5 | C10: Cooling Tower (Induced Draft) | J10: 8 | K10: 0 | L10: 0 | M10: 3 | N10: 0 | O10: 0 | P10: 1 | Q10: 0 | R10: 0 | S10: 12 | T10: 0 | U10: 0 | V10: =IFERROR(VLOOKUP($A$5,'Equipment List Template'!$1:$1048576,15,FALSE),"0") -> 0 | W10: 0 | X10: 0
A11: 09-A1 | B11: H6 | C11: Ice Chiller Tank | J11: 8 | K11: 0 | L11: 0 | M11: 3 | N11: 0 | O11: 0 | P11: 1 | Q11: 0 | R11: 0 | S11: 12 | T11: 0 | U11: 0 | V11: =IFERROR(VLOOKUP($A$5,'Equipment List Template'!$1:$1048576,16,FALSE),"0") -> 0 | W11: 0 | X11: 0
A12: 09-A1 | B12: H7 | C12: Geothermal System | J12: 11 | K12: 0 | L12: 0 | M12: 0 | N12: 0 | O12: 0 | P12: 1 | Q12: 0 | R12: 0 | S12: 12 | T12: 0 | U12: 0 | V12: =IFERROR(VLOOKUP($A$5,'Equipment List Template'!$1:$1048576,17,FALSE),"0") -> 0 | W12: 0 | X12: 0
A13: 09-A1 | B13: H8 | C13: Water Source Heat Pump | J13: 8 | K13: 0 | L13: 0 | M13: 3 | N13: 0 | O13: 0 | P13: 1 | Q13: 0 | R13: 0 | S13: 12 | T13: 0 | U13: 0 | V13: =IFERROR(VLOOKUP($A$5,'Equipment List Template'!$1:$1048576,18,FALSE),"0") -> 0 | W13: 0 | X13: 0
A14: 09-A1 | B14: H9 | C14: Fan Coil System | J14: 0 | K14: 0 | L14: 0 | M14: 3 | N14: 0 | O14: 0 | P14: 1 | Q14: 0 | R14: 0 | S14: 4 | T14: 0 | U14: 0 | V14: =IFERROR(VLOOKUP($A$5,'Equipment List Template'!$1:$1048576,19,FALSE),"0") -> 0 | W14: 0 | X14: 0
A15: 09-A1 | B15: H10 | C15: Supply / Return Fan and Exhaust | J15: 0 | K15: 0 | L15: 0 | M15: 3 | N15: 0 | O15: 0 | P15: 1 | Q15: 0 | R15: 0 | S15: 4 | T15: 0 | U15: 0 | V15: =IFERROR(VLOOKUP($A$5,'Equipment List Template'!$1:$1048576,20,FALSE),"0") -> 0 | W15: 0 | X15: 0
A16: 09-A1 | B16: H11 | C16: Evaporative and Spot Coolers (swamp coolers; spot cooler) | J16: 8 | K16: 0 | L16: 0 | M16: 3 | N16: 0 | O16: 0 | P16: 1 | Q16: 0 | R16: 0 | S16: 12 | T16: 0 | U16: 0 | V16: =IFERROR(VLOOKUP($A$5,'Equipment List Template'!$1:$1048576,21,FALSE),"0") -> 0 | W16: 0 | X16: 0
B17: H12 | C17: Unique HVAC System | J17: 0 | K17: 0 | L17: 0 | M17: 0 | N17: 0 | O17: 0 | P17: 0 | Q17: 0 | R17: 0 | S17: 0 | T17: 0 | V17: 0 | W17: 0
A18: 09-A1 | B18: E1 | C18: Electrical Panels | J18: 0 | K18: 0 | L18: 0 | M18: 3 | N18: 0 | O18: 0 | P18: 1 | Q18: 0 | R18: 0 | S18: 4 | T18: 4 | U18: 0 | V18: =IFERROR(VLOOKUP($A$5,'Equipment List Template'!$1:$1048576,23,FALSE),"0") -> 1 | W18: 0 | X18: 4
A19: 09-A1 | B19: E2 | C19: Emergency Generator | J19: 8 | K19: 0 | L19: 0 | M19: 3 | N19: 0 | O19: 0 | P19: 1 | Q19: 0 | R19: 0 | S19: 12 | T19: 0 | U19: 0 | V19: =IFERROR(VLOOKUP($A$5,'Equipment List Template'!$1:$1048576,24,FALSE),"0") -> 0 | W19: 0 | X19: 0
A20: 09-A1 | B20: E3 | C20: Motor Control Center | J20: 0 | K20: 0 | L20: 0 | M20: 3 | N20: 0 | O20: 0 | P20: 1 | Q20: 0 | R20: 0 | S20: 4 | T20: 0 | U20: 0 | V20: =IFERROR(VLOOKUP($A$5,'Equipment List Template'!$1:$1048576,25,FALSE),"0") -> 0 | W20: 0 | X20: 0
A21: 09-A1 | B21: E4 | C21: Automatic Transfer Switch | J21: 8 | K21: 0 | L21: 0 | M21: 3 | N21: 0 | O21: 0 | P21: 1 | Q21: 0 | R21: 0 | S21: 12 | T21: 0 | U21: 0 | V21: =IFERROR(VLOOKUP($A$5,'Equipment List Template'!$1:$1048576,26,FALSE),"0") -> 0 | W21: 0 | X21: 0
A22: 09-A1 | B22: E5 | C22: Building Automated Systems (BAS) | J22: 0 | K22: 0 | L22: 0 | M22: 0 | N22: 0 | O22: 0 | P22: 1 | Q22: 0 | R22: 0 | S22: 1 | T22: 0 | U22: 0 | V22: =IFERROR(VLOOKUP($A$5,'Equipment List Template'!$1:$1048576,27,FALSE),"0") -> 0 | W22: 0 | X22: 0
A23: 09-A1 | B23: E6 | C23: Transformer (Dry-Type) | J23: 0 | K23: 0 | L23: 0 | M23: 3 | N23: 0 | O23: 0 | P23: 1 | Q23: 0 | R23: 0 | S23: 4 | T23: 0 | U23: 0 | V23: =IFERROR(VLOOKUP($A$5,'Equipment List Template'!$1:$1048576,28,FALSE),"0") -> 0 | W23: 0 | X23: 0
A24: 09-A1 | B24: E7 | C24: Uninterruptible Power Supply (UPS) | J24: 0 | K24: 0 | L24: 0 | M24: 0 | N24: 0 | O24: 0 | P24: 1 | Q24: 0 | R24: 0 | S24: 1 | T24: 0 | U24: 0 | V24: =IFERROR(VLOOKUP($A$5,'Equipment List Template'!$1:$1048576,29,FALSE),"0") -> 0 | W24: 0 | X24: 0
A25: 09-A1 | B25: E8 | C25: Lighting and Controls (Interior and Exterior) | J25: 12 | K25: 0 | L25: 0 | M25: 0 | N25: 0 | O25: 0 | P25: 0 | Q25: 0 | R25: 0 | S25: 12 | T25: 12 | U25: 0 | V25: =IFERROR(VLOOKUP($A$5,'Equipment List Template'!$1:$1048576,30,FALSE),"0") -> 1 | W25: 0 | X25: 12
B26: E9 | C26: Unique Electrical System | J26: 0 | K26: 0 | L26: 0 | M26: 0 | N26: 0 | O26: 0 | P26: 0 | Q26: 0 | R26: 0 | S26: 0 | T26: 0 | V26: 0 | W26: 0
A27: 09-A1 | B27: L1 | C27: Life Safety Systems | J27: 0 | K27: 0 | L27: 0 | M27: 3 | N27: 0 | O27: 0 | P27: 1 | Q27: 0 | R27: 0 | S27: 4 | T27: 4 | U27: 0 | V27: =IFERROR(VLOOKUP($A$5,'Equipment List Template'!$1:$1048576,32,FALSE),"0") -> 1 | W27: 0 | X27: 4
A28: 09-A1 | B28: L2 | C28: Reduced Pressure Backflow Preventer(s) | J28: 0 | K28: 0 | L28: 0 | M28: 0 | N28: 0 | O28: 0 | P28: 1 | Q28: 0 | R28: 0 | S28: 1 | T28: 1 | U28: 0 | V28: =IFERROR(VLOOKUP($A$5,'Equipment List Template'!$1:$1048576,33,FALSE),"0") -> 2 | W28: 0 | X28: 2
A29: 09-A1 | B29: P1 | C29: Boiler (Condensing) | J29: 8 | K29: 0 | L29: 0 | M29: 3 | N29: 0 | O29: 0 | P29: 1 | Q29: 0 | R29: 0 | S29: 12 | T29: 12 | U29: 0 | V29: =IFERROR(VLOOKUP($A$5,'Equipment List Template'!$1:$1048576,34,FALSE),"0") -> 1 | W29: 0 | X29: 12
A30: 09-A1 | B30: P2 | C30: Domestic Water Heater (Gas-Fired, Condensing) | J30: 0 | K30: 0 | L30: 0 | M30: 0 | N30: 0 | O30: 0 | P30: 1 | Q30: 0 | R30: 0 | S30: 1 | T30: 0 | U30: 0 | V30: =IFERROR(VLOOKUP($A$5,'Equipment List Template'!$1:$1048576,35,FALSE),"0") -> 0 | W30: 0 | X30: 0
A31: 09-A1 | B31: P3 | C31: Domestic Water Heater (Electric, Non- Condensing) | J31: 0 | K31: 0 | L31: 0 | M31: 0 | N31: 0 | O31: 0 | P31: 1 | Q31: 0 | R31: 0 | S31: 1 | T31: 1 | U31: 0 | V31: =IFERROR(VLOOKUP($A$5,'Equipment List Template'!$1:$1048576,36,FALSE),"0") -> 4 | W31: 0 | X31: 4
A32: 09-A1 | B32: P4 | C32: Boiler (Steam, low pressure) | J32: 0 | K32: 0 | L32: 0 | M32: 3 | N32: 0 | O32: 0 | P32: 1 | Q32: 0 | R32: 0 | S32: 4 | T32: 0 | U32: 0 | V32: =IFERROR(VLOOKUP($A$5,'Equipment List Template'!$1:$1048576,37,FALSE),"0") -> 0 | W32: 0 | X32: 0
A33: 09-A1 | B33: P5 | C33: Steam System | J33: 8 | K33: 0 | L33: 0 | M33: 3 | N33: 0 | O33: 0 | P33: 1 | Q33: 0 | R33: 0 | S33: 12 | T33: 0 | U33: 0 | V33: =IFERROR(VLOOKUP($A$5,'Equipment List Template'!$1:$1048576,38,FALSE),"0") -> 0 | W33: 0 | X33: 0
A34: 09-A1 | B34: P6 | C34: Pneumatic Compressor System | J34: 11 | K34: 0 | L34: 0 | M34: 0 | N34: 0 | O34: 0 | P34: 1 | Q34: 0 | R34: 0 | S34: 12 | T34: 0 | U34: 0 | V34: =IFERROR(VLOOKUP($A$5,'Equipment List Template'!$1:$1048576,39,FALSE),"0") -> 0 | W34: 0 | X34: 0
B35: P7 | C35: Unique Plumbing System | J35: 0 | K35: 0 | L35: 0 | M35: 0 | N35: 0 | O35: 0 | P35: 0 | Q35: 0 | R35: 0 | S35: 0 | T35: 0 | U35: 0 | V35: 0 | W35: 0
A36: 09-A1 | B36: R1 | C36: Rounds and Readings | D36: =IFERROR(IF(VLOOKUP($A36,'Equipment List Template'!$1:$1048576,38,FALSE)=248,248,0),0) -> 0 | E36: 0 | F36: =+E36*D36 -> 0 | G36: =IFERROR(IF(VLOOKUP($A36,'Equipment List Template'!$1:$1048576,38,FALSE)=40,40,0),0) -> 0 | H36: 0 | I36: =+H36*G36 -> 0 | J36: 12 | K36: 0 | L36: 0 | S36: =+$J36+$M36+$P36+D36+G36 -> 12 | T36: 12 | U36: =+R36+O36+L36+I36+F36 -> 0 | V36: 1 | W36: =+U36*V36 -> 0 | X36: 12
A37: 09-A1 | B37: V1 | C37: Vertical Transportation | J37: 8 | K37: 0 | L37: =+K37*J37 -> 0 | M37: 3 | N37: 0 | O37: =+N37*M37 -> 0 | P37: 1 | Q37: 0 | R37: =+Q37*P37 -> 0 | S37: =+$J37+$M37+$P37+D37+G37 -> 12 | T37: 12 | U37: =+R37+O37+L37 -> 0 | V37: =IFERROR(VLOOKUP($A$5,'Equipment List Template'!$1:$1048576,42,FALSE),"0") -> 1 | W37: =+U37*V37 -> 0 | X37: 12
A38: 09-A1 | B38: W1 | C38: Water Treatment | D38: =IFERROR(IF(VLOOKUP($A38,'Equipment List Template'!$1:$1048576,40,FALSE)=248,260,0),0) -> 0 | E38: 0 | F38: =+E38*D38 -> 0 | S38: 0 | T38: 0 | U38: =+R38+O38+L38+I38+F38 -> 0 | V38: 1 | W38: 0 | X38: 0
A39: 09-A1 | B39: B1 | C39: Building Exterior / Hardscape (Monthly) | J39: 12 | K39: 0 | L39: =+K39*J39 -> 0 | S39: 12 | T39: 12 | U39: 0 | V39: =IFERROR(VLOOKUP($A$5,'Equipment List Template'!$1:$1048576,44,FALSE),"0") -> 1 | W39: 0 | X39: 12
A40: 09-A1 | B40: F1 | C40: Fountain Maintenance (Monthly) | J40: 12 | K40: 0 | L40: =+K40*J40 -> 0 | S40: 12 | T40: 0 | U40: 0 | V40: =IFERROR(VLOOKUP($A$5,'Equipment List Template'!$1:$1048576,45,FALSE),"0") -> 0 | W40: 0 | X40: 0
A41: 09-A1 | B41: F2 | C41: Above-Ground/Underground Fuel Storage Tanks (Quarterly) If applicable | M41: 4 | N41: 0 | O41: =+N41*M41 -> 0 | S41: 4 | T41: 0 | U41: 0 | V41: =IFERROR(VLOOKUP($A$5,'Equipment List Template'!$1:$1048576,46,FALSE),"0") -> 0 | W41: 0 | X41: 0
A42: 09-A1 | B42: G1 | C42: Landscape Maintenance * | S42: 0 | T42: 0 | U42: 0 | V42: =IFERROR(VLOOKUP($A$5,'Equipment List Template'!$1:$1048576,47,FALSE),"0") -> 1 | W42: 0 | X42: 0
B43: PC1 | C43: Pest Control (Monthly) | J43: 12 | K43: 0 | L43: =+K43*J43 -> 0 | S43: 12 | T43: 12 | U43: 0 | V43: 1 | W43: 0 | X43: 12
B44: PV1 | C44: Photovoltaic (PV) System | P44: 1 | Q44: 0 | R44: =+Q44*P44 -> 0 | S44: 1 | T44: 0 | U44: 0 | V44: 0 | W44: 0
A45: 09-A1 | B45: C1 | C45: Account Management and Supervision (Monthly) | J45: 12 | K45: 0 | L45: =+K45*J45 -> 0 | S45: 12 | T45: 12 | U45: 0 | V45: 1 | W45: 0 | X45: 12
A46: 09-A1 | B46: C2 | C46: Fee (Monthly) | J46: 12 | K46: 0 | L46: =+K46*J46 -> 0 | S46: 12 | T46: 12 | U46: 0 | V46: 1 | W46: 0 | X46: 12
Q47: JCC ID | R47: =B2 -> 09-A1 | U47: Total | W47: =SUM(W5:W46) -> 0
B48: S1 | C48: Snow Removal - (crew hourly rate) | D48: 0 | U48: Total # of PM's | W48: =SUM($X$5:$X$46) -> 174
B49: I1 | C49: Unclogging Blocked Toilet - In-custody cell (labor-only) | D49: 0
B50: I2 | C50: Unclogging Blocked Toilet - Public/Court Staff (labor-only) | D50: 0
B51: I3 | C51: Clean up & Disposal of Biological Waste Event | D51: 0
B52: I4 | C52: Clean up & Disposal of Biological Waste Labor Rate | D52: 0
B53: Hr 1 | C53: Hourly Rate (All Labor categories) | D53: 0
B54: M1 | C54: Markup on Materials (Percentage) | D54: 0
B55: Sub1 | C55: Markup on Subcontractors/Third-Parties (Percentage) | D55: 0
B57: * Landscape Maintenance varies by location on the number of weeks per year it can be preformed. For the purpose of the RFP, all facilities are pre-established at 40 weeks of service. The actual amount paid by facility will be based upon the actual weeks that service has been performed, validated and invoiced.

Sheet 09-C1
B1: JCC ID | C1: Facility Name | D1: Address | F1: City / Town | H1: Zip Code | J1: County | L1: Region | N1: RFP | P1: Proposer
B2: 09-C1 | C2: =IFERROR(VLOOKUP($B$2,'Equipment List Template'!$1:$1048576,2,FALSE),"") -> Cameron Park | D2: =IFERROR(VLOOKUP($B$2,'Equipment List Template'!$1:$1048576,3,FALSE),"") -> 3321 Cameron Park Dr. | F2: =IFERROR(VLOOKUP($B$2,'Equipment List Template'!$1:$1048576,4,FALSE),"") -> Cameron Park | H2: =IFERROR(VLOOKUP($B$2,'Equipment List Template'!$1:$1048576,5,FALSE),"") -> 95682 | J2: =IFERROR(VLOOKUP($B$2,'Equipment List Template'!$1:$1048576,6,FALSE),"") -> El Dorado | L2: =IFERROR(VLOOKUP($B$2,'Equipment List Template'!$1:$1048576,7,FALSE),"") -> NCRO | N2: ='Summary Pricing Sheet'!B2 -> RFP-FS-SP-2019-03-JP | P2: ='Summary Pricing Sheet'!B3 -> Firm Name TBD
D3: Daily Activity | G3: Weekly Activity | J3: Monthly Activity | M3: Quarterly Activity | P3: Annual Activity | U3: Summary | AG3: System | AH3: Access | AI3: HVAC | AU3: Electrical | BD3: Life Safety | BF3: Plumbing | BM3: Building Systems | BV3: Corporate | BY3: Fixed Price - Facility Total Annual Cost Year 1 | CA3: Unit Pricing
B4: System ID | C4: Subsystem | D4: Quantity | E4: Cost | F4: Daily Total | G4: Quantity | H4: Cost | I4: Weekly Total | J4: Monthly Quantity | K4: Cost | L4: Monthly Total | M4: Quarterly Quantity | N4: Cost | O4: Quarterly Total | P4: Annual Quantity | Q4: Cost | R4: Annual PM Total | T4: Number of PM's | U4: Annual Cost | V4: Quantity | W4: Total Annual Cost | AG4: Subsystem | AH4: Access Doors, Gates, Sally Port | AI4: Air Cooled DX (Split System) | AJ4: Air Handling Unit (Air Cooled DX / Package) | AK4: Air-Cooled Chiller | AL4: Centrifugal Chiller | AM4: Cooling Tower (Induced Draft) | AN4: Ice Chiller Tank | AO4: Geothermal System | AP4: Water Source Heat Pump | AQ4: Fan Coil System | AR4: Supply / Return Fan and Exhaust | AS4: Evaporative and Spot Coolers (swamp coolers; spot cooler) | AT4: Unique HVAC System | AU4: Electrical Panels | AV4: Emergency Generator | AW4: Motor Control Center | AX4: Automatic Transfer Switch | AY4: Building Automated Systems (BAS) | AZ4: Transformer (Dry-Type) | BA4: Uninterruptible Power Supply (UPS) | BB4: Lighting and Controls (Interior and Exterior) | BC4: Unique Electrical System | BD4: Life Safety Systems | BE4: Reduced Pressure Backflow Preventer(s) | BF4: Boiler (Condensing) | BG4: Domestic Water Heater (Gas-Fired, Condensing) | BH4: Domestic Water Heater (Electric, Non- Condensing) | BI4: Boiler (Steam, low pressure) | BJ4: Steam System | BK4: Pneumatic Compressor System | BL4: Unique Plumbing System | BM4: Rounds and Readings | BN4: Vertical Transportation | BO4: Water Treatment | BP4: Building Exterior / Hardscape (Monthly) | BQ4: Fountain Maintenance (Monthly) | BR4: Above-Ground/Underground Fuel Storage Tanks (Quarterly) If applicable | BS4: Landscape Maintenance * | BT4: Pest Control (Monthly) | BU4: Photovoltaic (PV) System | BV4: Account Management and Supervision (Monthly) | BW4: Fee (Monthly) | CA4: Snow Removal - (crew hourly rate) | CB4: Unclogging Blocked Toilet - In-custody holding cell (labor) | CC4: Unclogging Blocked Toilet - Public/Court Staff (labor) | CD4: Clean up & Disposal of Biological Waste Event | CE4: Clean up & Disposal of Biological Waste Labor Rate | CF4: Hourly Rate | CG4: Markup on Materials | CH4: Markup on Subcontractors/Third-Parties
A5: =$B$2 -> 09-C1 | B5: A1 | C5: Access Doors, Gates, Sally Port | J5: 11 | K5: 0 | L5: =+K5*J5 -> 0 | M5: 0 | N5: 0 | O5: =+N5*M5 -> 0 | P5: 1 | Q5: 0 | R5: =+Q5*P5 -> 0 | S5: =+$J5+$M5+$P5 -> 12 | T5: =IF($V5>0,$S5,0) -> 12 | U5: =+R5+O5+L5+I5+F5 -> 0 | V5: =IFERROR(VLOOKUP($A$5,'Equipment List Template'!$1:$1048576,10,FALSE),"0") -> 5 | W5: =+U5*V5 -> 0 | X5: =$T5*$V5 -> 60 | Z5: JCC ID | AA5: Facility Name | AB5: Address | AC5: City / Town | AD5: County | AE5: Region | AF5: Region | AG5: System ID | AH5: A1 | AI5: H1 | AJ5: H2 | AK5: H3 | AL5: H4 | AM5: H5 | AN5: H6 | AO5: H7 | AP5: H8 | AQ5: H9 | AR5: H10 | AS5: H11 | AT5: H12 | AU5: E1 | AV5: E2 | AW5: E3 | AX5: E4 | AY5: E5 | AZ5: E6 | BA5: E7 | BB5: E8 | BC5: E9 | BD5: L1 | BE5: L2 | BF5: P1 | BG5: P2 | BH5: P3 | BI5: P4 | BJ5: P5 | BK5: P6 | BL5: P7 | BM5: R1 | BN5: V1 | BO5: W1 | BP5: B1 | BQ5: F1 | BR5: F2 | BS5: G1 | BT5: PC1 | BU5: PV1 | BV5: C1 | BW5: C2 | CA5: S1 | CB5: I1 | CC5: I2 | CD5: I3 | CE5: I4 | CF5: Hr 1 | CG5: M1 | CH5: Sub1
A6: =$B$2 -> 09-C1 | B6: H1 | C6: Air Cooled DX (Split System) | J6: 0 | K6: 0 | L6: =+K6*J6 -> 0 | M6: 3 | N6: 0 | O6: =+N6*M6 -> 0 | P6: 1 | Q6: 0 | R6: =+Q6*P6 -> 0 | S6: =+$J6+$M6+$P6 -> 4 | T6: =IF($V6>0,$S6,0) -> 4 | U6: =+R6+O6+L6+I6+F6 -> 0 | V6: =IFERROR(VLOOKUP($A$5,'Equipment List Template'!$1:$1048576,11,FALSE),"0") -> 5 | W6: =+U6*V6 -> 0 | X6: =$T6*$V6 -> 20 | Z6: =B2 -> 09-C1 | AA6: =IFERROR(VLOOKUP($Z$6,'Equipment List Template'!$1:$1048576,2,FALSE),"") -> Cameron Park | AB6: =IFERROR(VLOOKUP($Z$6,'Equipment List Template'!$1:$1048576,3,FALSE),"") -> 3321 Cameron Park Dr. | AC6: =IFERROR(VLOOKUP($Z$6,'Equipment List Template'!$1:$1048576,4,FALSE),"") -> Cameron Park | AD6: =IFERROR(VLOOKUP($Z$6,'Equipment List Template'!$1:$1048576,5,FALSE),"") -> 95682 | AE6: =IFERROR(VLOOKUP($Z$6,'Equipment List Template'!$1:$1048576,6,FALSE),"") -> El Dorado | AF6: =IFERROR(VLOOKUP($Z$6,'Equipment List Template'!$1:$1048576,7,FALSE),"") -> NCRO | AH6: =+$W5 -> 0 | AI6: =+$W6 -> 0 | AJ6: =+$W7 -> 0 | AK6: =+$W8 -> 0 | AL6: =+$W9 -> 0 | AM6: =+$W10 -> 0 | AN6: =+$W11 -> 0 | AO6: =+$W12 -> 0 | AP6: =+$W13 -> 0 | AQ6: =+$W14 -> 0 | AR6: =+$W15 -> 0 | AS6: =+$W16 -> 0 | AT6: =+$W17 -> 0 | AU6: =+$W18 -> 0 | AV6: =+$W19 -> 0 | AW6: =+$W20 -> 0 | AX6: =+$W21 -> 0 | AY6: =+$W22 -> 0 | AZ6: =+$W23 -> 0 | BA6: =+$W24 -> 0 | BB6: =+$W25 -> 0 | BC6: =+$W26 -> 0 | BD6: =+$W27 -> 0 | BE6: =+$W28 -> 0 | BF6: =+$W29 -> 0 | BG6: =+$W30 -> 0 | BH6: =+$W31 -> 0 | BI6: =+$W32 -> 0 | BJ6: =+$W33 -> 0 | BK6: =+$W34 -> 0 | BL6: =+$W35 -> 0 | BM6: =+$W36 -> 0 | BN6: =+$W37 -> 0 | BO6: =+$W38 -> 0 | BP6: =+$W39 -> 0 | BQ6: =+$W40 -> 0 | BR6: =+$W41 -> 0 | BS6: =+$W42 -> 0 | BT6: =+$W43 -> 0 | BU6: =+$W44 -> 0 | BV6: =+$W45 -> 0 | BW6: =+$W46 -> 0 | BY6: =+W47 -> 0 | CA6: =+$D48 -> 0 | CB6: =+$D49 -> 0 | CC6: =+$D50 -> 0 | CD6: =+$D51 -> 0 | CE6: =+$D52 -> 0 | CF6: =+$D53 -> 0 | CG6: =+$D54 -> 0 | CH6: =+$D55 -> 0
A7: =$B$2 -> 09-C1 | B7: H2 | C7: Air Handling Unit (Air Cooled DX / Package) | J7: 0 | K7: 0 | L7: =+K7*J7 -> 0 | M7: 3 | N7: 0 | O7: =+N7*M7 -> 0 | P7: 1 | Q7: 0 | R7: =+Q7*P7 -> 0 | S7: =+$J7+$M7+$P7 -> 4 | T7: =IF($V7>0,$S7,0) -> 0 | U7: =+R7+O7+L7+I7+F7 -> 0 | V7: =IFERROR(VLOOKUP($A$5,'Equipment List Template'!$1:$1048576,12,FALSE),"0") -> 0 | W7: =+U7*V7 -> 0 | X7: =$T7*$V7 -> 0
A8: 09-C1 | B8: H3 | C8: Air-Cooled Chiller | J8: 11 | K8: 0 | L8: 0 | M8: 0 | N8: 0 | O8: 0 | P8: 1 | Q8: 0 | R8: 0 | S8: 12 | T8: 0 | U8: 0 | V8: =IFERROR(VLOOKUP($A$5,'Equipment List Template'!$1:$1048576,13,FALSE),"0") -> 0 | W8: 0 | X8: 0
A9: 09-C1 | B9: H4 | C9: Centrifugal Chiller | J9: 11 | K9: 0 | L9: 0 | M9: 0 | N9: 0 | O9: 0 | P9: 1 | Q9: 0 | R9: 0 | S9: 12 | T9: 0 | U9: 0 | V9: =IFERROR(VLOOKUP($A$5,'Equipment List Template'!$1:$1048576,14,FALSE),"0") -> 0 | W9: 0 | X9: 0
A10: 09-C1 | B10: H5 | C10: Cooling Tower (Induced Draft) | J10: 8 | K10: 0 | L10: 0 | M10: 3 | N10: 0 | O10: 0 | P10: 1 | Q10: 0 | R10: 0 | S10: 12 | T10: 0 | U10: 0 | V10: =IFERROR(VLOOKUP($A$5,'Equipment List Template'!$1:$1048576,15,FALSE),"0") -> 0 | W10: 0 | X10: 0
A11: 09-C1 | B11: H6 | C11: Ice Chiller Tank | J11: 8 | K11: 0 | L11: 0 | M11: 3 | N11: 0 | O11: 0 | P11: 1 | Q11: 0 | R11: 0 | S11: 12 | T11: 0 | U11: 0 | V11: =IFERROR(VLOOKUP($A$5,'Equipment List Template'!$1:$1048576,16,FALSE),"0") -> 0 | W11: 0 | X11: 0
A12: 09-C1 | B12: H7 | C12: Geothermal System | J12: 11 | K12: 0 | L12: 0 | M12: 0 | N12: 0 | O12: 0 | P12: 1 | Q12: 0 | R12: 0 | S12: 12 | T12: 0 | U12: 0 | V12: =IFERROR(VLOOKUP($A$5,'Equipment List Template'!$1:$1048576,17,FALSE),"0") -> 0 | W12: 0 | X12: 0
A13: 09-C1 | B13: H8 | C13: Water Source Heat Pump | J13: 8 | K13: 0 | L13: 0 | M13: 3 | N13: 0 | O13: 0 | P13: 1 | Q13: 0 | R13: 0 | S13: 12 | T13: 12 | U13: 0 | V13: =IFERROR(VLOOKUP($A$5,'Equipment List Template'!$1:$1048576,18,FALSE),"0") -> 2 | W13: 0 | X13: 24
A14: 09-C1 | B14: H9 | C14: Fan Coil System | J14: 0 | K14: 0 | L14: 0 | M14: 3 | N14: 0 | O14: 0 | P14: 1 | Q14: 0 | R14: 0 | S14: 4 | T14: 0 | U14: 0 | V14: =IFERROR(VLOOKUP($A$5,'Equipment List Template'!$1:$1048576,19,FALSE),"0") -> 0 | W14: 0 | X14: 0
A15: 09-C1 | B15: H10 | C15: Supply / Return Fan and Exhaust | J15: 0 | K15: 0 | L15: 0 | M15: 3 | N15: 0 | O15: 0 | P15: 1 | Q15: 0 | R15: 0 | S15: 4 | T15: 0 | U15: 0 | V15: =IFERROR(VLOOKUP($A$5,'Equipment List Template'!$1:$1048576,20,FALSE),"0") -> 0 | W15: 0 | X15: 0
A16: 09-C1 | B16: H11 | C16: Evaporative and Spot Coolers (swamp coolers; spot cooler) | J16: 8 | K16: 0 | L16: 0 | M16: 3 | N16: 0 | O16: 0 | P16: 1 | Q16: 0 | R16: 0 | S16: 12 | T16: 0 | U16: 0 | V16: =IFERROR(VLOOKUP($A$5,'Equipment List Template'!$1:$1048576,21,FALSE),"0") -> 0 | W16: 0 | X16: 0
B17: H12 | C17: Unique HVAC System | J17: 0 | K17: 0 | L17: 0 | M17: 0 | N17: 0 | O17: 0 | P17: 0 | Q17: 0 | R17: 0 | S17: 0 | T17: 0 | V17: 0 | W17: 0
A18: 09-C1 | B18: E1 | C18: Electrical Panels | J18: 0 | K18: 0 | L18: 0 | M18: 3 | N18: 0 | O18: 0 | P18: 1 | Q18: 0 | R18: 0 | S18: 4 | T18: 4 | U18: 0 | V18: =IFERROR(VLOOKUP($A$5,'Equipment List Template'!$1:$1048576,23,FALSE),"0") -> 1 | W18: 0 | X18: 4
A19: 09-C1 | B19: E2 | C19: Emergency Generator | J19: 8 | K19: 0 | L19: 0 | M19: 3 | N19: 0 | O19: 0 | P19: 1 | Q19: 0 | R19: 0 | S19: 12 | T19: 0 | U19: 0 | V19: =IFERROR(VLOOKUP($A$5,'Equipment List Template'!$1:$1048576,24,FALSE),"0") -> 0 | W19: 0 | X19: 0
A20: 09-C1 | B20: E3 | C20: Motor Control Center | J20: 0 | K20: 0 | L20: 0 | M20: 3 | N20: 0 | O20: 0 | P20: 1 | Q20: 0 | R20: 0 | S20: 4 | T20: 0 | U20: 0 | V20: =IFERROR(VLOOKUP($A$5,'Equipment List Template'!$1:$1048576,25,FALSE),"0") -> 0 | W20: 0 | X20: 0
A21: 09-C1 | B21: E4 | C21: Automatic Transfer Switch | J21: 8 | K21: 0 | L21: 0 | M21: 3 | N21: 0 | O21: 0 | P21: 1 | Q21: 0 | R21: 0 | S21: 12 | T21: 0 | U21: 0 | V21: =IFERROR(VLOOKUP($A$5,'Equipment List Template'!$1:$1048576,26,FALSE),"0") -> 0 | W21: 0 | X21: 0
A22: 09-C1 | B22: E5 | C22: Building Automated Systems (BAS) | J22: 0 | K22: 0 | L22: 0 | M22: 0 | N22: 0 | O22: 0 | P22: 1 | Q22: 0 | R22: 0 | S22: 1 | T22: 0 | U22: 0 | V22: =IFERROR(VLOOKUP($A$5,'Equipment List Template'!$1:$1048576,27,FALSE),"0") -> 0 | W22: 0 | X22: 0
A23: 09-C1 | B23: E6 | C23: Transformer (Dry-Type) | J23: 0 | K23: 0 | L23: 0 | M23: 3 | N23: 0 | O23: 0 | P23: 1 | Q23: 0 | R23: 0 | S23: 4 | T23: 0 | U23: 0 | V23: =IFERROR(VLOOKUP($A$5,'Equipment List Template'!$1:$1048576,28,FALSE),"0") -> 0 | W23: 0 | X23: 0
A24: 09-C1 | B24: E7 | C24: Uninterruptible Power Supply (UPS) | J24: 0 | K24: 0 | L24: 0 | M24: 0 | N24: 0 | O24: 0 | P24: 1 | Q24: 0 | R24: 0 | S24: 1 | T24: 0 | U24: 0 | V24: =IFERROR(VLOOKUP($A$5,'Equipment List Template'!$1:$1048576,29,FALSE),"0") -> 0 | W24: 0 | X24: 0
A25: 09-C1 | B25: E8 | C25: Lighting and Controls (Interior and Exterior) | J25: 12 | K25: 0 | L25: 0 | M25: 0 | N25: 0 | O25: 0 | P25: 0 | Q25: 0 | R25: 0 | S25: 12 | T25: 12 | U25: 0 | V25: =IFERROR(VLOOKUP($A$5,'Equipment List Template'!$1:$1048576,30,FALSE),"0") -> 1 | W25: 0 | X25: 12
B26: E9 | C26: Unique Electrical System | J26: 0 | K26: 0 | L26: 0 | M26: 0 | N26: 0 | O26: 0 | P26: 0 | Q26: 0 | R26: 0 | S26: 0 | T26: 0 | V26: 0 | W26: 0
A27: 09-C1 | B27: L1 | C27: Life Safety Systems | J27: 0 | K27: 0 | L27: 0 | M27: 3 | N27: 0 | O27: 0 | P27: 1 | Q27: 0 | R27: 0 | S27: 4 | T27: 4 | U27: 0 | V27: =IFERROR(VLOOKUP($A$5,'Equipment List Template'!$1:$1048576,32,FALSE),"0") -> 4 | W27: 0 | X27: 16
A28: 09-C1 | B28: L2 | C28: Reduced Pressure Backflow Preventer(s) | J28: 0 | K28: 0 | L28: 0 | M28: 0 | N28: 0 | O28: 0 | P28: 1 | Q28: 0 | R28: 0 | S28: 1 | T28: 0 | U28: 0 | V28: =IFERROR(VLOOKUP($A$5,'Equipment List Template'!$1:$1048576,33,FALSE),"0") -> 0 | W28: 0 | X28: 0
A29: 09-C1 | B29: P1 | C29: Boiler (Condensing) | J29: 8 | K29: 0 | L29: 0 | M29: 3 | N29: 0 | O29: 0 | P29: 1 | Q29: 0 | R29: 0 | S29: 12 | T29: 0 | U29: 0 | V29: =IFERROR(VLOOKUP($A$5,'Equipment List Template'!$1:$1048576,34,FALSE),"0") -> 0 | W29: 0 | X29: 0
A30: 09-C1 | B30: P2 | C30: Domestic Water Heater (Gas-Fired, Condensing) | J30: 0 | K30: 0 | L30: 0 | M30: 0 | N30: 0 | O30: 0 | P30: 1 | Q30: 0 | R30: 0 | S30: 1 | T30: 0 | U30: 0 | V30: =IFERROR(VLOOKUP($A$5,'Equipment List Template'!$1:$1048576,35,FALSE),"0") -> 0 | W30: 0 | X30: 0
A31: 09-C1 | B31: P3 | C31: Domestic Water Heater (Electric, Non- Condensing) | J31: 0 | K31: 0 | L31: 0 | M31: 0 | N31: 0 | O31: 0 | P31: 1 | Q31: 0 | R31: 0 | S31: 1 | T31: 1 | U31: 0 | V31: =IFERROR(VLOOKUP($A$5,'Equipment List Template'!$1:$1048576,36,FALSE),"0") -> 2 | W31: 0 | X31: 2
A32: 09-C1 | B32: P4 | C32: Boiler (Steam, low pressure) | J32: 0 | K32: 0 | L32: 0 | M32: 3 | N32: 0 | O32: 0 | P32: 1 | Q32: 0 | R32: 0 | S32: 4 | T32: 0 | U32: 0 | V32: =IFERROR(VLOOKUP($A$5,'Equipment List Template'!$1:$1048576,37,FALSE),"0") -> 0 | W32: 0 | X32: 0
A33: 09-C1 | B33: P5 | C33: Steam System | J33: 8 | K33: 0 | L33: 0 | M33: 3 | N33: 0 | O33: 0 | P33: 1 | Q33: 0 | R33: 0 | S33: 12 | T33: 0 | U33: 0 | V33: =IFERROR(VLOOKUP($A$5,'Equipment List Template'!$1:$1048576,38,FALSE),"0") -> 0 | W33: 0 | X33: 0
A34: 09-C1 | B34: P6 | C34: Pneumatic Compressor System | J34: 11 | K34: 0 | L34: 0 | M34: 0 | N34: 0 | O34: 0 | P34: 1 | Q34: 0 | R34: 0 | S34: 12 | T34: 0 | U34: 0 | V34: =IFERROR(VLOOKUP($A$5,'Equipment List Template'!$1:$1048576,39,FALSE),"0") -> 0 | W34: 0 | X34: 0
B35: P7 | C35: Unique Plumbing System | J35: 0 | K35: 0 | L35: 0 | M35: 0 | N35: 0 | O35: 0 | P35: 0 | Q35: 0 | R35: 0 | S35: 0 | T35: 0 | U35: 0 | V35: 0 | W35: 0
A36: 09-C1 | B36: R1 | C36: Rounds and Readings | D36: =IFERROR(IF(VLOOKUP($A36,'Equipment List Template'!$1:$1048576,38,FALSE)=248,248,0),0) -> 0 | E36: 0 | F36: =+E36*D36 -> 0 | G36: =IFERROR(IF(VLOOKUP($A36,'Equipment List Template'!$1:$1048576,38,FALSE)=40,40,0),0) -> 0 | H36: 0 | I36: =+H36*G36 -> 0 | J36: 12 | K36: 0 | L36: 0 | S36: =+$J36+$M36+$P36+D36+G36 -> 12 | T36: 12 | U36: =+R36+O36+L36+I36+F36 -> 0 | V36: 1 | W36: =+U36*V36 -> 0 | X36: 12
A37: 09-C1 | B37: V1 | C37: Vertical Transportation | J37: 8 | K37: 0 | L37: =+K37*J37 -> 0 | M37: 3 | N37: 0 | O37: =+N37*M37 -> 0 | P37: 1 | Q37: 0 | R37: =+Q37*P37 -> 0 | S37: =+$J37+$M37+$P37+D37+G37 -> 12 | T37: 0 | U37: =+R37+O37+L37 -> 0 | V37: =IFERROR(VLOOKUP($A$5,'Equipment List Template'!$1:$1048576,42,FALSE),"0") -> 0 | W37: =+U37*V37 -> 0 | X37: 0
A38: 09-C1 | B38: W1 | C38: Water Treatment | D38: =IFERROR(IF(VLOOKUP($A38,'Equipment List Template'!$1:$1048576,40,FALSE)=248,260,0),0) -> 0 | E38: 0 | F38: =+E38*D38 -> 0 | S38: 0 | T38: 0 | U38: =+R38+O38+L38+I38+F38 -> 0 | V38: 1 | W38: 0 | X38: 0
A39: 09-C1 | B39: B1 | C39: Building Exterior / Hardscape (Monthly) | J39: 12 | K39: 0 | L39: =+K39*J39 -> 0 | S39: 12 | T39: 12 | U39: 0 | V39: =IFERROR(VLOOKUP($A$5,'Equipment List Template'!$1:$1048576,44,FALSE),"0") -> 1 | W39: 0 | X39: 12
A40: 09-C1 | B40: F1 | C40: Fountain Maintenance (Monthly) | J40: 12 | K40: 0 | L40: =+K40*J40 -> 0 | S40: 12 | T40: 0 | U40: 0 | V40: =IFERROR(VLOOKUP($A$5,'Equipment List Template'!$1:$1048576,45,FALSE),"0") -> 0 | W40: 0 | X40: 0
A41: 09-C1 | B41: F2 | C41: Above-Ground/Underground Fuel Storage Tanks (Quarterly) If applicable | M41: 4 | N41: 0 | O41: =+N41*M41 -> 0 | S41: 4 | T41: 0 | U41: 0 | V41: =IFERROR(VLOOKUP($A$5,'Equipment List Template'!$1:$1048576,46,FALSE),"0") -> 0 | W41: 0 | X41: 0
A42: 09-C1 | B42: G1 | C42: Landscape Maintenance * | S42: 0 | T42: 0 | U42: 0 | V42: =IFERROR(VLOOKUP($A$5,'Equipment List Template'!$1:$1048576,47,FALSE),"0") -> 1 | W42: 0 | X42: 0
B43: PC1 | C43: Pest Control (Monthly) | J43: 12 | K43: 0 | L43: =+K43*J43 -> 0 | S43: 12 | T43: 12 | U43: 0 | V43: 1 | W43: 0 | X43: 12
B44: PV1 | C44: Photovoltaic (PV) System | P44: 1 | Q44: 0 | R44: =+Q44*P44 -> 0 | S44: 1 | T44: 0 | U44: 0 | V44: 0 | W44: 0
A45: 09-C1 | B45: C1 | C45: Account Management and Supervision (Monthly) | J45: 12 | K45: 0 | L45: =+K45*J45 -> 0 | S45: 12 | T45: 12 | U45: 0 | V45: 1 | W45: 0 | X45: 12
A46: 09-C1 | B46: C2 | C46: Fee (Monthly) | J46: 12 | K46: 0 | L46: =+K46*J46 -> 0 | S46: 12 | T46: 12 | U46: 0 | V46: 1 | W46: 0 | X46: 12
Q47: JCC ID | R47: =B2 -> 09-C1 | U47: Total | W47: =SUM(W5:W46) -> 0
B48: S1 | C48: Snow Removal - (crew hourly rate) | D48: 0 | U48: Total # of PM's | W48: =SUM($X$5:$X$46) -> 198
B49: I1 | C49: Unclogging Blocked Toilet - In-custody cell (labor-only) | D49: 0
B50: I2 | C50: Unclogging Blocked Toilet - Public/Court Staff (labor-only) | D50: 0
B51: I3 | C51: Clean up & Disposal of Biological Waste Event | D51: 0
B52: I4 | C52: Clean up & Disposal of Biological Waste Labor Rate | D52: 0
B53: Hr 1 | C53: Hourly Rate (All Labor categories) | D53: 0
B54: M1 | C54: Markup on Materials (Percentage) | D54: 0
B55: Sub1 | C55: Markup on Subcontractors/Third-Parties (Percentage) | D55: 0
B57: * Landscape Maintenance varies by location on the number of weeks per year it can be preformed. For the purpose of the RFP, all facilities are pre-established at 40 weeks of service. The actual amount paid by facility will be based upon the actual weeks that service has been performed, validated and invoiced.

Sheet 09-E1
B1: JCC ID | C1: Facility Name | D1: Address | F1: City / Town | H1: Zip Code | J1: County | L1: Region | N1: RFP | P1: Proposer
B2: 09-E1 | C2: =IFERROR(VLOOKUP($B$2,'Equipment List Template'!$1:$1048576,2,FALSE),"") -> Johnson Bldg. | D2: =IFERROR(VLOOKUP($B$2,'Equipment List Template'!$1:$1048576,3,FALSE),"") -> 1354 Johnson Blvd. | F2: =IFERROR(VLOOKUP($B$2,'Equipment List Template'!$1:$1048576,4,FALSE),"") -> South Lake Tahoe | H2: =IFERROR(VLOOKUP($B$2,'Equipment List Template'!$1:$1048576,5,FALSE),"") -> 96150 | J2: =IFERROR(VLOOKUP($B$2,'Equipment List Template'!$1:$1048576,6,FALSE),"") -> El Dorado | L2: =IFERROR(VLOOKUP($B$2,'Equipment List Template'!$1:$1048576,7,FALSE),"") -> NCRO | N2: ='Summary Pricing Sheet'!B2 -> RFP-FS-SP-2019-03-JP | P2: ='Summary Pricing Sheet'!B3 -> Firm Name TBD
D3: Daily Activity | G3: Weekly Activity | J3: Monthly Activity | M3: Quarterly Activity | P3: Annual Activity | U3: Summary | AG3: System | AH3: Access | AI3: HVAC | AU3: Electrical | BD3: Life Safety | BF3: Plumbing | BM3: Building Systems | BV3: Corporate | BY3: Fixed Price - Facility Total Annual Cost Year 1 | CA3: Unit Pricing
B4: System ID | C4: Subsystem | D4: Quantity | E4: Cost | F4: Daily Total | G4: Quantity | H4: Cost | I4: Weekly Total | J4: Monthly Quantity | K4: Cost | L4: Monthly Total | M4: Quarterly Quantity | N4: Cost | O4: Quarterly Total | P4: Annual Quantity | Q4: Cost | R4: Annual PM Total | T4: Number of PM's | U4: Annual Cost | V4: Quantity | W4: Total Annual Cost | AG4: Subsystem | AH4: Access Doors, Gates, Sally Port | AI4: Air Cooled DX (Split System) | AJ4: Air Handling Unit (Air Cooled DX / Package) | AK4: Air-Cooled Chiller | AL4: Centrifugal Chiller | AM4: Cooling Tower (Induced Draft) | AN4: Ice Chiller Tank | AO4: Geothermal System | AP4: Water Source Heat Pump | AQ4: Fan Coil System | AR4: Supply / Return Fan and Exhaust | AS4: Evaporative and Spot Coolers (swamp coolers; spot cooler) | AT4: Unique HVAC System | AU4: Electrical Panels | AV4: Emergency Generator | AW4: Motor Control Center | AX4: Automatic Transfer Switch | AY4: Building Automated Systems (BAS) | AZ4: Transformer (Dry-Type) | BA4: Uninterruptible Power Supply (UPS) | BB4: Lighting and Controls (Interior and Exterior) | BC4: Unique Electrical System | BD4: Life Safety Systems | BE4: Reduced Pressure Backflow Preventer(s) | BF4: Boiler (Condensing) | BG4: Domestic Water Heater (Gas-Fired, Condensing) | BH4: Domestic Water Heater (Electric, Non- Condensing) | BI4: Boiler (Steam, low pressure) | BJ4: Steam System | BK4: Pneumatic Compressor System | BL4: Unique Plumbing System | BM4: Rounds and Readings | BN4: Vertical Transportation | BO4: Water Treatment | BP4: Building Exterior / Hardscape (Monthly) | BQ4: Fountain Maintenance (Monthly) | BR4: Above-Ground/Underground Fuel Storage Tanks (Quarterly) If applicable | BS4: Landscape Maintenance * | BT4: Pest Control (Monthly) | BU4: Photovoltaic (PV) System | BV4: Account Management and Supervision (Monthly) | BW4: Fee (Monthly) | CA4: Snow Removal - (crew hourly rate) | CB4: Unclogging Blocked Toilet - In-custody holding cell (labor) | CC4: Unclogging Blocked Toilet - Public/Court Staff (labor) | CD4: Clean up & Disposal of Biological Waste Event | CE4: Clean up & Disposal of Biological Waste Labor Rate | CF4: Hourly Rate | CG4: Markup on Materials | CH4: Markup on Subcontractors/Third-Parties
A5: =$B$2 -> 09-E1 | B5: A1 | C5: Access Doors, Gates, Sally Port | J5: 11 | K5: 0 | L5: =+K5*J5 -> 0 | M5: 0 | N5: 0 | O5: =+N5*M5 -> 0 | P5: 1 | Q5: 0 | R5: =+Q5*P5 -> 0 | S5: =+$J5+$M5+$P5 -> 12 | T5: =IF($V5>0,$S5,0) -> 0 | U5: =+R5+O5+L5+I5+F5 -> 0 | V5: =IFERROR(VLOOKUP($A$5,'Equipment List Template'!$1:$1048576,10,FALSE),"0") -> 0 | W5: =+U5*V5 -> 0 | X5: =$T5*$V5 -> 0 | Z5: JCC ID | AA5: Facility Name | AB5: Address | AC5: City / Town | AD5: County | AE5: Region | AF5: Region | AG5: System ID | AH5: A1 | AI5: H1 | AJ5: H2 | AK5: H3 | AL5: H4 | AM5: H5 | AN5: H6 | AO5: H7 | AP5: H8 | AQ5: H9 | AR5: H10 | AS5: H11 | AT5: H12 | AU5: E1 | AV5: E2 | AW5: E3 | AX5: E4 | AY5: E5 | AZ5: E6 | BA5: E7 | BB5: E8 | BC5: E9 | BD5: L1 | BE5: L2 | BF5: P1 | BG5: P2 | BH5: P3 | BI5: P4 | BJ5: P5 | BK5: P6 | BL5: P7 | BM5: R1 | BN5: V1 | BO5: W1 | BP5: B1 | BQ5: F1 | BR5: F2 | BS5: G1 | BT5: PC1 | BU5: PV1 | BV5: C1 | BW5: C2 | CA5: S1 | CB5: I1 | CC5: I2 | CD5: I3 | CE5: I4 | CF5: Hr 1 | CG5: M1 | CH5: Sub1
A6: =$B$2 -> 09-E1 | B6: H1 | C6: Air Cooled DX (Split System) | J6: 0 | K6: 0 | L6: =+K6*J6 -> 0 | M6: 3 | N6: 0 | O6: =+N6*M6 -> 0 | P6: 1 | Q6: 0 | R6: =+Q6*P6 -> 0 | S6: =+$J6+$M6+$P6 -> 4 | T6: =IF($V6>0,$S6,0) -> 4 | U6: =+R6+O6+L6+I6+F6 -> 0 | V6: =IFERROR(VLOOKUP($A$5,'Equipment List Template'!$1:$1048576,11,FALSE),"0") -> 1 | W6: =+U6*V6 -> 0 | X6: =$T6*$V6 -> 4 | Z6: =B2 -> 09-E1 | AA6: =IFERROR(VLOOKUP($Z$6,'Equipment List Template'!$1:$1048576,2,FALSE),"") -> Johnson Bldg. | AB6: =IFERROR(VLOOKUP($Z$6,'Equipment List Template'!$1:$1048576,3,FALSE),"") -> 1354 Johnson Blvd. | AC6: =IFERROR(VLOOKUP($Z$6,'Equipment List Template'!$1:$1048576,4,FALSE),"") -> South Lake Tahoe | AD6: =IFERROR(VLOOKUP($Z$6,'Equipment List Template'!$1:$1048576,5,FALSE),"") -> 96150 | AE6: =IFERROR(VLOOKUP($Z$6,'Equipment List Template'!$1:$1048576,6,FALSE),"") -> El Dorado | AF6: =IFERROR(VLOOKUP($Z$6,'Equipment List Template'!$1:$1048576,7,FALSE),"") -> NCRO | AH6: =+$W5 -> 0 | AI6: =+$W6 -> 0 | AJ6: =+$W7 -> 0 | AK6: =+$W8 -> 0 | AL6: =+$W9 -> 0 | AM6: =+$W10 -> 0 | AN6: =+$W11 -> 0 | AO6: =+$W12 -> 0 | AP6: =+$W13 -> 0 | AQ6: =+$W14 -> 0 | AR6: =+$W15 -> 0 | AS6: =+$W16 -> 0 | AT6: =+$W17 -> 0 | AU6: =+$W18 -> 0 | AV6: =+$W19 -> 0 | AW6: =+$W20 -> 0 | AX6: =+$W21 -> 0 | AY6: =+$W22 -> 0 | AZ6: =+$W23 -> 0 | BA6: =+$W24 -> 0 | BB6: =+$W25 -> 0 | BC6: =+$W26 -> 0 | BD6: =+$W27 -> 0 | BE6: =+$W28 -> 0 | BF6: =+$W29 -> 0 | BG6: =+$W30 -> 0 | BH6: =+$W31 -> 0 | BI6: =+$W32 -> 0 | BJ6: =+$W33 -> 0 | BK6: =+$W34 -> 0 | BL6: =+$W35 -> 0 | BM6: =+$W36 -> 0 | BN6: =+$W37 -> 0 | BO6: =+$W38 -> 0 | BP6: =+$W39 -> 0 | BQ6: =+$W40 -> 0 | BR6: =+$W41 -> 0 | BS6: =+$W42 -> 0 | BT6: =+$W43 -> 0 | BU6: =+$W44 -> 0 | BV6: =+$W45 -> 0 | BW6: =+$W46 -> 0 | BY6: =+W47 -> 0 | CA6: =+$D48 -> 0 | CB6: =+$D49 -> 0 | CC6: =+$D50 -> 0 | CD6: =+$D51 -> 0 | CE6: =+$D52 -> 0 | CF6: =+$D53 -> 0 | CG6: =+$D54 -> 0 | CH6: =+$D55 -> 0
A7: =$B$2 -> 09-E1 | B7: H2 | C7: Air Handling Unit (Air Cooled DX / Package) | J7: 0 | K7: 0 | L7: =+K7*J7 -> 0 | M7: 3 | N7: 0 | O7: =+N7*M7 -> 0 | P7: 1 | Q7: 0 | R7: =+Q7*P7 -> 0 | S7: =+$J7+$M7+$P7 -> 4 | T7: =IF($V7>0,$S7,0) -> 4 | U7: =+R7+O7+L7+I7+F7 -> 0 | V7: =IFERROR(VLOOKUP($A$5,'Equipment List Template'!$1:$1048576,12,FALSE),"0") -> 2 | W7: =+U7*V7 -> 0 | X7: =$T7*$V7 -> 8
A8: 09-E1 | B8: H3 | C8: Air-Cooled Chiller | J8: 11 | K8: 0 | L8: 0 | M8: 0 | N8: 0 | O8: 0 | P8: 1 | Q8: 0 | R8: 0 | S8: 12 | T8: 0 | U8: 0 | V8: =IFERROR(VLOOKUP($A$5,'Equipment List Template'!$1:$1048576,13,FALSE),"0") -> 0 | W8: 0 | X8: 0
A9: 09-E1 | B9: H4 | C9: Centrifugal Chiller | J9: 11 | K9: 0 | L9: 0 | M9: 0 | N9: 0 | O9: 0 | P9: 1 | Q9: 0 | R9: 0 | S9: 12 | T9: 12 | U9: 0 | V9: =IFERROR(VLOOKUP($A$5,'Equipment List Template'!$1:$1048576,14,FALSE),"0") -> 1 | W9: 0 | X9: 12
A10: 09-E1 | B10: H5 | C10: Cooling Tower (Induced Draft) | J10: 8 | K10: 0 | L10: 0 | M10: 3 | N10: 0 | O10: 0 | P10: 1 | Q10: 0 | R10: 0 | S10: 12 | T10: 0 | U10: 0 | V10: =IFERROR(VLOOKUP($A$5,'Equipment List Template'!$1:$1048576,15,FALSE),"0") -> 0 | W10: 0 | X10: 0
A11: 09-E1 | B11: H6 | C11: Ice Chiller Tank | J11: 8 | K11: 0 | L11: 0 | M11: 3 | N11: 0 | O11: 0 | P11: 1 | Q11: 0 | R11: 0 | S11: 12 | T11: 0 | U11: 0 | V11: =IFERROR(VLOOKUP($A$5,'Equipment List Template'!$1:$1048576,16,FALSE),"0") -> 0 | W11: 0 | X11: 0
A12: 09-E1 | B12: H7 | C12: Geothermal System | J12: 11 | K12: 0 | L12: 0 | M12: 0 | N12: 0 | O12: 0 | P12: 1 | Q12: 0 | R12: 0 | S12: 12 | T12: 0 | U12: 0 | V12: =IFERROR(VLOOKUP($A$5,'Equipment List Template'!$1:$1048576,17,FALSE),"0") -> 0 | W12: 0 | X12: 0
A13: 09-E1 | B13: H8 | C13: Water Source Heat Pump | J13: 8 | K13: 0 | L13: 0 | M13: 3 | N13: 0 | O13: 0 | P13: 1 | Q13: 0 | R13: 0 | S13: 12 | T13: 0 | U13: 0 | V13: =IFERROR(VLOOKUP($A$5,'Equipment List Template'!$1:$1048576,18,FALSE),"0") -> 0 | W13: 0 | X13: 0
A14: 09-E1 | B14: H9 | C14: Fan Coil System | J14: 0 | K14: 0 | L14: 0 | M14: 3 | N14: 0 | O14: 0 | P14: 1 | Q14: 0 | R14: 0 | S14: 4 | T14: 0 | U14: 0 | V14: =IFERROR(VLOOKUP($A$5,'Equipment List Template'!$1:$1048576,19,FALSE),"0") -> 0 | W14: 0 | X14: 0
A15: 09-E1 | B15: H10 | C15: Supply / Return Fan and Exhaust | J15: 0 | K15: 0 | L15: 0 | M15: 3 | N15: 0 | O15: 0 | P15: 1 | Q15: 0 | R15: 0 | S15: 4 | T15: 4 | U15: 0 | V15: =IFERROR(VLOOKUP($A$5,'Equipment List Template'!$1:$1048576,20,FALSE),"0") -> 1 | W15: 0 | X15: 4
A16: 09-E1 | B16: H11 | C16: Evaporative and Spot Coolers (swamp coolers; spot cooler) | J16: 8 | K16: 0 | L16: 0 | M16: 3 | N16: 0 | O16: 0 | P16: 1 | Q16: 0 | R16: 0 | S16: 12 | T16: 0 | U16: 0 | V16: =IFERROR(VLOOKUP($A$5,'Equipment List Template'!$1:$1048576,21,FALSE),"0") -> 0 | W16: 0 | X16: 0
B17: H12 | C17: Unique HVAC System | J17: 0 | K17: 0 | L17: 0 | M17: 0 | N17: 0 | O17: 0 | P17: 0 | Q17: 0 | R17: 0 | S17: 0 | T17: 0 | V17: 0 | W17: 0
A18: 09-E1 | B18: E1 | C18: Electrical Panels | J18: 0 | K18: 0 | L18: 0 | M18: 3 | N18: 0 | O18: 0 | P18: 1 | Q18: 0 | R18: 0 | S18: 4 | T18: 4 | U18: 0 | V18: =IFERROR(VLOOKUP($A$5,'Equipment List Template'!$1:$1048576,23,FALSE),"0") -> 1 | W18: 0 | X18: 4
A19: 09-E1 | B19: E2 | C19: Emergency Generator | J19: 8 | K19: 0 | L19: 0 | M19: 3 | N19: 0 | O19: 0 | P19: 1 | Q19: 0 | R19: 0 | S19: 12 | T19: 0 | U19: 0 | V19: =IFERROR(VLOOKUP($A$5,'Equipment List Template'!$1:$1048576,24,FALSE),"0") -> 0 | W19: 0 | X19: 0
A20: 09-E1 | B20: E3 | C20: Motor Control Center | J20: 0 | K20: 0 | L20: 0 | M20: 3 | N20: 0 | O20: 0 | P20: 1 | Q20: 0 | R20: 0 | S20: 4 | T20: 0 | U20: 0 | V20: =IFERROR(VLOOKUP($A$5,'Equipment List Template'!$1:$1048576,25,FALSE),"0") -> 0 | W20: 0 | X20: 0
A21: 09-E1 | B21: E4 | C21: Automatic Transfer Switch | J21: 8 | K21: 0 | L21: 0 | M21: 3 | N21: 0 | O21: 0 | P21: 1 | Q21: 0 | R21: 0 | S21: 12 | T21: 0 | U21: 0 | V21: =IFERROR(VLOOKUP($A$5,'Equipment List Template'!$1:$1048576,26,FALSE),"0") -> 0 | W21: 0 | X21: 0
A22: 09-E1 | B22: E5 | C22: Building Automated Systems (BAS) | J22: 0 | K22: 0 | L22: 0 | M22: 0 | N22: 0 | O22: 0 | P22: 1 | Q22: 0 | R22: 0 | S22: 1 | T22: 1 | U22: 0 | V22: =IFERROR(VLOOKUP($A$5,'Equipment List Template'!$1:$1048576,27,FALSE),"0") -> 1 | W22: 0 | X22: 1
A23: 09-E1 | B23: E6 | C23: Transformer (Dry-Type) | J23: 0 | K23: 0 | L23: 0 | M23: 3 | N23: 0 | O23: 0 | P23: 1 | Q23: 0 | R23: 0 | S23: 4 | T23: 0 | U23: 0 | V23: =IFERROR(VLOOKUP($A$5,'Equipment List Template'!$1:$1048576,28,FALSE),"0") -> 0 | W23: 0 | X23: 0
A24: 09-E1 | B24: E7 | C24: Uninterruptible Power Supply (UPS) | J24: 0 | K24: 0 | L24: 0 | M24: 0 | N24: 0 | O24: 0 | P24: 1 | Q24: 0 | R24: 0 | S24: 1 | T24: 0 | U24: 0 | V24: =IFERROR(VLOOKUP($A$5,'Equipment List Template'!$1:$1048576,29,FALSE),"0") -> 0 | W24: 0 | X24: 0
A25: 09-E1 | B25: E8 | C25: Lighting and Controls (Interior and Exterior) | J25: 12 | K25: 0 | L25: 0 | M25: 0 | N25: 0 | O25: 0 | P25: 0 | Q25: 0 | R25: 0 | S25: 12 | T25: 12 | U25: 0 | V25: =IFERROR(VLOOKUP($A$5,'Equipment List Template'!$1:$1048576,30,FALSE),"0") -> 1 | W25: 0 | X25: 12
B26: E9 | C26: Unique Electrical System | J26: 0 | K26: 0 | L26: 0 | M26: 0 | N26: 0 | O26: 0 | P26: 0 | Q26: 0 | R26: 0 | S26: 0 | T26: 0 | V26: 0 | W26: 0
A27: 09-E1 | B27: L1 | C27: Life Safety Systems | J27: 0 | K27: 0 | L27: 0 | M27: 3 | N27: 0 | O27: 0 | P27: 1 | Q27: 0 | R27: 0 | S27: 4 | T27: 4 | U27: 0 | V27: =IFERROR(VLOOKUP($A$5,'Equipment List Template'!$1:$1048576,32,FALSE),"0") -> 5 | W27: 0 | X27: 20
A28: 09-E1 | B28: L2 | C28: Reduced Pressure Backflow Preventer(s) | J28: 0 | K28: 0 | L28: 0 | M28: 0 | N28: 0 | O28: 0 | P28: 1 | Q28: 0 | R28: 0 | S28: 1 | T28: 1 | U28: 0 | V28: =IFERROR(VLOOKUP($A$5,'Equipment List Template'!$1:$1048576,33,FALSE),"0") -> 2 | W28: 0 | X28: 2
A29: 09-E1 | B29: P1 | C29: Boiler (Condensing) | J29: 8 | K29: 0 | L29: 0 | M29: 3 | N29: 0 | O29: 0 | P29: 1 | Q29: 0 | R29: 0 | S29: 12 | T29: 12 | U29: 0 | V29: =IFERROR(VLOOKUP($A$5,'Equipment List Template'!$1:$1048576,34,FALSE),"0") -> 1 | W29: 0 | X29: 12
A30: 09-E1 | B30: P2 | C30: Domestic Water Heater (Gas-Fired, Condensing) | J30: 0 | K30: 0 | L30: 0 | M30: 0 | N30: 0 | O30: 0 | P30: 1 | Q30: 0 | R30: 0 | S30: 1 | T30: 1 | U30: 0 | V30: =IFERROR(VLOOKUP($A$5,'Equipment List Template'!$1:$1048576,35,FALSE),"0") -> 2 | W30: 0 | X30: 2
A31: 09-E1 | B31: P3 | C31: Domestic Water Heater (Electric, Non- Condensing) | J31: 0 | K31: 0 | L31: 0 | M31: 0 | N31: 0 | O31: 0 | P31: 1 | Q31: 0 | R31: 0 | S31: 1 | T31: 0 | U31: 0 | V31: =IFERROR(VLOOKUP($A$5,'Equipment List Template'!$1:$1048576,36,FALSE),"0") -> 0 | W31: 0 | X31: 0
A32: 09-E1 | B32: P4 | C32: Boiler (Steam, low pressure) | J32: 0 | K32: 0 | L32: 0 | M32: 3 | N32: 0 | O32: 0 | P32: 1 | Q32: 0 | R32: 0 | S32: 4 | T32: 0 | U32: 0 | V32: =IFERROR(VLOOKUP($A$5,'Equipment List Template'!$1:$1048576,37,FALSE),"0") -> 0 | W32: 0 | X32: 0
A33: 09-E1 | B33: P5 | C33: Steam System | J33: 8 | K33: 0 | L33: 0 | M33: 3 | N33: 0 | O33: 0 | P33: 1 | Q33: 0 | R33: 0 | S33: 12 | T33: 0 | U33: 0 | V33: =IFERROR(VLOOKUP($A$5,'Equipment List Template'!$1:$1048576,38,FALSE),"0") -> 0 | W33: 0 | X33: 0
A34: 09-E1 | B34: P6 | C34: Pneumatic Compressor System | J34: 11 | K34: 0 | L34: 0 | M34: 0 | N34: 0 | O34: 0 | P34: 1 | Q34: 0 | R34: 0 | S34: 12 | T34: 0 | U34: 0 | V34: =IFERROR(VLOOKUP($A$5,'Equipment List Template'!$1:$1048576,39,FALSE),"0") -> 0 | W34: 0 | X34: 0
B35: P7 | C35: Unique Plumbing System | J35: 0 | K35: 0 | L35: 0 | M35: 0 | N35: 0 | O35: 0 | P35: 0 | Q35: 0 | R35: 0 | S35: 0 | T35: 0 | U35: 0 | V35: 0 | W35: 0
A36: 09-E1 | B36: R1 | C36: Rounds and Readings | D36: =IFERROR(IF(VLOOKUP($A36,'Equipment List Template'!$1:$1048576,38,FALSE)=248,248,0),0) -> 0 | E36: 0 | F36: =+E36*D36 -> 0 | G36: =IFERROR(IF(VLOOKUP($A36,'Equipment List Template'!$1:$1048576,38,FALSE)=40,40,0),0) -> 0 | H36: 0 | I36: =+H36*G36 -> 0 | J36: 12 | K36: 0 | L36: 0 | S36: =+$J36+$M36+$P36+D36+G36 -> 12 | T36: 12 | U36: =+R36+O36+L36+I36+F36 -> 0 | V36: 1 | W36: =+U36*V36 -> 0 | X36: 12
A37: 09-E1 | B37: V1 | C37: Vertical Transportation | J37: 8 | K37: 0 | L37: =+K37*J37 -> 0 | M37: 3 | N37: 0 | O37: =+N37*M37 -> 0 | P37: 1 | Q37: 0 | R37: =+Q37*P37 -> 0 | S37: =+$J37+$M37+$P37+D37+G37 -> 12 | T37: 12 | U37: =+R37+O37+L37 -> 0 | V37: =IFERROR(VLOOKUP($A$5,'Equipment List Template'!$1:$1048576,42,FALSE),"0") -> 2 | W37: =+U37*V37 -> 0 | X37: 24
A38: 09-E1 | B38: W1 | C38: Water Treatment | D38: =IFERROR(IF(VLOOKUP($A38,'Equipment List Template'!$1:$1048576,40,FALSE)=248,260,0),0) -> 0 | E38: 0 | F38: =+E38*D38 -> 0 | S38: 0 | T38: 0 | U38: =+R38+O38+L38+I38+F38 -> 0 | V38: 1 | W38: 0 | X38: 0
A39: 09-E1 | B39: B1 | C39: Building Exterior / Hardscape (Monthly) | J39: 12 | K39: 0 | L39: =+K39*J39 -> 0 | S39: 12 | T39: 12 | U39: 0 | V39: =IFERROR(VLOOKUP($A$5,'Equipment List Template'!$1:$1048576,44,FALSE),"0") -> 1 | W39: 0 | X39: 12
A40: 09-E1 | B40: F1 | C40: Fountain Maintenance (Monthly) | J40: 12 | K40: 0 | L40: =+K40*J40 -> 0 | S40: 12 | T40: 0 | U40: 0 | V40: =IFERROR(VLOOKUP($A$5,'Equipment List Template'!$1:$1048576,45,FALSE),"0") -> 0 | W40: 0 | X40: 0
A41: 09-E1 | B41: F2 | C41: Above-Ground/Underground Fuel Storage Tanks (Quarterly) If applicable | M41: 4 | N41: 0 | O41: =+N41*M41 -> 0 | S41: 4 | T41: 0 | U41: 0 | V41: =IFERROR(VLOOKUP($A$5,'Equipment List Template'!$1:$1048576,46,FALSE),"0") -> 0 | W41: 0 | X41: 0
A42: 09-E1 | B42: G1 | C42: Landscape Maintenance * | S42: 0 | T42: 0 | U42: 0 | V42: =IFERROR(VLOOKUP($A$5,'Equipment List Template'!$1:$1048576,47,FALSE),"0") -> 1 | W42: 0 | X42: 0
B43: PC1 | C43: Pest Control (Monthly) | J43: 12 | K43: 0 | L43: =+K43*J43 -> 0 | S43: 12 | T43: 12 | U43: 0 | V43: 1 | W43: 0 | X43: 12
B44: PV1 | C44: Photovoltaic (PV) System | P44: 1 | Q44: 0 | R44: =+Q44*P44 -> 0 | S44: 1 | T44: 0 | U44: 0 | V44: 0 | W44: 0
A45: 09-E1 | B45: C1 | C45: Account Management and Supervision (Monthly) | J45: 12 | K45: 0 | L45: =+K45*J45 -> 0 | S45: 12 | T45: 12 | U45: 0 | V45: 1 | W45: 0 | X45: 12
A46: 09-E1 | B46: C2 | C46: Fee (Monthly) | J46: 12 | K46: 0 | L46: =+K46*J46 -> 0 | S46: 12 | T46: 12 | U46: 0 | V46: 1 | W46: 0 | X46: 12
Q47: JCC ID | R47: =B2 -> 09-E1 | U47: Total | W47: =SUM(W5:W46) -> 0
B48: S1 | C48: Snow Removal - (crew hourly rate) | D48: 0 | U48: Total # of PM's | W48: =SUM($X$5:$X$46) -> 165
B49: I1 | C49: Unclogging Blocked Toilet - In-custody cell (labor-only) | D49: 0
B50: I2 | C50: Unclogging Blocked Toilet - Public/Court Staff (labor-only) | D50: 0
B51: I3 | C51: Clean up & Disposal of Biological Waste Event | D51: 0
B52: I4 | C52: Clean up & Disposal of Biological Waste Labor Rate | D52: 0
B53: Hr 1 | C53: Hourly Rate (All Labor categories) | D53: 0
B54: M1 | C54: Markup on Materials (Percentage) | D54: 0
B55: Sub1 | C55: Markup on Subcontractors/Third-Parties (Percentage) | D55: 0
B57: * Landscape Maintenance varies by location on the number of weeks per year it can be preformed. For the purpose of the RFP, all facilities are pre-established at 40 weeks of service. The actual amount paid by facility will be based upon the actual weeks that service has been performed, validated and invoiced.

Sheet 10-A1
B1: JCC ID | C1: Facility Name | D1: Address | F1: City / Town | H1: Zip Code | J1: County | L1: Region | N1: RFP | P1: Proposer
B2: 10-A1 | C2: =IFERROR(VLOOKUP($B$2,'Equipment List Template'!$1:$1048576,2,FALSE),"") -> Fresno County Courthouse | D2: =IFERROR(VLOOKUP($B$2,'Equipment List Template'!$1:$1048576,3,FALSE),"") -> 1100 Van Ness Ave. | F2: =IFERROR(VLOOKUP($B$2,'Equipment List Template'!$1:$1048576,4,FALSE),"") -> Fresno | H2: =IFERROR(VLOOKUP($B$2,'Equipment List Template'!$1:$1048576,5,FALSE),"") -> 93724 | J2: =IFERROR(VLOOKUP($B$2,'Equipment List Template'!$1:$1048576,6,FALSE),"") -> Fresno | L2: =IFERROR(VLOOKUP($B$2,'Equipment List Template'!$1:$1048576,7,FALSE),"") -> NCRO | N2: ='Summary Pricing Sheet'!B2 -> RFP-FS-SP-2019-03-JP | P2: ='Summary Pricing Sheet'!B3 -> Firm Name TBD
D3: Daily Activity | G3: Weekly Activity | J3: Monthly Activity | M3: Quarterly Activity | P3: Annual Activity | U3: Summary | AG3: System | AH3: Access | AI3: HVAC | AU3: Electrical | BD3: Life Safety | BF3: Plumbing | BM3: Building Systems | BV3: Corporate | BY3: Fixed Price - Facility Total Annual Cost Year 1 | CA3: Unit Pricing
B4: System ID | C4: Subsystem | D4: Quantity | E4: Cost | F4: Daily Total | G4: Quantity | H4: Cost | I4: Weekly Total | J4: Monthly Quantity | K4: Cost | L4: Monthly Total | M4: Quarterly Quantity | N4: Cost | O4: Quarterly Total | P4: Annual Quantity | Q4: Cost | R4: Annual PM Total | T4: Number of PM's | U4: Annual Cost | V4: Quantity | W4: Total Annual Cost | AG4: Subsystem | AH4: Access Doors, Gates, Sally Port | AI4: Air Cooled DX (Split System) | AJ4: Air Handling Unit (Air Cooled DX / Package) | AK4: Air-Cooled Chiller | AL4: Centrifugal Chiller | AM4: Cooling Tower (Induced Draft) | AN4: Ice Chiller Tank | AO4: Geothermal System | AP4: Water Source Heat Pump | AQ4: Fan Coil System | AR4: Supply / Return Fan and Exhaust | AS4: Evaporative and Spot Coolers (swamp coolers; spot cooler) | AT4: Unique HVAC System | AU4: Electrical Panels | AV4: Emergency Generator | AW4: Motor Control Center | AX4: Automatic Transfer Switch | AY4: Building Automated Systems (BAS) | AZ4: Transformer (Dry-Type) | BA4: Uninterruptible Power Supply (UPS) | BB4: Lighting and Controls (Interior and Exterior) | BC4: Unique Electrical System | BD4: Life Safety Systems | BE4: Reduced Pressure Backflow Preventer(s) | BF4: Boiler (Condensing) | BG4: Domestic Water Heater (Gas-Fired, Condensing) | BH4: Domestic Water Heater (Electric, Non- Condensing) | BI4: Boiler (Steam, low pressure) | BJ4: Steam System | BK4: Pneumatic Compressor System | BL4: Unique Plumbing System | BM4: Rounds and Readings | BN4: Vertical Transportation | BO4: Water Treatment | BP4: Building Exterior / Hardscape (Monthly) | BQ4: Fountain Maintenance (Monthly) | BR4: Above-Ground/Underground Fuel Storage Tanks (Quarterly) If applicable | BS4: Landscape Maintenance * | BT4: Pest Control (Monthly) | BU4: Photovoltaic (PV) System | BV4: Account Management and Supervision (Monthly) | BW4: Fee (Monthly) | CA4: Snow Removal - (crew hourly rate) | CB4: Unclogging Blocked Toilet - In-custody holding cell (labor) | CC4: Unclogging Blocked Toilet - Public/Court Staff (labor) | CD4: Clean up & Disposal of Biological Waste Event | CE4: Clean up & Disposal of Biological Waste Labor Rate | CF4: Hourly Rate | CG4: Markup on Materials | CH4: Markup on Subcontractors/Third-Parties
A5: =$B$2 -> 10-A1 | B5: A1 | C5: Access Doors, Gates, Sally Port | J5: 11 | K5: 0 | L5: =+K5*J5 -> 0 | M5: 0 | N5: 0 | O5: =+N5*M5 -> 0 | P5: 1 | Q5: 0 | R5: =+Q5*P5 -> 0 | S5: =+$J5+$M5+$P5 -> 12 | T5: =IF($V5>0,$S5,0) -> 12 | U5: =+R5+O5+L5+I5+F5 -> 0 | V5: =IFERROR(VLOOKUP($A$5,'Equipment List Template'!$1:$1048576,10,FALSE),"0") -> 1 | W5: =+U5*V5 -> 0 | X5: =$T5*$V5 -> 12 | Z5: JCC ID | AA5: Facility Name | AB5: Address | AC5: City / Town | AD5: County | AE5: Region | AF5: Region | AG5: System ID | AH5: A1 | AI5: H1 | AJ5: H2 | AK5: H3 | AL5: H4 | AM5: H5 | AN5: H6 | AO5: H7 | AP5: H8 | AQ5: H9 | AR5: H10 | AS5: H11 | AT5: H12 | AU5: E1 | AV5: E2 | AW5: E3 | AX5: E4 | AY5: E5 | AZ5: E6 | BA5: E7 | BB5: E8 | BC5: E9 | BD5: L1 | BE5: L2 | BF5: P1 | BG5: P2 | BH5: P3 | BI5: P4 | BJ5: P5 | BK5: P6 | BL5: P7 | BM5: R1 | BN5: V1 | BO5: W1 | BP5: B1 | BQ5: F1 | BR5: F2 | BS5: G1 | BT5: PC1 | BU5: PV1 | BV5: C1 | BW5: C2 | CA5: S1 | CB5: I1 | CC5: I2 | CD5: I3 | CE5: I4 | CF5: Hr 1 | CG5: M1 | CH5: Sub1
A6: =$B$2 -> 10-A1 | B6: H1 | C6: Air Cooled DX (Split System) | J6: 0 | K6: 0 | L6: =+K6*J6 -> 0 | M6: 3 | N6: 0 | O6: =+N6*M6 -> 0 | P6: 1 | Q6: 0 | R6: =+Q6*P6 -> 0 | S6: =+$J6+$M6+$P6 -> 4 | T6: =IF($V6>0,$S6,0) -> 4 | U6: =+R6+O6+L6+I6+F6 -> 0 | V6: =IFERROR(VLOOKUP($A$5,'Equipment List Template'!$1:$1048576,11,FALSE),"0") -> 13 | W6: =+U6*V6 -> 0 | X6: =$T6*$V6 -> 52 | Z6: =B2 -> 10-A1 | AA6: =IFERROR(VLOOKUP($Z$6,'Equipment List Template'!$1:$1048576,2,FALSE),"") -> Fresno County Courthouse | AB6: =IFERROR(VLOOKUP($Z$6,'Equipment List Template'!$1:$1048576,3,FALSE),"") -> 1100 Van Ness Ave. | AC6: =IFERROR(VLOOKUP($Z$6,'Equipment List Template'!$1:$1048576,4,FALSE),"") -> Fresno | AD6: =IFERROR(VLOOKUP($Z$6,'Equipment List Template'!$1:$1048576,5,FALSE),"") -> 93724 | AE6: =IFERROR(VLOOKUP($Z$6,'Equipment List Template'!$1:$1048576,6,FALSE),"") -> Fresno | AF6: =IFERROR(VLOOKUP($Z$6,'Equipment List Template'!$1:$1048576,7,FALSE),"") -> NCRO | AH6: =+$W5 -> 0 | AI6: =+$W6 -> 0 | AJ6: =+$W7 -> 0 | AK6: =+$W8 -> 0 | AL6: =+$W9 -> 0 | AM6: =+$W10 -> 0 | AN6: =+$W11 -> 0 | AO6: =+$W12 -> 0 | AP6: =+$W13 -> 0 | AQ6: =+$W14 -> 0 | AR6: =+$W15 -> 0 | AS6: =+$W16 -> 0 | AT6: =+$W17 -> 0 | AU6: =+$W18 -> 0 | AV6: =+$W19 -> 0 | AW6: =+$W20 -> 0 | AX6: =+$W21 -> 0 | AY6: =+$W22 -> 0 | AZ6: =+$W23 -> 0 | BA6: =+$W24 -> 0 | BB6: =+$W25 -> 0 | BC6: =+$W26 -> 0 | BD6: =+$W27 -> 0 | BE6: =+$W28 -> 0 | BF6: =+$W29 -> 0 | BG6: =+$W30 -> 0 | BH6: =+$W31 -> 0 | BI6: =+$W32 -> 0 | BJ6: =+$W33 -> 0 | BK6: =+$W34 -> 0 | BL6: =+$W35 -> 0 | BM6: =+$W36 -> 0 | BN6: =+$W37 -> 0 | BO6: =+$W38 -> 0 | BP6: =+$W39 -> 0 | BQ6: =+$W40 -> 0 | BR6: =+$W41 -> 0 | BS6: =+$W42 -> 0 | BT6: =+$W43 -> 0 | BU6: =+$W44 -> 0 | BV6: =+$W45 -> 0 | BW6: =+$W46 -> 0 | BY6: =+W47 -> 0 | CA6: =+$D48 -> 0 | CB6: =+$D49 -> 0 | CC6: =+$D50 -> 0 | CD6: =+$D51 -> 0 | CE6: =+$D52 -> 0 | CF6: =+$D53 -> 0 | CG6: =+$D54 -> 0 | CH6: =+$D55 -> 0
A7: =$B$2 -> 10-A1 | B7: H2 | C7: Air Handling Unit (Air Cooled DX / Package) | J7: 0 | K7: 0 | L7: =+K7*J7 -> 0 | M7: 3 | N7: 0 | O7: =+N7*M7 -> 0 | P7: 1 | Q7: 0 | R7: =+Q7*P7 -> 0 | S7: =+$J7+$M7+$P7 -> 4 | T7: =IF($V7>0,$S7,0) -> 4 | U7: =+R7+O7+L7+I7+F7 -> 0 | V7: =IFERROR(VLOOKUP($A$5,'Equipment List Template'!$1:$1048576,12,FALSE),"0") -> 12 | W7: =+U7*V7 -> 0 | X7: =$T7*$V7 -> 48
A8: 10-A1 | B8: H3 | C8: Air-Cooled Chiller | J8: 11 | K8: 0 | L8: 0 | M8: 0 | N8: 0 | O8: 0 | P8: 1 | Q8: 0 | R8: 0 | S8: 12 | T8: 0 | U8: 0 | V8: =IFERROR(VLOOKUP($A$5,'Equipment List Template'!$1:$1048576,13,FALSE),"0") -> 0 | W8: 0 | X8: 0
A9: 10-A1 | B9: H4 | C9: Centrifugal Chiller | J9: 11 | K9: 0 | L9: 0 | M9: 0 | N9: 0 | O9: 0 | P9: 1 | Q9: 0 | R9: 0 | S9: 12 | T9: 12 | U9: 0 | V9: =IFERROR(VLOOKUP($A$5,'Equipment List Template'!$1:$1048576,14,FALSE),"0") -> 2 | W9: 0 | X9: 24
A10: 10-A1 | B10: H5 | C10: Cooling Tower (Induced Draft) | J10: 8 | K10: 0 | L10: 0 | M10: 3 | N10: 0 | O10: 0 | P10: 1 | Q10: 0 | R10: 0 | S10: 12 | T10: 12 | U10: 0 | V10: =IFERROR(VLOOKUP($A$5,'Equipment List Template'!$1:$1048576,15,FALSE),"0") -> 2 | W10: 0 | X10: 24
A11: 10-A1 | B11: H6 | C11: Ice Chiller Tank | J11: 8 | K11: 0 | L11: 0 | M11: 3 | N11: 0 | O11: 0 | P11: 1 | Q11: 0 | R11: 0 | S11: 12 | T11: 0 | U11: 0 | V11: =IFERROR(VLOOKUP($A$5,'Equipment List Template'!$1:$1048576,16,FALSE),"0") -> 0 | W11: 0 | X11: 0
A12: 10-A1 | B12: H7 | C12: Geothermal System | J12: 11 | K12: 0 | L12: 0 | M12: 0 | N12: 0 | O12: 0 | P12: 1 | Q12: 0 | R12: 0 | S12: 12 | T12: 0 | U12: 0 | V12: =IFERROR(VLOOKUP($A$5,'Equipment List Template'!$1:$1048576,17,FALSE),"0") -> 0 | W12: 0 | X12: 0
A13: 10-A1 | B13: H8 | C13: Water Source Heat Pump | J13: 8 | K13: 0 | L13: 0 | M13: 3 | N13: 0 | O13: 0 | P13: 1 | Q13: 0 | R13: 0 | S13: 12 | T13: 0 | U13: 0 | V13: =IFERROR(VLOOKUP($A$5,'Equipment List Template'!$1:$1048576,18,FALSE),"0") -> 0 | W13: 0 | X13: 0
A14: 10-A1 | B14: H9 | C14: Fan Coil System | J14: 0 | K14: 0 | L14: 0 | M14: 3 | N14: 0 | O14: 0 | P14: 1 | Q14: 0 | R14: 0 | S14: 4 | T14: 4 | U14: 0 | V14: =IFERROR(VLOOKUP($A$5,'Equipment List Template'!$1:$1048576,19,FALSE),"0") -> 4 | W14: 0 | X14: 16
A15: 10-A1 | B15: H10 | C15: Supply / Return Fan and Exhaust | J15: 0 | K15: 0 | L15: 0 | M15: 3 | N15: 0 | O15: 0 | P15: 1 | Q15: 0 | R15: 0 | S15: 4 | T15: 4 | U15: 0 | V15: =IFERROR(VLOOKUP($A$5,'Equipment List Template'!$1:$1048576,20,FALSE),"0") -> 3 | W15: 0 | X15: 12
A16: 10-A1 | B16: H11 | C16: Evaporative and Spot Coolers (swamp coolers; spot cooler) | J16: 8 | K16: 0 | L16: 0 | M16: 3 | N16: 0 | O16: 0 | P16: 1 | Q16: 0 | R16: 0 | S16: 12 | T16: 0 | U16: 0 | V16: =IFERROR(VLOOKUP($A$5,'Equipment List Template'!$1:$1048576,21,FALSE),"0") -> 0 | W16: 0 | X16: 0
B17: H12 | C17: Unique HVAC System | J17: 0 | K17: 0 | L17: 0 | M17: 0 | N17: 0 | O17: 0 | P17: 0 | Q17: 0 | R17: 0 | S17: 0 | T17: 0 | V17: 0 | W17: 0
A18: 10-A1 | B18: E1 | C18: Electrical Panels | J18: 0 | K18: 0 | L18: 0 | M18: 3 | N18: 0 | O18: 0 | P18: 1 | Q18: 0 | R18: 0 | S18: 4 | T18: 4 | U18: 0 | V18: =IFERROR(VLOOKUP($A$5,'Equipment List Template'!$1:$1048576,23,FALSE),"0") -> 3 | W18: 0 | X18: 12
A19: 10-A1 | B19: E2 | C19: Emergency Generator | J19: 8 | K19: 0 | L19: 0 | M19: 3 | N19: 0 | O19: 0 | P19: 1 | Q19: 0 | R19: 0 | S19: 12 | T19: 12 | U19: 0 | V19: =IFERROR(VLOOKUP($A$5,'Equipment List Template'!$1:$1048576,24,FALSE),"0") -> 1 | W19: 0 | X19: 12
A20: 10-A1 | B20: E3 | C20: Motor Control Center | J20: 0 | K20: 0 | L20: 0 | M20: 3 | N20: 0 | O20: 0 | P20: 1 | Q20: 0 | R20: 0 | S20: 4 | T20: 4 | U20: 0 | V20: =IFERROR(VLOOKUP($A$5,'Equipment List Template'!$1:$1048576,25,FALSE),"0") -> 1 | W20: 0 | X20: 4
A21: 10-A1 | B21: E4 | C21: Automatic Transfer Switch | J21: 8 | K21: 0 | L21: 0 | M21: 3 | N21: 0 | O21: 0 | P21: 1 | Q21: 0 | R21: 0 | S21: 12 | T21: 12 | U21: 0 | V21: =IFERROR(VLOOKUP($A$5,'Equipment List Template'!$1:$1048576,26,FALSE),"0") -> 1 | W21: 0 | X21: 12
A22: 10-A1 | B22: E5 | C22: Building Automated Systems (BAS) | J22: 0 | K22: 0 | L22: 0 | M22: 0 | N22: 0 | O22: 0 | P22: 1 | Q22: 0 | R22: 0 | S22: 1 | T22: 1 | U22: 0 | V22: =IFERROR(VLOOKUP($A$5,'Equipment List Template'!$1:$1048576,27,FALSE),"0") -> 1 | W22: 0 | X22: 1
A23: 10-A1 | B23: E6 | C23: Transformer (Dry-Type) | J23: 0 | K23: 0 | L23: 0 | M23: 3 | N23: 0 | O23: 0 | P23: 1 | Q23: 0 | R23: 0 | S23: 4 | T23: 4 | U23: 0 | V23: =IFERROR(VLOOKUP($A$5,'Equipment List Template'!$1:$1048576,28,FALSE),"0") -> 2 | W23: 0 | X23: 8
A24: 10-A1 | B24: E7 | C24: Uninterruptible Power Supply (UPS) | J24: 0 | K24: 0 | L24: 0 | M24: 0 | N24: 0 | O24: 0 | P24: 1 | Q24: 0 | R24: 0 | S24: 1 | T24: 1 | U24: 0 | V24: =IFERROR(VLOOKUP($A$5,'Equipment List Template'!$1:$1048576,29,FALSE),"0") -> 1 | W24: 0 | X24: 1
A25: 10-A1 | B25: E8 | C25: Lighting and Controls (Interior and Exterior) | J25: 12 | K25: 0 | L25: 0 | M25: 0 | N25: 0 | O25: 0 | P25: 0 | Q25: 0 | R25: 0 | S25: 12 | T25: 12 | U25: 0 | V25: =IFERROR(VLOOKUP($A$5,'Equipment List Template'!$1:$1048576,30,FALSE),"0") -> 1 | W25: 0 | X25: 12
B26: E9 | C26: Unique Electrical System | J26: 0 | K26: 0 | L26: 0 | M26: 0 | N26: 0 | O26: 0 | P26: 0 | Q26: 0 | R26: 0 | S26: 0 | T26: 0 | V26: 0 | W26: 0
A27: 10-A1 | B27: L1 | C27: Life Safety Systems | J27: 0 | K27: 0 | L27: 0 | M27: 3 | N27: 0 | O27: 0 | P27: 1 | Q27: 0 | R27: 0 | S27: 4 | T27: 4 | U27: 0 | V27: =IFERROR(VLOOKUP($A$5,'Equipment List Template'!$1:$1048576,32,FALSE),"0") -> 4 | W27: 0 | X27: 16
A28: 10-A1 | B28: L2 | C28: Reduced Pressure Backflow Preventer(s) | J28: 0 | K28: 0 | L28: 0 | M28: 0 | N28: 0 | O28: 0 | P28: 1 | Q28: 0 | R28: 0 | S28: 1 | T28: 1 | U28: 0 | V28: =IFERROR(VLOOKUP($A$5,'Equipment List Template'!$1:$1048576,33,FALSE),"0") -> 1 | W28: 0 | X28: 1
A29: 10-A1 | B29: P1 | C29: Boiler (Condensing) | J29: 8 | K29: 0 | L29: 0 | M29: 3 | N29: 0 | O29: 0 | P29: 1 | Q29: 0 | R29: 0 | S29: 12 | T29: 0 | U29: 0 | V29: =IFERROR(VLOOKUP($A$5,'Equipment List Template'!$1:$1048576,34,FALSE),"0") -> 0 | W29: 0 | X29: 0
A30: 10-A1 | B30: P2 | C30: Domestic Water Heater (Gas-Fired, Condensing) | J30: 0 | K30: 0 | L30: 0 | M30: 0 | N30: 0 | O30: 0 | P30: 1 | Q30: 0 | R30: 0 | S30: 1 | T30: 0 | U30: 0 | V30: =IFERROR(VLOOKUP($A$5,'Equipment List Template'!$1:$1048576,35,FALSE),"0") -> 0 | W30: 0 | X30: 0
A31: 10-A1 | B31: P3 | C31: Domestic Water Heater (Electric, Non- Condensing) | J31: 0 | K31: 0 | L31: 0 | M31: 0 | N31: 0 | O31: 0 | P31: 1 | Q31: 0 | R31: 0 | S31: 1 | T31: 1 | U31: 0 | V31: =IFERROR(VLOOKUP($A$5,'Equipment List Template'!$1:$1048576,36,FALSE),"0") -> 1 | W31: 0 | X31: 1
A32: 10-A1 | B32: P4 | C32: Boiler (Steam, low pressure) | J32: 0 | K32: 0 | L32: 0 | M32: 3 | N32: 0 | O32: 0 | P32: 1 | Q32: 0 | R32: 0 | S32: 4 | T32: 0 | U32: 0 | V32: =IFERROR(VLOOKUP($A$5,'Equipment List Template'!$1:$1048576,37,FALSE),"0") -> 0 | W32: 0 | X32: 0
A33: 10-A1 | B33: P5 | C33: Steam System | J33: 8 | K33: 0 | L33: 0 | M33: 3 | N33: 0 | O33: 0 | P33: 1 | Q33: 0 | R33: 0 | S33: 12 | T33: 12 | U33: 0 | V33: =IFERROR(VLOOKUP($A$5,'Equipment List Template'!$1:$1048576,38,FALSE),"0") -> 2 | W33: 0 | X33: 24
A34: 10-A1 | B34: P6 | C34: Pneumatic Compressor System | J34: 11 | K34: 0 | L34: 0 | M34: 0 | N34: 0 | O34: 0 | P34: 1 | Q34: 0 | R34: 0 | S34: 12 | T34: 0 | U34: 0 | V34: =IFERROR(VLOOKUP($A$5,'Equipment List Template'!$1:$1048576,39,FALSE),"0") -> 0 | W34: 0 | X34: 0
B35: P7 | C35: Unique Plumbing System | J35: 0 | K35: 0 | L35: 0 | M35: 0 | N35: 0 | O35: 0 | P35: 0 | Q35: 0 | R35: 0 | S35: 0 | T35: 0 | U35: 0 | V35: 0 | W35: 0
A36: 10-A1 | B36: R1 | C36: Rounds and Readings | D36: =IFERROR(IF(VLOOKUP($A36,'Equipment List Template'!$1:$1048576,38,FALSE)=248,248,0),0) -> 0 | E36: 0 | F36: =+E36*D36 -> 0 | G36: =IFERROR(IF(VLOOKUP($A36,'Equipment List Template'!$1:$1048576,38,FALSE)=40,40,0),0) -> 0 | H36: 0 | I36: =+H36*G36 -> 0 | J36: 12 | K36: 0 | L36: 0 | S36: =+$J36+$M36+$P36+D36+G36 -> 12 | T36: 12 | U36: =+R36+O36+L36+I36+F36 -> 0 | V36: 1 | W36: =+U36*V36 -> 0 | X36: 12
A37: 10-A1 | B37: V1 | C37: Vertical Transportation | J37: 8 | K37: 0 | L37: =+K37*J37 -> 0 | M37: 3 | N37: 0 | O37: =+N37*M37 -> 0 | P37: 1 | Q37: 0 | R37: =+Q37*P37 -> 0 | S37: =+$J37+$M37+$P37+D37+G37 -> 12 | T37: 12 | U37: =+R37+O37+L37 -> 0 | V37: =IFERROR(VLOOKUP($A$5,'Equipment List Template'!$1:$1048576,42,FALSE),"0") -> 6 | W37: =+U37*V37 -> 0 | X37: 72
A38: 10-A1 | B38: W1 | C38: Water Treatment | D38: =IFERROR(IF(VLOOKUP($A38,'Equipment List Template'!$1:$1048576,40,FALSE)=248,260,0),0) -> 0 | E38: 0 | F38: =+E38*D38 -> 0 | S38: 0 | T38: 0 | U38: =+R38+O38+L38+I38+F38 -> 0 | V38: 1 | W38: 0 | X38: 0
A39: 10-A1 | B39: B1 | C39: Building Exterior / Hardscape (Monthly) | J39: 12 | K39: 0 | L39: =+K39*J39 -> 0 | S39: 12 | T39: 12 | U39: 0 | V39: =IFERROR(VLOOKUP($A$5,'Equipment List Template'!$1:$1048576,44,FALSE),"0") -> 1 | W39: 0 | X39: 12
A40: 10-A1 | B40: F1 | C40: Fountain Maintenance (Monthly) | J40: 12 | K40: 0 | L40: =+K40*J40 -> 0 | S40: 12 | T40: 0 | U40: 0 | V40: =IFERROR(VLOOKUP($A$5,'Equipment List Template'!$1:$1048576,45,FALSE),"0") -> 0 | W40: 0 | X40: 0
A41: 10-A1 | B41: F2 | C41: Above-Ground/Underground Fuel Storage Tanks (Quarterly) If applicable | M41: 4 | N41: 0 | O41: =+N41*M41 -> 0 | S41: 4 | T41: 0 | U41: 0 | V41: =IFERROR(VLOOKUP($A$5,'Equipment List Template'!$1:$1048576,46,FALSE),"0") -> 0 | W41: 0 | X41: 0
A42: 10-A1 | B42: G1 | C42: Landscape Maintenance * | S42: 0 | T42: 0 | U42: 0 | V42: =IFERROR(VLOOKUP($A$5,'Equipment List Template'!$1:$1048576,47,FALSE),"0") -> 1 | W42: 0 | X42: 0
B43: PC1 | C43: Pest Control (Monthly) | J43: 12 | K43: 0 | L43: =+K43*J43 -> 0 | S43: 12 | T43: 12 | U43: 0 | V43: 1 | W43: 0 | X43: 12
B44: PV1 | C44: Photovoltaic (PV) System | P44: 1 | Q44: 0 | R44: =+Q44*P44 -> 0 | S44: 1 | T44: 0 | U44: 0 | V44: 0 | W44: 0
A45: 10-A1 | B45: C1 | C45: Account Management and Supervision (Monthly) | J45: 12 | K45: 0 | L45: =+K45*J45 -> 0 | S45: 12 | T45: 12 | U45: 0 | V45: 1 | W45: 0 | X45: 12
A46: 10-A1 | B46: C2 | C46: Fee (Monthly) | J46: 12 | K46: 0 | L46: =+K46*J46 -> 0 | S46: 12 | T46: 12 | U46: 0 | V46: 1 | W46: 0 | X46: 12
Q47: JCC ID | R47: =B2 -> 10-A1 | U47: Total | W47: =SUM(W5:W46) -> 0
B48: S1 | C48: Snow Removal - (crew hourly rate) | D48: 0 | U48: Total # of PM's | W48: =SUM($X$5:$X$46) -> 424
B49: I1 | C49: Unclogging Blocked Toilet - In-custody cell (labor-only) | D49: 0
B50: I2 | C50: Unclogging Blocked Toilet - Public/Court Staff (labor-only) | D50: 0
B51: I3 | C51: Clean up & Disposal of Biological Waste Event | D51: 0
B52: I4 | C52: Clean up & Disposal of Biological Waste Labor Rate | D52: 0
B53: Hr 1 | C53: Hourly Rate (All Labor categories) | D53: 0
B54: M1 | C54: Markup on Materials (Percentage) | D54: 0
B55: Sub1 | C55: Markup on Subcontractors/Third-Parties (Percentage) | D55: 0
B57: * Landscape Maintenance varies by location on the number of weeks per year it can be preformed. For the purpose of the RFP, all facilities are pre-established at 40 weeks of service. The actual amount paid by facility will be based upon the actual weeks that service has been performed, validated and invoiced.

Sheet 10-F1
B1: JCC ID | C1: Facility Name | D1: Address | F1: City / Town | H1: Zip Code | J1: County | L1: Region | N1: RFP | P1: Proposer
B2: 10-F1 | C2: =IFERROR(VLOOKUP($B$2,'Equipment List Template'!$1:$1048576,2,FALSE),"") -> Reedley Court | D2: =IFERROR(VLOOKUP($B$2,'Equipment List Template'!$1:$1048576,3,FALSE),"") -> 815 G Street | F2: =IFERROR(VLOOKUP($B$2,'Equipment List Template'!$1:$1048576,4,FALSE),"") -> Reedley | H2: =IFERROR(VLOOKUP($B$2,'Equipment List Template'!$1:$1048576,5,FALSE),"") -> 93654 | J2: =IFERROR(VLOOKUP($B$2,'Equipment List Template'!$1:$1048576,6,FALSE),"") -> Fresno | L2: =IFERROR(VLOOKUP($B$2,'Equipment List Template'!$1:$1048576,7,FALSE),"") -> NCRO | N2: ='Summary Pricing Sheet'!B2 -> RFP-FS-SP-2019-03-JP | P2: ='Summary Pricing Sheet'!B3 -> Firm Name TBD
D3: Daily Activity | G3: Weekly Activity | J3: Monthly Activity | M3: Quarterly Activity | P3: Annual Activity | U3: Summary | AG3: System | AH3: Access | AI3: HVAC | AU3: Electrical | BD3: Life Safety | BF3: Plumbing | BM3: Building Systems | BV3: Corporate | BY3: Fixed Price - Facility Total Annual Cost Year 1 | CA3: Unit Pricing
B4: System ID | C4: Subsystem | D4: Quantity | E4: Cost | F4: Daily Total | G4: Quantity | H4: Cost | I4: Weekly Total | J4: Monthly Quantity | K4: Cost | L4: Monthly Total | M4: Quarterly Quantity | N4: Cost | O4: Quarterly Total | P4: Annual Quantity | Q4: Cost | R4: Annual PM Total | T4: Number of PM's | U4: Annual Cost | V4: Quantity | W4: Total Annual Cost | AG4: Subsystem | AH4: Access Doors, Gates, Sally Port | AI4: Air Cooled DX (Split System) | AJ4: Air Handling Unit (Air Cooled DX / Package) | AK4: Air-Cooled Chiller | AL4: Centrifugal Chiller | AM4: Cooling Tower (Induced Draft) | AN4: Ice Chiller Tank | AO4: Geothermal System | AP4: Water Source Heat Pump | AQ4: Fan Coil System | AR4: Supply / Return Fan and Exhaust | AS4: Evaporative and Spot Coolers (swamp coolers; spot cooler) | AT4: Unique HVAC System | AU4: Electrical Panels | AV4: Emergency Generator | AW4: Motor Control Center | AX4: Automatic Transfer Switch | AY4: Building Automated Systems (BAS) | AZ4: Transformer (Dry-Type) | BA4: Uninterruptible Power Supply (UPS) | BB4: Lighting and Controls (Interior and Exterior) | BC4: Unique Electrical System | BD4: Life Safety Systems | BE4: Reduced Pressure Backflow Preventer(s) | BF4: Boiler (Condensing) | BG4: Domestic Water Heater (Gas-Fired, Condensing) | BH4: Domestic Water Heater (Electric, Non- Condensing) | BI4: Boiler (Steam, low pressure) | BJ4: Steam System | BK4: Pneumatic Compressor System | BL4: Unique Plumbing System | BM4: Rounds and Readings | BN4: Vertical Transportation | BO4: Water Treatment | BP4: Building Exterior / Hardscape (Monthly) | BQ4: Fountain Maintenance (Monthly) | BR4: Above-Ground/Underground Fuel Storage Tanks (Quarterly) If applicable | BS4: Landscape Maintenance * | BT4: Pest Control (Monthly) | BU4: Photovoltaic (PV) System | BV4: Account Management and Supervision (Monthly) | BW4: Fee (Monthly) | CA4: Snow Removal - (crew hourly rate) | CB4: Unclogging Blocked Toilet - In-custody holding cell (labor) | CC4: Unclogging Blocked Toilet - Public/Court Staff (labor) | CD4: Clean up & Disposal of Biological Waste Event | CE4: Clean up & Disposal of Biological Waste Labor Rate | CF4: Hourly Rate | CG4: Markup on Materials | CH4: Markup on Subcontractors/Third-Parties
A5: =$B$2 -> 10-F1 | B5: A1 | C5: Access Doors, Gates, Sally Port | J5: 11 | K5: 0 | L5: =+K5*J5 -> 0 | M5: 0 | N5: 0 | O5: =+N5*M5 -> 0 | P5: 1 | Q5: 0 | R5: =+Q5*P5 -> 0 | S5: =+$J5+$M5+$P5 -> 12 | T5: =IF($V5>0,$S5,0) -> 0 | U5: =+R5+O5+L5+I5+F5 -> 0 | V5: =IFERROR(VLOOKUP($A$5,'Equipment List Template'!$1:$1048576,10,FALSE),"0") -> 0 | W5: =+U5*V5 -> 0 | X5: =$T5*$V5 -> 0 | Z5: JCC ID | AA5: Facility Name | AB5: Address | AC5: City / Town | AD5: County | AE5: Region | AF5: Region | AG5: System ID | AH5: A1 | AI5: H1 | AJ5: H2 | AK5: H3 | AL5: H4 | AM5: H5 | AN5: H6 | AO5: H7 | AP5: H8 | AQ5: H9 | AR5: H10 | AS5: H11 | AT5: H12 | AU5: E1 | AV5: E2 | AW5: E3 | AX5: E4 | AY5: E5 | AZ5: E6 | BA5: E7 | BB5: E8 | BC5: E9 | BD5: L1 | BE5: L2 | BF5: P1 | BG5: P2 | BH5: P3 | BI5: P4 | BJ5: P5 | BK5: P6 | BL5: P7 | BM5: R1 | BN5: V1 | BO5: W1 | BP5: B1 | BQ5: F1 | BR5: F2 | BS5: G1 | BT5: PC1 | BU5: PV1 | BV5: C1 | BW5: C2 | CA5: S1 | CB5: I1 | CC5: I2 | CD5: I3 | CE5: I4 | CF5: Hr 1 | CG5: M1 | CH5: Sub1
A6: =$B$2 -> 10-F1 | B6: H1 | C6: Air Cooled DX (Split System) | J6: 0 | K6: 0 | L6: =+K6*J6 -> 0 | M6: 3 | N6: 0 | O6: =+N6*M6 -> 0 | P6: 1 | Q6: 0 | R6: =+Q6*P6 -> 0 | S6: =+$J6+$M6+$P6 -> 4 | T6: =IF($V6>0,$S6,0) -> 4 | U6: =+R6+O6+L6+I6+F6 -> 0 | V6: =IFERROR(VLOOKUP($A$5,'Equipment List Template'!$1:$1048576,11,FALSE),"0") -> 4 | W6: =+U6*V6 -> 0 | X6: =$T6*$V6 -> 16 | Z6: =B2 -> 10-F1 | AA6: =IFERROR(VLOOKUP($Z$6,'Equipment List Template'!$1:$1048576,2,FALSE),"") -> Reedley Court | AB6: =IFERROR(VLOOKUP($Z$6,'Equipment List Template'!$1:$1048576,3,FALSE),"") -> 815 G Street | AC6: =IFERROR(VLOOKUP($Z$6,'Equipment List Template'!$1:$1048576,4,FALSE),"") -> Reedley | AD6: =IFERROR(VLOOKUP($Z$6,'Equipment List Template'!$1:$1048576,5,FALSE),"") -> 93654 | AE6: =IFERROR(VLOOKUP($Z$6,'Equipment List Template'!$1:$1048576,6,FALSE),"") -> Fresno | AF6: =IFERROR(VLOOKUP($Z$6,'Equipment List Template'!$1:$1048576,7,FALSE),"") -> NCRO | AH6: =+$W5 -> 0 | AI6: =+$W6 -> 0 | AJ6: =+$W7 -> 0 | AK6: =+$W8 -> 0 | AL6: =+$W9 -> 0 | AM6: =+$W10 -> 0 | AN6: =+$W11 -> 0 | AO6: =+$W12 -> 0 | AP6: =+$W13 -> 0 | AQ6: =+$W14 -> 0 | AR6: =+$W15 -> 0 | AS6: =+$W16 -> 0 | AT6: =+$W17 -> 0 | AU6: =+$W18 -> 0 | AV6: =+$W19 -> 0 | AW6: =+$W20 -> 0 | AX6: =+$W21 -> 0 | AY6: =+$W22 -> 0 | AZ6: =+$W23 -> 0 | BA6: =+$W24 -> 0 | BB6: =+$W25 -> 0 | BC6: =+$W26 -> 0 | BD6: =+$W27 -> 0 | BE6: =+$W28 -> 0 | BF6: =+$W29 -> 0 | BG6: =+$W30 -> 0 | BH6: =+$W31 -> 0 | BI6: =+$W32 -> 0 | BJ6: =+$W33 -> 0 | BK6: =+$W34 -> 0 | BL6: =+$W35 -> 0 | BM6: =+$W36 -> 0 | BN6: =+$W37 -> 0 | BO6: =+$W38 -> 0 | BP6: =+$W39 -> 0 | BQ6: =+$W40 -> 0 | BR6: =+$W41 -> 0 | BS6: =+$W42 -> 0 | BT6: =+$W43 -> 0 | BU6: =+$W44 -> 0 | BV6: =+$W45 -> 0 | BW6: =+$W46 -> 0 | BY6: =+W47 -> 0 | CA6: =+$D48 -> 0 | CB6: =+$D49 -> 0 | CC6: =+$D50 -> 0 | CD6: =+$D51 -> 0 | CE6: =+$D52 -> 0 | CF6: =+$D53 -> 0 | CG6: =+$D54 -> 0 | CH6: =+$D55 -> 0
A7: =$B$2 -> 10-F1 | B7: H2 | C7: Air Handling Unit (Air Cooled DX / Package) | J7: 0 | K7: 0 | L7: =+K7*J7 -> 0 | M7: 3 | N7: 0 | O7: =+N7*M7 -> 0 | P7: 1 | Q7: 0 | R7: =+Q7*P7 -> 0 | S7: =+$J7+$M7+$P7 -> 4 | T7: =IF($V7>0,$S7,0) -> 0 | U7: =+R7+O7+L7+I7+F7 -> 0 | V7: =IFERROR(VLOOKUP($A$5,'Equipment List Template'!$1:$1048576,12,FALSE),"0") -> 0 | W7: =+U7*V7 -> 0 | X7: =$T7*$V7 -> 0
A8: 10-F1 | B8: H3 | C8: Air-Cooled Chiller | J8: 11 | K8: 0 | L8: 0 | M8: 0 | N8: 0 | O8: 0 | P8: 1 | Q8: 0 | R8: 0 | S8: 12 | T8: 0 | U8: 0 | V8: =IFERROR(VLOOKUP($A$5,'Equipment List Template'!$1:$1048576,13,FALSE),"0") -> 0 | W8: 0 | X8: 0
A9: 10-F1 | B9: H4 | C9: Centrifugal Chiller | J9: 11 | K9: 0 | L9: 0 | M9: 0 | N9: 0 | O9: 0 | P9: 1 | Q9: 0 | R9: 0 | S9: 12 | T9: 0 | U9: 0 | V9: =IFERROR(VLOOKUP($A$5,'Equipment List Template'!$1:$1048576,14,FALSE),"0") -> 0 | W9: 0 | X9: 0
A10: 10-F1 | B10: H5 | C10: Cooling Tower (Induced Draft) | J10: 8 | K10: 0 | L10: 0 | M10: 3 | N10: 0 | O10: 0 | P10: 1 | Q10: 0 | R10: 0 | S10: 12 | T10: 0 | U10: 0 | V10: =IFERROR(VLOOKUP($A$5,'Equipment List Template'!$1:$1048576,15,FALSE),"0") -> 0 | W10: 0 | X10: 0
A11: 10-F1 | B11: H6 | C11: Ice Chiller Tank | J11: 8 | K11: 0 | L11: 0 | M11: 3 | N11: 0 | O11: 0 | P11: 1 | Q11: 0 | R11: 0 | S11: 12 | T11: 0 | U11: 0 | V11: =IFERROR(VLOOKUP($A$5,'Equipment List Template'!$1:$1048576,16,FALSE),"0") -> 0 | W11: 0 | X11: 0
A12: 10-F1 | B12: H7 | C12: Geothermal System | J12: 11 | K12: 0 | L12: 0 | M12: 0 | N12: 0 | O12: 0 | P12: 1 | Q12: 0 | R12: 0 | S12: 12 | T12: 0 | U12: 0 | V12: =IFERROR(VLOOKUP($A$5,'Equipment List Template'!$1:$1048576,17,FALSE),"0") -> 0 | W12: 0 | X12: 0
A13: 10-F1 | B13: H8 | C13: Water Source Heat Pump | J13: 8 | K13: 0 | L13: 0 | M13: 3 | N13: 0 | O13: 0 | P13: 1 | Q13: 0 | R13: 0 | S13: 12 | T13: 0 | U13: 0 | V13: =IFERROR(VLOOKUP($A$5,'Equipment List Template'!$1:$1048576,18,FALSE),"0") -> 0 | W13: 0 | X13: 0
A14: 10-F1 | B14: H9 | C14: Fan Coil System | J14: 0 | K14: 0 | L14: 0 | M14: 3 | N14: 0 | O14: 0 | P14: 1 | Q14: 0 | R14: 0 | S14: 4 | T14: 0 | U14: 0 | V14: =IFERROR(VLOOKUP($A$5,'Equipment List Template'!$1:$1048576,19,FALSE),"0") -> 0 | W14: 0 | X14: 0
A15: 10-F1 | B15: H10 | C15: Supply / Return Fan and Exhaust | J15: 0 | K15: 0 | L15: 0 | M15: 3 | N15: 0 | O15: 0 | P15: 1 | Q15: 0 | R15: 0 | S15: 4 | T15: 0 | U15: 0 | V15: =IFERROR(VLOOKUP($A$5,'Equipment List Template'!$1:$1048576,20,FALSE),"0") -> 0 | W15: 0 | X15: 0
A16: 10-F1 | B16: H11 | C16: Evaporative and Spot Coolers (swamp coolers; spot cooler) | J16: 8 | K16: 0 | L16: 0 | M16: 3 | N16: 0 | O16: 0 | P16: 1 | Q16: 0 | R16: 0 | S16: 12 | T16: 0 | U16: 0 | V16: =IFERROR(VLOOKUP($A$5,'Equipment List Template'!$1:$1048576,21,FALSE),"0") -> 0 | W16: 0 | X16: 0
B17: H12 | C17: Unique HVAC System | J17: 0 | K17: 0 | L17: 0 | M17: 0 | N17: 0 | O17: 0 | P17: 0 | Q17: 0 | R17: 0 | S17: 0 | T17: 0 | V17: 0 | W17: 0
A18: 10-F1 | B18: E1 | C18: Electrical Panels | J18: 0 | K18: 0 | L18: 0 | M18: 3 | N18: 0 | O18: 0 | P18: 1 | Q18: 0 | R18: 0 | S18: 4 | T18: 4 | U18: 0 | V18: =IFERROR(VLOOKUP($A$5,'Equipment List Template'!$1:$1048576,23,FALSE),"0") -> 1 | W18: 0 | X18: 4
A19: 10-F1 | B19: E2 | C19: Emergency Generator | J19: 8 | K19: 0 | L19: 0 | M19: 3 | N19: 0 | O19: 0 | P19: 1 | Q19: 0 | R19: 0 | S19: 12 | T19: 0 | U19: 0 | V19: =IFERROR(VLOOKUP($A$5,'Equipment List Template'!$1:$1048576,24,FALSE),"0") -> 0 | W19: 0 | X19: 0
A20: 10-F1 | B20: E3 | C20: Motor Control Center | J20: 0 | K20: 0 | L20: 0 | M20: 3 | N20: 0 | O20: 0 | P20: 1 | Q20: 0 | R20: 0 | S20: 4 | T20: 0 | U20: 0 | V20: =IFERROR(VLOOKUP($A$5,'Equipment List Template'!$1:$1048576,25,FALSE),"0") -> 0 | W20: 0 | X20: 0
A21: 10-F1 | B21: E4 | C21: Automatic Transfer Switch | J21: 8 | K21: 0 | L21: 0 | M21: 3 | N21: 0 | O21: 0 | P21: 1 | Q21: 0 | R21: 0 | S21: 12 | T21: 0 | U21: 0 | V21: =IFERROR(VLOOKUP($A$5,'Equipment List Template'!$1:$1048576,26,FALSE),"0") -> 0 | W21: 0 | X21: 0
A22: 10-F1 | B22: E5 | C22: Building Automated Systems (BAS) | J22: 0 | K22: 0 | L22: 0 | M22: 0 | N22: 0 | O22: 0 | P22: 1 | Q22: 0 | R22: 0 | S22: 1 | T22: 0 | U22: 0 | V22: =IFERROR(VLOOKUP($A$5,'Equipment List Template'!$1:$1048576,27,FALSE),"0") -> 0 | W22: 0 | X22: 0
A23: 10-F1 | B23: E6 | C23: Transformer (Dry-Type) | J23: 0 | K23: 0 | L23: 0 | M23: 3 | N23: 0 | O23: 0 | P23: 1 | Q23: 0 | R23: 0 | S23: 4 | T23: 0 | U23: 0 | V23: =IFERROR(VLOOKUP($A$5,'Equipment List Template'!$1:$1048576,28,FALSE),"0") -> 0 | W23: 0 | X23: 0
A24: 10-F1 | B24: E7 | C24: Uninterruptible Power Supply (UPS) | J24: 0 | K24: 0 | L24: 0 | M24: 0 | N24: 0 | O24: 0 | P24: 1 | Q24: 0 | R24: 0 | S24: 1 | T24: 0 | U24: 0 | V24: =IFERROR(VLOOKUP($A$5,'Equipment List Template'!$1:$1048576,29,FALSE),"0") -> 0 | W24: 0 | X24: 0
A25: 10-F1 | B25: E8 | C25: Lighting and Controls (Interior and Exterior) | J25: 12 | K25: 0 | L25: 0 | M25: 0 | N25: 0 | O25: 0 | P25: 0 | Q25: 0 | R25: 0 | S25: 12 | T25: 12 | U25: 0 | V25: =IFERROR(VLOOKUP($A$5,'Equipment List Template'!$1:$1048576,30,FALSE),"0") -> 1 | W25: 0 | X25: 12
B26: E9 | C26: Unique Electrical System | J26: 0 | K26: 0 | L26: 0 | M26: 0 | N26: 0 | O26: 0 | P26: 0 | Q26: 0 | R26: 0 | S26: 0 | T26: 0 | V26: 0 | W26: 0
A27: 10-F1 | B27: L1 | C27: Life Safety Systems | J27: 0 | K27: 0 | L27: 0 | M27: 3 | N27: 0 | O27: 0 | P27: 1 | Q27: 0 | R27: 0 | S27: 4 | T27: 4 | U27: 0 | V27: =IFERROR(VLOOKUP($A$5,'Equipment List Template'!$1:$1048576,32,FALSE),"0") -> 1 | W27: 0 | X27: 4
A28: 10-F1 | B28: L2 | C28: Reduced Pressure Backflow Preventer(s) | J28: 0 | K28: 0 | L28: 0 | M28: 0 | N28: 0 | O28: 0 | P28: 1 | Q28: 0 | R28: 0 | S28: 1 | T28: 1 | U28: 0 | V28: =IFERROR(VLOOKUP($A$5,'Equipment List Template'!$1:$1048576,33,FALSE),"0") -> 1 | W28: 0 | X28: 1
A29: 10-F1 | B29: P1 | C29: Boiler (Condensing) | J29: 8 | K29: 0 | L29: 0 | M29: 3 | N29: 0 | O29: 0 | P29: 1 | Q29: 0 | R29: 0 | S29: 12 | T29: 0 | U29: 0 | V29: =IFERROR(VLOOKUP($A$5,'Equipment List Template'!$1:$1048576,34,FALSE),"0") -> 0 | W29: 0 | X29: 0
A30: 10-F1 | B30: P2 | C30: Domestic Water Heater (Gas-Fired, Condensing) | J30: 0 | K30: 0 | L30: 0 | M30: 0 | N30: 0 | O30: 0 | P30: 1 | Q30: 0 | R30: 0 | S30: 1 | T30: 1 | U30: 0 | V30: =IFERROR(VLOOKUP($A$5,'Equipment List Template'!$1:$1048576,35,FALSE),"0") -> 2 | W30: 0 | X30: 2
A31: 10-F1 | B31: P3 | C31: Domestic Water Heater (Electric, Non- Condensing) | J31: 0 | K31: 0 | L31: 0 | M31: 0 | N31: 0 | O31: 0 | P31: 1 | Q31: 0 | R31: 0 | S31: 1 | T31: 0 | U31: 0 | V31: =IFERROR(VLOOKUP($A$5,'Equipment List Template'!$1:$1048576,36,FALSE),"0") -> 0 | W31: 0 | X31: 0
A32: 10-F1 | B32: P4 | C32: Boiler (Steam, low pressure) | J32: 0 | K32: 0 | L32: 0 | M32: 3 | N32: 0 | O32: 0 | P32: 1 | Q32: 0 | R32: 0 | S32: 4 | T32: 0 | U32: 0 | V32: =IFERROR(VLOOKUP($A$5,'Equipment List Template'!$1:$1048576,37,FALSE),"0") -> 0 | W32: 0 | X32: 0
A33: 10-F1 | B33: P5 | C33: Steam System | J33: 8 | K33: 0 | L33: 0 | M33: 3 | N33: 0 | O33: 0 | P33: 1 | Q33: 0 | R33: 0 | S33: 12 | T33: 0 | U33: 0 | V33: =IFERROR(VLOOKUP($A$5,'Equipment List Template'!$1:$1048576,38,FALSE),"0") -> 0 | W33: 0 | X33: 0
A34: 10-F1 | B34: P6 | C34: Pneumatic Compressor System | J34: 11 | K34: 0 | L34: 0 | M34: 0 | N34: 0 | O34: 0 | P34: 1 | Q34: 0 | R34: 0 | S34: 12 | T34: 0 | U34: 0 | V34: =IFERROR(VLOOKUP($A$5,'Equipment List Template'!$1:$1048576,39,FALSE),"0") -> 0 | W34: 0 | X34: 0
B35: P7 | C35: Unique Plumbing System | J35: 0 | K35: 0 | L35: 0 | M35: 0 | N35: 0 | O35: 0 | P35: 0 | Q35: 0 | R35: 0 | S35: 0 | T35: 0 | U35: 0 | V35: 0 | W35: 0
A36: 10-F1 | B36: R1 | C36: Rounds and Readings | D36: =IFERROR(IF(VLOOKUP($A36,'Equipment List Template'!$1:$1048576,38,FALSE)=248,248,0),0) -> 0 | E36: 0 | F36: =+E36*D36 -> 0 | G36: =IFERROR(IF(VLOOKUP($A36,'Equipment List Template'!$1:$1048576,38,FALSE)=40,40,0),0) -> 0 | H36: 0 | I36: =+H36*G36 -> 0 | J36: 12 | K36: 0 | L36: 0 | S36: =+$J36+$M36+$P36+D36+G36 -> 12 | T36: 12 | U36: =+R36+O36+L36+I36+F36 -> 0 | V36: 1 | W36: =+U36*V36 -> 0 | X36: 12
A37: 10-F1 | B37: V1 | C37: Vertical Transportation | J37: 8 | K37: 0 | L37: =+K37*J37 -> 0 | M37: 3 | N37: 0 | O37: =+N37*M37 -> 0 | P37: 1 | Q37: 0 | R37: =+Q37*P37 -> 0 | S37: =+$J37+$M37+$P37+D37+G37 -> 12 | T37: 0 | U37: =+R37+O37+L37 -> 0 | V37: =IFERROR(VLOOKUP($A$5,'Equipment List Template'!$1:$1048576,42,FALSE),"0") -> 0 | W37: =+U37*V37 -> 0 | X37: 0
A38: 10-F1 | B38: W1 | C38: Water Treatment | D38: =IFERROR(IF(VLOOKUP($A38,'Equipment List Template'!$1:$1048576,40,FALSE)=248,260,0),0) -> 0 | E38: 0 | F38: =+E38*D38 -> 0 | S38: 0 | T38: 0 | U38: =+R38+O38+L38+I38+F38 -> 0 | V38: 1 | W38: 0 | X38: 0
A39: 10-F1 | B39: B1 | C39: Building Exterior / Hardscape (Monthly) | J39: 12 | K39: 0 | L39: =+K39*J39 -> 0 | S39: 12 | T39: 12 | U39: 0 | V39: =IFERROR(VLOOKUP($A$5,'Equipment List Template'!$1:$1048576,44,FALSE),"0") -> 1 | W39: 0 | X39: 12
A40: 10-F1 | B40: F1 | C40: Fountain Maintenance (Monthly) | J40: 12 | K40: 0 | L40: =+K40*J40 -> 0 | S40: 12 | T40: 0 | U40: 0 | V40: =IFERROR(VLOOKUP($A$5,'Equipment List Template'!$1:$1048576,45,FALSE),"0") -> 0 | W40: 0 | X40: 0
A41: 10-F1 | B41: F2 | C41: Above-Ground/Underground Fuel Storage Tanks (Quarterly) If applicable | M41: 4 | N41: 0 | O41: =+N41*M41 -> 0 | S41: 4 | T41: 0 | U41: 0 | V41: =IFERROR(VLOOKUP($A$5,'Equipment List Template'!$1:$1048576,46,FALSE),"0") -> 0 | W41: 0 | X41: 0
A42: 10-F1 | B42: G1 | C42: Landscape Maintenance * | S42: 0 | T42: 0 | U42: 0 | V42: =IFERROR(VLOOKUP($A$5,'Equipment List Template'!$1:$1048576,47,FALSE),"0") -> 1 | W42: 0 | X42: 0
B43: PC1 | C43: Pest Control (Monthly) | J43: 12 | K43: 0 | L43: =+K43*J43 -> 0 | S43: 12 | T43: 12 | U43: 0 | V43: 1 | W43: 0 | X43: 12
B44: PV1 | C44: Photovoltaic (PV) System | P44: 1 | Q44: 0 | R44: =+Q44*P44 -> 0 | S44: 1 | T44: 0 | U44: 0 | V44: 0 | W44: 0
A45: 10-F1 | B45: C1 | C45: Account Management and Supervision (Monthly) | J45: 12 | K45: 0 | L45: =+K45*J45 -> 0 | S45: 12 | T45: 12 | U45: 0 | V45: 1 | W45: 0 | X45: 12
A46: 10-F1 | B46: C2 | C46: Fee (Monthly) | J46: 12 | K46: 0 | L46: =+K46*J46 -> 0 | S46: 12 | T46: 12 | U46: 0 | V46: 1 | W46: 0 | X46: 12
Q47: JCC ID | R47: =B2 -> 10-F1 | U47: Total | W47: =SUM(W5:W46) -> 0
B48: S1 | C48: Snow Removal - (crew hourly rate) | D48: 0 | U48: Total # of PM's | W48: =SUM($X$5:$X$46) -> 99
B49: I1 | C49: Unclogging Blocked Toilet - In-custody cell (labor-only) | D49: 0
B50: I2 | C50: Unclogging Blocked Toilet - Public/Court Staff (labor-only) | D50: 0
B51: I3 | C51: Clean up & Disposal of Biological Waste Event | D51: 0
B52: I4 | C52: Clean up & Disposal of Biological Waste Labor Rate | D52: 0
B53: Hr 1 | C53: Hourly Rate (All Labor categories) | D53: 0
B54: M1 | C54: Markup on Materials (Percentage) | D54: 0
B55: Sub1 | C55: Markup on Subcontractors/Third-Parties (Percentage) | D55: 0
B57: * Landscape Maintenance varies by location on the number of weeks per year it can be preformed. For the purpose of the RFP, all facilities are pre-established at 40 weeks of service. The actual amount paid by facility will be based upon the actual weeks that service has been performed, validated and invoiced.

Sheet 10-G1
B1: JCC ID | C1: Facility Name | D1: Address | F1: City / Town | H1: Zip Code | J1: County | L1: Region | N1: RFP | P1: Proposer
B2: 10-G1 | C2: =IFERROR(VLOOKUP($B$2,'Equipment List Template'!$1:$1048576,2,FALSE),"") -> Clovis Court | D2: =IFERROR(VLOOKUP($B$2,'Equipment List Template'!$1:$1048576,3,FALSE),"") -> 1011 5th St. | F2: =IFERROR(VLOOKUP($B$2,'Equipment List Template'!$1:$1048576,4,FALSE),"") -> Clovis | H2: =IFERROR(VLOOKUP($B$2,'Equipment List Template'!$1:$1048576,5,FALSE),"") -> 93612 | J2: =IFERROR(VLOOKUP($B$2,'Equipment List Template'!$1:$1048576,6,FALSE),"") -> Fresno | L2: =IFERROR(VLOOKUP($B$2,'Equipment List Template'!$1:$1048576,7,FALSE),"") -> NCRO | N2: ='Summary Pricing Sheet'!B2 -> RFP-FS-SP-2019-03-JP | P2: ='Summary Pricing Sheet'!B3 -> Firm Name TBD
D3: Daily Activity | G3: Weekly Activity | J3: Monthly Activity | M3: Quarterly Activity | P3: Annual Activity | U3: Summary | AG3: System | AH3: Access | AI3: HVAC | AU3: Electrical | BD3: Life Safety | BF3: Plumbing | BM3: Building Systems | BV3: Corporate | BY3: Fixed Price - Facility Total Annual Cost Year 1 | CA3: Unit Pricing
B4: System ID | C4: Subsystem | D4: Quantity | E4: Cost | F4: Daily Total | G4: Quantity | H4: Cost | I4: Weekly Total | J4: Monthly Quantity | K4: Cost | L4: Monthly Total | M4: Quarterly Quantity | N4: Cost | O4: Quarterly Total | P4: Annual Quantity | Q4: Cost | R4: Annual PM Total | T4: Number of PM's | U4: Annual Cost | V4: Quantity | W4: Total Annual Cost | AG4: Subsystem | AH4: Access Doors, Gates, Sally Port | AI4: Air Cooled DX (Split System) | AJ4: Air Handling Unit (Air Cooled DX / Package) | AK4: Air-Cooled Chiller | AL4: Centrifugal Chiller | AM4: Cooling Tower (Induced Draft) | AN4: Ice Chiller Tank | AO4: Geothermal System | AP4: Water Source Heat Pump | AQ4: Fan Coil System | AR4: Supply / Return Fan and Exhaust | AS4: Evaporative and Spot Coolers (swamp coolers; spot cooler) | AT4: Unique HVAC System | AU4: Electrical Panels | AV4: Emergency Generator | AW4: Motor Control Center | AX4: Automatic Transfer Switch | AY4: Building Automated Systems (BAS) | AZ4: Transformer (Dry-Type) | BA4: Uninterruptible Power Supply (UPS) | BB4: Lighting and Controls (Interior and Exterior) | BC4: Unique Electrical System | BD4: Life Safety Systems | BE4: Reduced Pressure Backflow Preventer(s) | BF4: Boiler (Condensing) | BG4: Domestic Water Heater (Gas-Fired, Condensing) | BH4: Domestic Water Heater (Electric, Non- Condensing) | BI4: Boiler (Steam, low pressure) | BJ4: Steam System | BK4: Pneumatic Compressor System | BL4: Unique Plumbing System | BM4: Rounds and Readings | BN4: Vertical Transportation | BO4: Water Treatment | BP4: Building Exterior / Hardscape (Monthly) | BQ4: Fountain Maintenance (Monthly) | BR4: Above-Ground/Underground Fuel Storage Tanks (Quarterly) If applicable | BS4: Landscape Maintenance * | BT4: Pest Control (Monthly) | BU4: Photovoltaic (PV) System | BV4: Account Management and Supervision (Monthly) | BW4: Fee (Monthly) | CA4: Snow Removal - (crew hourly rate) | CB4: Unclogging Blocked Toilet - In-custody holding cell (labor) | CC4: Unclogging Blocked Toilet - Public/Court Staff (labor) | CD4: Clean up & Disposal of Biological Waste Event | CE4: Clean up & Disposal of Biological Waste Labor Rate | CF4: Hourly Rate | CG4: Markup on Materials | CH4: Markup on Subcontractors/Third-Parties
A5: =$B$2 -> 10-G1 | B5: A1 | C5: Access Doors, Gates, Sally Port | J5: 11 | K5: 0 | L5: =+K5*J5 -> 0 | M5: 0 | N5: 0 | O5: =+N5*M5 -> 0 | P5: 1 | Q5: 0 | R5: =+Q5*P5 -> 0 | S5: =+$J5+$M5+$P5 -> 12 | T5: =IF($V5>0,$S5,0) -> 0 | U5: =+R5+O5+L5+I5+F5 -> 0 | V5: =IFERROR(VLOOKUP($A$5,'Equipment List Template'!$1:$1048576,10,FALSE),"0") -> 0 | W5: =+U5*V5 -> 0 | X5: =$T5*$V5 -> 0 | Z5: JCC ID | AA5: Facility Name | AB5: Address | AC5: City / Town | AD5: County | AE5: Region | AF5: Region | AG5: System ID | AH5: A1 | AI5: H1 | AJ5: H2 | AK5: H3 | AL5: H4 | AM5: H5 | AN5: H6 | AO5: H7 | AP5: H8 | AQ5: H9 | AR5: H10 | AS5: H11 | AT5: H12 | AU5: E1 | AV5: E2 | AW5: E3 | AX5: E4 | AY5: E5 | AZ5: E6 | BA5: E7 | BB5: E8 | BC5: E9 | BD5: L1 | BE5: L2 | BF5: P1 | BG5: P2 | BH5: P3 | BI5: P4 | BJ5: P5 | BK5: P6 | BL5: P7 | BM5: R1 | BN5: V1 | BO5: W1 | BP5: B1 | BQ5: F1 | BR5: F2 | BS5: G1 | BT5: PC1 | BU5: PV1 | BV5: C1 | BW5: C2 | CA5: S1 | CB5: I1 | CC5: I2 | CD5: I3 | CE5: I4 | CF5: Hr 1 | CG5: M1 | CH5: Sub1
A6: =$B$2 -> 10-G1 | B6: H1 | C6: Air Cooled DX (Split System) | J6: 0 | K6: 0 | L6: =+K6*J6 -> 0 | M6: 3 | N6: 0 | O6: =+N6*M6 -> 0 | P6: 1 | Q6: 0 | R6: =+Q6*P6 -> 0 | S6: =+$J6+$M6+$P6 -> 4 | T6: =IF($V6>0,$S6,0) -> 4 | U6: =+R6+O6+L6+I6+F6 -> 0 | V6: =IFERROR(VLOOKUP($A$5,'Equipment List Template'!$1:$1048576,11,FALSE),"0") -> 4 | W6: =+U6*V6 -> 0 | X6: =$T6*$V6 -> 16 | Z6: =B2 -> 10-G1 | AA6: =IFERROR(VLOOKUP($Z$6,'Equipment List Template'!$1:$1048576,2,FALSE),"") -> Clovis Court | AB6: =IFERROR(VLOOKUP($Z$6,'Equipment List Template'!$1:$1048576,3,FALSE),"") -> 1011 5th St. | AC6: =IFERROR(VLOOKUP($Z$6,'Equipment List Template'!$1:$1048576,4,FALSE),"") -> Clovis | AD6: =IFERROR(VLOOKUP($Z$6,'Equipment List Template'!$1:$1048576,5,FALSE),"") -> 93612 | AE6: =IFERROR(VLOOKUP($Z$6,'Equipment List Template'!$1:$1048576,6,FALSE),"") -> Fresno | AF6: =IFERROR(VLOOKUP($Z$6,'Equipment List Template'!$1:$1048576,7,FALSE),"") -> NCRO | AH6: =+$W5 -> 0 | AI6: =+$W6 -> 0 | AJ6: =+$W7 -> 0 | AK6: =+$W8 -> 0 | AL6: =+$W9 -> 0 | AM6: =+$W10 -> 0 | AN6: =+$W11 -> 0 | AO6: =+$W12 -> 0 | AP6: =+$W13 -> 0 | AQ6: =+$W14 -> 0 | AR6: =+$W15 -> 0 | AS6: =+$W16 -> 0 | AT6: =+$W17 -> 0 | AU6: =+$W18 -> 0 | AV6: =+$W19 -> 0 | AW6: =+$W20 -> 0 | AX6: =+$W21 -> 0 | AY6: =+$W22 -> 0 | AZ6: =+$W23 -> 0 | BA6: =+$W24 -> 0 | BB6: =+$W25 -> 0 | BC6: =+$W26 -> 0 | BD6: =+$W27 -> 0 | BE6: =+$W28 -> 0 | BF6: =+$W29 -> 0 | BG6: =+$W30 -> 0 | BH6: =+$W31 -> 0 | BI6: =+$W32 -> 0 | BJ6: =+$W33 -> 0 | BK6: =+$W34 -> 0 | BL6: =+$W35 -> 0 | BM6: =+$W36 -> 0 | BN6: =+$W37 -> 0 | BO6: =+$W38 -> 0 | BP6: =+$W39 -> 0 | BQ6: =+$W40 -> 0 | BR6: =+$W41 -> 0 | BS6: =+$W42 -> 0 | BT6: =+$W43 -> 0 | BU6: =+$W44 -> 0 | BV6: =+$W45 -> 0 | BW6: =+$W46 -> 0 | BY6: =+W47 -> 0 | CA6: =+$D48 -> 0 | CB6: =+$D49 -> 0 | CC6: =+$D50 -> 0 | CD6: =+$D51 -> 0 | CE6: =+$D52 -> 0 | CF6: =+$D53 -> 0 | CG6: =+$D54 -> 0 | CH6: =+$D55 -> 0
A7: =$B$2 -> 10-G1 | B7: H2 | C7: Air Handling Unit (Air Cooled DX / Package) | J7: 0 | K7: 0 | L7: =+K7*J7 -> 0 | M7: 3 | N7: 0 | O7: =+N7*M7 -> 0 | P7: 1 | Q7: 0 | R7: =+Q7*P7 -> 0 | S7: =+$J7+$M7+$P7 -> 4 | T7: =IF($V7>0,$S7,0) -> 0 | U7: =+R7+O7+L7+I7+F7 -> 0 | V7: =IFERROR(VLOOKUP($A$5,'Equipment List Template'!$1:$1048576,12,FALSE),"0") -> 0 | W7: =+U7*V7 -> 0 | X7: =$T7*$V7 -> 0
A8: 10-G1 | B8: H3 | C8: Air-Cooled Chiller | J8: 11 | K8: 0 | L8: 0 | M8: 0 | N8: 0 | O8: 0 | P8: 1 | Q8: 0 | R8: 0 | S8: 12 | T8: 0 | U8: 0 | V8: =IFERROR(VLOOKUP($A$5,'Equipment List Template'!$1:$1048576,13,FALSE),"0") -> 0 | W8: 0 | X8: 0
A9: 10-G1 | B9: H4 | C9: Centrifugal Chiller | J9: 11 | K9: 0 | L9: 0 | M9: 0 | N9: 0 | O9: 0 | P9: 1 | Q9: 0 | R9: 0 | S9: 12 | T9: 0 | U9: 0 | V9: =IFERROR(VLOOKUP($A$5,'Equipment List Template'!$1:$1048576,14,FALSE),"0") -> 0 | W9: 0 | X9: 0
A10: 10-G1 | B10: H5 | C10: Cooling Tower (Induced Draft) | J10: 8 | K10: 0 | L10: 0 | M10: 3 | N10: 0 | O10: 0 | P10: 1 | Q10: 0 | R10: 0 | S10: 12 | T10: 0 | U10: 0 | V10: =IFERROR(VLOOKUP($A$5,'Equipment List Template'!$1:$1048576,15,FALSE),"0") -> 0 | W10: 0 | X10: 0
A11: 10-G1 | B11: H6 | C11: Ice Chiller Tank | J11: 8 | K11: 0 | L11: 0 | M11: 3 | N11: 0 | O11: 0 | P11: 1 | Q11: 0 | R11: 0 | S11: 12 | T11: 0 | U11: 0 | V11: =IFERROR(VLOOKUP($A$5,'Equipment List Template'!$1:$1048576,16,FALSE),"0") -> 0 | W11: 0 | X11: 0
A12: 10-G1 | B12: H7 | C12: Geothermal System | J12: 11 | K12: 0 | L12: 0 | M12: 0 | N12: 0 | O12: 0 | P12: 1 | Q12: 0 | R12: 0 | S12: 12 | T12: 0 | U12: 0 | V12: =IFERROR(VLOOKUP($A$5,'Equipment List Template'!$1:$1048576,17,FALSE),"0") -> 0 | W12: 0 | X12: 0
A13: 10-G1 | B13: H8 | C13: Water Source Heat Pump | J13: 8 | K13: 0 | L13: 0 | M13: 3 | N13: 0 | O13: 0 | P13: 1 | Q13: 0 | R13: 0 | S13: 12 | T13: 0 | U13: 0 | V13: =IFERROR(VLOOKUP($A$5,'Equipment List Template'!$1:$1048576,18,FALSE),"0") -> 0 | W13: 0 | X13: 0
A14: 10-G1 | B14: H9 | C14: Fan Coil System | J14: 0 | K14: 0 | L14: 0 | M14: 3 | N14: 0 | O14: 0 | P14: 1 | Q14: 0 | R14: 0 | S14: 4 | T14: 0 | U14: 0 | V14: =IFERROR(VLOOKUP($A$5,'Equipment List Template'!$1:$1048576,19,FALSE),"0") -> 0 | W14: 0 | X14: 0
A15: 10-G1 | B15: H10 | C15: Supply / Return Fan and Exhaust | J15: 0 | K15: 0 | L15: 0 | M15: 3 | N15: 0 | O15: 0 | P15: 1 | Q15: 0 | R15: 0 | S15: 4 | T15: 0 | U15: 0 | V15: =IFERROR(VLOOKUP($A$5,'Equipment List Template'!$1:$1048576,20,FALSE),"0") -> 0 | W15: 0 | X15: 0
A16: 10-G1 | B16: H11 | C16: Evaporative and Spot Coolers (swamp coolers; spot cooler) | J16: 8 | K16: 0 | L16: 0 | M16: 3 | N16: 0 | O16: 0 | P16: 1 | Q16: 0 | R16: 0 | S16: 12 | T16: 0 | U16: 0 | V16: =IFERROR(VLOOKUP($A$5,'Equipment List Template'!$1:$1048576,21,FALSE),"0") -> 0 | W16: 0 | X16: 0
B17: H12 | C17: Unique HVAC System | J17: 0 | K17: 0 | L17: 0 | M17: 0 | N17: 0 | O17: 0 | P17: 0 | Q17: 0 | R17: 0 | S17: 0 | T17: 0 | V17: 0 | W17: 0
A18: 10-G1 | B18: E1 | C18: Electrical Panels | J18: 0 | K18: 0 | L18: 0 | M18: 3 | N18: 0 | O18: 0 | P18: 1 | Q18: 0 | R18: 0 | S18: 4 | T18: 4 | U18: 0 | V18: =IFERROR(VLOOKUP($A$5,'Equipment List Template'!$1:$1048576,23,FALSE),"0") -> 1 | W18: 0 | X18: 4
A19: 10-G1 | B19: E2 | C19: Emergency Generator | J19: 8 | K19: 0 | L19: 0 | M19: 3 | N19: 0 | O19: 0 | P19: 1 | Q19: 0 | R19: 0 | S19: 12 | T19: 0 | U19: 0 | V19: =IFERROR(VLOOKUP($A$5,'Equipment List Template'!$1:$1048576,24,FALSE),"0") -> 0 | W19: 0 | X19: 0
A20: 10-G1 | B20: E3 | C20: Motor Control Center | J20: 0 | K20: 0 | L20: 0 | M20: 3 | N20: 0 | O20: 0 | P20: 1 | Q20: 0 | R20: 0 | S20: 4 | T20: 0 | U20: 0 | V20: =IFERROR(VLOOKUP($A$5,'Equipment List Template'!$1:$1048576,25,FALSE),"0") -> 0 | W20: 0 | X20: 0
A21: 10-G1 | B21: E4 | C21: Automatic Transfer Switch | J21: 8 | K21: 0 | L21: 0 | M21: 3 | N21: 0 | O21: 0 | P21: 1 | Q21: 0 | R21: 0 | S21: 12 | T21: 0 | U21: 0 | V21: =IFERROR(VLOOKUP($A$5,'Equipment List Template'!$1:$1048576,26,FALSE),"0") -> 0 | W21: 0 | X21: 0
A22: 10-G1 | B22: E5 | C22: Building Automated Systems (BAS) | J22: 0 | K22: 0 | L22: 0 | M22: 0 | N22: 0 | O22: 0 | P22: 1 | Q22: 0 | R22: 0 | S22: 1 | T22: 0 | U22: 0 | V22: =IFERROR(VLOOKUP($A$5,'Equipment List Template'!$1:$1048576,27,FALSE),"0") -> 0 | W22: 0 | X22: 0
A23: 10-G1 | B23: E6 | C23: Transformer (Dry-Type) | J23: 0 | K23: 0 | L23: 0 | M23: 3 | N23: 0 | O23: 0 | P23: 1 | Q23: 0 | R23: 0 | S23: 4 | T23: 0 | U23: 0 | V23: =IFERROR(VLOOKUP($A$5,'Equipment List Template'!$1:$1048576,28,FALSE),"0") -> 0 | W23: 0 | X23: 0
A24: 10-G1 | B24: E7 | C24: Uninterruptible Power Supply (UPS) | J24: 0 | K24: 0 | L24: 0 | M24: 0 | N24: 0 | O24: 0 | P24: 1 | Q24: 0 | R24: 0 | S24: 1 | T24: 0 | U24: 0 | V24: =IFERROR(VLOOKUP($A$5,'Equipment List Template'!$1:$1048576,29,FALSE),"0") -> 0 | W24: 0 | X24: 0
A25: 10-G1 | B25: E8 | C25: Lighting and Controls (Interior and Exterior) | J25: 12 | K25: 0 | L25: 0 | M25: 0 | N25: 0 | O25: 0 | P25: 0 | Q25: 0 | R25: 0 | S25: 12 | T25: 12 | U25: 0 | V25: =IFERROR(VLOOKUP($A$5,'Equipment List Template'!$1:$1048576,30,FALSE),"0") -> 1 | W25: 0 | X25: 12
B26: E9 | C26: Unique Electrical System | J26: 0 | K26: 0 | L26: 0 | M26: 0 | N26: 0 | O26: 0 | P26: 0 | Q26: 0 | R26: 0 | S26: 0 | T26: 0 | V26: 0 | W26: 0
A27: 10-G1 | B27: L1 | C27: Life Safety Systems | J27: 0 | K27: 0 | L27: 0 | M27: 3 | N27: 0 | O27: 0 | P27: 1 | Q27: 0 | R27: 0 | S27: 4 | T27: 4 | U27: 0 | V27: =IFERROR(VLOOKUP($A$5,'Equipment List Template'!$1:$1048576,32,FALSE),"0") -> 1 | W27: 0 | X27: 4
